Workbook

Sheet Information
F1: Newham
F2: Outcome Measures
A5: Please send any feedback to
A6: CEG Newham Facilitator | Jayne Callaghan:
A7: j.callaghan@qmul.ac.uk
A8: CEG Data Analyst |Jack Dunne
A9: j.e.dunne@qmul.ac.uk | F9: Outcome Measures - PMS / APMS | R9: Outcome Measures - GMS
F11: Childhood Immunisations - (Band A ≥91% / Band B ≥80% / Band C ≥70% / Band D <70%) | R11: Diabetes - (Band A ≥45% / Band B ≥43% / Band C ≥41% / Band D <41%)
F12: 12 MONTH COHORT | R12: Diabetes Register
F13: DTaP/IPV/Hib or DTaP/IPV/Hib/HepB (12m) | R13: Type 2 eligible population for on target (Under 80yrs)
F14: DTaP/IPV/Hib or DTaP/IPV/Hib/HepB (12m) % | R14: Diabetes Triple Target
F15: 24 MONTH COHORT | R15: Diabetes Triple Target %
F16: MMR (24m) | R16: Type 2 eligible population for BP <=140/80 (Under 80yrs)
F17: MMR (24m) % | R17: Blood Pressure 140/80 (12 mths)
F18: MMR Declined | R18: Blood Pressure 140/80 (12 mths) %
F19: 5 YEAR COHORT | R19: Type 2 eligible population for HbA1c <=59 (Under 80yrs)
F20: DTaP/IPV (Booster) (5y) | R20: HbA1c 59 or less (12 mths)
F21: DTaP/IPV (Booster) (5y) % | R21: HbA1c 59 or less (12 mths) %
F22: Infant Feeding - (Band A ≥90% / Band B ≥80% / Band C ≥70% / Band D <70%) | R22: Type 2 eligible population for Cholesterol <=4.5 (Under 80yrs)
F23: Children aged 6 to 10 weeks during the audit period | R23: Cholesterol 4.5 or less (12 mths)
F24: Registered before 3 months old | R24: Cholesterol 4.5 or less (12 mths) %
F25: Registered before 3 months old %
F26: Infant feeding recorded | R26: CKD - (Band A ≥35% / Band B ≥34% / Band C ≥33% / Band D <33%)
F27: Infant feeding recorded % | R27: Patients with CKD
F28: Diabetes - (Band A ≥45% / Band B ≥43% / Band C ≥41% / Band D <41%) | R28: BP maintained (130/80mm HG)
F29: Diabetes Register | R29: % BP maintained (130/80mm HG)
F30: Type 2 eligible population for on target (Under 80yrs)
F31: Diabetes Triple Target | R31: Frailty Care Review - (Band A ≥90% / Band B ≥85% / Band C ≥75% / Band D <75%)
F32: Diabetes Triple Target % | R32: Frailty >=0.36
F33: Type 2 eligible population for BP <=140/80 (Under 80yrs) | R33: Face to face review 6mths (including video conference)
F34: Blood Pressure 140/80 (12 mths) | R34: Face to face review 6mths (including video conference) %
F35: Blood Pressure 140/80 (12 mths) %
F36: Type 2 eligible population for HbA1c <=59 (Under 80yrs)
F37: HbA1c 59 or less (12 mths)
F38: HbA1c 59 or less (12 mths) %
F39: Type 2 eligible population for Cholesterol <=4.5 (Under 80yrs)
F40: Cholesterol 4.5 or less (12 mths)
F41: Cholesterol 4.5 or less (12 mths) %
F43: Epilepsy - (Band A ≥60% / Band B ≥50% / Band C ≥40% / Band D <40%)
F44: Patients aged 18 or over on the epilepsy register
F45: Annual Review done
F46: Annual Review done %
F47: Fit frequency recorded
F48: Seizure free >12m or Last fit recorded
F49: Medication Review done
F50: Psychology Referrals
F51: Psychology Referrals (IAPT)
F52: CKD - (Band A ≥35% / Band B ≥34% / Band C ≥33% / Band D <33%)
F53: Patients with CKD
F54: BP maintained (130/80mm HG)
F55: % BP maintained (130/80mm HG)
F57: Frailty Care Review - (Band A ≥90% / Band B ≥85% / Band C ≥75% / Band D <75%)
F58: Frailty >=0.36
F59: Face to face review 6mths (including video conference)
F60: Face to face review 6mths (including video conference) %

Sheet Report
C2: June 2021 | D2: Newham
C3: =VLOOKUP(C2,'Control Panel'!H6:I17,2,FALSE) -> 2021-07-01 | D3: Outcome Measures
F5: Childhood Immunisations - (Band A ≥91% / Band B ≥80% / Band C ≥70% / Band D <70%) | P5: Infant Feeding - (Band A ≥90% / Band B ≥80% / Band C ≥70% / Band D <70%) | V5: Diabetes - (Band A ≥45% / Band B ≥43% / Band C ≥41% / Band D <41%) | AK5: Epilepsy - (Band A ≥60% / Band B ≥50% / Band C ≥40% / Band D <40%) | AR5: Psychology Referrals | AT5: CKD - (Band A ≥35% / Band B ≥34% / Band C ≥33% / Band D <33%) | AX5: Frailty Care Review - (Band A ≥90% / Band B ≥85% / Band C ≥75% / Band D <75%)
D6: All Patients | F6: (01) 12 MONTH COHORT | G6: (01.01) DTaP/IPV/Hib or DTaP/IPV/Hib/HepB | I6: (02) 24 MONTH COHORT | J6: (02.02) MMR | L6: (03) 5 YEAR COHORT | M6: (03.03) DTaP/IPV (Booster) | P6: Children aged 6 to 10 weeks during the audit period | Q6: Registered before 3 months old | S6: Infant feeding recorded | V6: Diabetes Register | W6: Type 2 eligible population for on target | X6: Diabetes triple target | Z6: Type 2 eligible population for BP <=140/80 | AA6: Blood Pressure 140/80 (12 mths) | AC6: Type 2 eligible population for HbA1c <=59 | AD6: HbA1c 59 or less (12 mths) | AF6: Type 2 eligible population for Cholesterol <=4.5 | AG6: Cholesterol 4.5 or less (12 mths) | AK6: Patients aged 18 or over on the epilepsy register | AL6: Annual Review done | AN6: Fit frequency recorded | AO6: Seizure free >12m or Last fit recorded | AP6: Medication Review done | AR6: Psychology Referrals (IAPT) | AT6: 08 Patients with CKD | AU6: 0801 BP maintained (130/80mm HG) | AX6: Frailty >=0.36 | AY6: Face to face review 3mths (including video conference)
B7: Home | D7: =VLOOKUP(D6,'Control Panel'!$E$2:$F$42,2,FALSE) -> All currently registered patients | F7: =VLOOKUP(F6,'Control Panel'!$E$2:$F$42,2,FALSE) -> 12 MONTH COHORT | G7: =VLOOKUP(G6,'Control Panel'!$E$2:$F$42,2,FALSE) -> DTaP/IPV/Hib or DTaP/IPV/Hib/HepB (12m) | H7: ='Control Panel'!F5 -> DTaP/IPV/Hib or DTaP/IPV/Hib/HepB (12m) % | I7: =VLOOKUP(I6,'Control Panel'!$E$2:$F$42,2,FALSE) -> 24 MONTH COHORT | J7: =VLOOKUP(J6,'Control Panel'!$E$2:$F$42,2,FALSE) -> MMR (24m) | K7: ='Control Panel'!F9 -> MMR (24m) % | L7: =VLOOKUP(L6,'Control Panel'!$E$2:$F$42,2,FALSE) -> 5 YEAR COHORT | M7: =VLOOKUP(M6,'Control Panel'!$E$2:$F$42,2,FALSE) -> DTaP/IPV (Booster) (5y) | N7: ='Control Panel'!F12 -> DTaP/IPV (Booster) (5y) % | P7: =VLOOKUP(P6,'Control Panel'!$E$2:$F$42,2,FALSE) -> Children aged 6 to 10 weeks during the audit period | Q7: =VLOOKUP(Q6,'Control Panel'!$E$2:$F$42,2,FALSE) -> Registered before 3 months old | R7: ='Control Panel'!F15 -> Registered before 3 months old % | S7: =VLOOKUP(S6,'Control Panel'!$E$2:$F$42,2,FALSE) -> Infant feeding recorded | T7: ='Control Panel'!F17 -> Infant feeding recorded % | V7: =VLOOKUP(V6,'Control Panel'!$E$2:$F$42,2,FALSE) -> Diabetes Register | W7: Type 2 eligible population for on target (Under 80yrs) | X7: Diabetes Triple Target | Y7: Diabetes Triple Target % | Z7: Type 2 eligible population for BP <=140/80 (Under 80yrs) | AA7: =VLOOKUP(AA6,'Control Panel'!$E$2:$F$42,2,FALSE) -> Blood Pressure 140/80 (12 mths) | AB7: =AA7&" %" -> Blood Pressure 140/80 (12 mths) % | AC7: Type 2 eligible population for HbA1c <=59 (Under 80yrs) | AD7: =VLOOKUP(AD6,'Control Panel'!$E$2:$F$42,2,FALSE) -> HbA1c 59 or less (12 mths) | AE7: =AD7&" %" -> HbA1c 59 or less (12 mths) % | AF7: Type 2 eligible population for Cholesterol <=4.5 (Under 80yrs) | AG7: =VLOOKUP(AG6,'Control Panel'!$E$2:$F$42,2,FALSE) -> Cholesterol 4.5 or less (12 mths) | AH7: =AG7&" %" -> Cholesterol 4.5 or less (12 mths) % | AK7: =VLOOKUP(AK6,'Control Panel'!$E$2:$F$42,2,FALSE) -> Patients aged 18 or over on the epilepsy register | AL7: =VLOOKUP(AL6,'Control Panel'!$E$2:$F$42,2,FALSE) -> Annual Review done | AM7: =AL7&" %" -> Annual Review done % | AN7: =VLOOKUP(AN6,'Control Panel'!$E$2:$F$42,2,FALSE) -> Fit frequency recorded | AO7: Seizure free >12m or Last fit recorded | AP7: =VLOOKUP(AP6,'Control Panel'!$E$2:$F$42,2,FALSE) -> Medication Review done | AR7: =VLOOKUP(AR6,'Control Panel'!$E$2:$F$42,2,FALSE) -> Psychology Referrals (IAPT) | AT7: Patients with CKD | AU7: BP maintained (130/80mm HG) | AV7: BP maintained (130/80mm HG) % | AX7: Frailty >=0.36 | AY7: Face to face review 6mths (including video conference) | AZ7: Face to face review 6mths (including video conference) %
A8: PCN
A9: PCN1 | B9: South One Newham | D9: =SUM(IF($A9=$A$22:$A$69,D$22:D$69)) -> 50484 | F9: =SUM(IF($A9=$A$22:$A$69,F$22:F$69)) -> 473 | G9: =SUM(IF($A9=$A$22:$A$69,G$22:G$69)) -> 377 | H9: =G9/F9 -> 0.7970401691 | I9: =SUM(IF($A9=$A$22:$A$69,I$22:I$69)) -> 540 | J9: =SUM(IF($A9=$A$22:$A$69,J$22:J$69)) -> 426 | K9: =J9/I9 -> 0.7888888889 | L9: =SUM(IF($A9=$A$22:$A$69,L$22:L$69)) -> 524 | M9: =SUM(IF($A9=$A$22:$A$69,M$22:M$69)) -> 374 | N9: =M9/L9 -> 0.713740458 | P9: =SUM(IF($A9=$A$22:$A$69,P$22:P$69)) -> 459 | Q9: =SUM(IF($A9=$A$22:$A$69,Q$22:Q$69)) -> 440 | R9: =Q9/P9 -> 0.9586056645 | S9: =SUM(IF($A9=$A$22:$A$69,S$22:S$69)) -> 328 | T9: =S9/Q9 -> 0.7454545455 | V9: =SUM(IF($A9=$A$22:$A$69,V$22:V$69)) -> 2873 | W9: =SUM(IF($A9=$A$22:$A$69,W$22:W$69)) -> 2232 | X9: =SUM(IF($A9=$A$22:$A$69,X$22:X$69)) -> 551 | Y9: =X9/W9 -> 0.2468637993 | Z9: =SUM(IF($A9=$A$22:$A$69,Z$22:Z$69)) -> 2434 | AA9: =SUM(IF($A9=$A$22:$A$69,AA$22:AA$69)) -> 1421 | AB9: =AA9/Z9 -> 0.5838126541 | AC9: =SUM(IF($A9=$A$22:$A$69,AC$22:AC$69)) -> 2407 | AD9: =SUM(IF($A9=$A$22:$A$69,AD$22:AD$69)) -> 1284 | AE9: =AD9/AC9 -> 0.5334441213 | AF9: =SUM(IF($A9=$A$22:$A$69,AF$22:AF$69)) -> 2407 | AG9: =SUM(IF($A9=$A$22:$A$69,AG$22:AG$69)) -> 1413 | AH9: =AG9/AF9 -> 0.5870378064 | AK9: =SUM(IF($A9=$A$22:$A$69,AK$22:AK$69)) -> 169 | AL9: =SUM(IF($A9=$A$22:$A$69,AL$22:AL$69)) -> 126 | AM9: =AL9/AK9 -> 0.7455621302 | AN9: =SUM(IF($A9=$A$22:$A$69,AN$22:AN$69)) -> 69 | AO9: =SUM(IF($A9=$A$22:$A$69,AO$22:AO$69)) -> 144 | AP9: =SUM(IF($A9=$A$22:$A$69,AP$22:AP$69)) -> 141 | AR9: =SUM(IF($A9=$A$22:$A$69,AR$22:AR$69)) -> 416 | AT9: =SUM(IF($A9=$A$22:$A$69,AT$22:AT$69)) -> 1297 | AU9: =SUM(IF($A9=$A$22:$A$69,AU$22:AU$69)) -> 233 | AV9: =AU9/AT9 -> 0.1796453354 | AX9: =SUM(IF($A9=$A$22:$A$69,AX$22:AX$69)) -> 308 | AY9: =SUM(IF($A9=$A$22:$A$69,AY$22:AY$69)) -> 291 | AZ9: =IFERROR(AY9/AX9,"-") -> 0.9448051948
A10: PCN2 | B10: Central 1 | D10: =SUM(IF($A10=$A$22:$A$69,D$22:D$69)) -> 67813 | F10: =SUM(IF($A10=$A$22:$A$69,F$22:F$69)) -> 785 | G10: =SUM(IF($A10=$A$22:$A$69,G$22:G$69)) -> 688 | H10: =G10/F10 -> 0.876433121 | I10: =SUM(IF($A10=$A$22:$A$69,I$22:I$69)) -> 745 | J10: =SUM(IF($A10=$A$22:$A$69,J$22:J$69)) -> 611 | K10: =J10/I10 -> 0.8201342282 | L10: =SUM(IF($A10=$A$22:$A$69,L$22:L$69)) -> 805 | M10: =SUM(IF($A10=$A$22:$A$69,M$22:M$69)) -> 589 | N10: =M10/L10 -> 0.7316770186 | P10: =SUM(IF($A10=$A$22:$A$69,P$22:P$69)) -> 720 | Q10: =SUM(IF($A10=$A$22:$A$69,Q$22:Q$69)) -> 670 | R10: =Q10/P10 -> 0.9305555556 | S10: =SUM(IF($A10=$A$22:$A$69,S$22:S$69)) -> 505 | T10: =S10/Q10 -> 0.7537313433 | V10: =SUM(IF($A10=$A$22:$A$69,V$22:V$69)) -> 5208 | W10: =SUM(IF($A10=$A$22:$A$69,W$22:W$69)) -> 4019 | X10: =SUM(IF($A10=$A$22:$A$69,X$22:X$69)) -> 1032 | Y10: =X10/W10 -> 0.2567802936 | Z10: =SUM(IF($A10=$A$22:$A$69,Z$22:Z$69)) -> 4328 | AA10: =SUM(IF($A10=$A$22:$A$69,AA$22:AA$69)) -> 2507 | AB10: =AA10/Z10 -> 0.5792513863 | AC10: =SUM(IF($A10=$A$22:$A$69,AC$22:AC$69)) -> 4383 | AD10: =SUM(IF($A10=$A$22:$A$69,AD$22:AD$69)) -> 2432 | AE10: =AD10/AC10 -> 0.5548710929 | AF10: =SUM(IF($A10=$A$22:$A$69,AF$22:AF$69)) -> 4336 | AG10: =SUM(IF($A10=$A$22:$A$69,AG$22:AG$69)) -> 2709 | AH10: =AG10/AF10 -> 0.6247693727 | AK10: =SUM(IF($A10=$A$22:$A$69,AK$22:AK$69)) -> 182 | AL10: =SUM(IF($A10=$A$22:$A$69,AL$22:AL$69)) -> 51 | AM10: =AL10/AK10 -> 0.2802197802 | AN10: =SUM(IF($A10=$A$22:$A$69,AN$22:AN$69)) -> 51 | AO10: =SUM(IF($A10=$A$22:$A$69,AO$22:AO$69)) -> 145 | AP10: =SUM(IF($A10=$A$22:$A$69,AP$22:AP$69)) -> 106 | AR10: =SUM(IF($A10=$A$22:$A$69,AR$22:AR$69)) -> 658 | AT10: =SUM(IF($A10=$A$22:$A$69,AT$22:AT$69)) -> 1706 | AU10: =SUM(IF($A10=$A$22:$A$69,AU$22:AU$69)) -> 387 | AV10: =AU10/AT10 -> 0.2268464244 | AX10: =SUM(IF($A10=$A$22:$A$69,AX$22:AX$69)) -> 443 | AY10: =SUM(IF($A10=$A$22:$A$69,AY$22:AY$69)) -> 375 | AZ10: =IFERROR(AY10/AX10,"-") -> 0.8465011287
A11: PCN3 | B11: Newham Central | D11: =SUM(IF($A11=$A$22:$A$69,D$22:D$69)) -> 31655 | F11: =SUM(IF($A11=$A$22:$A$69,F$22:F$69)) -> 397 | G11: =SUM(IF($A11=$A$22:$A$69,G$22:G$69)) -> 341 | H11: 0.8589420655 | I11: =SUM(IF($A11=$A$22:$A$69,I$22:I$69)) -> 376 | J11: =SUM(IF($A11=$A$22:$A$69,J$22:J$69)) -> 304 | K11: 0.8085106383 | L11: =SUM(IF($A11=$A$22:$A$69,L$22:L$69)) -> 336 | M11: =SUM(IF($A11=$A$22:$A$69,M$22:M$69)) -> 270 | N11: 0.8035714286 | P11: =SUM(IF($A11=$A$22:$A$69,P$22:P$69)) -> 397 | Q11: =SUM(IF($A11=$A$22:$A$69,Q$22:Q$69)) -> 359 | R11: 0.9042821159 | S11: =SUM(IF($A11=$A$22:$A$69,S$22:S$69)) -> 220 | T11: 0.6128133705 | V11: =SUM(IF($A11=$A$22:$A$69,V$22:V$69)) -> 1977 | W11: =SUM(IF($A11=$A$22:$A$69,W$22:W$69)) -> 1408 | X11: =SUM(IF($A11=$A$22:$A$69,X$22:X$69)) -> 400 | Y11: 0.2840909091 | Z11: =SUM(IF($A11=$A$22:$A$69,Z$22:Z$69)) -> 1611 | AA11: =SUM(IF($A11=$A$22:$A$69,AA$22:AA$69)) -> 1056 | AB11: 0.6554934823 | AC11: =SUM(IF($A11=$A$22:$A$69,AC$22:AC$69)) -> 1554 | AD11: =SUM(IF($A11=$A$22:$A$69,AD$22:AD$69)) -> 873 | AE11: 0.5617760618 | AF11: =SUM(IF($A11=$A$22:$A$69,AF$22:AF$69)) -> 1570 | AG11: =SUM(IF($A11=$A$22:$A$69,AG$22:AG$69)) -> 1003 | AH11: 0.6388535032 | AK11: =SUM(IF($A11=$A$22:$A$69,AK$22:AK$69)) -> 96 | AL11: =SUM(IF($A11=$A$22:$A$69,AL$22:AL$69)) -> 14 | AM11: 0.1458333333 | AN11: =SUM(IF($A11=$A$22:$A$69,AN$22:AN$69)) -> 17 | AO11: =SUM(IF($A11=$A$22:$A$69,AO$22:AO$69)) -> 58 | AP11: =SUM(IF($A11=$A$22:$A$69,AP$22:AP$69)) -> 33 | AR11: =SUM(IF($A11=$A$22:$A$69,AR$22:AR$69)) -> 29 | AT11: =SUM(IF($A11=$A$22:$A$69,AT$22:AT$69)) -> 589 | AU11: =SUM(IF($A11=$A$22:$A$69,AU$22:AU$69)) -> 74 | AV11: 0.1256366723 | AX11: =SUM(IF($A11=$A$22:$A$69,AX$22:AX$69)) -> 163 | AY11: =SUM(IF($A11=$A$22:$A$69,AY$22:AY$69)) -> 140 | AZ11: 0.8588957055
A12: PCN4 | B12: North East 1 | D12: =SUM(IF($A12=$A$22:$A$69,D$22:D$69)) -> 32133 | F12: =SUM(IF($A12=$A$22:$A$69,F$22:F$69)) -> 205 | G12: =SUM(IF($A12=$A$22:$A$69,G$22:G$69)) -> 175 | H12: 0.8536585366 | I12: =SUM(IF($A12=$A$22:$A$69,I$22:I$69)) -> 193 | J12: =SUM(IF($A12=$A$22:$A$69,J$22:J$69)) -> 164 | K12: 0.8497409326 | L12: =SUM(IF($A12=$A$22:$A$69,L$22:L$69)) -> 217 | M12: =SUM(IF($A12=$A$22:$A$69,M$22:M$69)) -> 186 | N12: 0.8571428571 | P12: =SUM(IF($A12=$A$22:$A$69,P$22:P$69)) -> 189 | Q12: =SUM(IF($A12=$A$22:$A$69,Q$22:Q$69)) -> 180 | R12: 0.9523809524 | S12: =SUM(IF($A12=$A$22:$A$69,S$22:S$69)) -> 165 | T12: 0.9166666667 | V12: =SUM(IF($A12=$A$22:$A$69,V$22:V$69)) -> 3289 | W12: =SUM(IF($A12=$A$22:$A$69,W$22:W$69)) -> 2673 | X12: =SUM(IF($A12=$A$22:$A$69,X$22:X$69)) -> 834 | Y12: 0.3120089787 | Z12: =SUM(IF($A12=$A$22:$A$69,Z$22:Z$69)) -> 2862 | AA12: =SUM(IF($A12=$A$22:$A$69,AA$22:AA$69)) -> 2149 | AB12: 0.750873515 | AC12: =SUM(IF($A12=$A$22:$A$69,AC$22:AC$69)) -> 2859 | AD12: =SUM(IF($A12=$A$22:$A$69,AD$22:AD$69)) -> 1564 | AE12: 0.5470444211 | AF12: =SUM(IF($A12=$A$22:$A$69,AF$22:AF$69)) -> 2805 | AG12: =SUM(IF($A12=$A$22:$A$69,AG$22:AG$69)) -> 1837 | AH12: 0.6549019608 | AK12: =SUM(IF($A12=$A$22:$A$69,AK$22:AK$69)) -> 55 | AL12: =SUM(IF($A12=$A$22:$A$69,AL$22:AL$69)) -> 36 | AM12: 0.6545454545 | AN12: =SUM(IF($A12=$A$22:$A$69,AN$22:AN$69)) -> 37 | AO12: =SUM(IF($A12=$A$22:$A$69,AO$22:AO$69)) -> 54 | AP12: =SUM(IF($A12=$A$22:$A$69,AP$22:AP$69)) -> 27 | AR12: =SUM(IF($A12=$A$22:$A$69,AR$22:AR$69)) -> 73 | AT12: =SUM(IF($A12=$A$22:$A$69,AT$22:AT$69)) -> 915 | AU12: =SUM(IF($A12=$A$22:$A$69,AU$22:AU$69)) -> 231 | AV12: 0.2524590164 | AX12: =SUM(IF($A12=$A$22:$A$69,AX$22:AX$69)) -> 264 | AY12: =SUM(IF($A12=$A$22:$A$69,AY$22:AY$69)) -> 214 | AZ12: 0.8106060606
A13: PCN5 | B13: North East 2 | D13: =SUM(IF($A13=$A$22:$A$69,D$22:D$69)) -> 43247 | F13: =SUM(IF($A13=$A$22:$A$69,F$22:F$69)) -> 394 | G13: =SUM(IF($A13=$A$22:$A$69,G$22:G$69)) -> 355 | H13: 0.9010152284 | I13: =SUM(IF($A13=$A$22:$A$69,I$22:I$69)) -> 392 | J13: =SUM(IF($A13=$A$22:$A$69,J$22:J$69)) -> 343 | K13: 0.875 | L13: =SUM(IF($A13=$A$22:$A$69,L$22:L$69)) -> 404 | M13: =SUM(IF($A13=$A$22:$A$69,M$22:M$69)) -> 326 | N13: 0.8069306931 | P13: =SUM(IF($A13=$A$22:$A$69,P$22:P$69)) -> 399 | Q13: =SUM(IF($A13=$A$22:$A$69,Q$22:Q$69)) -> 373 | R13: 0.9348370927 | S13: =SUM(IF($A13=$A$22:$A$69,S$22:S$69)) -> 302 | T13: 0.8096514745 | V13: =SUM(IF($A13=$A$22:$A$69,V$22:V$69)) -> 4145 | W13: =SUM(IF($A13=$A$22:$A$69,W$22:W$69)) -> 3318 | X13: =SUM(IF($A13=$A$22:$A$69,X$22:X$69)) -> 1334 | Y13: 0.4020494274 | Z13: =SUM(IF($A13=$A$22:$A$69,Z$22:Z$69)) -> 3635 | AA13: =SUM(IF($A13=$A$22:$A$69,AA$22:AA$69)) -> 2749 | AB13: 0.756258597 | AC13: =SUM(IF($A13=$A$22:$A$69,AC$22:AC$69)) -> 3569 | AD13: =SUM(IF($A13=$A$22:$A$69,AD$22:AD$69)) -> 2231 | AE13: 0.6251050714 | AF13: =SUM(IF($A13=$A$22:$A$69,AF$22:AF$69)) -> 3546 | AG13: =SUM(IF($A13=$A$22:$A$69,AG$22:AG$69)) -> 2510 | AH13: 0.7078398195 | AK13: =SUM(IF($A13=$A$22:$A$69,AK$22:AK$69)) -> 106 | AL13: =SUM(IF($A13=$A$22:$A$69,AL$22:AL$69)) -> 20 | AM13: 0.1886792453 | AN13: =SUM(IF($A13=$A$22:$A$69,AN$22:AN$69)) -> 14 | AO13: =SUM(IF($A13=$A$22:$A$69,AO$22:AO$69)) -> 88 | AP13: =SUM(IF($A13=$A$22:$A$69,AP$22:AP$69)) -> 72 | AR13: =SUM(IF($A13=$A$22:$A$69,AR$22:AR$69)) -> 320 | AT13: =SUM(IF($A13=$A$22:$A$69,AT$22:AT$69)) -> 1279 | AU13: =SUM(IF($A13=$A$22:$A$69,AU$22:AU$69)) -> 398 | AV13: 0.3111806099 | AX13: =SUM(IF($A13=$A$22:$A$69,AX$22:AX$69)) -> 386 | AY13: =SUM(IF($A13=$A$22:$A$69,AY$22:AY$69)) -> 352 | AZ13: 0.9119170984
A14: PCN6 | B14: North Newham | D14: =SUM(IF($A14=$A$22:$A$69,D$22:D$69)) -> 33649 | F14: =SUM(IF($A14=$A$22:$A$69,F$22:F$69)) -> 429 | G14: =SUM(IF($A14=$A$22:$A$69,G$22:G$69)) -> 388 | H14: 0.9044289044 | I14: =SUM(IF($A14=$A$22:$A$69,I$22:I$69)) -> 412 | J14: =SUM(IF($A14=$A$22:$A$69,J$22:J$69)) -> 375 | K14: 0.9101941748 | L14: =SUM(IF($A14=$A$22:$A$69,L$22:L$69)) -> 394 | M14: =SUM(IF($A14=$A$22:$A$69,M$22:M$69)) -> 325 | N14: 0.8248730964 | P14: =SUM(IF($A14=$A$22:$A$69,P$22:P$69)) -> 442 | Q14: =SUM(IF($A14=$A$22:$A$69,Q$22:Q$69)) -> 421 | R14: 0.9524886878 | S14: =SUM(IF($A14=$A$22:$A$69,S$22:S$69)) -> 368 | T14: 0.8741092637 | V14: =SUM(IF($A14=$A$22:$A$69,V$22:V$69)) -> 2204 | W14: =SUM(IF($A14=$A$22:$A$69,W$22:W$69)) -> 1808 | X14: =SUM(IF($A14=$A$22:$A$69,X$22:X$69)) -> 563 | Y14: 0.3113938053 | Z14: =SUM(IF($A14=$A$22:$A$69,Z$22:Z$69)) -> 1919 | AA14: =SUM(IF($A14=$A$22:$A$69,AA$22:AA$69)) -> 1318 | AB14: 0.68681605 | AC14: =SUM(IF($A14=$A$22:$A$69,AC$22:AC$69)) -> 1909 | AD14: =SUM(IF($A14=$A$22:$A$69,AD$22:AD$69)) -> 1054 | AE14: 0.5521215296 | AF14: =SUM(IF($A14=$A$22:$A$69,AF$22:AF$69)) -> 1904 | AG14: =SUM(IF($A14=$A$22:$A$69,AG$22:AG$69)) -> 1216 | AH14: 0.6386554622 | AK14: =SUM(IF($A14=$A$22:$A$69,AK$22:AK$69)) -> 77 | AL14: =SUM(IF($A14=$A$22:$A$69,AL$22:AL$69)) -> 11 | AM14: 0.1428571429 | AN14: =SUM(IF($A14=$A$22:$A$69,AN$22:AN$69)) -> 16 | AO14: =SUM(IF($A14=$A$22:$A$69,AO$22:AO$69)) -> 65 | AP14: =SUM(IF($A14=$A$22:$A$69,AP$22:AP$69)) -> 62 | AR14: =SUM(IF($A14=$A$22:$A$69,AR$22:AR$69)) -> 709 | AT14: =SUM(IF($A14=$A$22:$A$69,AT$22:AT$69)) -> 743 | AU14: =SUM(IF($A14=$A$22:$A$69,AU$22:AU$69)) -> 186 | AV14: 0.2503364738 | AX14: =SUM(IF($A14=$A$22:$A$69,AX$22:AX$69)) -> 202 | AY14: =SUM(IF($A14=$A$22:$A$69,AY$22:AY$69)) -> 121 | AZ14: 0.599009901
A15: PCN7 | B15: Leaside | D15: =SUM(IF($A15=$A$22:$A$69,D$22:D$69)) -> 46713 | F15: =SUM(IF($A15=$A$22:$A$69,F$22:F$69)) -> 467 | G15: =SUM(IF($A15=$A$22:$A$69,G$22:G$69)) -> 401 | H15: 0.8586723769 | I15: =SUM(IF($A15=$A$22:$A$69,I$22:I$69)) -> 395 | J15: =SUM(IF($A15=$A$22:$A$69,J$22:J$69)) -> 342 | K15: 0.8658227848 | L15: =SUM(IF($A15=$A$22:$A$69,L$22:L$69)) -> 405 | M15: =SUM(IF($A15=$A$22:$A$69,M$22:M$69)) -> 317 | N15: 0.7827160494 | P15: =SUM(IF($A15=$A$22:$A$69,P$22:P$69)) -> 430 | Q15: =SUM(IF($A15=$A$22:$A$69,Q$22:Q$69)) -> 399 | R15: 0.9279069767 | S15: =SUM(IF($A15=$A$22:$A$69,S$22:S$69)) -> 318 | T15: 0.7969924812 | V15: =SUM(IF($A15=$A$22:$A$69,V$22:V$69)) -> 1794 | W15: =SUM(IF($A15=$A$22:$A$69,W$22:W$69)) -> 1480 | X15: =SUM(IF($A15=$A$22:$A$69,X$22:X$69)) -> 567 | Y15: 0.3831081081 | Z15: =SUM(IF($A15=$A$22:$A$69,Z$22:Z$69)) -> 1600 | AA15: =SUM(IF($A15=$A$22:$A$69,AA$22:AA$69)) -> 1339 | AB15: 0.836875 | AC15: =SUM(IF($A15=$A$22:$A$69,AC$22:AC$69)) -> 1586 | AD15: =SUM(IF($A15=$A$22:$A$69,AD$22:AD$69)) -> 984 | AE15: 0.6204287516 | AF15: =SUM(IF($A15=$A$22:$A$69,AF$22:AF$69)) -> 1547 | AG15: =SUM(IF($A15=$A$22:$A$69,AG$22:AG$69)) -> 1037 | AH15: 0.6703296703 | AK15: =SUM(IF($A15=$A$22:$A$69,AK$22:AK$69)) -> 98 | AL15: =SUM(IF($A15=$A$22:$A$69,AL$22:AL$69)) -> 40 | AM15: 0.4081632653 | AN15: =SUM(IF($A15=$A$22:$A$69,AN$22:AN$69)) -> 43 | AO15: =SUM(IF($A15=$A$22:$A$69,AO$22:AO$69)) -> 72 | AP15: =SUM(IF($A15=$A$22:$A$69,AP$22:AP$69)) -> 66 | AR15: =SUM(IF($A15=$A$22:$A$69,AR$22:AR$69)) -> 191 | AT15: =SUM(IF($A15=$A$22:$A$69,AT$22:AT$69)) -> 707 | AU15: =SUM(IF($A15=$A$22:$A$69,AU$22:AU$69)) -> 158 | AV15: 0.2234794908 | AX15: =SUM(IF($A15=$A$22:$A$69,AX$22:AX$69)) -> 138 | AY15: =SUM(IF($A15=$A$22:$A$69,AY$22:AY$69)) -> 56 | AZ15: 0.4057971014
A16: PCN8 | B16: Stratford | D16: =SUM(IF($A16=$A$22:$A$69,D$22:D$69)) -> 39091 | F16: =SUM(IF($A16=$A$22:$A$69,F$22:F$69)) -> 353 | G16: =SUM(IF($A16=$A$22:$A$69,G$22:G$69)) -> 298 | H16: 0.8441926346 | I16: =SUM(IF($A16=$A$22:$A$69,I$22:I$69)) -> 389 | J16: =SUM(IF($A16=$A$22:$A$69,J$22:J$69)) -> 316 | K16: 0.8123393316 | L16: =SUM(IF($A16=$A$22:$A$69,L$22:L$69)) -> 396 | M16: =SUM(IF($A16=$A$22:$A$69,M$22:M$69)) -> 308 | N16: 0.7777777778 | P16: =SUM(IF($A16=$A$22:$A$69,P$22:P$69)) -> 336 | Q16: =SUM(IF($A16=$A$22:$A$69,Q$22:Q$69)) -> 303 | R16: 0.9017857143 | S16: =SUM(IF($A16=$A$22:$A$69,S$22:S$69)) -> 223 | T16: 0.7359735974 | V16: =SUM(IF($A16=$A$22:$A$69,V$22:V$69)) -> 2495 | W16: =SUM(IF($A16=$A$22:$A$69,W$22:W$69)) -> 1882 | X16: =SUM(IF($A16=$A$22:$A$69,X$22:X$69)) -> 418 | Y16: 0.2221041445 | Z16: =SUM(IF($A16=$A$22:$A$69,Z$22:Z$69)) -> 2044 | AA16: =SUM(IF($A16=$A$22:$A$69,AA$22:AA$69)) -> 1079 | AB16: 0.5278864971 | AC16: =SUM(IF($A16=$A$22:$A$69,AC$22:AC$69)) -> 2044 | AD16: =SUM(IF($A16=$A$22:$A$69,AD$22:AD$69)) -> 1058 | AE16: 0.5176125245 | AF16: =SUM(IF($A16=$A$22:$A$69,AF$22:AF$69)) -> 2051 | AG16: =SUM(IF($A16=$A$22:$A$69,AG$22:AG$69)) -> 1233 | AH16: 0.6011701609 | AK16: =SUM(IF($A16=$A$22:$A$69,AK$22:AK$69)) -> 124 | AL16: =SUM(IF($A16=$A$22:$A$69,AL$22:AL$69)) -> 5 | AM16: 0.04032258065 | AN16: =SUM(IF($A16=$A$22:$A$69,AN$22:AN$69)) -> 8 | AO16: =SUM(IF($A16=$A$22:$A$69,AO$22:AO$69)) -> 91 | AP16: =SUM(IF($A16=$A$22:$A$69,AP$22:AP$69)) -> 62 | AR16: =SUM(IF($A16=$A$22:$A$69,AR$22:AR$69)) -> 144 | AT16: =SUM(IF($A16=$A$22:$A$69,AT$22:AT$69)) -> 793 | AU16: =SUM(IF($A16=$A$22:$A$69,AU$22:AU$69)) -> 167 | AV16: 0.210592686 | AX16: =SUM(IF($A16=$A$22:$A$69,AX$22:AX$69)) -> 249 | AY16: =SUM(IF($A16=$A$22:$A$69,AY$22:AY$69)) -> 127 | AZ16: 0.5100401606
A17: PCN9 | B17: North West 2 | D17: =SUM(IF($A17=$A$22:$A$69,D$22:D$69)) -> 38885 | F17: =SUM(IF($A17=$A$22:$A$69,F$22:F$69)) -> 250 | G17: =SUM(IF($A17=$A$22:$A$69,G$22:G$69)) -> 216 | H17: =G17/F17 -> 0.864 | I17: =SUM(IF($A17=$A$22:$A$69,I$22:I$69)) -> 220 | J17: =SUM(IF($A17=$A$22:$A$69,J$22:J$69)) -> 183 | K17: =J17/I17 -> 0.8318181818 | L17: =SUM(IF($A17=$A$22:$A$69,L$22:L$69)) -> 261 | M17: =SUM(IF($A17=$A$22:$A$69,M$22:M$69)) -> 198 | N17: =M17/L17 -> 0.7586206897 | P17: =SUM(IF($A17=$A$22:$A$69,P$22:P$69)) -> 252 | Q17: =SUM(IF($A17=$A$22:$A$69,Q$22:Q$69)) -> 237 | R17: =Q17/P17 -> 0.9404761905 | S17: =SUM(IF($A17=$A$22:$A$69,S$22:S$69)) -> 117 | T17: =S17/Q17 -> 0.4936708861 | V17: =SUM(IF($A17=$A$22:$A$69,V$22:V$69)) -> 2865 | W17: =SUM(IF($A17=$A$22:$A$69,W$22:W$69)) -> 2204 | X17: =SUM(IF($A17=$A$22:$A$69,X$22:X$69)) -> 567 | Y17: =X17/W17 -> 0.2572595281 | Z17: =SUM(IF($A17=$A$22:$A$69,Z$22:Z$69)) -> 2358 | AA17: =SUM(IF($A17=$A$22:$A$69,AA$22:AA$69)) -> 1511 | AB17: =AA17/Z17 -> 0.6407972858 | AC17: =SUM(IF($A17=$A$22:$A$69,AC$22:AC$69)) -> 2350 | AD17: =SUM(IF($A17=$A$22:$A$69,AD$22:AD$69)) -> 1224 | AE17: =AD17/AC17 -> 0.5208510638 | AF17: =SUM(IF($A17=$A$22:$A$69,AF$22:AF$69)) -> 2314 | AG17: =SUM(IF($A17=$A$22:$A$69,AG$22:AG$69)) -> 1313 | AH17: =AG17/AF17 -> 0.5674157303 | AK17: =SUM(IF($A17=$A$22:$A$69,AK$22:AK$69)) -> 71 | AL17: =SUM(IF($A17=$A$22:$A$69,AL$22:AL$69)) -> 8 | AM17: =AL17/AK17 -> 0.1126760563 | AN17: =SUM(IF($A17=$A$22:$A$69,AN$22:AN$69)) -> 9 | AO17: =SUM(IF($A17=$A$22:$A$69,AO$22:AO$69)) -> 48 | AP17: =SUM(IF($A17=$A$22:$A$69,AP$22:AP$69)) -> 33 | AR17: =SUM(IF($A17=$A$22:$A$69,AR$22:AR$69)) -> 179 | AT17: =SUM(IF($A17=$A$22:$A$69,AT$22:AT$69)) -> 1307 | AU17: =SUM(IF($A17=$A$22:$A$69,AU$22:AU$69)) -> 280 | AV17: =AU17/AT17 -> 0.2142310635 | AX17: =SUM(IF($A17=$A$22:$A$69,AX$22:AX$69)) -> 221 | AY17: =SUM(IF($A17=$A$22:$A$69,AY$22:AY$69)) -> 212 | AZ17: 0.9592760181
A18: PCN10 | B18: Docklands | D18: =SUM(IF($A18=$A$22:$A$69,D$22:D$69)) -> 48234 | F18: =SUM(IF($A18=$A$22:$A$69,F$22:F$69)) -> 654 | G18: =SUM(IF($A18=$A$22:$A$69,G$22:G$69)) -> 588 | H18: 0.8990825688 | I18: =SUM(IF($A18=$A$22:$A$69,I$22:I$69)) -> 642 | J18: =SUM(IF($A18=$A$22:$A$69,J$22:J$69)) -> 561 | K18: 0.8738317757 | L18: =SUM(IF($A18=$A$22:$A$69,L$22:L$69)) -> 613 | M18: =SUM(IF($A18=$A$22:$A$69,M$22:M$69)) -> 498 | N18: 0.8123980424 | P18: =SUM(IF($A18=$A$22:$A$69,P$22:P$69)) -> 692 | Q18: =SUM(IF($A18=$A$22:$A$69,Q$22:Q$69)) -> 636 | R18: 0.9190751445 | S18: =SUM(IF($A18=$A$22:$A$69,S$22:S$69)) -> 523 | T18: 0.822327044 | V18: =SUM(IF($A18=$A$22:$A$69,V$22:V$69)) -> 1818 | W18: =SUM(IF($A18=$A$22:$A$69,W$22:W$69)) -> 1438 | X18: =SUM(IF($A18=$A$22:$A$69,X$22:X$69)) -> 364 | Y18: 0.2531293463 | Z18: =SUM(IF($A18=$A$22:$A$69,Z$22:Z$69)) -> 1570 | AA18: =SUM(IF($A18=$A$22:$A$69,AA$22:AA$69)) -> 916 | AB18: 0.5834394904 | AC18: =SUM(IF($A18=$A$22:$A$69,AC$22:AC$69)) -> 1555 | AD18: =SUM(IF($A18=$A$22:$A$69,AD$22:AD$69)) -> 867 | AE18: 0.5575562701 | AF18: =SUM(IF($A18=$A$22:$A$69,AF$22:AF$69)) -> 1538 | AG18: =SUM(IF($A18=$A$22:$A$69,AG$22:AG$69)) -> 923 | AH18: 0.600130039 | AK18: =SUM(IF($A18=$A$22:$A$69,AK$22:AK$69)) -> 140 | AL18: =SUM(IF($A18=$A$22:$A$69,AL$22:AL$69)) -> 55 | AM18: 0.3928571429 | AN18: =SUM(IF($A18=$A$22:$A$69,AN$22:AN$69)) -> 60 | AO18: =SUM(IF($A18=$A$22:$A$69,AO$22:AO$69)) -> 100 | AP18: =SUM(IF($A18=$A$22:$A$69,AP$22:AP$69)) -> 67 | AR18: =SUM(IF($A18=$A$22:$A$69,AR$22:AR$69)) -> 250 | AT18: =SUM(IF($A18=$A$22:$A$69,AT$22:AT$69)) -> 881 | AU18: =SUM(IF($A18=$A$22:$A$69,AU$22:AU$69)) -> 195 | AV18: 0.2213393871 | AX18: =SUM(IF($A18=$A$22:$A$69,AX$22:AX$69)) -> 212 | AY18: =SUM(IF($A18=$A$22:$A$69,AY$22:AY$69)) -> 163 | AZ18: 0.7688679245
B19: Newham Total | D19: =SUM(D9:D18) -> 431904 | F19: =SUM(F9:F18) -> 4407 | G19: =SUM(G9:G18) -> 3827 | H19: =G19/F19 -> 0.8683911958 | I19: =SUM(I9:I18) -> 4304 | J19: =SUM(J9:J18) -> 3625 | K19: =J19/I19 -> 0.842239777 | L19: =SUM(L9:L18) -> 4355 | M19: =SUM(M9:M18) -> 3391 | N19: =M19/L19 -> 0.7786452354 | P19: =SUM(P9:P18) -> 4316 | Q19: =SUM(Q9:Q18) -> 4018 | R19: =Q19/P19 -> 0.9309545876 | S19: =SUM(S9:S18) -> 3069 | T19: =S19/Q19 -> 0.7638128422 | V19: =SUM(V9:V18) -> 28668 | W19: =SUM(W9:W18) -> 22462 | X19: =SUM(X9:X18) -> 6630 | Y19: =X19/W19 -> 0.2951651678 | Z19: =SUM(Z9:Z18) -> 24361 | AA19: =SUM(AA9:AA18) -> 16045 | AB19: 0.658634703 | AC19: =SUM(AC9:AC18) -> 24216 | AD19: =SUM(AD9:AD18) -> 13571 | AE19: 0.5604146019 | AF19: =SUM(AF9:AF18) -> 24018 | AG19: =SUM(AG9:AG18) -> 15194 | AH19: 0.6326088767 | AK19: =SUM(AK9:AK18) -> 1118 | AL19: =SUM(AL9:AL18) -> 366 | AM19: 0.3273703041 | AN19: =SUM(AN9:AN18) -> 324 | AO19: =SUM(AO9:AO18) -> 865 | AP19: =SUM(AP9:AP18) -> 669 | AR19: =SUM(AR9:AR18) -> 2969 | AT19: =SUM(AT9:AT18) -> 10217 | AU19: =SUM(AU9:AU18) -> 2309 | AV19: =AU19/AT19 -> 0.2259958892 | AX19: =SUM(AX9:AX18) -> 2586 | AY19: =SUM(AY9:AY18) -> 2051 | AZ19: =AY19/AX19 -> 0.7931167827
A20: Practices
B21: PMS
A22: PCN1 | B22: Cumberland Road Medical Practice | C22: F84657 | D22: =SUMIFS(OFFSET(REL_D,,MATCH(D$6,IND,0)-2),REL_D,$C$3,OrgID,$C22) -> 4501 | F22: =SUMIFS(OFFSET(REL_D,,MATCH(F$6,IND,0)-2),REL_D,$C$3,OrgID,$C22) -> 59 | G22: 46 | H22: =G22/F22 -> 0.7796610169 | I22: =SUMIFS(OFFSET(REL_D,,MATCH(I$6,IND,0)-2),REL_D,$C$3,OrgID,$C22) -> 47 | J22: 37 | K22: =J22/I22 -> 0.7872340426 | L22: =SUMIFS(OFFSET(REL_D,,MATCH(L$6,IND,0)-2),REL_D,$C$3,OrgID,$C22) -> 51 | M22: 39 | N22: =M22/L22 -> 0.7647058824 | P22: =SUMIFS(OFFSET(REL_D,,MATCH(P$6,IND,0)-2),REL_D,$C$3,OrgID,$C22) -> 55 | Q22: 52 | R22: =Q22/P22 -> 0.9454545455 | S22: =SUMIFS(OFFSET(REL_D,,MATCH(S$6,IND,0)-2),REL_D,$C$3,OrgID,$C22) -> 17 | T22: =S22/Q22 -> 0.3269230769 | V22: =SUMIFS(OFFSET(REL_D,,MATCH(V$6,IND,0)-2),REL_D,$C$3,OrgID,$C22) -> 238 | W22: 179 | X22: 60 | Y22: =X22/W22 -> 0.3351955307 | Z22: =SUMIFS(OFFSET(REL_D,,MATCH(Z$6,IND,0)-2),REL_D,$C$3,OrgID,$C22) -> 196 | AA22: 138 | AB22: =AA22/Z22 -> 0.7040816327 | AC22: =SUMIFS(OFFSET(REL_D,,MATCH(AC$6,IND,0)-2),REL_D,$C$3,OrgID,$C22) -> 195 | AD22: 110 | AE22: =AD22/AC22 -> 0.5641025641 | AF22: =SUMIFS(OFFSET(REL_D,,MATCH(AF$6,IND,0)-2),REL_D,$C$3,OrgID,$C22) -> 195 | AG22: 125 | AH22: =AG22/AF22 -> 0.641025641 | AK22: =SUMIFS(OFFSET(REL_D,,MATCH(AK$6,IND,0)-2),REL_D,$C$3,OrgID,$C22) -> 24 | AL22: 24 | AM22: =AL22/AK22 -> 1 | AN22: =SUMIFS(OFFSET(REL_D,,MATCH(AN$6,IND,0)-2),REL_D,$C$3,OrgID,$C22) -> 22 | AO22: 24 | AP22: 24 | AR22: =SUMIFS(OFFSET(REL_D,,MATCH(AR$6,IND,0)-2),REL_D,$C$3,OrgID,$C22) -> 6 | AT22: =SUMIFS(OFFSET(REL_D,,MATCH(AT$6,IND,0)-2),REL_D,$C$3,OrgID,$C22) -> 128 | AU22: 25 | AV22: =AU22/AT22 -> 0.1953125 | AX22: =SUMIFS(OFFSET(REL_D,,MATCH(AX$6,IND,0)-2),REL_D,$C$3,OrgID,$C22) -> 23 | AY22: 21 | AZ22: =IFERROR(AY22/AX22,"-") -> 0.9130434783
A23: PCN1 | B23: Custom House Surgery | C23: F84047 | D23: 9595 | F23: 96 | G23: 69 | H23: =G23/F23 -> 0.71875 | I23: 114 | J23: 81 | K23: =J23/I23 -> 0.7105263158 | L23: 112 | M23: 84 | N23: =M23/L23 -> 0.75 | P23: 98 | Q23: 95 | R23: =Q23/P23 -> 0.9693877551 | S23: 43 | T23: =S23/Q23 -> 0.4526315789 | V23: 575 | W23: 450 | X23: 90 | Y23: =X23/W23 -> 0.2 | Z23: 487 | AA23: 234 | AB23: =AA23/Z23 -> 0.4804928131 | AC23: 476 | AD23: 218 | AE23: =AD23/AC23 -> 0.4579831933 | AF23: 482 | AG23: 263 | AH23: =AG23/AF23 -> 0.5456431535 | AK23: 31 | AL23: 24 | AM23: =AL23/AK23 -> 0.7741935484 | AN23: 25 | AO23: 29 | AP23: 30 | AR23: 4 | AT23: 207 | AU23: 35 | AV23: =AU23/AT23 -> 0.1690821256 | AX23: 62 | AY23: 56 | AZ23: =IFERROR(AY23/AX23,"-") -> 0.9032258065
A24: PCN1 | B24: Glen Road Medical Centre | C24: F84092 | D24: 8499 | F24: 110 | G24: 89 | H24: 0.8090909091 | I24: 122 | J24: 105 | K24: 0.8606557377 | L24: 102 | M24: 66 | N24: 0.6470588235 | P24: 96 | Q24: 95 | R24: 0.9895833333 | S24: 85 | T24: 0.8947368421 | V24: 541 | W24: 439 | X24: 118 | Y24: 0.2687927107 | Z24: 473 | AA24: 297 | AB24: 0.6279069767 | AC24: 471 | AD24: 256 | AE24: 0.5435244161 | AF24: 464 | AG24: 267 | AH24: 0.5754310345 | AK24: 24 | AL24: 21 | AM24: 0.875 | AN24: 6 | AO24: 21 | AP24: 23 | AR24: 56 | AT24: 200 | AU24: 44 | AV24: 0.22 | AX24: 28 | AY24: 27 | AZ24: 0.9642857143
A25: PCN1 | B25: Star Lane Medical Centre | C25: F84017 | D25: 20083 | F25: 208 | G25: 173 | H25: 0.8317307692 | I25: 257 | J25: 203 | K25: 0.7898832685 | L25: 259 | M25: 185 | N25: 0.7142857143 | P25: 210 | Q25: 198 | R25: 0.9428571429 | S25: 183 | T25: 0.9242424242 | V25: 1086 | W25: 796 | X25: 208 | Y25: 0.2613065327 | Z25: 894 | AA25: 561 | AB25: 0.6275167785 | AC25: 871 | AD25: 497 | AE25: 0.570608496 | AF25: 874 | AG25: 537 | AH25: 0.614416476 | AK25: 90 | AL25: 57 | AM25: 0.6333333333 | AN25: 16 | AO25: 70 | AP25: 64 | AR25: 350 | AT25: 642 | AU25: 105 | AV25: 0.1635514019 | AX25: 172 | AY25: 166 | AZ25: 0.9651162791
A26: PCN2 | B26: Boleyn Medical Centre | C26: F84050 | D26: 11777 | F26: 178 | G26: 157 | H26: 0.8820224719 | I26: 164 | J26: 133 | K26: 0.8109756098 | L26: 187 | M26: 142 | N26: 0.7593582888 | P26: 142 | Q26: 130 | R26: 0.9154929577 | S26: 101 | T26: 0.7769230769 | V26: 869 | W26: 709 | X26: 172 | Y26: 0.2425952045 | Z26: 745 | AA26: 404 | AB26: 0.5422818792 | AC26: 772 | AD26: 466 | AE26: 0.603626943 | AF26: 740 | AG26: 481 | AH26: 0.65 | AK26: 33 | AL26: 3 | AM26: 0.09090909091 | AN26: 3 | AO26: 25 | AP26: 23 | AR26: 18 | AT26: 183 | AU26: 49 | AV26: 0.2677595628 | AX26: 35 | AY26: 33 | AZ26: 0.9428571429
A27: PCN2 | B27: Greengate Medical Practice | C27: F84053 | D27: 7939 | F27: 76 | G27: 65 | H27: 0.8552631579 | I27: 72 | J27: 54 | K27: 0.75 | L27: 77 | M27: 54 | N27: 0.7012987013 | P27: 100 | Q27: 97 | R27: 0.97 | S27: 74 | T27: 0.7628865979 | V27: 626 | W27: 456 | X27: 45 | Y27: 0.09868421053 | Z27: 480 | AA27: 156 | AB27: 0.325 | AC27: 514 | AD27: 254 | AE27: 0.4941634241 | AF27: 513 | AG27: 253 | AH27: 0.4931773879 | AK27: 29 | AL27: 22 | AM27: 0.7586206897 | AN27: 22 | AO27: 25 | AP27: 26 | AR27: 13 | AT27: 271 | AU27: 41 | AV27: 0.1512915129 | AX27: 82 | AY27: 71 | AZ27: 0.8658536585
A28: PCN2 | B28: Market Street Health Group | C28: F84004 | D28: 13580 | F28: 178 | G28: 164 | H28: 0.9213483146 | I28: 158 | J28: 129 | K28: 0.8164556962 | L28: 187 | M28: 141 | N28: 0.7540106952 | P28: 152 | Q28: 146 | R28: 0.9605263158 | S28: 98 | T28: 0.6712328767 | V28: 1000 | W28: 708 | X28: 161 | Y28: 0.2274011299 | Z28: 793 | AA28: 457 | AB28: 0.5762925599 | AC28: 781 | AD28: 406 | AE28: 0.5198463508 | AF28: 784 | AG28: 462 | AH28: 0.5892857143 | AK28: 50 | AL28: 1 | AM28: 0.02 | AN28: 1 | AO28: 43 | AP28: 22 | AR28: 85 | AT28: 417 | AU28: 100 | AV28: 0.2398081535 | AX28: 170 | AY28: 134 | AZ28: 0.7882352941
A29: PCN2 | B29: Newham Medical Centre | C29: F84669 | D29: 10167 | F29: 150 | G29: 129 | H29: 0.86 | I29: 141 | J29: 119 | K29: 0.8439716312 | L29: 163 | M29: 104 | N29: 0.6380368098 | P29: 143 | Q29: 133 | R29: 0.9300699301 | S29: 100 | T29: 0.7518796992 | V29: 880 | W29: 702 | X29: 174 | Y29: 0.2478632479 | Z29: 743 | AA29: 409 | AB29: 0.5504710633 | AC29: 760 | AD29: 402 | AE29: 0.5289473684 | AF29: 749 | AG29: 446 | AH29: 0.5954606142 | AK29: 29 | AL29: 4 | AM29: 0.1379310345 | AN29: 5 | AO29: 18 | AP29: 9 | AR29: 291 | AT29: 200 | AU29: 43 | AV29: 0.215 | AX29: 71 | AY29: 68 | AZ29: 0.9577464789
A30: PCN2 | B30: St Bartholomew Surgery | C30: F84010 | D30: 10795 | F30: 132 | G30: 118 | H30: 0.8939393939 | I30: 144 | J30: 121 | K30: 0.8402777778 | L30: 120 | M30: 98 | N30: 0.8166666667 | P30: 109 | Q30: 95 | R30: 0.871559633 | S30: 82 | T30: 0.8631578947 | V30: 805 | W30: 596 | X30: 246 | Y30: 0.4127516779 | Z30: 662 | AA30: 520 | AB30: 0.7854984894 | AC30: 649 | AD30: 430 | AE30: 0.6625577812 | AF30: 656 | AG30: 490 | AH30: 0.7469512195 | AK30: 21 | AL30: 17 | AM30: 0.8095238095 | AN30: 15 | AO30: 18 | AP30: 19 | AR30: 239 | AT30: 364 | AU30: 102 | AV30: 0.2802197802 | AX30: 52 | AY30: 40 | AZ30: 0.7692307692
A31: PCN2 | B31: The Project Surgery | C31: F84124 | D31: 5116 | F31: 71 | G31: 55 | H31: 0.7746478873 | I31: 66 | J31: 55 | K31: 0.8333333333 | L31: 71 | M31: 50 | N31: 0.7042253521 | P31: 74 | Q31: 69 | R31: 0.9324324324 | S31: 50 | T31: 0.7246376812 | V31: 287 | W31: 218 | X31: 72 | Y31: 0.3302752294 | Z31: 246 | AA31: 174 | AB31: 0.7073170732 | AC31: 241 | AD31: 132 | AE31: 0.5477178423 | AF31: 239 | AG31: 164 | AH31: 0.6861924686 | AK31: 20 | AL31: 4 | AM31: 0.2 | AN31: 5 | AO31: 16 | AP31: 7 | AR31: 12 | AT31: 114 | AU31: 18 | AV31: 0.1578947368 | AX31: 13 | AY31: 13 | AZ31: 1
A32: PCN3 | B32: Balaam Street Practice | C32: F84681 | D32: 5594 | F32: 55 | G32: 45 | H32: 0.8181818182 | I32: 56 | J32: 43 | K32: 0.7678571429 | L32: 66 | M32: 45 | N32: 0.6818181818 | P32: 60 | Q32: 56 | R32: 0.9333333333 | S32: 35 | T32: 0.625 | V32: 397 | W32: 314 | X32: 77 | Y32: 0.2452229299 | Z32: 339 | AA32: 208 | AB32: 0.6135693215 | AC32: 340 | AD32: 185 | AE32: 0.5441176471 | AF32: 330 | AG32: 192 | AH32: 0.5818181818 | AK32: 21 | AL32: 0 | AM32: 0 | AN32: 0 | AO32: 10 | AP32: 8 | AR32: 17 | AT32: 62 | AU32: 9 | AV32: 0.1451612903 | AX32: 18 | AY32: 16 | AZ32: 0.8888888889
A33: PCN3 | B33: Essex Lodge | C33: F84052 | D33: 13506 | F33: 160 | G33: 142 | H33: 0.8875 | I33: 203 | J33: 165 | K33: 0.8128078818 | L33: 144 | M33: 124 | N33: 0.8611111111 | P33: 146 | Q33: 137 | R33: 0.9383561644 | S33: 86 | T33: 0.6277372263 | V33: 860 | W33: 668 | X33: 169 | Y33: 0.252994012 | Z33: 727 | AA33: 419 | AB33: 0.5763411279 | AC33: 718 | AD33: 377 | AE33: 0.5250696379 | AF33: 701 | AG33: 407 | AH33: 0.5805991441 | AK33: 45 | AL33: 14 | AM33: 0.3111111111 | AN33: 17 | AO33: 37 | AP33: 16 | AR33: 0 | AT33: 355 | AU33: 32 | AV33: 0.09014084507 | AX33: 91 | AY33: 79 | AZ33: 0.8681318681
A34: PCN4 | B34: The Manor Park Practice | C34: F84729 | D34: 4882 | F34: 81 | G34: 63 | H34: 0.7777777778 | I34: 65 | J34: 54 | K34: 0.8307692308 | L34: 71 | M34: 61 | N34: 0.8591549296 | P34: 64 | Q34: 59 | R34: 0.921875 | S34: 55 | T34: 0.9322033898 | V34: 500 | W34: 413 | X34: 138 | Y34: 0.3341404358 | Z34: 441 | AA34: 360 | AB34: 0.8163265306 | AC34: 445 | AD34: 246 | AE34: 0.5528089888 | AF34: 436 | AG34: 326 | AH34: 0.747706422 | AK34: 3 | AL34: 3 | AM34: 1 | AN34: 3 | AO34: 3 | AP34: 3 | AR34: 28 | AT34: 128 | AU34: 31 | AV34: 0.2421875 | AX34: 22 | AY34: 18 | AZ34: 0.8181818182
A35: PCN4 | B35: Sangam Surgery | C35: F84658 | D35: 11306 | F35: 124 | G35: 112 | H35: 0.9032258065 | I35: 128 | J35: 110 | K35: 0.859375 | L35: 146 | M35: 125 | N35: 0.8561643836 | P35: 125 | Q35: 121 | R35: 0.968 | S35: 110 | T35: 0.9090909091 | V35: 1275 | W35: 1055 | X35: 312 | Y35: 0.2957345972 | Z35: 1105 | AA35: 798 | AB35: 0.7221719457 | AC35: 1110 | AD35: 568 | AE35: 0.5117117117 | AF35: 1089 | AG35: 689 | AH35: 0.6326905418 | AK35: 52 | AL35: 33 | AM35: 0.6346153846 | AN35: 34 | AO35: 51 | AP35: 24 | AR35: 45 | AT35: 359 | AU35: 77 | AV35: 0.2144846797 | AX35: 119 | AY35: 87 | AZ35: 0.731092437
A36: PCN5 | B36: E12 Medical Practice | C36: F84739 | D36: 5181 | F36: 61 | G36: 58 | H36: 0.9508196721 | I36: 46 | J36: 45 | K36: 0.9782608696 | L36: 65 | M36: 62 | N36: 0.9538461538 | P36: 66 | Q36: 59 | R36: 0.8939393939 | S36: 59 | T36: 1 | V36: 551 | W36: 489 | X36: 320 | Y36: 0.654396728 | Z36: 529 | AA36: 520 | AB36: 0.9829867675 | AC36: 509 | AD36: 393 | AE36: 0.7721021611 | AF36: 503 | AG36: 425 | AH36: 0.8449304175 | AK36: 9 | AL36: 9 | AM36: 1 | AN36: 9 | AO36: 9 | AP36: 9 | AR36: 36 | AT36: 71 | AU36: 69 | AV36: 0.9718309859 | AX36: 32 | AY36: 32 | AZ36: 1
A37: PCN5 | B37: Shrewsbury Road Surgery | C37: F84006 | D37: 15160 | F37: 220 | G37: 196 | H37: 0.8909090909 | I37: 224 | J37: 197 | K37: 0.8794642857 | L37: 219 | M37: 165 | N37: 0.7534246575 | P37: 221 | Q37: 209 | R37: 0.9457013575 | S37: 150 | T37: 0.7177033493 | V37: 1572 | W37: 1226 | X37: 488 | Y37: 0.3980424144 | Z37: 1379 | AA37: 1090 | AB37: 0.7904278463 | AC37: 1342 | AD37: 864 | AE37: 0.6438152012 | AF37: 1336 | AG37: 974 | AH37: 0.7290419162 | AK37: 57 | AL37: 8 | AM37: 0.1403508772 | AN37: 3 | AO37: 47 | AP37: 43 | AR37: 245 | AT37: 429 | AU37: 112 | AV37: 0.2610722611 | AX37: 146 | AY37: 144 | AZ37: 0.9863013699
A38: PCN5 | B38: Wordsworth Health Centre | C38: F84074 | D38: 11118 | F38: 113 | G38: 101 | H38: 0.8938053097 | I38: 122 | J38: 101 | K38: 0.8278688525 | L38: 120 | M38: 99 | N38: 0.825 | P38: 112 | Q38: 105 | R38: 0.9375 | S38: 93 | T38: 0.8857142857 | V38: 990 | W38: 829 | X38: 212 | Y38: 0.2557297949 | Z38: 865 | AA38: 487 | AB38: 0.5630057803 | AC38: 869 | AD38: 437 | AE38: 0.50287687 | AF38: 866 | AG38: 538 | AH38: 0.6212471132 | AK38: 40 | AL38: 3 | AM38: 0.075 | AN38: 2 | AO38: 32 | AP38: 20 | AR38: 39 | AT38: 398 | AU38: 91 | AV38: 0.2286432161 | AX38: 98 | AY38: 81 | AZ38: 0.8265306122
A39: PCN6 | B39: Claremont Clinic | C39: F84097 | D39: 11346 | F39: 179 | G39: 152 | H39: 0.8491620112 | I39: 168 | J39: 145 | K39: 0.8630952381 | L39: 162 | M39: 118 | N39: 0.7283950617 | P39: 193 | Q39: 183 | R39: 0.9481865285 | S39: 173 | T39: 0.9453551913 | V39: 821 | W39: 708 | X39: 219 | Y39: 0.3093220339 | Z39: 736 | AA39: 472 | AB39: 0.6413043478 | AC39: 728 | AD39: 403 | AE39: 0.5535714286 | AF39: 731 | AG39: 486 | AH39: 0.6648426813 | AK39: 38 | AL39: 5 | AM39: 0.1315789474 | AN39: 7 | AO39: 34 | AP39: 26 | AR39: 308 | AT39: 329 | AU39: 93 | AV39: 0.282674772 | AX39: 83 | AY39: 42 | AZ39: 0.5060240964
A40: PCN6 | B40: Woodgrange Medical Practice | C40: F84724 | D40: 15337 | F40: 250 | G40: 236 | H40: 0.944 | I40: 244 | J40: 230 | K40: 0.9426229508 | L40: 232 | M40: 207 | N40: 0.8922413793 | P40: 249 | Q40: 238 | R40: 0.9558232932 | S40: 195 | T40: 0.8193277311 | V40: 883 | W40: 736 | X40: 269 | Y40: 0.3654891304 | Z40: 792 | AA40: 644 | AB40: 0.8131313131 | AC40: 783 | AD40: 445 | AE40: 0.5683269476 | AF40: 777 | AG40: 500 | AH40: 0.6435006435 | AK40: 39 | AL40: 6 | AM40: 0.1538461538 | AN40: 9 | AO40: 31 | AP40: 36 | AR40: 401 | AT40: 271 | AU40: 70 | AV40: 0.258302583 | AX40: 57 | AY40: 33 | AZ40: 0.5789473684
A41: PCN8 | B41: First4Health Church Road | C41: F84121 | D41: 14279 | F41: 213 | G41: 187 | H41: 0.8779342723 | I41: 236 | J41: 194 | K41: 0.8220338983 | L41: 245 | M41: 191 | N41: 0.7795918367 | P41: 212 | Q41: 191 | R41: 0.9009433962 | S41: 155 | T41: 0.8115183246 | V41: 1197 | W41: 873 | X41: 219 | Y41: 0.2508591065 | Z41: 969 | AA41: 539 | AB41: 0.5562435501 | AC41: 953 | AD41: 516 | AE41: 0.5414480588 | AF41: 975 | AG41: 659 | AH41: 0.6758974359 | AK41: 53 | AL41: 4 | AM41: 0.07547169811 | AN41: 5 | AO41: 40 | AP41: 14 | AR41: 44 | AT41: 357 | AU41: 79 | AV41: 0.2212885154 | AX41: 147 | AY41: 69 | AZ41: 0.4693877551
A42: PCN8 | B42: Stratford Village Surgery | C42: F84009 | D42: 10881 | F42: 98 | G42: 81 | H42: 0.8265306122 | I42: 114 | J42: 93 | K42: 0.8157894737 | L42: 105 | M42: 82 | N42: 0.780952381 | P42: 99 | Q42: 89 | R42: 0.898989899 | S42: 49 | T42: 0.5505617978 | V42: 491 | W42: 348 | X42: 84 | Y42: 0.2413793103 | Z42: 382 | AA42: 214 | AB42: 0.5602094241 | AC42: 385 | AD42: 222 | AE42: 0.5766233766 | AF42: 380 | AG42: 230 | AH42: 0.6052631579 | AK42: 36 | AL42: 1 | AM42: 0.02777777778 | AN42: 2 | AO42: 32 | AP42: 16 | AR42: 70 | AT42: 186 | AU42: 37 | AV42: 0.1989247312 | AX42: 61 | AY42: 27 | AZ42: 0.4426229508
A43: PCN9 | B43: East End Medical Centre | C43: F84677 | D43: 6533 | F43: 81 | G43: 68 | H43: 0.8395061728 | I43: 76 | J43: 68 | K43: 0.8947368421 | L43: 87 | M43: 71 | N43: 0.816091954 | P43: 79 | Q43: 76 | R43: 0.9620253165 | S43: 70 | T43: 0.9210526316 | V43: 718 | W43: 581 | X43: 193 | Y43: 0.3321858864 | Z43: 613 | AA43: 493 | AB43: 0.8042414356 | AC43: 601 | AD43: 335 | AE43: 0.5574043261 | AF43: 590 | AG43: 382 | AH43: 0.6474576271 | AK43: 16 | AL43: 1 | AM43: 0.0625 | AN43: 2 | AO43: 14 | AP43: 6 | AR43: 24 | AT43: 320 | AU43: 66 | AV43: 0.20625 | AX43: 78 | AY43: 76 | AZ43: 0.9743589744
A44: PCN9 | B44: Stratford Health Centre | C44: F84022 | D44: 7736 | F44: 70 | G44: 63 | H44: 0.9 | I44: 58 | J44: 46 | K44: 0.7931034483 | L44: 66 | M44: 49 | N44: 0.7424242424 | P44: 84 | Q44: 75 | R44: 0.8928571429 | S44: 47 | T44: 0.6266666667 | V44: 347 | W44: 269 | X44: 56 | Y44: 0.2081784387 | Z44: 286 | AA44: 174 | AB44: 0.6083916084 | AC44: 288 | AD44: 136 | AE44: 0.4722222222 | AF44: 279 | AG44: 142 | AH44: 0.5089605735 | AK44: 24 | AL44: 0 | AM44: 0 | AN44: 2 | AO44: 14 | AP44: 13 | AR44: 152 | AT44: 135 | AU44: 26 | AV44: 0.1925925926 | AX44: 15 | AY44: 15 | AZ44: 1
A45: PCN9 | B45: Upton Lane Medical Centre | C45: F84014 | D45: 8045 | F45: 99 | G45: 85 | H45: 0.8585858586 | I45: 86 | J45: 69 | K45: 0.8023255814 | L45: 108 | M45: 78 | N45: 0.7222222222 | P45: 89 | Q45: 86 | R45: 0.9662921348 | S45: 0 | T45: 0 | V45: 831 | W45: 608 | X45: 169 | Y45: 0.2779605263 | Z45: 677 | AA45: 460 | AB45: 0.6794682422 | AC45: 655 | AD45: 365 | AE45: 0.5572519084 | AF45: 658 | AG45: 401 | AH45: 0.6094224924 | AK45: 31 | AL45: 7 | AM45: 0.2258064516 | AN45: 5 | AO45: 20 | AP45: 14 | AR45: 3 | AT45: 339 | AU45: 75 | AV45: 0.2212389381 | AX45: 70 | AY45: 68 | AZ45: 0.9714285714
A46: PCN10 | B46: Royal Docks Medical Centre | C46: F84717 | D46: 11388 | F46: 144 | G46: 132 | H46: 0.9166666667 | I46: 114 | J46: 97 | K46: 0.850877193 | L46: 143 | M46: 102 | N46: 0.7132867133 | P46: 134 | Q46: 125 | R46: 0.9328358209 | S46: 88 | T46: 0.704 | V46: 498 | W46: 426 | X46: 76 | Y46: 0.1784037559 | Z46: 446 | AA46: 195 | AB46: 0.4372197309 | AC46: 451 | AD46: 230 | AE46: 0.5099778271 | AF46: 434 | AG46: 242 | AH46: 0.5576036866 | AK46: 39 | AL46: 30 | AM46: 0.7692307692 | AN46: 30 | AO46: 32 | AP46: 32 | AR46: 138 | AT46: 270 | AU46: 53 | AV46: 0.1962962963 | AX46: 55 | AY46: 52 | AZ46: 0.9454545455
A47: PCN10 | B47: Tollgate Health Centre | C47: F84093 | D47: 18120 | F47: 194 | G47: 163 | H47: 0.8402061856 | I47: 236 | J47: 185 | K47: 0.7838983051 | L47: 231 | M47: 186 | N47: 0.8051948052 | P47: 208 | Q47: 195 | R47: 0.9375 | S47: 169 | T47: 0.8666666667 | V47: 887 | W47: 671 | X47: 191 | Y47: 0.2846497765 | Z47: 747 | AA47: 479 | AB47: 0.641231593 | AC47: 736 | AD47: 438 | AE47: 0.5951086957 | AF47: 737 | AG47: 457 | AH47: 0.6200814111 | AK47: 55 | AL47: 25 | AM47: 0.4545454545 | AN47: 28 | AO47: 46 | AP47: 29 | AR47: 56 | AT47: 409 | AU47: 101 | AV47: 0.2469437653 | AX47: 144 | AY47: 100 | AZ47: 0.6944444444
B48: GMS
A49: PCN1 | B49: Dr Ruiz – St Lukes Medical Centre | C49: F84666 | D49: 5921 | F49: - | G49: - | H49: - | I49: - | J49: - | K49: - | L49: - | M49: - | N49: - | P49: - | Q49: - | R49: - | S49: - | T49: - | V49: 283 | W49: 239 | X49: 38 | Y49: 0.1589958159 | Z49: 250 | AA49: 103 | AB49: 0.412 | AC49: 260 | AD49: 133 | AE49: 0.5115384615 | AF49: 255 | AG49: 140 | AH49: 0.5490196078 | AK49: - | AL49: - | AM49: - | AN49: - | AO49: - | AP49: - | AR49: - | AT49: 90 | AU49: 17 | AV49: 0.1888888889 | AX49: 18 | AY49: 16 | AZ49: 0.8888888889
A50: PCN1 | B50: Esk Road Medical Practice | C50: F84673 | D50: 1885 | F50: - | G50: - | H50: - | I50: - | J50: - | K50: - | L50: - | M50: - | N50: - | P50: - | Q50: - | R50: - | S50: - | T50: - | V50: 150 | W50: 129 | X50: 37 | Y50: 0.2868217054 | Z50: 134 | AA50: 88 | AB50: 0.6567164179 | AC50: 134 | AD50: 70 | AE50: 0.5223880597 | AF50: 137 | AG50: 81 | AH50: 0.5912408759 | AK50: - | AL50: - | AM50: - | AN50: - | AO50: - | AP50: - | AR50: - | AT50: 30 | AU50: 7 | AV50: 0.2333333333 | AX50: 5 | AY50: 5 | AZ50: 1
A51: PCN2 | B51: The Azad Practice | C51: F84735 | D51: 8439 | F51: - | G51: - | H51: - | I51: - | J51: - | K51: - | L51: - | M51: - | N51: - | P51: - | Q51: - | R51: - | S51: - | T51: - | V51: 741 | W51: 630 | X51: 162 | Y51: 0.2571428571 | Z51: 659 | AA51: 387 | AB51: 0.5872534143 | AC51: 666 | AD51: 342 | AE51: 0.5135135135 | AF51: 655 | AG51: 413 | AH51: 0.6305343511 | AK51: - | AL51: - | AM51: - | AN51: - | AO51: - | AP51: - | AR51: - | AT51: 157 | AU51: 34 | AV51: 0.2165605096 | AX51: 20 | AY51: 16 | AZ51: 0.8
A52: PCN4 | B52: Birchdale Road Medical Practice | C52: F84641 | D52: 3058 | F52: - | G52: - | H52: - | I52: - | J52: - | K52: - | L52: - | M52: - | N52: - | P52: - | Q52: - | R52: - | S52: - | T52: - | V52: 344 | W52: 251 | X52: 73 | Y52: 0.2908366534 | Z52: 285 | AA52: 197 | AB52: 0.6912280702 | AC52: 274 | AD52: 156 | AE52: 0.5693430657 | AF52: 282 | AG52: 180 | AH52: 0.6382978723 | AK52: - | AL52: - | AM52: - | AN52: - | AO52: - | AP52: - | AR52: - | AT52: 132 | AU52: 39 | AV52: 0.2954545455 | AX52: 77 | AY52: 67 | AZ52: 0.8701298701
A53: PCN4 | B53: Dr CM Patel | C53: F84660 | D53: 3023 | F53: - | G53: - | H53: - | I53: - | J53: - | K53: - | L53: - | M53: - | N53: - | P53: - | Q53: - | R53: - | S53: - | T53: - | V53: 177 | W53: 152 | X53: 78 | Y53: 0.5131578947 | Z53: 157 | AA53: 114 | AB53: 0.7261146497 | AC53: 164 | AD53: 126 | AE53: 0.7682926829 | AF53: 162 | AG53: 131 | AH53: 0.8086419753 | AK53: - | AL53: - | AM53: - | AN53: - | AO53: - | AP53: - | AR53: - | AT53: 27 | AU53: 7 | AV53: 0.2592592593 | AX53: 5 | AY53: 3 | AZ53: 0.6
A54: PCN4 | B54: Plashet Medical Centre | C54: F84088 | D54: 5247 | F54: - | G54: - | H54: - | I54: - | J54: - | K54: - | L54: - | M54: - | N54: - | P54: - | Q54: - | R54: - | S54: - | T54: - | V54: 453 | W54: 335 | X54: 99 | Y54: 0.2955223881 | Z54: 380 | AA54: 316 | AB54: 0.8315789474 | AC54: 363 | AD54: 197 | AE54: 0.5426997245 | AF54: 357 | AG54: 204 | AH54: 0.5714285714 | AK54: - | AL54: - | AM54: - | AN54: - | AO54: - | AP54: - | AR54: - | AT54: 133 | AU54: 37 | AV54: 0.2781954887 | AX54: 19 | AY54: 18 | AZ54: 0.9473684211
A55: PCN4 | B55: Westbury Road Medical Practice | C55: F84670 | D55: 4617 | F55: - | G55: - | H55: - | I55: - | J55: - | K55: - | L55: - | M55: - | N55: - | P55: - | Q55: - | R55: - | S55: - | T55: - | V55: 540 | W55: 467 | X55: 134 | Y55: 0.2869379015 | Z55: 494 | AA55: 364 | AB55: 0.7368421053 | AC55: 503 | AD55: 271 | AE55: 0.5387673956 | AF55: 479 | AG55: 307 | AH55: 0.6409185804 | AK55: - | AL55: - | AM55: - | AN55: - | AO55: - | AP55: - | AR55: - | AT55: 136 | AU55: 40 | AV55: 0.2941176471 | AX55: 22 | AY55: 21 | AZ55: 0.9545454545
A56: PCN5 | B56: Dr Krishnamurthy Surgery | C56: F84741 | D56: 2178 | F56: - | G56: - | H56: - | I56: - | J56: - | K56: - | L56: - | M56: - | N56: - | P56: - | Q56: - | R56: - | S56: - | T56: - | V56: 245 | W56: 193 | X56: 72 | Y56: 0.3730569948 | Z56: 205 | AA56: 158 | AB56: 0.7707317073 | AC56: 199 | AD56: 129 | AE56: 0.648241206 | AF56: 200 | AG56: 126 | AH56: 0.63 | AK56: - | AL56: - | AM56: - | AN56: - | AO56: - | AP56: - | AR56: - | AT56: 97 | AU56: 32 | AV56: 0.3298969072 | AX56: 41 | AY56: 32 | AZ56: 0.7804878049
A57: PCN5 | B57: Lathom Medical Centre | C57: F84070 | D57: 7143 | F57: - | G57: - | H57: - | I57: - | J57: - | K57: - | L57: - | M57: - | N57: - | P57: - | Q57: - | R57: - | S57: - | T57: - | V57: 622 | W57: 449 | X57: 205 | Y57: 0.4565701559 | Z57: 516 | AA57: 412 | AB57: 0.7984496124 | AC57: 510 | AD57: 340 | AE57: 0.6666666667 | AF57: 503 | AG57: 354 | AH57: 0.703777336 | AK57: - | AL57: - | AM57: - | AN57: - | AO57: - | AP57: - | AR57: - | AT57: 241 | AU57: 76 | AV57: 0.3153526971 | AX57: 68 | AY57: 62 | AZ57: 0.9117647059
A58: PCN5 | B58: The Summit Practice | C58: F84742 | D58: 2467 | F58: - | G58: - | H58: - | I58: - | J58: - | K58: - | L58: - | M58: - | N58: - | P58: - | Q58: - | R58: - | S58: - | T58: - | V58: 165 | W58: 132 | X58: 37 | Y58: 0.2803030303 | Z58: 141 | AA58: 82 | AB58: 0.5815602837 | AC58: 140 | AD58: 68 | AE58: 0.4857142857 | AF58: 138 | AG58: 93 | AH58: 0.6739130435 | AK58: - | AL58: - | AM58: - | AN58: - | AO58: - | AP58: - | AR58: - | AT58: 43 | AU58: 18 | AV58: 0.4186046512 | AX58: 1 | AY58: 1 | AZ58: 1
A59: PCN6 | B59: E7 Health - First 4 Health Group | C59: F84672 | D59: 6966 | F59: - | G59: - | H59: - | I59: - | J59: - | K59: - | L59: - | M59: - | N59: - | P59: - | Q59: - | R59: - | S59: - | T59: - | V59: 500 | W59: 364 | X59: 75 | Y59: 0.206043956 | Z59: 391 | AA59: 202 | AB59: 0.5166240409 | AC59: 398 | AD59: 206 | AE59: 0.5175879397 | AF59: 396 | AG59: 230 | AH59: 0.5808080808 | AK59: - | AL59: - | AM59: - | AN59: - | AO59: - | AP59: - | AR59: - | AT59: 143 | AU59: 23 | AV59: 0.1608391608 | AX59: 62 | AY59: 46 | AZ59: 0.7419354839
A60: PCN7 | B60: Abbey Road Medical Practice | C60: F84111 | D60: 10487 | F60: - | G60: - | H60: - | I60: - | J60: - | K60: - | L60: - | M60: - | N60: - | P60: - | Q60: - | R60: - | S60: - | T60: - | V60: 657 | W60: 547 | X60: 189 | Y60: 0.3455210238 | Z60: 585 | AA60: 499 | AB60: 0.852991453 | AC60: 583 | AD60: 345 | AE60: 0.5917667238 | AF60: 557 | AG60: 336 | AH60: 0.6032315978 | AK60: - | AL60: - | AM60: - | AN60: - | AO60: - | AP60: - | AR60: - | AT60: 332 | AU60: 66 | AV60: 0.1987951807 | AX60: 44 | AY60: 32 | AZ60: 0.7272727273
A61: PCN8 | B61: Dr Knight and Dr Ashar | C61: F84730 | D61: 9644 | F61: - | G61: - | H61: - | I61: - | J61: - | K61: - | L61: - | M61: - | N61: - | P61: - | Q61: - | R61: - | S61: - | T61: - | V61: 479 | W61: 398 | X61: 39 | Y61: 0.09798994975 | Z61: 408 | AA61: 127 | AB61: 0.3112745098 | AC61: 412 | AD61: 147 | AE61: 0.3567961165 | AF61: 410 | AG61: 162 | AH61: 0.3951219512 | AK61: - | AL61: - | AM61: - | AN61: - | AO61: - | AP61: - | AR61: - | AT61: 139 | AU61: 29 | AV61: 0.2086330935 | AX61: 30 | AY61: 21 | AZ61: 0.7
A62: PCN9 | B62: Dr Samuel & Dr Khan's Practice | C62: F84077 | D62: 9391 | F62: - | G62: - | H62: - | I62: - | J62: - | K62: - | L62: - | M62: - | N62: - | P62: - | Q62: - | R62: - | S62: - | T62: - | V62: 495 | W62: 408 | X62: 56 | Y62: =X62/W62 -> 0.137254902 | Z62: 418 | AA62: 165 | AB62: =AA62/Z62 -> 0.3947368421 | AC62: 436 | AD62: 184 | AE62: =AD62/AC62 -> 0.4220183486 | AF62: 423 | AG62: 175 | AH62: =AG62/AF62 -> 0.4137115839 | AK62: - | AL62: - | AM62: - | AN62: - | AO62: - | AP62: - | AR62: - | AT62: 253 | AU62: 41 | AV62: =AU62/AT62 -> 0.162055336 | AX62: 23 | AY62: 19 | AZ62: 0.8260869565
A63: PCN9 | B63: The Forest Practice | C63: F84086 | D63: 7180 | F63: - | G63: - | H63: - | I63: - | J63: - | K63: - | L63: - | M63: - | N63: - | P63: - | Q63: - | R63: - | S63: - | T63: - | V63: 474 | W63: 338 | X63: 93 | Y63: 0.275147929 | Z63: 364 | AA63: 219 | AB63: 0.6016483516 | AC63: 370 | AD63: 204 | AE63: 0.5513513514 | AF63: 364 | AG63: 213 | AH63: 0.5851648352 | AK63: - | AL63: - | AM63: - | AN63: - | AO63: - | AP63: - | AR63: - | AT63: 260 | AU63: 72 | AV63: 0.2769230769 | AX63: 35 | AY63: 34 | AZ63: 0.9714285714
B64: APMS
A65: PCN3 | B65: Lucas Avenue Surgery | C65: F84642 | D65: 12555 | F65: 182 | G65: 154 | H65: 0.8461538462 | I65: 117 | J65: 96 | K65: 0.8205128205 | L65: 126 | M65: 101 | N65: 0.8015873016 | P65: 191 | Q65: 166 | R65: 0.8691099476 | S65: 99 | T65: 0.5963855422 | V65: 720 | W65: 426 | X65: 154 | Y65: 0.3615023474 | Z65: 545 | AA65: 429 | AB65: 0.7871559633 | AC65: 496 | AD65: 311 | AE65: 0.627016129 | AF65: 539 | AG65: 404 | AH65: 0.7495361781 | AK65: 30 | AL65: 0 | AM65: 0 | AN65: 0 | AO65: 11 | AP65: 9 | AR65: 12 | AT65: 172 | AU65: 33 | AV65: 0.1918604651 | AX65: 54 | AY65: 45 | AZ65: 0.8333333333
A66: PCN7 | B66: Carpenters Practice (AT Medics) | C66: F84749 | D66: 18704 | F66: 233 | G66: 195 | H66: 0.8369098712 | I66: 200 | J66: 168 | K66: 0.84 | L66: 230 | M66: 176 | N66: 0.7652173913 | P66: 219 | Q66: 201 | R66: 0.9178082192 | S66: 130 | T66: 0.6467661692 | V66: 804 | W66: 663 | X66: 252 | Y66: 0.3800904977 | Z66: 714 | AA66: 584 | AB66: 0.8179271709 | AC66: 705 | AD66: 422 | AE66: 0.5985815603 | AF66: 703 | AG66: 490 | AH66: 0.6970128023 | AK66: 55 | AL66: 2 | AM66: 0.03636363636 | AN66: 5 | AO66: 32 | AP66: 25 | AR66: 115 | AT66: 304 | AU66: 71 | AV66: 0.2335526316 | AX66: 73 | AY66: 3 | AZ66: 0.04109589041
A67: PCN7 | B67: Liberty Bridge Road | C67: Y04273 | D67: 17522 | F67: 234 | G67: 206 | H67: 0.8803418803 | I67: 195 | J67: 174 | K67: 0.8923076923 | L67: 175 | M67: 141 | N67: 0.8057142857 | P67: 211 | Q67: 198 | R67: 0.9383886256 | S67: 188 | T67: 0.9494949495 | V67: 333 | W67: 270 | X67: 126 | Y67: 0.4666666667 | Z67: 301 | AA67: 256 | AB67: 0.8504983389 | AC67: 298 | AD67: 217 | AE67: 0.7281879195 | AF67: 287 | AG67: 211 | AH67: 0.7351916376 | AK67: 43 | AL67: 38 | AM67: 0.8837209302 | AN67: 38 | AO67: 40 | AP67: 41 | AR67: 76 | AT67: 71 | AU67: 21 | AV67: 0.2957746479 | AX67: 21 | AY67: 21 | AZ67: 1
A68: PCN8 | B68: Newham Transitional Team | C68: F84740 | D68: 4287 | F68: 42 | G68: 30 | H68: 0.7142857143 | I68: 39 | J68: 29 | K68: 0.7435897436 | L68: 46 | M68: 35 | N68: 0.7608695652 | P68: 25 | Q68: 23 | R68: 0.92 | S68: 19 | T68: 0.8260869565 | V68: 328 | W68: 263 | X68: 76 | Y68: 0.288973384 | Z68: 285 | AA68: 199 | AB68: 0.698245614 | AC68: 294 | AD68: 173 | AE68: 0.5884353741 | AF68: 286 | AG68: 182 | AH68: 0.6363636364 | AK68: 35 | AL68: 0 | AM68: 0 | AN68: 1 | AO68: 19 | AP68: 32 | AR68: 30 | AT68: 111 | AU68: 22 | AV68: 0.1981981982 | AX68: 11 | AY68: 10 | AZ68: 0.9090909091
A69: PCN10 | B69: Albert Road Surgery | C69: Y02928 | D69: 18726 | F69: 316 | G69: 293 | H69: 0.9272151899 | I69: 292 | J69: 279 | K69: 0.9554794521 | L69: 239 | M69: 210 | N69: 0.8786610879 | P69: 350 | Q69: 316 | R69: 0.9028571429 | S69: 266 | T69: 0.8417721519 | V69: 433 | W69: 341 | X69: 97 | Y69: 0.284457478 | Z69: 377 | AA69: 242 | AB69: 0.6419098143 | AC69: 368 | AD69: 199 | AE69: 0.5407608696 | AF69: 367 | AG69: 224 | AH69: 0.6103542234 | AK69: 46 | AL69: 0 | AM69: 0 | AN69: 2 | AO69: 22 | AP69: 6 | AR69: 56 | AT69: 202 | AU69: 41 | AV69: 0.202970297 | AX69: 13 | AY69: 11 | AZ69: 0.8461538462

Sheet Report (PMS)
C2: June 2021 | D2: Newham
C3: =VLOOKUP(C2,'Control Panel'!H6:I17,2,FALSE) -> 2021-07-01 | D3: Outcome Measures - PMS
F5: Childhood Immunisations - (Band A ≥91% / Band B ≥80% / Band C ≥70% / Band D <70%) | P5: Infant Feeding - (Band A ≥90% / Band B ≥80% / Band C ≥70% / Band D <70%) | V5: Diabetes - (Band A ≥45% / Band B ≥43% / Band C ≥41% / Band D <41%) | AK5: Epilepsy - (Band A ≥60% / Band B ≥50% / Band C ≥40% / Band D <40%) | AR5: Psychology Referrals | AT5: CKD - (Band A ≥35% / Band B ≥34% / Band C ≥33% / Band D <33%) | AX5: Frailty Care Review - (Band A ≥90% / Band B ≥85% / Band C ≥75% / Band D <75%)
D6: All Patients | F6: (01) 12 MONTH COHORT | G6: (01.01) DTaP/IPV/Hib or DTaP/IPV/Hib/HepB | I6: (02) 24 MONTH COHORT | J6: (02.02) MMR | L6: (03) 5 YEAR COHORT | M6: (03.03) DTaP/IPV (Booster) | P6: Children aged 6 to 10 weeks during the audit period | Q6: Registered before 3 months old | S6: Infant feeding recorded | V6: Diabetes Register | W6: Type 2 eligible population for on target | X6: Diabetes triple target | Z6: Type 2 eligible population for BP <=140/80 | AA6: Blood Pressure 140/80 (12 mths) | AC6: Type 2 eligible population for HbA1c <=59 | AD6: HbA1c 59 or less (12 mths) | AF6: Type 2 eligible population for Cholesterol <=4.5 | AG6: Cholesterol 4.5 or less (12 mths) | AK6: Patients aged 18 or over on the epilepsy register | AL6: Annual Review done | AN6: Fit frequency recorded | AO6: Seizure free >12m or Last fit recorded | AP6: Medication Review done | AR6: Psychology Referrals (IAPT) | AT6: 08 Patients with CKD | AU6: 0801 BP maintained (130/80mm HG) | AX6: Frailty >=0.36 | AY6: Face to face review 3mths (including video conference)
B7: Home | D7: =VLOOKUP(D6,'Control Panel'!$E$2:$F$42,2,FALSE) -> All currently registered patients | F7: =VLOOKUP(F6,'Control Panel'!$E$2:$F$42,2,FALSE) -> 12 MONTH COHORT | G7: =VLOOKUP(G6,'Control Panel'!$E$2:$F$42,2,FALSE) -> DTaP/IPV/Hib or DTaP/IPV/Hib/HepB (12m) | H7: ='Control Panel'!F5 -> DTaP/IPV/Hib or DTaP/IPV/Hib/HepB (12m) % | I7: =VLOOKUP(I6,'Control Panel'!$E$2:$F$42,2,FALSE) -> 24 MONTH COHORT | J7: =VLOOKUP(J6,'Control Panel'!$E$2:$F$42,2,FALSE) -> MMR (24m) | K7: ='Control Panel'!F9 -> MMR (24m) % | L7: =VLOOKUP(L6,'Control Panel'!$E$2:$F$42,2,FALSE) -> 5 YEAR COHORT | M7: =VLOOKUP(M6,'Control Panel'!$E$2:$F$42,2,FALSE) -> DTaP/IPV (Booster) (5y) | N7: ='Control Panel'!F12 -> DTaP/IPV (Booster) (5y) % | P7: =VLOOKUP(P6,'Control Panel'!$E$2:$F$42,2,FALSE) -> Children aged 6 to 10 weeks during the audit period | Q7: =VLOOKUP(Q6,'Control Panel'!$E$2:$F$42,2,FALSE) -> Registered before 3 months old | R7: ='Control Panel'!F15 -> Registered before 3 months old % | S7: =VLOOKUP(S6,'Control Panel'!$E$2:$F$42,2,FALSE) -> Infant feeding recorded | T7: ='Control Panel'!F17 -> Infant feeding recorded % | V7: =VLOOKUP(V6,'Control Panel'!$E$2:$F$42,2,FALSE) -> Diabetes Register | W7: Type 2 eligible population for on target (Under 80yrs) | X7: Diabetes Triple Target | Y7: Diabetes Triple Target % | Z7: Type 2 eligible population for BP <=140/80 (Under 80yrs) | AA7: =VLOOKUP(AA6,'Control Panel'!$E$2:$F$42,2,FALSE) -> Blood Pressure 140/80 (12 mths) | AB7: =AA7&" %" -> Blood Pressure 140/80 (12 mths) % | AC7: Type 2 eligible population for HbA1c <=59 (Under 80yrs) | AD7: =VLOOKUP(AD6,'Control Panel'!$E$2:$F$42,2,FALSE) -> HbA1c 59 or less (12 mths) | AE7: =AD7&" %" -> HbA1c 59 or less (12 mths) % | AF7: Type 2 eligible population for Cholesterol <=4.5 (Under 80yrs) | AG7: =VLOOKUP(AG6,'Control Panel'!$E$2:$F$42,2,FALSE) -> Cholesterol 4.5 or less (12 mths) | AH7: =AG7&" %" -> Cholesterol 4.5 or less (12 mths) % | AK7: =VLOOKUP(AK6,'Control Panel'!$E$2:$F$42,2,FALSE) -> Patients aged 18 or over on the epilepsy register | AL7: =VLOOKUP(AL6,'Control Panel'!$E$2:$F$42,2,FALSE) -> Annual Review done | AM7: =AL7&" %" -> Annual Review done % | AN7: =VLOOKUP(AN6,'Control Panel'!$E$2:$F$42,2,FALSE) -> Fit frequency recorded | AO7: Seizure free >12m or Last fit recorded | AP7: =VLOOKUP(AP6,'Control Panel'!$E$2:$F$42,2,FALSE) -> Medication Review done | AR7: =VLOOKUP(AR6,'Control Panel'!$E$2:$F$42,2,FALSE) -> Psychology Referrals (IAPT) | AT7: Patients with CKD | AU7: BP maintained (130/80mm HG) | AV7: BP maintained (130/80mm HG) % | AX7: Frailty >=0.36 | AY7: Face to face review 6mths (including video conference) | AZ7: Face to face review 6mths (including video conference) %
A8: PCN
A9: PCN1 | B9: South One Newham | D9: =SUM(IF($A9=$A$21:$A$46,D$21:D$46)) -> 42678 | F9: =SUM(IF($A9=$A$21:$A$46,F$21:F$46)) -> 473 | G9: =SUM(IF($A9=$A$21:$A$46,G$21:G$46)) -> 377 | H9: =IFERROR(G9/F9,"-") -> 0.7970401691 | I9: =SUM(IF($A9=$A$21:$A$46,I$21:I$46)) -> 540 | J9: =SUM(IF($A9=$A$21:$A$46,J$21:J$46)) -> 426 | K9: =J9/I9 -> 0.7888888889 | L9: =SUM(IF($A9=$A$21:$A$46,L$21:L$46)) -> 524 | M9: =SUM(IF($A9=$A$21:$A$46,M$21:M$46)) -> 374 | N9: =M9/L9 -> 0.713740458 | P9: =SUM(IF($A9=$A$21:$A$46,P$21:P$46)) -> 459 | Q9: =SUM(IF($A9=$A$21:$A$46,Q$21:Q$46)) -> 440 | R9: =Q9/P9 -> 0.9586056645 | S9: =SUM(IF($A9=$A$21:$A$46,S$21:S$46)) -> 328 | T9: =S9/Q9 -> 0.7454545455 | V9: =SUM(IF($A9=$A$21:$A$46,V$21:V$46)) -> 2440 | W9: =SUM(IF($A9=$A$21:$A$46,W$21:W$46)) -> 1864 | X9: =SUM(IF($A9=$A$21:$A$46,X$21:X$46)) -> 476 | Y9: =X9/W9 -> 0.2553648069 | Z9: =SUM(IF($A9=$A$21:$A$46,Z$21:Z$46)) -> 2050 | AA9: =SUM(IF($A9=$A$21:$A$46,AA$21:AA$46)) -> 1230 | AB9: =AA9/Z9 -> 0.6 | AC9: =SUM(IF($A9=$A$21:$A$46,AC$21:AC$46)) -> 2013 | AD9: =SUM(IF($A9=$A$21:$A$46,AD$21:AD$46)) -> 1081 | AE9: =AD9/AC9 -> 0.5370094386 | AF9: =SUM(IF($A9=$A$21:$A$46,AF$21:AF$46)) -> 2015 | AG9: =SUM(IF($A9=$A$21:$A$46,AG$21:AG$46)) -> 1192 | AH9: =AG9/AF9 -> 0.5915632754 | AK9: =SUM(IF($A9=$A$21:$A$46,AK$21:AK$46)) -> 169 | AL9: =SUM(IF($A9=$A$21:$A$46,AL$21:AL$46)) -> 126 | AM9: =AL9/AK9 -> 0.7455621302 | AN9: =SUM(IF($A9=$A$21:$A$46,AN$21:AN$46)) -> 69 | AO9: =SUM(IF($A9=$A$21:$A$46,AO$21:AO$46)) -> 144 | AP9: =SUM(IF($A9=$A$21:$A$46,AP$21:AP$46)) -> 141 | AR9: =SUM(IF($A9=$A$21:$A$46,AR$21:AR$46)) -> 416 | AT9: =SUM(IF($A9=$A$21:$A$46,AT$21:AT$46)) -> 1177 | AU9: =SUM(IF($A9=$A$21:$A$46,AU$21:AU$46)) -> 209 | AV9: =AU9/AT9 -> 0.1775700935 | AX9: =SUM(IF($A9=$A$21:$A$46,AX$21:AX$46)) -> 285 | AY9: =SUM(IF($A9=$A$21:$A$46,AY$21:AY$46)) -> 270 | AZ9: =AY9/AX9 -> 0.9473684211
A10: PCN2 | B10: Central 1 | D10: =SUM(IF($A10=$A$21:$A$46,D$21:D$46)) -> 59374 | F10: =SUM(IF($A10=$A$21:$A$46,F$21:F$46)) -> 785 | G10: =SUM(IF($A10=$A$21:$A$46,G$21:G$46)) -> 688 | H10: =IFERROR(G10/F10,"-") -> 0.876433121 | I10: =SUM(IF($A10=$A$21:$A$46,I$21:I$46)) -> 745 | J10: =SUM(IF($A10=$A$21:$A$46,J$21:J$46)) -> 611 | K10: =J10/I10 -> 0.8201342282 | L10: =SUM(IF($A10=$A$21:$A$46,L$21:L$46)) -> 805 | M10: =SUM(IF($A10=$A$21:$A$46,M$21:M$46)) -> 589 | N10: =M10/L10 -> 0.7316770186 | P10: =SUM(IF($A10=$A$21:$A$46,P$21:P$46)) -> 720 | Q10: =SUM(IF($A10=$A$21:$A$46,Q$21:Q$46)) -> 670 | R10: =Q10/P10 -> 0.9305555556 | S10: =SUM(IF($A10=$A$21:$A$46,S$21:S$46)) -> 505 | T10: =S10/Q10 -> 0.7537313433 | V10: =SUM(IF($A10=$A$21:$A$46,V$21:V$46)) -> 4467 | W10: =SUM(IF($A10=$A$21:$A$46,W$21:W$46)) -> 3389 | X10: =SUM(IF($A10=$A$21:$A$46,X$21:X$46)) -> 870 | Y10: =X10/W10 -> 0.2567128947 | Z10: =SUM(IF($A10=$A$21:$A$46,Z$21:Z$46)) -> 3669 | AA10: =SUM(IF($A10=$A$21:$A$46,AA$21:AA$46)) -> 2120 | AB10: =AA10/Z10 -> 0.5778141183 | AC10: =SUM(IF($A10=$A$21:$A$46,AC$21:AC$46)) -> 3717 | AD10: =SUM(IF($A10=$A$21:$A$46,AD$21:AD$46)) -> 2090 | AE10: =AD10/AC10 -> 0.5622814097 | AF10: =SUM(IF($A10=$A$21:$A$46,AF$21:AF$46)) -> 3681 | AG10: =SUM(IF($A10=$A$21:$A$46,AG$21:AG$46)) -> 2296 | AH10: =AG10/AF10 -> 0.6237435479 | AK10: =SUM(IF($A10=$A$21:$A$46,AK$21:AK$46)) -> 182 | AL10: =SUM(IF($A10=$A$21:$A$46,AL$21:AL$46)) -> 51 | AM10: =AL10/AK10 -> 0.2802197802 | AN10: =SUM(IF($A10=$A$21:$A$46,AN$21:AN$46)) -> 51 | AO10: =SUM(IF($A10=$A$21:$A$46,AO$21:AO$46)) -> 145 | AP10: =SUM(IF($A10=$A$21:$A$46,AP$21:AP$46)) -> 106 | AR10: =SUM(IF($A10=$A$21:$A$46,AR$21:AR$46)) -> 658 | AT10: =SUM(IF($A10=$A$21:$A$46,AT$21:AT$46)) -> 1549 | AU10: =SUM(IF($A10=$A$21:$A$46,AU$21:AU$46)) -> 353 | AV10: =AU10/AT10 -> 0.2278889606 | AX10: =SUM(IF($A10=$A$21:$A$46,AX$21:AX$46)) -> 423 | AY10: =SUM(IF($A10=$A$21:$A$46,AY$21:AY$46)) -> 359 | AZ10: =AY10/AX10 -> 0.8486997636
A11: PCN3 | B11: Newham Central | D11: =SUM(IF($A11=$A$21:$A$46,D$21:D$46)) -> 19100 | F11: =SUM(IF($A11=$A$21:$A$46,F$21:F$46)) -> 215 | G11: =SUM(IF($A11=$A$21:$A$46,G$21:G$46)) -> 187 | H11: 0.8697674419 | I11: =SUM(IF($A11=$A$21:$A$46,I$21:I$46)) -> 259 | J11: =SUM(IF($A11=$A$21:$A$46,J$21:J$46)) -> 208 | K11: 0.8030888031 | L11: =SUM(IF($A11=$A$21:$A$46,L$21:L$46)) -> 210 | M11: =SUM(IF($A11=$A$21:$A$46,M$21:M$46)) -> 169 | N11: 0.8047619048 | P11: =SUM(IF($A11=$A$21:$A$46,P$21:P$46)) -> 206 | Q11: =SUM(IF($A11=$A$21:$A$46,Q$21:Q$46)) -> 193 | R11: 0.9368932039 | S11: =SUM(IF($A11=$A$21:$A$46,S$21:S$46)) -> 121 | T11: 0.6269430052 | V11: =SUM(IF($A11=$A$21:$A$46,V$21:V$46)) -> 1257 | W11: =SUM(IF($A11=$A$21:$A$46,W$21:W$46)) -> 982 | X11: =SUM(IF($A11=$A$21:$A$46,X$21:X$46)) -> 246 | Y11: 0.250509165 | Z11: =SUM(IF($A11=$A$21:$A$46,Z$21:Z$46)) -> 1066 | AA11: =SUM(IF($A11=$A$21:$A$46,AA$21:AA$46)) -> 627 | AB11: 0.5881801126 | AC11: =SUM(IF($A11=$A$21:$A$46,AC$21:AC$46)) -> 1058 | AD11: =SUM(IF($A11=$A$21:$A$46,AD$21:AD$46)) -> 562 | AE11: 0.5311909263 | AF11: =SUM(IF($A11=$A$21:$A$46,AF$21:AF$46)) -> 1031 | AG11: =SUM(IF($A11=$A$21:$A$46,AG$21:AG$46)) -> 599 | AH11: 0.5809893307 | AK11: =SUM(IF($A11=$A$21:$A$46,AK$21:AK$46)) -> 66 | AL11: =SUM(IF($A11=$A$21:$A$46,AL$21:AL$46)) -> 14 | AM11: 0.2121212121 | AN11: =SUM(IF($A11=$A$21:$A$46,AN$21:AN$46)) -> 17 | AO11: =SUM(IF($A11=$A$21:$A$46,AO$21:AO$46)) -> 47 | AP11: =SUM(IF($A11=$A$21:$A$46,AP$21:AP$46)) -> 24 | AR11: =SUM(IF($A11=$A$21:$A$46,AR$21:AR$46)) -> 17 | AT11: =SUM(IF($A11=$A$21:$A$46,AT$21:AT$46)) -> 417 | AU11: =SUM(IF($A11=$A$21:$A$46,AU$21:AU$46)) -> 41 | AV11: 0.09832134293 | AX11: =SUM(IF($A11=$A$21:$A$46,AX$21:AX$46)) -> 109 | AY11: =SUM(IF($A11=$A$21:$A$46,AY$21:AY$46)) -> 95 | AZ11: 0.871559633
A12: PCN4 | B12: North East 1 | D12: =SUM(IF($A12=$A$21:$A$46,D$21:D$46)) -> 16188 | F12: =SUM(IF($A12=$A$21:$A$46,F$21:F$46)) -> 205 | G12: =SUM(IF($A12=$A$21:$A$46,G$21:G$46)) -> 175 | H12: 0.8536585366 | I12: =SUM(IF($A12=$A$21:$A$46,I$21:I$46)) -> 193 | J12: =SUM(IF($A12=$A$21:$A$46,J$21:J$46)) -> 164 | K12: 0.8497409326 | L12: =SUM(IF($A12=$A$21:$A$46,L$21:L$46)) -> 217 | M12: =SUM(IF($A12=$A$21:$A$46,M$21:M$46)) -> 186 | N12: 0.8571428571 | P12: =SUM(IF($A12=$A$21:$A$46,P$21:P$46)) -> 189 | Q12: =SUM(IF($A12=$A$21:$A$46,Q$21:Q$46)) -> 180 | R12: 0.9523809524 | S12: =SUM(IF($A12=$A$21:$A$46,S$21:S$46)) -> 165 | T12: 0.9166666667 | V12: =SUM(IF($A12=$A$21:$A$46,V$21:V$46)) -> 1775 | W12: =SUM(IF($A12=$A$21:$A$46,W$21:W$46)) -> 1468 | X12: =SUM(IF($A12=$A$21:$A$46,X$21:X$46)) -> 450 | Y12: 0.3065395095 | Z12: =SUM(IF($A12=$A$21:$A$46,Z$21:Z$46)) -> 1546 | AA12: =SUM(IF($A12=$A$21:$A$46,AA$21:AA$46)) -> 1158 | AB12: 0.7490297542 | AC12: =SUM(IF($A12=$A$21:$A$46,AC$21:AC$46)) -> 1555 | AD12: =SUM(IF($A12=$A$21:$A$46,AD$21:AD$46)) -> 814 | AE12: 0.5234726688 | AF12: =SUM(IF($A12=$A$21:$A$46,AF$21:AF$46)) -> 1525 | AG12: =SUM(IF($A12=$A$21:$A$46,AG$21:AG$46)) -> 1015 | AH12: 0.6655737705 | AK12: =SUM(IF($A12=$A$21:$A$46,AK$21:AK$46)) -> 55 | AL12: =SUM(IF($A12=$A$21:$A$46,AL$21:AL$46)) -> 36 | AM12: 0.6545454545 | AN12: =SUM(IF($A12=$A$21:$A$46,AN$21:AN$46)) -> 37 | AO12: =SUM(IF($A12=$A$21:$A$46,AO$21:AO$46)) -> 54 | AP12: =SUM(IF($A12=$A$21:$A$46,AP$21:AP$46)) -> 27 | AR12: =SUM(IF($A12=$A$21:$A$46,AR$21:AR$46)) -> 73 | AT12: =SUM(IF($A12=$A$21:$A$46,AT$21:AT$46)) -> 487 | AU12: =SUM(IF($A12=$A$21:$A$46,AU$21:AU$46)) -> 108 | AV12: 0.2217659138 | AX12: =SUM(IF($A12=$A$21:$A$46,AX$21:AX$46)) -> 141 | AY12: =SUM(IF($A12=$A$21:$A$46,AY$21:AY$46)) -> 105 | AZ12: 0.7446808511
A13: PCN5 | B13: North East 2 | D13: =SUM(IF($A13=$A$21:$A$46,D$21:D$46)) -> 31459 | F13: =SUM(IF($A13=$A$21:$A$46,F$21:F$46)) -> 394 | G13: =SUM(IF($A13=$A$21:$A$46,G$21:G$46)) -> 355 | H13: 0.9010152284 | I13: =SUM(IF($A13=$A$21:$A$46,I$21:I$46)) -> 392 | J13: =SUM(IF($A13=$A$21:$A$46,J$21:J$46)) -> 343 | K13: 0.875 | L13: =SUM(IF($A13=$A$21:$A$46,L$21:L$46)) -> 404 | M13: =SUM(IF($A13=$A$21:$A$46,M$21:M$46)) -> 326 | N13: 0.8069306931 | P13: =SUM(IF($A13=$A$21:$A$46,P$21:P$46)) -> 399 | Q13: =SUM(IF($A13=$A$21:$A$46,Q$21:Q$46)) -> 373 | R13: 0.9348370927 | S13: =SUM(IF($A13=$A$21:$A$46,S$21:S$46)) -> 302 | T13: 0.8096514745 | V13: =SUM(IF($A13=$A$21:$A$46,V$21:V$46)) -> 3113 | W13: =SUM(IF($A13=$A$21:$A$46,W$21:W$46)) -> 2544 | X13: =SUM(IF($A13=$A$21:$A$46,X$21:X$46)) -> 1020 | Y13: 0.4009433962 | Z13: =SUM(IF($A13=$A$21:$A$46,Z$21:Z$46)) -> 2773 | AA13: =SUM(IF($A13=$A$21:$A$46,AA$21:AA$46)) -> 2097 | AB13: 0.7562206996 | AC13: =SUM(IF($A13=$A$21:$A$46,AC$21:AC$46)) -> 2720 | AD13: =SUM(IF($A13=$A$21:$A$46,AD$21:AD$46)) -> 1694 | AE13: 0.6227941176 | AF13: =SUM(IF($A13=$A$21:$A$46,AF$21:AF$46)) -> 2705 | AG13: =SUM(IF($A13=$A$21:$A$46,AG$21:AG$46)) -> 1937 | AH13: 0.7160813309 | AK13: =SUM(IF($A13=$A$21:$A$46,AK$21:AK$46)) -> 106 | AL13: =SUM(IF($A13=$A$21:$A$46,AL$21:AL$46)) -> 20 | AM13: 0.1886792453 | AN13: =SUM(IF($A13=$A$21:$A$46,AN$21:AN$46)) -> 14 | AO13: =SUM(IF($A13=$A$21:$A$46,AO$21:AO$46)) -> 88 | AP13: =SUM(IF($A13=$A$21:$A$46,AP$21:AP$46)) -> 72 | AR13: =SUM(IF($A13=$A$21:$A$46,AR$21:AR$46)) -> 320 | AT13: =SUM(IF($A13=$A$21:$A$46,AT$21:AT$46)) -> 898 | AU13: =SUM(IF($A13=$A$21:$A$46,AU$21:AU$46)) -> 272 | AV13: 0.3028953229 | AX13: =SUM(IF($A13=$A$21:$A$46,AX$21:AX$46)) -> 276 | AY13: =SUM(IF($A13=$A$21:$A$46,AY$21:AY$46)) -> 257 | AZ13: 0.9311594203
A14: PCN6 | B14: North Newham | D14: =SUM(IF($A14=$A$21:$A$46,D$21:D$46)) -> 26683 | F14: =SUM(IF($A14=$A$21:$A$46,F$21:F$46)) -> 429 | G14: =SUM(IF($A14=$A$21:$A$46,G$21:G$46)) -> 388 | H14: 0.9044289044 | I14: =SUM(IF($A14=$A$21:$A$46,I$21:I$46)) -> 412 | J14: =SUM(IF($A14=$A$21:$A$46,J$21:J$46)) -> 375 | K14: 0.9101941748 | L14: =SUM(IF($A14=$A$21:$A$46,L$21:L$46)) -> 394 | M14: =SUM(IF($A14=$A$21:$A$46,M$21:M$46)) -> 325 | N14: 0.8248730964 | P14: =SUM(IF($A14=$A$21:$A$46,P$21:P$46)) -> 442 | Q14: =SUM(IF($A14=$A$21:$A$46,Q$21:Q$46)) -> 421 | R14: 0.9524886878 | S14: =SUM(IF($A14=$A$21:$A$46,S$21:S$46)) -> 368 | T14: 0.8741092637 | V14: =SUM(IF($A14=$A$21:$A$46,V$21:V$46)) -> 1704 | W14: =SUM(IF($A14=$A$21:$A$46,W$21:W$46)) -> 1444 | X14: =SUM(IF($A14=$A$21:$A$46,X$21:X$46)) -> 488 | Y14: 0.3379501385 | Z14: =SUM(IF($A14=$A$21:$A$46,Z$21:Z$46)) -> 1528 | AA14: =SUM(IF($A14=$A$21:$A$46,AA$21:AA$46)) -> 1116 | AB14: 0.7303664921 | AC14: =SUM(IF($A14=$A$21:$A$46,AC$21:AC$46)) -> 1511 | AD14: =SUM(IF($A14=$A$21:$A$46,AD$21:AD$46)) -> 848 | AE14: 0.5612177366 | AF14: =SUM(IF($A14=$A$21:$A$46,AF$21:AF$46)) -> 1508 | AG14: =SUM(IF($A14=$A$21:$A$46,AG$21:AG$46)) -> 986 | AH14: 0.6538461538 | AK14: =SUM(IF($A14=$A$21:$A$46,AK$21:AK$46)) -> 77 | AL14: =SUM(IF($A14=$A$21:$A$46,AL$21:AL$46)) -> 11 | AM14: 0.1428571429 | AN14: =SUM(IF($A14=$A$21:$A$46,AN$21:AN$46)) -> 16 | AO14: =SUM(IF($A14=$A$21:$A$46,AO$21:AO$46)) -> 65 | AP14: =SUM(IF($A14=$A$21:$A$46,AP$21:AP$46)) -> 62 | AR14: =SUM(IF($A14=$A$21:$A$46,AR$21:AR$46)) -> 709 | AT14: =SUM(IF($A14=$A$21:$A$46,AT$21:AT$46)) -> 600 | AU14: =SUM(IF($A14=$A$21:$A$46,AU$21:AU$46)) -> 163 | AV14: 0.2716666667 | AX14: =SUM(IF($A14=$A$21:$A$46,AX$21:AX$46)) -> 140 | AY14: =SUM(IF($A14=$A$21:$A$46,AY$21:AY$46)) -> 75 | AZ14: 0.5357142857
A15: PCN7 | B15: Leaside | D15: - | F15: - | G15: - | H15: - | I15: - | J15: - | K15: - | L15: - | M15: - | N15: - | P15: - | Q15: - | R15: - | S15: - | T15: - | V15: - | W15: - | X15: - | Y15: - | Z15: - | AA15: - | AB15: - | AC15: - | AD15: - | AE15: - | AF15: - | AG15: - | AH15: - | AK15: - | AL15: - | AM15: - | AN15: - | AO15: - | AP15: - | AR15: - | AT15: - | AU15: - | AV15: - | AX15: - | AY15: - | AZ15: -
A16: PCN8 | B16: Stratford | D16: =SUM(IF($A16=$A$21:$A$46,D$21:D$46)) -> 25160 | F16: =SUM(IF($A16=$A$21:$A$46,F$21:F$46)) -> 311 | G16: =SUM(IF($A16=$A$21:$A$46,G$21:G$46)) -> 268 | H16: =IFERROR(G16/F16,"-") -> 0.8617363344 | I16: =SUM(IF($A16=$A$21:$A$46,I$21:I$46)) -> 350 | J16: =SUM(IF($A16=$A$21:$A$46,J$21:J$46)) -> 287 | K16: =J16/I16 -> 0.82 | L16: =SUM(IF($A16=$A$21:$A$46,L$21:L$46)) -> 350 | M16: =SUM(IF($A16=$A$21:$A$46,M$21:M$46)) -> 273 | N16: =M16/L16 -> 0.78 | P16: =SUM(IF($A16=$A$21:$A$46,P$21:P$46)) -> 311 | Q16: =SUM(IF($A16=$A$21:$A$46,Q$21:Q$46)) -> 280 | R16: =Q16/P16 -> 0.9003215434 | S16: =SUM(IF($A16=$A$21:$A$46,S$21:S$46)) -> 204 | T16: =S16/Q16 -> 0.7285714286 | V16: =SUM(IF($A16=$A$21:$A$46,V$21:V$46)) -> 1688 | W16: =SUM(IF($A16=$A$21:$A$46,W$21:W$46)) -> 1221 | X16: =SUM(IF($A16=$A$21:$A$46,X$21:X$46)) -> 303 | Y16: =X16/W16 -> 0.2481572482 | Z16: =SUM(IF($A16=$A$21:$A$46,Z$21:Z$46)) -> 1351 | AA16: =SUM(IF($A16=$A$21:$A$46,AA$21:AA$46)) -> 753 | AB16: =AA16/Z16 -> 0.5573649149 | AC16: =SUM(IF($A16=$A$21:$A$46,AC$21:AC$46)) -> 1338 | AD16: =SUM(IF($A16=$A$21:$A$46,AD$21:AD$46)) -> 738 | AE16: =AD16/AC16 -> 0.5515695067 | AF16: =SUM(IF($A16=$A$21:$A$46,AF$21:AF$46)) -> 1355 | AG16: =SUM(IF($A16=$A$21:$A$46,AG$21:AG$46)) -> 889 | AH16: =AG16/AF16 -> 0.6560885609 | AK16: =SUM(IF($A16=$A$21:$A$46,AK$21:AK$46)) -> 89 | AL16: =SUM(IF($A16=$A$21:$A$46,AL$21:AL$46)) -> 5 | AM16: =AL16/AK16 -> 0.05617977528 | AN16: =SUM(IF($A16=$A$21:$A$46,AN$21:AN$46)) -> 7 | AO16: =SUM(IF($A16=$A$21:$A$46,AO$21:AO$46)) -> 72 | AP16: =SUM(IF($A16=$A$21:$A$46,AP$21:AP$46)) -> 30 | AR16: =SUM(IF($A16=$A$21:$A$46,AR$21:AR$46)) -> 114 | AT16: =SUM(IF($A16=$A$21:$A$46,AT$21:AT$46)) -> 543 | AU16: =SUM(IF($A16=$A$21:$A$46,AU$21:AU$46)) -> 116 | AV16: =AU16/AT16 -> 0.2136279926 | AX16: =SUM(IF($A16=$A$21:$A$46,AX$21:AX$46)) -> 208 | AY16: =SUM(IF($A16=$A$21:$A$46,AY$21:AY$46)) -> 96 | AZ16: =AY16/AX16 -> 0.4615384615
A17: PCN9 | B17: North West 2 | D17: =SUM(IF($A17=$A$21:$A$46,D$21:D$46)) -> 22314 | F17: =SUM(IF($A17=$A$21:$A$46,F$21:F$46)) -> 250 | G17: =SUM(IF($A17=$A$21:$A$46,G$21:G$46)) -> 216 | H17: 0.864 | I17: =SUM(IF($A17=$A$21:$A$46,I$21:I$46)) -> 220 | J17: =SUM(IF($A17=$A$21:$A$46,J$21:J$46)) -> 183 | K17: 0.8318181818 | L17: =SUM(IF($A17=$A$21:$A$46,L$21:L$46)) -> 261 | M17: =SUM(IF($A17=$A$21:$A$46,M$21:M$46)) -> 198 | N17: 0.7586206897 | P17: =SUM(IF($A17=$A$21:$A$46,P$21:P$46)) -> 252 | Q17: =SUM(IF($A17=$A$21:$A$46,Q$21:Q$46)) -> 237 | R17: 0.9404761905 | S17: =SUM(IF($A17=$A$21:$A$46,S$21:S$46)) -> 117 | T17: 0.4936708861 | V17: =SUM(IF($A17=$A$21:$A$46,V$21:V$46)) -> 1896 | W17: =SUM(IF($A17=$A$21:$A$46,W$21:W$46)) -> 1458 | X17: =SUM(IF($A17=$A$21:$A$46,X$21:X$46)) -> 418 | Y17: 0.2866941015 | Z17: =SUM(IF($A17=$A$21:$A$46,Z$21:Z$46)) -> 1576 | AA17: =SUM(IF($A17=$A$21:$A$46,AA$21:AA$46)) -> 1127 | AB17: 0.7151015228 | AC17: =SUM(IF($A17=$A$21:$A$46,AC$21:AC$46)) -> 1544 | AD17: =SUM(IF($A17=$A$21:$A$46,AD$21:AD$46)) -> 836 | AE17: 0.5414507772 | AF17: =SUM(IF($A17=$A$21:$A$46,AF$21:AF$46)) -> 1527 | AG17: =SUM(IF($A17=$A$21:$A$46,AG$21:AG$46)) -> 925 | AH17: 0.6057629339 | AK17: =SUM(IF($A17=$A$21:$A$46,AK$21:AK$46)) -> 71 | AL17: =SUM(IF($A17=$A$21:$A$46,AL$21:AL$46)) -> 8 | AM17: 0.1126760563 | AN17: =SUM(IF($A17=$A$21:$A$46,AN$21:AN$46)) -> 9 | AO17: =SUM(IF($A17=$A$21:$A$46,AO$21:AO$46)) -> 48 | AP17: =SUM(IF($A17=$A$21:$A$46,AP$21:AP$46)) -> 33 | AR17: =SUM(IF($A17=$A$21:$A$46,AR$21:AR$46)) -> 179 | AT17: =SUM(IF($A17=$A$21:$A$46,AT$21:AT$46)) -> 794 | AU17: =SUM(IF($A17=$A$21:$A$46,AU$21:AU$46)) -> 167 | AV17: 0.2103274559 | AX17: =SUM(IF($A17=$A$21:$A$46,AX$21:AX$46)) -> 163 | AY17: =SUM(IF($A17=$A$21:$A$46,AY$21:AY$46)) -> 159 | AZ17: 0.9754601227
A18: PCN10 | B18: Docklands | D18: =SUM(IF($A18=$A$21:$A$46,D$21:D$46)) -> 29508 | F18: =SUM(IF($A18=$A$21:$A$46,F$21:F$46)) -> 338 | G18: =SUM(IF($A18=$A$21:$A$46,G$21:G$46)) -> 295 | H18: 0.8727810651 | I18: =SUM(IF($A18=$A$21:$A$46,I$21:I$46)) -> 350 | J18: =SUM(IF($A18=$A$21:$A$46,J$21:J$46)) -> 282 | K18: 0.8057142857 | L18: =SUM(IF($A18=$A$21:$A$46,L$21:L$46)) -> 374 | M18: =SUM(IF($A18=$A$21:$A$46,M$21:M$46)) -> 288 | N18: 0.7700534759 | P18: =SUM(IF($A18=$A$21:$A$46,P$21:P$46)) -> 342 | Q18: =SUM(IF($A18=$A$21:$A$46,Q$21:Q$46)) -> 320 | R18: 0.9356725146 | S18: =SUM(IF($A18=$A$21:$A$46,S$21:S$46)) -> 257 | T18: 0.803125 | V18: =SUM(IF($A18=$A$21:$A$46,V$21:V$46)) -> 1385 | W18: =SUM(IF($A18=$A$21:$A$46,W$21:W$46)) -> 1097 | X18: =SUM(IF($A18=$A$21:$A$46,X$21:X$46)) -> 267 | Y18: 0.2433910665 | Z18: =SUM(IF($A18=$A$21:$A$46,Z$21:Z$46)) -> 1193 | AA18: =SUM(IF($A18=$A$21:$A$46,AA$21:AA$46)) -> 674 | AB18: 0.56496228 | AC18: =SUM(IF($A18=$A$21:$A$46,AC$21:AC$46)) -> 1187 | AD18: =SUM(IF($A18=$A$21:$A$46,AD$21:AD$46)) -> 668 | AE18: 0.5627632687 | AF18: =SUM(IF($A18=$A$21:$A$46,AF$21:AF$46)) -> 1171 | AG18: =SUM(IF($A18=$A$21:$A$46,AG$21:AG$46)) -> 699 | AH18: 0.5969257045 | AK18: =SUM(IF($A18=$A$21:$A$46,AK$21:AK$46)) -> 94 | AL18: =SUM(IF($A18=$A$21:$A$46,AL$21:AL$46)) -> 55 | AM18: 0.585106383 | AN18: =SUM(IF($A18=$A$21:$A$46,AN$21:AN$46)) -> 58 | AO18: =SUM(IF($A18=$A$21:$A$46,AO$21:AO$46)) -> 78 | AP18: =SUM(IF($A18=$A$21:$A$46,AP$21:AP$46)) -> 61 | AR18: =SUM(IF($A18=$A$21:$A$46,AR$21:AR$46)) -> 194 | AT18: =SUM(IF($A18=$A$21:$A$46,AT$21:AT$46)) -> 679 | AU18: =SUM(IF($A18=$A$21:$A$46,AU$21:AU$46)) -> 154 | AV18: 0.2268041237 | AX18: =SUM(IF($A18=$A$21:$A$46,AX$21:AX$46)) -> 199 | AY18: =SUM(IF($A18=$A$21:$A$46,AY$21:AY$46)) -> 152 | AZ18: 0.7638190955
B19: Total PMS | D19: =SUM(D9:D18) -> 272464 | F19: =SUM(F9:F18) -> 3400 | G19: =SUM(G9:G18) -> 2949 | H19: =G19/F19 -> 0.8673529412 | I19: =SUM(I9:I18) -> 3461 | J19: =SUM(J9:J18) -> 2879 | K19: =J19/I19 -> 0.8318405085 | L19: =SUM(L9:L18) -> 3539 | M19: =SUM(M9:M18) -> 2728 | N19: =M19/L19 -> 0.7708392201 | P19: =SUM(P9:P18) -> 3320 | Q19: =SUM(Q9:Q18) -> 3114 | R19: =Q19/P19 -> 0.9379518072 | S19: =SUM(S9:S18) -> 2367 | T19: =S19/Q19 -> 0.7601156069 | V19: =SUM(V9:V18) -> 19725 | W19: =SUM(W9:W18) -> 15467 | X19: =SUM(X9:X18) -> 4538 | Y19: =X19/W19 -> 0.2933988492 | Z19: =SUM(Z9:Z18) -> 16752 | AA19: =SUM(AA9:AA18) -> 10902 | AB19: 0.6507879656 | AC19: =SUM(AC9:AC18) -> 16643 | AD19: =SUM(AD9:AD18) -> 9331 | AE19: 0.5606561317 | AF19: =SUM(AF9:AF18) -> 16518 | AG19: =SUM(AG9:AG18) -> 10538 | AH19: 0.6379706986 | AK19: =SUM(AK9:AK18) -> 909 | AL19: =SUM(AL9:AL18) -> 326 | AM19: 0.3586358636 | AN19: =SUM(AN9:AN18) -> 278 | AO19: =SUM(AO9:AO18) -> 741 | AP19: =SUM(AP9:AP18) -> 556 | AR19: =SUM(AR9:AR18) -> 2680 | AT19: =SUM(AT9:AT18) -> 7144 | AU19: =SUM(AU9:AU18) -> 1583 | AV19: =AU19/AT19 -> 0.2215845465 | AX19: =SUM(AX9:AX18) -> 1944 | AY19: =SUM(AY9:AY18) -> 1568 | AZ19: =AY19/AX19 -> 0.8065843621
A20: Practices
A21: ='Control Panel'!I35 -> PCN1 | B21: =VLOOKUP(C21,PracticeTABLE1[[Practice ID]:[Practice]],2,FALSE) -> Cumberland Road Medical Practice | C21: ='Control Panel'!H35 -> F84657 | D21: =SUMIFS(OFFSET(REL_D,,MATCH(D$6,IND,0)-2),REL_D,$C$3,OrgID,$C21) -> 4501 | F21: =SUMIFS(OFFSET(REL_D,,MATCH(F$6,IND,0)-2),REL_D,$C$3,OrgID,$C21) -> 59 | G21: 46 | H21: =G21/F21 -> 0.7796610169 | I21: =SUMIFS(OFFSET(REL_D,,MATCH(I$6,IND,0)-2),REL_D,$C$3,OrgID,$C21) -> 47 | J21: 37 | K21: =J21/I21 -> 0.7872340426 | L21: =SUMIFS(OFFSET(REL_D,,MATCH(L$6,IND,0)-2),REL_D,$C$3,OrgID,$C21) -> 51 | M21: 39 | N21: =M21/L21 -> 0.7647058824 | P21: =SUMIFS(OFFSET(REL_D,,MATCH(P$6,IND,0)-2),REL_D,$C$3,OrgID,$C21) -> 55 | Q21: 52 | R21: =Q21/P21 -> 0.9454545455 | S21: =SUMIFS(OFFSET(REL_D,,MATCH(S$6,IND,0)-2),REL_D,$C$3,OrgID,$C21) -> 17 | T21: =S21/Q21 -> 0.3269230769 | V21: =SUMIFS(OFFSET(REL_D,,MATCH(V$6,IND,0)-2),REL_D,$C$3,OrgID,$C21) -> 238 | W21: 179 | X21: 60 | Y21: =X21/W21 -> 0.3351955307 | Z21: =SUMIFS(OFFSET(REL_D,,MATCH(Z$6,IND,0)-2),REL_D,$C$3,OrgID,$C21) -> 196 | AA21: 138 | AB21: =AA21/Z21 -> 0.7040816327 | AC21: =SUMIFS(OFFSET(REL_D,,MATCH(AC$6,IND,0)-2),REL_D,$C$3,OrgID,$C21) -> 195 | AD21: 110 | AE21: =AD21/AC21 -> 0.5641025641 | AF21: =SUMIFS(OFFSET(REL_D,,MATCH(AF$6,IND,0)-2),REL_D,$C$3,OrgID,$C21) -> 195 | AG21: 125 | AH21: =AG21/AF21 -> 0.641025641 | AK21: =SUMIFS(OFFSET(REL_D,,MATCH(AK$6,IND,0)-2),REL_D,$C$3,OrgID,$C21) -> 24 | AL21: 24 | AM21: =AL21/AK21 -> 1 | AN21: =SUMIFS(OFFSET(REL_D,,MATCH(AN$6,IND,0)-2),REL_D,$C$3,OrgID,$C21) -> 22 | AO21: 24 | AP21: 24 | AR21: =SUMIFS(OFFSET(REL_D,,MATCH(AR$6,IND,0)-2),REL_D,$C$3,OrgID,$C21) -> 6 | AT21: =SUMIFS(OFFSET(REL_D,,MATCH(AT$6,IND,0)-2),REL_D,$C$3,OrgID,$C21) -> 128 | AU21: 25 | AV21: =AU21/AT21 -> 0.1953125 | AX21: =SUMIFS(OFFSET(REL_D,,MATCH(AX$6,IND,0)-2),REL_D,$C$3,OrgID,$C21) -> 23 | AY21: 21 | AZ21: =AY21/AX21 -> 0.9130434783
A22: ='Control Panel'!I36 -> PCN1 | B22: =VLOOKUP(C22,PracticeTABLE1[[Practice ID]:[Practice]],2,FALSE) -> Custom House Surgery | C22: ='Control Panel'!H36 -> F84047 | D22: 9595 | F22: 96 | G22: 69 | H22: =G22/F22 -> 0.71875 | I22: 114 | J22: 81 | K22: =J22/I22 -> 0.7105263158 | L22: 112 | M22: 84 | N22: =M22/L22 -> 0.75 | P22: 98 | Q22: 95 | R22: =Q22/P22 -> 0.9693877551 | S22: 43 | T22: =S22/Q22 -> 0.4526315789 | V22: 575 | W22: 450 | X22: 90 | Y22: =X22/W22 -> 0.2 | Z22: 487 | AA22: 234 | AB22: =AA22/Z22 -> 0.4804928131 | AC22: 476 | AD22: 218 | AE22: =AD22/AC22 -> 0.4579831933 | AF22: 482 | AG22: 263 | AH22: =AG22/AF22 -> 0.5456431535 | AK22: 31 | AL22: 24 | AM22: =AL22/AK22 -> 0.7741935484 | AN22: 25 | AO22: 29 | AP22: 30 | AR22: 4 | AT22: 207 | AU22: 35 | AV22: =AU22/AT22 -> 0.1690821256 | AX22: 62 | AY22: 56 | AZ22: 0.9032258065
A23: ='Control Panel'!I37 -> PCN1 | B23: =VLOOKUP(C23,PracticeTABLE1[[Practice ID]:[Practice]],2,FALSE) -> Glen Road Medical Centre | C23: ='Control Panel'!H37 -> F84092 | D23: 8499 | F23: 110 | G23: 89 | H23: 0.8090909091 | I23: 122 | J23: 105 | K23: 0.8606557377 | L23: 102 | M23: 66 | N23: 0.6470588235 | P23: 96 | Q23: 95 | R23: 0.9895833333 | S23: 85 | T23: 0.8947368421 | V23: 541 | W23: 439 | X23: 118 | Y23: 0.2687927107 | Z23: 473 | AA23: 297 | AB23: 0.6279069767 | AC23: 471 | AD23: 256 | AE23: 0.5435244161 | AF23: 464 | AG23: 267 | AH23: 0.5754310345 | AK23: 24 | AL23: 21 | AM23: 0.875 | AN23: 6 | AO23: 21 | AP23: 23 | AR23: 56 | AT23: 200 | AU23: 44 | AV23: 0.22 | AX23: 28 | AY23: 27 | AZ23: 0.9642857143
A24: ='Control Panel'!I38 -> PCN1 | B24: =VLOOKUP(C24,PracticeTABLE1[[Practice ID]:[Practice]],2,FALSE) -> Star Lane Medical Centre | C24: ='Control Panel'!H38 -> F84017 | D24: 20083 | F24: 208 | G24: 173 | H24: 0.8317307692 | I24: 257 | J24: 203 | K24: 0.7898832685 | L24: 259 | M24: 185 | N24: 0.7142857143 | P24: 210 | Q24: 198 | R24: 0.9428571429 | S24: 183 | T24: 0.9242424242 | V24: 1086 | W24: 796 | X24: 208 | Y24: 0.2613065327 | Z24: 894 | AA24: 561 | AB24: 0.6275167785 | AC24: 871 | AD24: 497 | AE24: 0.570608496 | AF24: 874 | AG24: 537 | AH24: 0.614416476 | AK24: 90 | AL24: 57 | AM24: 0.6333333333 | AN24: 16 | AO24: 70 | AP24: 64 | AR24: 350 | AT24: 642 | AU24: 105 | AV24: 0.1635514019 | AX24: 172 | AY24: 166 | AZ24: 0.9651162791
A25: ='Control Panel'!I39 -> PCN2 | B25: =VLOOKUP(C25,PracticeTABLE1[[Practice ID]:[Practice]],2,FALSE) -> Boleyn Medical Centre | C25: ='Control Panel'!H39 -> F84050 | D25: 11777 | F25: 178 | G25: 157 | H25: 0.8820224719 | I25: 164 | J25: 133 | K25: 0.8109756098 | L25: 187 | M25: 142 | N25: 0.7593582888 | P25: 142 | Q25: 130 | R25: 0.9154929577 | S25: 101 | T25: 0.7769230769 | V25: 869 | W25: 709 | X25: 172 | Y25: 0.2425952045 | Z25: 745 | AA25: 404 | AB25: 0.5422818792 | AC25: 772 | AD25: 466 | AE25: 0.603626943 | AF25: 740 | AG25: 481 | AH25: 0.65 | AK25: 33 | AL25: 3 | AM25: 0.09090909091 | AN25: 3 | AO25: 25 | AP25: 23 | AR25: 18 | AT25: 183 | AU25: 49 | AV25: 0.2677595628 | AX25: 35 | AY25: 33 | AZ25: 0.9428571429
A26: ='Control Panel'!I40 -> PCN2 | B26: =VLOOKUP(C26,PracticeTABLE1[[Practice ID]:[Practice]],2,FALSE) -> Greengate Medical Practice | C26: ='Control Panel'!H40 -> F84053 | D26: 7939 | F26: 76 | G26: 65 | H26: 0.8552631579 | I26: 72 | J26: 54 | K26: 0.75 | L26: 77 | M26: 54 | N26: 0.7012987013 | P26: 100 | Q26: 97 | R26: 0.97 | S26: 74 | T26: 0.7628865979 | V26: 626 | W26: 456 | X26: 45 | Y26: 0.09868421053 | Z26: 480 | AA26: 156 | AB26: 0.325 | AC26: 514 | AD26: 254 | AE26: 0.4941634241 | AF26: 513 | AG26: 253 | AH26: 0.4931773879 | AK26: 29 | AL26: 22 | AM26: 0.7586206897 | AN26: 22 | AO26: 25 | AP26: 26 | AR26: 13 | AT26: 271 | AU26: 41 | AV26: 0.1512915129 | AX26: 82 | AY26: 71 | AZ26: 0.8658536585
A27: ='Control Panel'!I41 -> PCN2 | B27: =VLOOKUP(C27,PracticeTABLE1[[Practice ID]:[Practice]],2,FALSE) -> Market Street Health Group | C27: ='Control Panel'!H41 -> F84004 | D27: 13580 | F27: 178 | G27: 164 | H27: 0.9213483146 | I27: 158 | J27: 129 | K27: 0.8164556962 | L27: 187 | M27: 141 | N27: 0.7540106952 | P27: 152 | Q27: 146 | R27: 0.9605263158 | S27: 98 | T27: 0.6712328767 | V27: 1000 | W27: 708 | X27: 161 | Y27: 0.2274011299 | Z27: 793 | AA27: 457 | AB27: 0.5762925599 | AC27: 781 | AD27: 406 | AE27: 0.5198463508 | AF27: 784 | AG27: 462 | AH27: 0.5892857143 | AK27: 50 | AL27: 1 | AM27: 0.02 | AN27: 1 | AO27: 43 | AP27: 22 | AR27: 85 | AT27: 417 | AU27: 100 | AV27: 0.2398081535 | AX27: 170 | AY27: 134 | AZ27: 0.7882352941
A28: ='Control Panel'!I42 -> PCN2 | B28: =VLOOKUP(C28,PracticeTABLE1[[Practice ID]:[Practice]],2,FALSE) -> Newham Medical Centre | C28: ='Control Panel'!H42 -> F84669 | D28: 10167 | F28: 150 | G28: 129 | H28: 0.86 | I28: 141 | J28: 119 | K28: 0.8439716312 | L28: 163 | M28: 104 | N28: 0.6380368098 | P28: 143 | Q28: 133 | R28: 0.9300699301 | S28: 100 | T28: 0.7518796992 | V28: 880 | W28: 702 | X28: 174 | Y28: 0.2478632479 | Z28: 743 | AA28: 409 | AB28: 0.5504710633 | AC28: 760 | AD28: 402 | AE28: 0.5289473684 | AF28: 749 | AG28: 446 | AH28: 0.5954606142 | AK28: 29 | AL28: 4 | AM28: 0.1379310345 | AN28: 5 | AO28: 18 | AP28: 9 | AR28: 291 | AT28: 200 | AU28: 43 | AV28: 0.215 | AX28: 71 | AY28: 68 | AZ28: 0.9577464789
A29: ='Control Panel'!I43 -> PCN2 | B29: =VLOOKUP(C29,PracticeTABLE1[[Practice ID]:[Practice]],2,FALSE) -> St Bartholomew Surgery | C29: ='Control Panel'!H43 -> F84010 | D29: 10795 | F29: 132 | G29: 118 | H29: 0.8939393939 | I29: 144 | J29: 121 | K29: 0.8402777778 | L29: 120 | M29: 98 | N29: 0.8166666667 | P29: 109 | Q29: 95 | R29: 0.871559633 | S29: 82 | T29: 0.8631578947 | V29: 805 | W29: 596 | X29: 246 | Y29: 0.4127516779 | Z29: 662 | AA29: 520 | AB29: 0.7854984894 | AC29: 649 | AD29: 430 | AE29: 0.6625577812 | AF29: 656 | AG29: 490 | AH29: 0.7469512195 | AK29: 21 | AL29: 17 | AM29: 0.8095238095 | AN29: 15 | AO29: 18 | AP29: 19 | AR29: 239 | AT29: 364 | AU29: 102 | AV29: 0.2802197802 | AX29: 52 | AY29: 40 | AZ29: 0.7692307692
A30: ='Control Panel'!I44 -> PCN2 | B30: =VLOOKUP(C30,PracticeTABLE1[[Practice ID]:[Practice]],2,FALSE) -> The Project Surgery | C30: ='Control Panel'!H44 -> F84124 | D30: 5116 | F30: 71 | G30: 55 | H30: 0.7746478873 | I30: 66 | J30: 55 | K30: 0.8333333333 | L30: 71 | M30: 50 | N30: 0.7042253521 | P30: 74 | Q30: 69 | R30: 0.9324324324 | S30: 50 | T30: 0.7246376812 | V30: 287 | W30: 218 | X30: 72 | Y30: 0.3302752294 | Z30: 246 | AA30: 174 | AB30: 0.7073170732 | AC30: 241 | AD30: 132 | AE30: 0.5477178423 | AF30: 239 | AG30: 164 | AH30: 0.6861924686 | AK30: 20 | AL30: 4 | AM30: 0.2 | AN30: 5 | AO30: 16 | AP30: 7 | AR30: 12 | AT30: 114 | AU30: 18 | AV30: 0.1578947368 | AX30: 13 | AY30: 13 | AZ30: 1
A31: ='Control Panel'!I45 -> PCN3 | B31: =VLOOKUP(C31,PracticeTABLE1[[Practice ID]:[Practice]],2,FALSE) -> Balaam Street Practice | C31: ='Control Panel'!H45 -> F84681 | D31: 5594 | F31: 55 | G31: 45 | H31: 0.8181818182 | I31: 56 | J31: 43 | K31: 0.7678571429 | L31: 66 | M31: 45 | N31: 0.6818181818 | P31: 60 | Q31: 56 | R31: 0.9333333333 | S31: 35 | T31: 0.625 | V31: 397 | W31: 314 | X31: 77 | Y31: 0.2452229299 | Z31: 339 | AA31: 208 | AB31: 0.6135693215 | AC31: 340 | AD31: 185 | AE31: 0.5441176471 | AF31: 330 | AG31: 192 | AH31: 0.5818181818 | AK31: 21 | AL31: 0 | AM31: 0 | AN31: 0 | AO31: 10 | AP31: 8 | AR31: 17 | AT31: 62 | AU31: 9 | AV31: 0.1451612903 | AX31: 18 | AY31: 16 | AZ31: 0.8888888889
A32: ='Control Panel'!I46 -> PCN3 | B32: =VLOOKUP(C32,PracticeTABLE1[[Practice ID]:[Practice]],2,FALSE) -> Essex Lodge | C32: ='Control Panel'!H46 -> F84052 | D32: 13506 | F32: 160 | G32: 142 | H32: 0.8875 | I32: 203 | J32: 165 | K32: 0.8128078818 | L32: 144 | M32: 124 | N32: 0.8611111111 | P32: 146 | Q32: 137 | R32: 0.9383561644 | S32: 86 | T32: 0.6277372263 | V32: 860 | W32: 668 | X32: 169 | Y32: 0.252994012 | Z32: 727 | AA32: 419 | AB32: 0.5763411279 | AC32: 718 | AD32: 377 | AE32: 0.5250696379 | AF32: 701 | AG32: 407 | AH32: 0.5805991441 | AK32: 45 | AL32: 14 | AM32: 0.3111111111 | AN32: 17 | AO32: 37 | AP32: 16 | AR32: 0 | AT32: 355 | AU32: 32 | AV32: 0.09014084507 | AX32: 91 | AY32: 79 | AZ32: 0.8681318681
A33: ='Control Panel'!I47 -> PCN4 | B33: =VLOOKUP(C33,PracticeTABLE1[[Practice ID]:[Practice]],2,FALSE) -> The Manor Park Practice | C33: ='Control Panel'!H47 -> F84729 | D33: 4882 | F33: 81 | G33: 63 | H33: 0.7777777778 | I33: 65 | J33: 54 | K33: 0.8307692308 | L33: 71 | M33: 61 | N33: 0.8591549296 | P33: 64 | Q33: 59 | R33: 0.921875 | S33: 55 | T33: 0.9322033898 | V33: 500 | W33: 413 | X33: 138 | Y33: 0.3341404358 | Z33: 441 | AA33: 360 | AB33: 0.8163265306 | AC33: 445 | AD33: 246 | AE33: 0.5528089888 | AF33: 436 | AG33: 326 | AH33: 0.747706422 | AK33: 3 | AL33: 3 | AM33: 1 | AN33: 3 | AO33: 3 | AP33: 3 | AR33: 28 | AT33: 128 | AU33: 31 | AV33: 0.2421875 | AX33: 22 | AY33: 18 | AZ33: 0.8181818182
A34: ='Control Panel'!I48 -> PCN4 | B34: =VLOOKUP(C34,PracticeTABLE1[[Practice ID]:[Practice]],2,FALSE) -> Sangam Surgery | C34: ='Control Panel'!H48 -> F84658 | D34: 11306 | F34: 124 | G34: 112 | H34: 0.9032258065 | I34: 128 | J34: 110 | K34: 0.859375 | L34: 146 | M34: 125 | N34: 0.8561643836 | P34: 125 | Q34: 121 | R34: 0.968 | S34: 110 | T34: 0.9090909091 | V34: 1275 | W34: 1055 | X34: 312 | Y34: 0.2957345972 | Z34: 1105 | AA34: 798 | AB34: 0.7221719457 | AC34: 1110 | AD34: 568 | AE34: 0.5117117117 | AF34: 1089 | AG34: 689 | AH34: 0.6326905418 | AK34: 52 | AL34: 33 | AM34: 0.6346153846 | AN34: 34 | AO34: 51 | AP34: 24 | AR34: 45 | AT34: 359 | AU34: 77 | AV34: 0.2144846797 | AX34: 119 | AY34: 87 | AZ34: 0.731092437
A35: ='Control Panel'!I49 -> PCN5 | B35: =VLOOKUP(C35,PracticeTABLE1[[Practice ID]:[Practice]],2,FALSE) -> E12 Medical Practice | C35: ='Control Panel'!H49 -> F84739 | D35: 5181 | F35: 61 | G35: 58 | H35: 0.9508196721 | I35: 46 | J35: 45 | K35: 0.9782608696 | L35: 65 | M35: 62 | N35: 0.9538461538 | P35: 66 | Q35: 59 | R35: 0.8939393939 | S35: 59 | T35: 1 | V35: 551 | W35: 489 | X35: 320 | Y35: 0.654396728 | Z35: 529 | AA35: 520 | AB35: 0.9829867675 | AC35: 509 | AD35: 393 | AE35: 0.7721021611 | AF35: 503 | AG35: 425 | AH35: 0.8449304175 | AK35: 9 | AL35: 9 | AM35: 1 | AN35: 9 | AO35: 9 | AP35: 9 | AR35: 36 | AT35: 71 | AU35: 69 | AV35: 0.9718309859 | AX35: 32 | AY35: 32 | AZ35: 1
A36: ='Control Panel'!I50 -> PCN5 | B36: =VLOOKUP(C36,PracticeTABLE1[[Practice ID]:[Practice]],2,FALSE) -> Shrewsbury Road Surgery | C36: ='Control Panel'!H50 -> F84006 | D36: 15160 | F36: 220 | G36: 196 | H36: 0.8909090909 | I36: 224 | J36: 197 | K36: 0.8794642857 | L36: 219 | M36: 165 | N36: 0.7534246575 | P36: 221 | Q36: 209 | R36: 0.9457013575 | S36: 150 | T36: 0.7177033493 | V36: 1572 | W36: 1226 | X36: 488 | Y36: 0.3980424144 | Z36: 1379 | AA36: 1090 | AB36: 0.7904278463 | AC36: 1342 | AD36: 864 | AE36: 0.6438152012 | AF36: 1336 | AG36: 974 | AH36: 0.7290419162 | AK36: 57 | AL36: 8 | AM36: 0.1403508772 | AN36: 3 | AO36: 47 | AP36: 43 | AR36: 245 | AT36: 429 | AU36: 112 | AV36: 0.2610722611 | AX36: 146 | AY36: 144 | AZ36: 0.9863013699
A37: ='Control Panel'!I51 -> PCN5 | B37: =VLOOKUP(C37,PracticeTABLE1[[Practice ID]:[Practice]],2,FALSE) -> Wordsworth Health Centre | C37: ='Control Panel'!H51 -> F84074 | D37: 11118 | F37: 113 | G37: 101 | H37: 0.8938053097 | I37: 122 | J37: 101 | K37: 0.8278688525 | L37: 120 | M37: 99 | N37: 0.825 | P37: 112 | Q37: 105 | R37: 0.9375 | S37: 93 | T37: 0.8857142857 | V37: 990 | W37: 829 | X37: 212 | Y37: 0.2557297949 | Z37: 865 | AA37: 487 | AB37: 0.5630057803 | AC37: 869 | AD37: 437 | AE37: 0.50287687 | AF37: 866 | AG37: 538 | AH37: 0.6212471132 | AK37: 40 | AL37: 3 | AM37: 0.075 | AN37: 2 | AO37: 32 | AP37: 20 | AR37: 39 | AT37: 398 | AU37: 91 | AV37: 0.2286432161 | AX37: 98 | AY37: 81 | AZ37: 0.8265306122
A38: ='Control Panel'!I52 -> PCN6 | B38: =VLOOKUP(C38,PracticeTABLE1[[Practice ID]:[Practice]],2,FALSE) -> Claremont Clinic | C38: ='Control Panel'!H52 -> F84097 | D38: 11346 | F38: 179 | G38: 152 | H38: 0.8491620112 | I38: 168 | J38: 145 | K38: 0.8630952381 | L38: 162 | M38: 118 | N38: 0.7283950617 | P38: 193 | Q38: 183 | R38: 0.9481865285 | S38: 173 | T38: 0.9453551913 | V38: 821 | W38: 708 | X38: 219 | Y38: 0.3093220339 | Z38: 736 | AA38: 472 | AB38: 0.6413043478 | AC38: 728 | AD38: 403 | AE38: 0.5535714286 | AF38: 731 | AG38: 486 | AH38: 0.6648426813 | AK38: 38 | AL38: 5 | AM38: 0.1315789474 | AN38: 7 | AO38: 34 | AP38: 26 | AR38: 308 | AT38: 329 | AU38: 93 | AV38: 0.282674772 | AX38: 83 | AY38: 42 | AZ38: 0.5060240964
A39: ='Control Panel'!I53 -> PCN6 | B39: =VLOOKUP(C39,PracticeTABLE1[[Practice ID]:[Practice]],2,FALSE) -> Woodgrange Medical Practice | C39: ='Control Panel'!H53 -> F84724 | D39: 15337 | F39: 250 | G39: 236 | H39: 0.944 | I39: 244 | J39: 230 | K39: 0.9426229508 | L39: 232 | M39: 207 | N39: 0.8922413793 | P39: 249 | Q39: 238 | R39: 0.9558232932 | S39: 195 | T39: 0.8193277311 | V39: 883 | W39: 736 | X39: 269 | Y39: 0.3654891304 | Z39: 792 | AA39: 644 | AB39: 0.8131313131 | AC39: 783 | AD39: 445 | AE39: 0.5683269476 | AF39: 777 | AG39: 500 | AH39: 0.6435006435 | AK39: 39 | AL39: 6 | AM39: 0.1538461538 | AN39: 9 | AO39: 31 | AP39: 36 | AR39: 401 | AT39: 271 | AU39: 70 | AV39: 0.258302583 | AX39: 57 | AY39: 33 | AZ39: 0.5789473684
A40: ='Control Panel'!I54 -> PCN8 | B40: =VLOOKUP(C40,PracticeTABLE1[[Practice ID]:[Practice]],2,FALSE) -> First4Health Church Road | C40: ='Control Panel'!H54 -> F84121 | D40: 14279 | F40: 213 | G40: 187 | H40: 0.8779342723 | I40: 236 | J40: 194 | K40: 0.8220338983 | L40: 245 | M40: 191 | N40: 0.7795918367 | P40: 212 | Q40: 191 | R40: 0.9009433962 | S40: 155 | T40: 0.8115183246 | V40: 1197 | W40: 873 | X40: 219 | Y40: 0.2508591065 | Z40: 969 | AA40: 539 | AB40: 0.5562435501 | AC40: 953 | AD40: 516 | AE40: 0.5414480588 | AF40: 975 | AG40: 659 | AH40: 0.6758974359 | AK40: 53 | AL40: 4 | AM40: 0.07547169811 | AN40: 5 | AO40: 40 | AP40: 14 | AR40: 44 | AT40: 357 | AU40: 79 | AV40: 0.2212885154 | AX40: 147 | AY40: 69 | AZ40: 0.4693877551
A41: ='Control Panel'!I55 -> PCN8 | B41: =VLOOKUP(C41,PracticeTABLE1[[Practice ID]:[Practice]],2,FALSE) -> Stratford Village Surgery | C41: ='Control Panel'!H55 -> F84009 | D41: 10881 | F41: 98 | G41: 81 | H41: 0.8265306122 | I41: 114 | J41: 93 | K41: 0.8157894737 | L41: 105 | M41: 82 | N41: 0.780952381 | P41: 99 | Q41: 89 | R41: 0.898989899 | S41: 49 | T41: 0.5505617978 | V41: 491 | W41: 348 | X41: 84 | Y41: 0.2413793103 | Z41: 382 | AA41: 214 | AB41: 0.5602094241 | AC41: 385 | AD41: 222 | AE41: 0.5766233766 | AF41: 380 | AG41: 230 | AH41: 0.6052631579 | AK41: 36 | AL41: 1 | AM41: 0.02777777778 | AN41: 2 | AO41: 32 | AP41: 16 | AR41: 70 | AT41: 186 | AU41: 37 | AV41: 0.1989247312 | AX41: 61 | AY41: 27 | AZ41: 0.4426229508
A42: ='Control Panel'!I56 -> PCN9 | B42: =VLOOKUP(C42,PracticeTABLE1[[Practice ID]:[Practice]],2,FALSE) -> East End Medical Centre | C42: ='Control Panel'!H56 -> F84677 | D42: 6533 | F42: 81 | G42: 68 | H42: 0.8395061728 | I42: 76 | J42: 68 | K42: 0.8947368421 | L42: 87 | M42: 71 | N42: 0.816091954 | P42: 79 | Q42: 76 | R42: 0.9620253165 | S42: 70 | T42: 0.9210526316 | V42: 718 | W42: 581 | X42: 193 | Y42: 0.3321858864 | Z42: 613 | AA42: 493 | AB42: 0.8042414356 | AC42: 601 | AD42: 335 | AE42: 0.5574043261 | AF42: 590 | AG42: 382 | AH42: 0.6474576271 | AK42: 16 | AL42: 1 | AM42: 0.0625 | AN42: 2 | AO42: 14 | AP42: 6 | AR42: 24 | AT42: 320 | AU42: 66 | AV42: 0.20625 | AX42: 78 | AY42: 76 | AZ42: 0.9743589744
A43: ='Control Panel'!I57 -> PCN9 | B43: =VLOOKUP(C43,PracticeTABLE1[[Practice ID]:[Practice]],2,FALSE) -> Stratford Health Centre | C43: ='Control Panel'!H57 -> F84022 | D43: 7736 | F43: 70 | G43: 63 | H43: 0.9 | I43: 58 | J43: 46 | K43: 0.7931034483 | L43: 66 | M43: 49 | N43: 0.7424242424 | P43: 84 | Q43: 75 | R43: 0.8928571429 | S43: 47 | T43: 0.6266666667 | V43: 347 | W43: 269 | X43: 56 | Y43: 0.2081784387 | Z43: 286 | AA43: 174 | AB43: 0.6083916084 | AC43: 288 | AD43: 136 | AE43: 0.4722222222 | AF43: 279 | AG43: 142 | AH43: 0.5089605735 | AK43: 24 | AL43: 0 | AM43: 0 | AN43: 2 | AO43: 14 | AP43: 13 | AR43: 152 | AT43: 135 | AU43: 26 | AV43: 0.1925925926 | AX43: 15 | AY43: 15 | AZ43: 1
A44: ='Control Panel'!I58 -> PCN9 | B44: =VLOOKUP(C44,PracticeTABLE1[[Practice ID]:[Practice]],2,FALSE) -> Upton Lane Medical Centre | C44: ='Control Panel'!H58 -> F84014 | D44: 8045 | F44: 99 | G44: 85 | H44: 0.8585858586 | I44: 86 | J44: 69 | K44: 0.8023255814 | L44: 108 | M44: 78 | N44: 0.7222222222 | P44: 89 | Q44: 86 | R44: 0.9662921348 | S44: 0 | T44: 0 | V44: 831 | W44: 608 | X44: 169 | Y44: 0.2779605263 | Z44: 677 | AA44: 460 | AB44: 0.6794682422 | AC44: 655 | AD44: 365 | AE44: 0.5572519084 | AF44: 658 | AG44: 401 | AH44: 0.6094224924 | AK44: 31 | AL44: 7 | AM44: 0.2258064516 | AN44: 5 | AO44: 20 | AP44: 14 | AR44: 3 | AT44: 339 | AU44: 75 | AV44: 0.2212389381 | AX44: 70 | AY44: 68 | AZ44: 0.9714285714
A45: ='Control Panel'!I59 -> PCN10 | B45: =VLOOKUP(C45,PracticeTABLE1[[Practice ID]:[Practice]],2,FALSE) -> Royal Docks Medical Centre | C45: ='Control Panel'!H59 -> F84717 | D45: 11388 | F45: 144 | G45: 132 | H45: 0.9166666667 | I45: 114 | J45: 97 | K45: 0.850877193 | L45: 143 | M45: 102 | N45: 0.7132867133 | P45: 134 | Q45: 125 | R45: 0.9328358209 | S45: 88 | T45: 0.704 | V45: 498 | W45: 426 | X45: 76 | Y45: 0.1784037559 | Z45: 446 | AA45: 195 | AB45: 0.4372197309 | AC45: 451 | AD45: 230 | AE45: 0.5099778271 | AF45: 434 | AG45: 242 | AH45: 0.5576036866 | AK45: 39 | AL45: 30 | AM45: 0.7692307692 | AN45: 30 | AO45: 32 | AP45: 32 | AR45: 138 | AT45: 270 | AU45: 53 | AV45: 0.1962962963 | AX45: 55 | AY45: 52 | AZ45: 0.9454545455
A46: ='Control Panel'!I60 -> PCN10 | B46: =VLOOKUP(C46,PracticeTABLE1[[Practice ID]:[Practice]],2,FALSE) -> Tollgate Health Centre | C46: ='Control Panel'!H60 -> F84093 | D46: 18120 | F46: 194 | G46: 163 | H46: 0.8402061856 | I46: 236 | J46: 185 | K46: 0.7838983051 | L46: 231 | M46: 186 | N46: 0.8051948052 | P46: 208 | Q46: 195 | R46: 0.9375 | S46: 169 | T46: 0.8666666667 | V46: 887 | W46: 671 | X46: 191 | Y46: 0.2846497765 | Z46: 747 | AA46: 479 | AB46: 0.641231593 | AC46: 736 | AD46: 438 | AE46: 0.5951086957 | AF46: 737 | AG46: 457 | AH46: 0.6200814111 | AK46: 55 | AL46: 25 | AM46: 0.4545454545 | AN46: 28 | AO46: 46 | AP46: 29 | AR46: 56 | AT46: 409 | AU46: 101 | AV46: 0.2469437653 | AX46: 144 | AY46: 100 | AZ46: 0.6944444444

Sheet Report (GMS)
C2: June 2021 | D2: Newham
C3: =VLOOKUP(C2,'Control Panel'!H6:I17,2,FALSE) -> 2021-07-01 | D3: Outcome Measures - GMS
F5: Diabetes - (Band A ≥45% / Band B ≥43% / Band C ≥41% / Band D <41%) | T5: CKD - (Band A ≥35% / Band B ≥34% / Band C ≥33% / Band D <33%) | X5: Frailty Care Review - (Band A ≥90% / Band B ≥85% / Band C ≥75% / Band D <75%)
D6: All Patients | F6: Diabetes Register | G6: Type 2 eligible population for on target | H6: Diabetes Triple Target | J6: Type 2 eligible population for BP <=140/80 | K6: Blood Pressure 140/80 (12 mths) | M6: Type 2 eligible population for HbA1c <=59 | N6: HbA1c 59 or less (12 mths) | P6: Type 2 eligible population for Cholesterol <=4.5 | Q6: Cholesterol 4.5 or less (12 mths) | T6: 08 Patients with CKD | U6: 0801 BP maintained (130/80mm HG) | X6: Frailty >=0.36 | Y6: Face to face review 3mths (including video conference) | Z6: Face to face review 3mths (including video conference) %
B7: Home | D7: =VLOOKUP(D6,'Control Panel'!$E$2:$F$42,2,FALSE) -> All currently registered patients | F7: =VLOOKUP(F6,'Control Panel'!$E$2:$F$42,2,FALSE) -> Diabetes Register | G7: Type 2 eligible population for on target (Under 80yrs) | H7: Diabetes Triple Target | I7: Diabetes Triple Target % | J7: Type 2 eligible population for BP <=140/80 (Under 80yrs) | K7: =VLOOKUP(K6,'Control Panel'!$E$2:$F$42,2,FALSE) -> Blood Pressure 140/80 (12 mths) | L7: =K7&" %" -> Blood Pressure 140/80 (12 mths) % | M7: Type 2 eligible population for HbA1c <=59 (Under 80yrs) | N7: =VLOOKUP(N6,'Control Panel'!$E$2:$F$42,2,FALSE) -> HbA1c 59 or less (12 mths) | O7: =N7&" %" -> HbA1c 59 or less (12 mths) % | P7: Type 2 eligible population for Cholesterol <=4.5 (Under 80yrs) | Q7: =VLOOKUP(Q6,'Control Panel'!$E$2:$F$42,2,FALSE) -> Cholesterol 4.5 or less (12 mths) | R7: =Q7&" %" -> Cholesterol 4.5 or less (12 mths) % | T7: Patients with CKD | U7: BP maintained (130/80mm HG) | V7: BP maintained (130/80mm HG) % | X7: Frailty >=0.36 | Y7: Face to face review 6mths (including video conference) | Z7: Face to face review 6mths (including video conference) %
A8: PCN
A9: PCN1 | B9: South One Newham | D9: =SUM(IF($A9=$A$21:$A$35,D$21:D$35)) -> 7806 | F9: =SUM(IF($A9=$A$21:$A$35,F$21:F$35)) -> 433 | G9: =SUM(IF($A9=$A$21:$A$35,G$21:G$35)) -> 368 | H9: =SUM(IF($A9=$A$21:$A$35,H$21:H$35)) -> 75 | I9: =H9/G9 -> 0.2038043478 | J9: =SUM(IF($A9=$A$21:$A$35,J$21:J$35)) -> 384 | K9: =SUM(IF($A9=$A$21:$A$35,K$21:K$35)) -> 191 | L9: =K9/J9 -> 0.4973958333 | M9: =SUM(IF($A9=$A$21:$A$35,M$21:M$35)) -> 394 | N9: =SUM(IF($A9=$A$21:$A$35,N$21:N$35)) -> 203 | O9: =N9/M9 -> 0.5152284264 | P9: =SUM(IF($A9=$A$21:$A$35,P$21:P$35)) -> 392 | Q9: =SUM(IF($A9=$A$21:$A$35,Q$21:Q$35)) -> 221 | R9: =Q9/P9 -> 0.5637755102 | T9: =SUM(IF($A9=$A$21:$A$35,T$21:T$35)) -> 120 | U9: =SUM(IF($A9=$A$21:$A$35,U$21:U$35)) -> 24 | V9: =U9/T9 -> 0.2 | X9: =SUM(IF($A9=$A$21:$A$35,X$21:X$35)) -> 23 | Y9: =SUM(IF($A9=$A$21:$A$35,Y$21:Y$35)) -> 21 | Z9: =IFERROR(Y9/X9,"-") -> 0.9130434783
A10: PCN2 | B10: Central 1 | D10: =SUM(IF($A10=$A$21:$A$35,D$21:D$35)) -> 8439 | F10: =SUM(IF($A10=$A$21:$A$35,F$21:F$35)) -> 741 | G10: =SUM(IF($A10=$A$21:$A$35,G$21:G$35)) -> 630 | H10: =SUM(IF($A10=$A$21:$A$35,H$21:H$35)) -> 162 | I10: =H10/G10 -> 0.2571428571 | J10: =SUM(IF($A10=$A$21:$A$35,J$21:J$35)) -> 659 | K10: =SUM(IF($A10=$A$21:$A$35,K$21:K$35)) -> 387 | L10: =K10/J10 -> 0.5872534143 | M10: =SUM(IF($A10=$A$21:$A$35,M$21:M$35)) -> 666 | N10: =SUM(IF($A10=$A$21:$A$35,N$21:N$35)) -> 342 | O10: =N10/M10 -> 0.5135135135 | P10: =SUM(IF($A10=$A$21:$A$35,P$21:P$35)) -> 655 | Q10: =SUM(IF($A10=$A$21:$A$35,Q$21:Q$35)) -> 413 | R10: =Q10/P10 -> 0.6305343511 | T10: =SUM(IF($A10=$A$21:$A$35,T$21:T$35)) -> 157 | U10: =SUM(IF($A10=$A$21:$A$35,U$21:U$35)) -> 34 | V10: =U10/T10 -> 0.2165605096 | X10: =SUM(IF($A10=$A$21:$A$35,X$21:X$35)) -> 20 | Y10: =SUM(IF($A10=$A$21:$A$35,Y$21:Y$35)) -> 16 | Z10: =IFERROR(Y10/X10,"-") -> 0.8
A11: PCN3 | B11: Newham Central | D11: - | F11: - | G11: - | H11: - | I11: - | J11: - | K11: - | L11: - | M11: - | N11: - | O11: - | P11: - | Q11: - | R11: - | T11: - | U11: - | V11: - | X11: - | Y11: - | Z11: =IFERROR(Y11/X11,"-") -> -
A12: PCN4 | B12: North East 1 | D12: =SUM(IF($A12=$A$21:$A$35,D$21:D$35)) -> 15945 | F12: =SUM(IF($A12=$A$21:$A$35,F$21:F$35)) -> 1514 | G12: =SUM(IF($A12=$A$21:$A$35,G$21:G$35)) -> 1205 | H12: =SUM(IF($A12=$A$21:$A$35,H$21:H$35)) -> 384 | I12: 0.3186721992 | J12: =SUM(IF($A12=$A$21:$A$35,J$21:J$35)) -> 1316 | K12: =SUM(IF($A12=$A$21:$A$35,K$21:K$35)) -> 991 | L12: 0.7530395137 | M12: =SUM(IF($A12=$A$21:$A$35,M$21:M$35)) -> 1304 | N12: =SUM(IF($A12=$A$21:$A$35,N$21:N$35)) -> 750 | O12: 0.5751533742 | P12: =SUM(IF($A12=$A$21:$A$35,P$21:P$35)) -> 1280 | Q12: =SUM(IF($A12=$A$21:$A$35,Q$21:Q$35)) -> 822 | R12: 0.6421875 | T12: =SUM(IF($A12=$A$21:$A$35,T$21:T$35)) -> 428 | U12: =SUM(IF($A12=$A$21:$A$35,U$21:U$35)) -> 123 | V12: 0.2873831776 | X12: =SUM(IF($A12=$A$21:$A$35,X$21:X$35)) -> 123 | Y12: =SUM(IF($A12=$A$21:$A$35,Y$21:Y$35)) -> 109 | Z12: 0.8861788618
A13: PCN5 | B13: North East 2 | D13: =SUM(IF($A13=$A$21:$A$35,D$21:D$35)) -> 11788 | F13: =SUM(IF($A13=$A$21:$A$35,F$21:F$35)) -> 1032 | G13: =SUM(IF($A13=$A$21:$A$35,G$21:G$35)) -> 774 | H13: =SUM(IF($A13=$A$21:$A$35,H$21:H$35)) -> 314 | I13: 0.4056847545 | J13: =SUM(IF($A13=$A$21:$A$35,J$21:J$35)) -> 862 | K13: =SUM(IF($A13=$A$21:$A$35,K$21:K$35)) -> 652 | L13: 0.7563805104 | M13: =SUM(IF($A13=$A$21:$A$35,M$21:M$35)) -> 849 | N13: =SUM(IF($A13=$A$21:$A$35,N$21:N$35)) -> 537 | O13: 0.6325088339 | P13: =SUM(IF($A13=$A$21:$A$35,P$21:P$35)) -> 841 | Q13: =SUM(IF($A13=$A$21:$A$35,Q$21:Q$35)) -> 573 | R13: 0.6813317479 | T13: =SUM(IF($A13=$A$21:$A$35,T$21:T$35)) -> 381 | U13: =SUM(IF($A13=$A$21:$A$35,U$21:U$35)) -> 126 | V13: 0.3307086614 | X13: =SUM(IF($A13=$A$21:$A$35,X$21:X$35)) -> 110 | Y13: =SUM(IF($A13=$A$21:$A$35,Y$21:Y$35)) -> 95 | Z13: 0.8636363636
A14: PCN6 | B14: North Newham | D14: =SUM(IF($A14=$A$21:$A$35,D$21:D$35)) -> 6966 | F14: =SUM(IF($A14=$A$21:$A$35,F$21:F$35)) -> 500 | G14: =SUM(IF($A14=$A$21:$A$35,G$21:G$35)) -> 364 | H14: =SUM(IF($A14=$A$21:$A$35,H$21:H$35)) -> 75 | I14: 0.206043956 | J14: =SUM(IF($A14=$A$21:$A$35,J$21:J$35)) -> 391 | K14: =SUM(IF($A14=$A$21:$A$35,K$21:K$35)) -> 202 | L14: 0.5166240409 | M14: =SUM(IF($A14=$A$21:$A$35,M$21:M$35)) -> 398 | N14: =SUM(IF($A14=$A$21:$A$35,N$21:N$35)) -> 206 | O14: 0.5175879397 | P14: =SUM(IF($A14=$A$21:$A$35,P$21:P$35)) -> 396 | Q14: =SUM(IF($A14=$A$21:$A$35,Q$21:Q$35)) -> 230 | R14: 0.5808080808 | T14: =SUM(IF($A14=$A$21:$A$35,T$21:T$35)) -> 143 | U14: =SUM(IF($A14=$A$21:$A$35,U$21:U$35)) -> 23 | V14: 0.1608391608 | X14: =SUM(IF($A14=$A$21:$A$35,X$21:X$35)) -> 62 | Y14: =SUM(IF($A14=$A$21:$A$35,Y$21:Y$35)) -> 46 | Z14: 0.7419354839
A15: PCN7 | B15: Leaside | D15: =SUM(IF($A15=$A$21:$A$35,D$21:D$35)) -> 10487 | F15: =SUM(IF($A15=$A$21:$A$35,F$21:F$35)) -> 657 | G15: =SUM(IF($A15=$A$21:$A$35,G$21:G$35)) -> 547 | H15: =SUM(IF($A15=$A$21:$A$35,H$21:H$35)) -> 189 | I15: 0.3455210238 | J15: =SUM(IF($A15=$A$21:$A$35,J$21:J$35)) -> 585 | K15: =SUM(IF($A15=$A$21:$A$35,K$21:K$35)) -> 499 | L15: 0.852991453 | M15: =SUM(IF($A15=$A$21:$A$35,M$21:M$35)) -> 583 | N15: =SUM(IF($A15=$A$21:$A$35,N$21:N$35)) -> 345 | O15: 0.5917667238 | P15: =SUM(IF($A15=$A$21:$A$35,P$21:P$35)) -> 557 | Q15: =SUM(IF($A15=$A$21:$A$35,Q$21:Q$35)) -> 336 | R15: 0.6032315978 | T15: =SUM(IF($A15=$A$21:$A$35,T$21:T$35)) -> 332 | U15: =SUM(IF($A15=$A$21:$A$35,U$21:U$35)) -> 66 | V15: 0.1987951807 | X15: =SUM(IF($A15=$A$21:$A$35,X$21:X$35)) -> 44 | Y15: =SUM(IF($A15=$A$21:$A$35,Y$21:Y$35)) -> 32 | Z15: 0.7272727273
A16: PCN8 | B16: Stratford | D16: =SUM(IF($A16=$A$21:$A$35,D$21:D$35)) -> 9644 | F16: =SUM(IF($A16=$A$21:$A$35,F$21:F$35)) -> 479 | G16: =SUM(IF($A16=$A$21:$A$35,G$21:G$35)) -> 398 | H16: =SUM(IF($A16=$A$21:$A$35,H$21:H$35)) -> 39 | I16: =H16/G16 -> 0.09798994975 | J16: =SUM(IF($A16=$A$21:$A$35,J$21:J$35)) -> 408 | K16: =SUM(IF($A16=$A$21:$A$35,K$21:K$35)) -> 127 | L16: =K16/J16 -> 0.3112745098 | M16: =SUM(IF($A16=$A$21:$A$35,M$21:M$35)) -> 412 | N16: =SUM(IF($A16=$A$21:$A$35,N$21:N$35)) -> 147 | O16: =N16/M16 -> 0.3567961165 | P16: =SUM(IF($A16=$A$21:$A$35,P$21:P$35)) -> 410 | Q16: =SUM(IF($A16=$A$21:$A$35,Q$21:Q$35)) -> 162 | R16: =Q16/P16 -> 0.3951219512 | T16: =SUM(IF($A16=$A$21:$A$35,T$21:T$35)) -> 139 | U16: =SUM(IF($A16=$A$21:$A$35,U$21:U$35)) -> 29 | V16: =U16/T16 -> 0.2086330935 | X16: =SUM(IF($A16=$A$21:$A$35,X$21:X$35)) -> 30 | Y16: =SUM(IF($A16=$A$21:$A$35,Y$21:Y$35)) -> 21 | Z16: 0.7
A17: PCN9 | B17: North West 2 | D17: =SUM(IF($A17=$A$21:$A$35,D$21:D$35)) -> 16571 | F17: =SUM(IF($A17=$A$21:$A$35,F$21:F$35)) -> 969 | G17: =SUM(IF($A17=$A$21:$A$35,G$21:G$35)) -> 746 | H17: =SUM(IF($A17=$A$21:$A$35,H$21:H$35)) -> 149 | I17: 0.1997319035 | J17: =SUM(IF($A17=$A$21:$A$35,J$21:J$35)) -> 782 | K17: =SUM(IF($A17=$A$21:$A$35,K$21:K$35)) -> 384 | L17: 0.4910485934 | M17: =SUM(IF($A17=$A$21:$A$35,M$21:M$35)) -> 806 | N17: =SUM(IF($A17=$A$21:$A$35,N$21:N$35)) -> 388 | O17: 0.4813895782 | P17: =SUM(IF($A17=$A$21:$A$35,P$21:P$35)) -> 787 | Q17: =SUM(IF($A17=$A$21:$A$35,Q$21:Q$35)) -> 388 | R17: 0.4930114358 | T17: =SUM(IF($A17=$A$21:$A$35,T$21:T$35)) -> 513 | U17: =SUM(IF($A17=$A$21:$A$35,U$21:U$35)) -> 113 | V17: 0.2202729045 | X17: =SUM(IF($A17=$A$21:$A$35,X$21:X$35)) -> 58 | Y17: =SUM(IF($A17=$A$21:$A$35,Y$21:Y$35)) -> 53 | Z17: 0.9137931034
A18: PCN10 | B18: Docklands | D18: - | F18: - | G18: - | H18: - | I18: - | J18: - | K18: - | L18: - | M18: - | N18: - | O18: - | P18: - | Q18: - | R18: - | T18: - | U18: - | V18: - | X18: - | Y18: - | Z18: -
B19: Total GMS | D19: =SUM(D9:D18) -> 87646 | F19: =SUM(F9:F18) -> 6325 | G19: =SUM(G9:G18) -> 5032 | H19: =SUM(H9:H18) -> 1387 | I19: =H19/G19 -> 0.27563593 | J19: =SUM(J9:J18) -> 5387 | K19: =SUM(K9:K18) -> 3433 | L19: =K19/J19 -> 0.6372749211 | M19: =SUM(M9:M18) -> 5412 | N19: =SUM(N9:N18) -> 2918 | O19: =N19/M19 -> 0.5391722099 | P19: =SUM(P9:P18) -> 5318 | Q19: =SUM(Q9:Q18) -> 3145 | R19: =Q19/P19 -> 0.5913877398 | T19: =SUM(T9:T18) -> 2213 | U19: =SUM(U9:U18) -> 538 | V19: =U19/T19 -> 0.2431089019 | X19: =SUM(X9:X18) -> 470 | Y19: =SUM(Y9:Y18) -> 393 | Z19: =Y19/X19 -> 0.8361702128
A20: Practices
A21: ='Control Panel'!O14 -> PCN1 | B21: =VLOOKUP(C21,PracticeTABLE1[[Practice ID]:[Practice]],2,FALSE) -> Dr Ruiz – St Lukes Medical Centre | C21: ='Control Panel'!N14 -> F84666 | D21: =SUMIFS(OFFSET(REL_D,,MATCH(D$6,IND,0)-2),REL_D,$C$3,OrgID,$C21) -> 5921 | F21: =SUMIFS(OFFSET(REL_D,,MATCH(F$6,IND,0)-2),REL_D,$C$3,OrgID,$C21) -> 283 | G21: 239 | H21: 38 | I21: =H21/G21 -> 0.1589958159 | J21: =SUMIFS(OFFSET(REL_D,,MATCH(J$6,IND,0)-2),REL_D,$C$3,OrgID,$C21) -> 250 | K21: 103 | L21: =K21/J21 -> 0.412 | M21: =SUMIFS(OFFSET(REL_D,,MATCH(M$6,IND,0)-2),REL_D,$C$3,OrgID,$C21) -> 260 | N21: 133 | O21: =N21/M21 -> 0.5115384615 | P21: =SUMIFS(OFFSET(REL_D,,MATCH(P$6,IND,0)-2),REL_D,$C$3,OrgID,$C21) -> 255 | Q21: 140 | R21: =Q21/P21 -> 0.5490196078 | T21: =SUMIFS(OFFSET(REL_D,,MATCH(T$6,IND,0)-2),REL_D,$C$3,OrgID,$C21) -> 90 | U21: 17 | V21: =U21/T21 -> 0.1888888889 | X21: =SUMIFS(OFFSET(REL_D,,MATCH(X$6,IND,0)-2),REL_D,$C$3,OrgID,$C21) -> 18 | Y21: 16 | Z21: =IFERROR(Y21/X21,"-") -> 0.8888888889
A22: ='Control Panel'!O15 -> PCN1 | B22: =VLOOKUP(C22,PracticeTABLE1[[Practice ID]:[Practice]],2,FALSE) -> Esk Road Medical Practice | C22: ='Control Panel'!N15 -> F84673 | D22: 1885 | F22: 150 | G22: 129 | H22: 37 | I22: =H22/G22 -> 0.2868217054 | J22: 134 | K22: 88 | L22: =K22/J22 -> 0.6567164179 | M22: 134 | N22: 70 | O22: =N22/M22 -> 0.5223880597 | P22: 137 | Q22: 81 | R22: =Q22/P22 -> 0.5912408759 | T22: 30 | U22: 7 | V22: =U22/T22 -> 0.2333333333 | X22: 5 | Y22: 5 | Z22: 1
A23: ='Control Panel'!O16 -> PCN2 | B23: =VLOOKUP(C23,PracticeTABLE1[[Practice ID]:[Practice]],2,FALSE) -> The Azad Practice | C23: ='Control Panel'!N16 -> F84735 | D23: 8439 | F23: 741 | G23: 630 | H23: 162 | I23: 0.2571428571 | J23: 659 | K23: 387 | L23: 0.5872534143 | M23: 666 | N23: 342 | O23: 0.5135135135 | P23: 655 | Q23: 413 | R23: 0.6305343511 | T23: 157 | U23: 34 | V23: 0.2165605096 | X23: 20 | Y23: 16 | Z23: 0.8
A24: ='Control Panel'!O17 -> PCN4 | B24: =VLOOKUP(C24,PracticeTABLE1[[Practice ID]:[Practice]],2,FALSE) -> Birchdale Road Medical Practice | C24: ='Control Panel'!N17 -> F84641 | D24: 3058 | F24: 344 | G24: 251 | H24: 73 | I24: 0.2908366534 | J24: 285 | K24: 197 | L24: 0.6912280702 | M24: 274 | N24: 156 | O24: 0.5693430657 | P24: 282 | Q24: 180 | R24: 0.6382978723 | T24: 132 | U24: 39 | V24: 0.2954545455 | X24: 77 | Y24: 67 | Z24: 0.8701298701
A25: ='Control Panel'!O18 -> PCN4 | B25: =VLOOKUP(C25,PracticeTABLE1[[Practice ID]:[Practice]],2,FALSE) -> Dr CM Patel | C25: ='Control Panel'!N18 -> F84660 | D25: 3023 | F25: 177 | G25: 152 | H25: 78 | I25: 0.5131578947 | J25: 157 | K25: 114 | L25: 0.7261146497 | M25: 164 | N25: 126 | O25: 0.7682926829 | P25: 162 | Q25: 131 | R25: 0.8086419753 | T25: 27 | U25: 7 | V25: 0.2592592593 | X25: 5 | Y25: 3 | Z25: 0.6
A26: ='Control Panel'!O19 -> PCN4 | B26: =VLOOKUP(C26,PracticeTABLE1[[Practice ID]:[Practice]],2,FALSE) -> Plashet Medical Centre | C26: ='Control Panel'!N19 -> F84088 | D26: 5247 | F26: 453 | G26: 335 | H26: 99 | I26: 0.2955223881 | J26: 380 | K26: 316 | L26: 0.8315789474 | M26: 363 | N26: 197 | O26: 0.5426997245 | P26: 357 | Q26: 204 | R26: 0.5714285714 | T26: 133 | U26: 37 | V26: 0.2781954887 | X26: 19 | Y26: 18 | Z26: 0.9473684211
A27: ='Control Panel'!O20 -> PCN4 | B27: =VLOOKUP(C27,PracticeTABLE1[[Practice ID]:[Practice]],2,FALSE) -> Westbury Road Medical Practice | C27: ='Control Panel'!N20 -> F84670 | D27: 4617 | F27: 540 | G27: 467 | H27: 134 | I27: 0.2869379015 | J27: 494 | K27: 364 | L27: 0.7368421053 | M27: 503 | N27: 271 | O27: 0.5387673956 | P27: 479 | Q27: 307 | R27: 0.6409185804 | T27: 136 | U27: 40 | V27: 0.2941176471 | X27: 22 | Y27: 21 | Z27: 0.9545454545
A28: ='Control Panel'!O21 -> PCN5 | B28: =VLOOKUP(C28,PracticeTABLE1[[Practice ID]:[Practice]],2,FALSE) -> Dr Krishnamurthy Surgery | C28: ='Control Panel'!N21 -> F84741 | D28: 2178 | F28: 245 | G28: 193 | H28: 72 | I28: 0.3730569948 | J28: 205 | K28: 158 | L28: 0.7707317073 | M28: 199 | N28: 129 | O28: 0.648241206 | P28: 200 | Q28: 126 | R28: 0.63 | T28: 97 | U28: 32 | V28: 0.3298969072 | X28: 41 | Y28: 32 | Z28: 0.7804878049
A29: ='Control Panel'!O22 -> PCN5 | B29: =VLOOKUP(C29,PracticeTABLE1[[Practice ID]:[Practice]],2,FALSE) -> Lathom Medical Centre | C29: ='Control Panel'!N22 -> F84070 | D29: 7143 | F29: 622 | G29: 449 | H29: 205 | I29: 0.4565701559 | J29: 516 | K29: 412 | L29: 0.7984496124 | M29: 510 | N29: 340 | O29: 0.6666666667 | P29: 503 | Q29: 354 | R29: 0.703777336 | T29: 241 | U29: 76 | V29: 0.3153526971 | X29: 68 | Y29: 62 | Z29: 0.9117647059
A30: ='Control Panel'!O23 -> PCN5 | B30: =VLOOKUP(C30,PracticeTABLE1[[Practice ID]:[Practice]],2,FALSE) -> The Summit Practice | C30: ='Control Panel'!N23 -> F84742 | D30: 2467 | F30: 165 | G30: 132 | H30: 37 | I30: 0.2803030303 | J30: 141 | K30: 82 | L30: 0.5815602837 | M30: 140 | N30: 68 | O30: 0.4857142857 | P30: 138 | Q30: 93 | R30: 0.6739130435 | T30: 43 | U30: 18 | V30: 0.4186046512 | X30: 1 | Y30: 1 | Z30: 1
A31: ='Control Panel'!O24 -> PCN6 | B31: =VLOOKUP(C31,PracticeTABLE1[[Practice ID]:[Practice]],2,FALSE) -> E7 Health - First 4 Health Group | C31: ='Control Panel'!N24 -> F84672 | D31: 6966 | F31: 500 | G31: 364 | H31: 75 | I31: 0.206043956 | J31: 391 | K31: 202 | L31: 0.5166240409 | M31: 398 | N31: 206 | O31: 0.5175879397 | P31: 396 | Q31: 230 | R31: 0.5808080808 | T31: 143 | U31: 23 | V31: 0.1608391608 | X31: 62 | Y31: 46 | Z31: 0.7419354839
A32: ='Control Panel'!O25 -> PCN7 | B32: =VLOOKUP(C32,PracticeTABLE1[[Practice ID]:[Practice]],2,FALSE) -> Abbey Road Medical Practice | C32: ='Control Panel'!N25 -> F84111 | D32: 10487 | F32: 657 | G32: 547 | H32: 189 | I32: 0.3455210238 | J32: 585 | K32: 499 | L32: 0.852991453 | M32: 583 | N32: 345 | O32: 0.5917667238 | P32: 557 | Q32: 336 | R32: 0.6032315978 | T32: 332 | U32: 66 | V32: 0.1987951807 | X32: 44 | Y32: 32 | Z32: 0.7272727273
A33: ='Control Panel'!O26 -> PCN8 | B33: Dr Knight and Dr Ashar | C33: F84730 | D33: 9644 | F33: 479 | G33: 398 | H33: 39 | I33: 0.09798994975 | J33: 408 | K33: 127 | L33: 0.3112745098 | M33: 412 | N33: 147 | O33: 0.3567961165 | P33: 410 | Q33: 162 | R33: 0.3951219512 | T33: 139 | U33: 29 | V33: 0.2086330935 | X33: 30 | Y33: 21 | Z33: 0.7
A34: PCN9 | B34: Dr Samuel & Dr Khan's Practice | C34: F84077 | D34: 9391 | F34: 495 | G34: 408 | H34: 56 | I34: =H34/G34 -> 0.137254902 | J34: 418 | K34: 165 | L34: =K34/J34 -> 0.3947368421 | M34: 436 | N34: 184 | O34: =N34/M34 -> 0.4220183486 | P34: 423 | Q34: 175 | R34: =Q34/P34 -> 0.4137115839 | T34: 253 | U34: 41 | V34: =U34/T34 -> 0.162055336 | X34: 23 | Y34: 19 | Z34: 0.8260869565
A35: ='Control Panel'!O27 -> PCN9 | B35: =VLOOKUP(C35,PracticeTABLE1[[Practice ID]:[Practice]],2,FALSE) -> The Forest Practice | C35: ='Control Panel'!N27 -> F84086 | D35: 7180 | F35: 474 | G35: 338 | H35: 93 | I35: 0.275147929 | J35: 364 | K35: 219 | L35: 0.6016483516 | M35: 370 | N35: 204 | O35: 0.5513513514 | P35: 364 | Q35: 213 | R35: 0.5851648352 | T35: 260 | U35: 72 | V35: 0.2769230769 | X35: 35 | Y35: 34 | Z35: 0.9714285714

Sheet Report (APMS)
C2: June 2021 | D2: Newham
C3: =VLOOKUP(C2,'Control Panel'!H6:I17,2,FALSE) -> 2021-07-01 | D3: Outcome Measures - PMS
F5: Childhood Immunisations - (Band A ≥91% / Band B ≥80% / Band C ≥70% / Band D <70%) | P5: Infant Feeding - (Band A ≥90% / Band B ≥80% / Band C ≥70% / Band D <70%) | V5: Diabetes - (Band A ≥45% / Band B ≥43% / Band C ≥41% / Band D <41%) | AK5: Epilepsy - (Band A ≥60% / Band B ≥50% / Band C ≥40% / Band D <40%) | AR5: Psychology Referrals | AT5: CKD - (Band A ≥35% / Band B ≥34% / Band C ≥33% / Band D <33%) | AX5: Frailty Care Review - (Band A ≥90% / Band B ≥85% / Band C ≥75% / Band D <75%)
D6: All Patients | F6: (01) 12 MONTH COHORT | G6: (01.01) DTaP/IPV/Hib or DTaP/IPV/Hib/HepB | I6: (02) 24 MONTH COHORT | J6: (02.02) MMR | L6: (03) 5 YEAR COHORT | M6: (03.03) DTaP/IPV (Booster) | P6: Children aged 6 to 10 weeks during the audit period | Q6: Registered before 3 months old | S6: Infant feeding recorded | V6: Diabetes Register | W6: Type 2 eligible population for on target | X6: Diabetes triple target | Z6: Type 2 eligible population for BP <=140/80 | AA6: Blood Pressure 140/80 (12 mths) | AC6: Type 2 eligible population for HbA1c <=59 | AD6: HbA1c 59 or less (12 mths) | AF6: Type 2 eligible population for Cholesterol <=4.5 | AG6: Cholesterol 4.5 or less (12 mths) | AK6: Patients aged 18 or over on the epilepsy register | AL6: Annual Review done | AN6: Fit frequency recorded | AO6: Seizure free >12m or Last fit recorded | AP6: Medication Review done | AR6: Psychology Referrals (IAPT) | AT6: 08 Patients with CKD | AU6: 0801 BP maintained (130/80mm HG) | AX6: Frailty >=0.36 | AY6: Face to face review 3mths (including video conference)
B7: Home | D7: =VLOOKUP(D6,'Control Panel'!$E$2:$F$42,2,FALSE) -> All currently registered patients | F7: =VLOOKUP(F6,'Control Panel'!$E$2:$F$42,2,FALSE) -> 12 MONTH COHORT | G7: =VLOOKUP(G6,'Control Panel'!$E$2:$F$42,2,FALSE) -> DTaP/IPV/Hib or DTaP/IPV/Hib/HepB (12m) | H7: ='Control Panel'!F5 -> DTaP/IPV/Hib or DTaP/IPV/Hib/HepB (12m) % | I7: =VLOOKUP(I6,'Control Panel'!$E$2:$F$42,2,FALSE) -> 24 MONTH COHORT | J7: =VLOOKUP(J6,'Control Panel'!$E$2:$F$42,2,FALSE) -> MMR (24m) | K7: ='Control Panel'!F9 -> MMR (24m) % | L7: =VLOOKUP(L6,'Control Panel'!$E$2:$F$42,2,FALSE) -> 5 YEAR COHORT | M7: =VLOOKUP(M6,'Control Panel'!$E$2:$F$42,2,FALSE) -> DTaP/IPV (Booster) (5y) | N7: ='Control Panel'!F12 -> DTaP/IPV (Booster) (5y) % | P7: =VLOOKUP(P6,'Control Panel'!$E$2:$F$42,2,FALSE) -> Children aged 6 to 10 weeks during the audit period | Q7: =VLOOKUP(Q6,'Control Panel'!$E$2:$F$42,2,FALSE) -> Registered before 3 months old | R7: ='Control Panel'!F15 -> Registered before 3 months old % | S7: =VLOOKUP(S6,'Control Panel'!$E$2:$F$42,2,FALSE) -> Infant feeding recorded | T7: ='Control Panel'!F17 -> Infant feeding recorded % | V7: =VLOOKUP(V6,'Control Panel'!$E$2:$F$42,2,FALSE) -> Diabetes Register | W7: Type 2 eligible population for on target | X7: Diabetes Triple Target | Y7: Diabetes Triple Target % | Z7: Type 2 eligible population for BP <=140/80 | AA7: =VLOOKUP(AA6,'Control Panel'!$E$2:$F$42,2,FALSE) -> Blood Pressure 140/80 (12 mths) | AB7: =AA7&" %" -> Blood Pressure 140/80 (12 mths) % | AC7: Type 2 eligible population for HbA1c <=59 | AD7: =VLOOKUP(AD6,'Control Panel'!$E$2:$F$42,2,FALSE) -> HbA1c 59 or less (12 mths) | AE7: =AD7&" %" -> HbA1c 59 or less (12 mths) % | AF7: Type 2 eligible population for Cholesterol <=4.5 | AG7: =VLOOKUP(AG6,'Control Panel'!$E$2:$F$42,2,FALSE) -> Cholesterol 4.5 or less (12 mths) | AH7: =AG7&" %" -> Cholesterol 4.5 or less (12 mths) % | AK7: =VLOOKUP(AK6,'Control Panel'!$E$2:$F$42,2,FALSE) -> Patients aged 18 or over on the epilepsy register | AL7: =VLOOKUP(AL6,'Control Panel'!$E$2:$F$42,2,FALSE) -> Annual Review done | AM7: =AL7&" %" -> Annual Review done % | AN7: =VLOOKUP(AN6,'Control Panel'!$E$2:$F$42,2,FALSE) -> Fit frequency recorded | AO7: Seizure free >12m or Last fit recorded | AP7: =VLOOKUP(AP6,'Control Panel'!$E$2:$F$42,2,FALSE) -> Medication Review done | AR7: =VLOOKUP(AR6,'Control Panel'!$E$2:$F$42,2,FALSE) -> Psychology Referrals (IAPT) | AT7: Patients with CKD | AU7: BP maintained (130/80mm HG) | AV7: BP maintained (130/80mm HG) % | AX7: Frailty >=0.36 | AY7: Face to face review 6mths (including video conference) | AZ7: Face to face review 6mths (including video conference) %
A8: PCN
A9: PCN1 | B9: South One Newham | D9: =SUM(IF($A9=$A$22:$A$26,D$22:D$26)) -> 0 | F9: =SUM(IF($A9=$A$22:$A$26,F$22:F$26)) -> 0 | G9: =SUM(IF($A9=$A$22:$A$26,G$22:G$26)) -> 0 | H9: =IFERROR(G9/F9,"-") -> - | I9: =SUM(IF($A9=$A$22:$A$26,I$22:I$26)) -> 0 | J9: =SUM(IF($A9=$A$22:$A$26,J$22:J$26)) -> 0 | K9: =J9/I9 ->  | L9: =SUM(IF($A9=$A$22:$A$26,L$22:L$26)) -> 0 | M9: =SUM(IF($A9=$A$22:$A$26,M$22:M$26)) -> 0 | N9: =M9/L9 ->  | P9: =SUM(IF($A9=$A$22:$A$26,P$22:P$26)) -> 0 | Q9: =SUM(IF($A9=$A$22:$A$26,Q$22:Q$26)) -> 0 | R9: =Q9/P9 ->  | S9: =SUM(IF($A9=$A$22:$A$26,S$22:S$26)) -> 0 | T9: =S9/Q9 ->  | V9: =SUM(IF($A9=$A$22:$A$26,V$22:V$26)) -> 0 | W9: =SUM(IF($A9=$A$22:$A$26,W$22:W$26)) -> 0 | X9: =SUM(IF($A9=$A$22:$A$26,X$22:X$26)) -> 0 | Y9: =X9/W9 ->  | Z9: =SUM(IF($A9=$A$22:$A$26,Z$22:Z$26)) -> 0 | AA9: =SUM(IF($A9=$A$22:$A$26,AA$22:AA$26)) -> 0 | AB9: =AA9/Z9 ->  | AC9: =SUM(IF($A9=$A$22:$A$26,AC$22:AC$26)) -> 0 | AD9: =SUM(IF($A9=$A$22:$A$26,AD$22:AD$26)) -> 0 | AE9: =AD9/AC9 ->  | AF9: =SUM(IF($A9=$A$22:$A$26,AF$22:AF$26)) -> 0 | AG9: =SUM(IF($A9=$A$22:$A$26,AG$22:AG$26)) -> 0 | AH9: =AG9/AF9 ->  | AK9: =SUM(IF($A9=$A$22:$A$26,AK$22:AK$26)) -> 0 | AL9: =SUM(IF($A9=$A$22:$A$26,AL$22:AL$26)) -> 0 | AM9: =AL9/AK9 ->  | AN9: =SUM(IF($A9=$A$22:$A$26,AN$22:AN$26)) -> 0 | AO9: =SUM(IF($A9=$A$22:$A$26,AO$22:AO$26)) -> 0 | AP9: =SUM(IF($A9=$A$22:$A$26,AP$22:AP$26)) -> 0 | AR9: =SUM(IF($A9=$A$22:$A$26,AR$22:AR$26)) -> 0 | AT9: =SUM(IF($A9=$A$22:$A$26,AT$22:AT$26)) -> 0 | AU9: =SUM(IF($A9=$A$22:$A$26,AU$22:AU$26)) -> 0 | AV9: =AU9/AT9 ->  | AX9: =SUM(IF($A9=$A$22:$A$26,AX$22:AX$26)) -> 0 | AY9: =SUM(IF($A9=$A$22:$A$26,AY$22:AY$26)) -> 0 | AZ9: =AY9/AX9 -> 
A10: PCN2 | B10: Central 1 | D10: =SUM(IF($A10=$A$22:$A$26,D$22:D$26)) -> 0 | F10: =SUM(IF($A10=$A$22:$A$26,F$22:F$26)) -> 0 | G10: =SUM(IF($A10=$A$22:$A$26,G$22:G$26)) -> 0 | H10: =IFERROR(G10/F10,"-") -> - | I10: =SUM(IF($A10=$A$22:$A$26,I$22:I$26)) -> 0 | J10: =SUM(IF($A10=$A$22:$A$26,J$22:J$26)) -> 0 | K10: =J10/I10 ->  | L10: =SUM(IF($A10=$A$22:$A$26,L$22:L$26)) -> 0 | M10: =SUM(IF($A10=$A$22:$A$26,M$22:M$26)) -> 0 | N10: =M10/L10 ->  | P10: =SUM(IF($A10=$A$22:$A$26,P$22:P$26)) -> 0 | Q10: =SUM(IF($A10=$A$22:$A$26,Q$22:Q$26)) -> 0 | R10: =Q10/P10 ->  | S10: =SUM(IF($A10=$A$22:$A$26,S$22:S$26)) -> 0 | T10: =S10/Q10 ->  | V10: =SUM(IF($A10=$A$22:$A$26,V$22:V$26)) -> 0 | W10: =SUM(IF($A10=$A$22:$A$26,W$22:W$26)) -> 0 | X10: =SUM(IF($A10=$A$22:$A$26,X$22:X$26)) -> 0 | Y10: =X10/W10 ->  | Z10: =SUM(IF($A10=$A$22:$A$26,Z$22:Z$26)) -> 0 | AA10: =SUM(IF($A10=$A$22:$A$26,AA$22:AA$26)) -> 0 | AB10: =AA10/Z10 ->  | AC10: =SUM(IF($A10=$A$22:$A$26,AC$22:AC$26)) -> 0 | AD10: =SUM(IF($A10=$A$22:$A$26,AD$22:AD$26)) -> 0 | AE10: =AD10/AC10 ->  | AF10: =SUM(IF($A10=$A$22:$A$26,AF$22:AF$26)) -> 0 | AG10: =SUM(IF($A10=$A$22:$A$26,AG$22:AG$26)) -> 0 | AH10: =AG10/AF10 ->  | AK10: =SUM(IF($A10=$A$22:$A$26,AK$22:AK$26)) -> 0 | AL10: =SUM(IF($A10=$A$22:$A$26,AL$22:AL$26)) -> 0 | AM10: =AL10/AK10 ->  | AN10: =SUM(IF($A10=$A$22:$A$26,AN$22:AN$26)) -> 0 | AO10: =SUM(IF($A10=$A$22:$A$26,AO$22:AO$26)) -> 0 | AP10: =SUM(IF($A10=$A$22:$A$26,AP$22:AP$26)) -> 0 | AR10: =SUM(IF($A10=$A$22:$A$26,AR$22:AR$26)) -> 0 | AT10: =SUM(IF($A10=$A$22:$A$26,AT$22:AT$26)) -> 0 | AU10: =SUM(IF($A10=$A$22:$A$26,AU$22:AU$26)) -> 0 | AV10: =AU10/AT10 ->  | AX10: =SUM(IF($A10=$A$22:$A$26,AX$22:AX$26)) -> 0 | AY10: =SUM(IF($A10=$A$22:$A$26,AY$22:AY$26)) -> 0 | AZ10: =AY10/AX10 -> 
A11: PCN3 | B11: Newham Central | D11: =SUM(IF($A11=$A$22:$A$26,D$22:D$26)) -> 12555 | F11: =SUM(IF($A11=$A$22:$A$26,F$22:F$26)) -> 182 | G11: =SUM(IF($A11=$A$22:$A$26,G$22:G$26)) -> 154 | H11: 0.8461538462 | I11: =SUM(IF($A11=$A$22:$A$26,I$22:I$26)) -> 117 | J11: =SUM(IF($A11=$A$22:$A$26,J$22:J$26)) -> 96 | K11: 0.8205128205 | L11: =SUM(IF($A11=$A$22:$A$26,L$22:L$26)) -> 126 | M11: =SUM(IF($A11=$A$22:$A$26,M$22:M$26)) -> 101 | N11: 0.8015873016 | P11: =SUM(IF($A11=$A$22:$A$26,P$22:P$26)) -> 191 | Q11: =SUM(IF($A11=$A$22:$A$26,Q$22:Q$26)) -> 166 | R11: 0.8691099476 | S11: =SUM(IF($A11=$A$22:$A$26,S$22:S$26)) -> 99 | T11: 0.5963855422 | V11: =SUM(IF($A11=$A$22:$A$26,V$22:V$26)) -> 720 | W11: =SUM(IF($A11=$A$22:$A$26,W$22:W$26)) -> 426 | X11: =SUM(IF($A11=$A$22:$A$26,X$22:X$26)) -> 154 | Y11: 0.3615023474 | Z11: =SUM(IF($A11=$A$22:$A$26,Z$22:Z$26)) -> 545 | AA11: =SUM(IF($A11=$A$22:$A$26,AA$22:AA$26)) -> 429 | AB11: 0.7871559633 | AC11: =SUM(IF($A11=$A$22:$A$26,AC$22:AC$26)) -> 496 | AD11: =SUM(IF($A11=$A$22:$A$26,AD$22:AD$26)) -> 311 | AE11: 0.627016129 | AF11: =SUM(IF($A11=$A$22:$A$26,AF$22:AF$26)) -> 539 | AG11: =SUM(IF($A11=$A$22:$A$26,AG$22:AG$26)) -> 404 | AH11: 0.7495361781 | AK11: =SUM(IF($A11=$A$22:$A$26,AK$22:AK$26)) -> 30 | AL11: =SUM(IF($A11=$A$22:$A$26,AL$22:AL$26)) -> 0 | AM11: 0 | AN11: =SUM(IF($A11=$A$22:$A$26,AN$22:AN$26)) -> 0 | AO11: =SUM(IF($A11=$A$22:$A$26,AO$22:AO$26)) -> 11 | AP11: =SUM(IF($A11=$A$22:$A$26,AP$22:AP$26)) -> 9 | AR11: =SUM(IF($A11=$A$22:$A$26,AR$22:AR$26)) -> 12 | AT11: =SUM(IF($A11=$A$22:$A$26,AT$22:AT$26)) -> 172 | AU11: =SUM(IF($A11=$A$22:$A$26,AU$22:AU$26)) -> 33 | AV11: 0.1918604651 | AX11: =SUM(IF($A11=$A$22:$A$26,AX$22:AX$26)) -> 54 | AY11: =SUM(IF($A11=$A$22:$A$26,AY$22:AY$26)) -> 45 | AZ11: 0.8333333333
A12: PCN4 | B12: North East 1 | D12: =SUM(IF($A12=$A$22:$A$26,D$22:D$26)) -> 0 | F12: =SUM(IF($A12=$A$22:$A$26,F$22:F$26)) -> 0 | G12: =SUM(IF($A12=$A$22:$A$26,G$22:G$26)) -> 0 | H12: =IFERROR(G12/F12,"-") -> - | I12: =SUM(IF($A12=$A$22:$A$26,I$22:I$26)) -> 0 | J12: =SUM(IF($A12=$A$22:$A$26,J$22:J$26)) -> 0 | K12: =J12/I12 ->  | L12: =SUM(IF($A12=$A$22:$A$26,L$22:L$26)) -> 0 | M12: =SUM(IF($A12=$A$22:$A$26,M$22:M$26)) -> 0 | N12: =M12/L12 ->  | P12: =SUM(IF($A12=$A$22:$A$26,P$22:P$26)) -> 0 | Q12: =SUM(IF($A12=$A$22:$A$26,Q$22:Q$26)) -> 0 | R12: =Q12/P12 ->  | S12: =SUM(IF($A12=$A$22:$A$26,S$22:S$26)) -> 0 | T12: =S12/Q12 ->  | V12: =SUM(IF($A12=$A$22:$A$26,V$22:V$26)) -> 0 | W12: =SUM(IF($A12=$A$22:$A$26,W$22:W$26)) -> 0 | X12: =SUM(IF($A12=$A$22:$A$26,X$22:X$26)) -> 0 | Y12: =X12/W12 ->  | Z12: =SUM(IF($A12=$A$22:$A$26,Z$22:Z$26)) -> 0 | AA12: =SUM(IF($A12=$A$22:$A$26,AA$22:AA$26)) -> 0 | AB12: =AA12/Z12 ->  | AC12: =SUM(IF($A12=$A$22:$A$26,AC$22:AC$26)) -> 0 | AD12: =SUM(IF($A12=$A$22:$A$26,AD$22:AD$26)) -> 0 | AE12: =AD12/AC12 ->  | AF12: =SUM(IF($A12=$A$22:$A$26,AF$22:AF$26)) -> 0 | AG12: =SUM(IF($A12=$A$22:$A$26,AG$22:AG$26)) -> 0 | AH12: =AG12/AF12 ->  | AK12: =SUM(IF($A12=$A$22:$A$26,AK$22:AK$26)) -> 0 | AL12: =SUM(IF($A12=$A$22:$A$26,AL$22:AL$26)) -> 0 | AM12: =AL12/AK12 ->  | AN12: =SUM(IF($A12=$A$22:$A$26,AN$22:AN$26)) -> 0 | AO12: =SUM(IF($A12=$A$22:$A$26,AO$22:AO$26)) -> 0 | AP12: =SUM(IF($A12=$A$22:$A$26,AP$22:AP$26)) -> 0 | AR12: =SUM(IF($A12=$A$22:$A$26,AR$22:AR$26)) -> 0 | AT12: =SUM(IF($A12=$A$22:$A$26,AT$22:AT$26)) -> 0 | AU12: =SUM(IF($A12=$A$22:$A$26,AU$22:AU$26)) -> 0 | AV12: =AU12/AT12 ->  | AX12: =SUM(IF($A12=$A$22:$A$26,AX$22:AX$26)) -> 0 | AY12: =SUM(IF($A12=$A$22:$A$26,AY$22:AY$26)) -> 0 | AZ12: =AY12/AX12 -> 
A13: PCN5 | B13: North East 2 | D13: =SUM(IF($A13=$A$22:$A$26,D$22:D$26)) -> 0 | F13: =SUM(IF($A13=$A$22:$A$26,F$22:F$26)) -> 0 | G13: =SUM(IF($A13=$A$22:$A$26,G$22:G$26)) -> 0 | H13: - | I13: =SUM(IF($A13=$A$22:$A$26,I$22:I$26)) -> 0 | J13: =SUM(IF($A13=$A$22:$A$26,J$22:J$26)) -> 0 | L13: =SUM(IF($A13=$A$22:$A$26,L$22:L$26)) -> 0 | M13: =SUM(IF($A13=$A$22:$A$26,M$22:M$26)) -> 0 | P13: =SUM(IF($A13=$A$22:$A$26,P$22:P$26)) -> 0 | Q13: =SUM(IF($A13=$A$22:$A$26,Q$22:Q$26)) -> 0 | S13: =SUM(IF($A13=$A$22:$A$26,S$22:S$26)) -> 0 | V13: =SUM(IF($A13=$A$22:$A$26,V$22:V$26)) -> 0 | W13: =SUM(IF($A13=$A$22:$A$26,W$22:W$26)) -> 0 | X13: =SUM(IF($A13=$A$22:$A$26,X$22:X$26)) -> 0 | Z13: =SUM(IF($A13=$A$22:$A$26,Z$22:Z$26)) -> 0 | AA13: =SUM(IF($A13=$A$22:$A$26,AA$22:AA$26)) -> 0 | AC13: =SUM(IF($A13=$A$22:$A$26,AC$22:AC$26)) -> 0 | AD13: =SUM(IF($A13=$A$22:$A$26,AD$22:AD$26)) -> 0 | AF13: =SUM(IF($A13=$A$22:$A$26,AF$22:AF$26)) -> 0 | AG13: =SUM(IF($A13=$A$22:$A$26,AG$22:AG$26)) -> 0 | AK13: =SUM(IF($A13=$A$22:$A$26,AK$22:AK$26)) -> 0 | AL13: =SUM(IF($A13=$A$22:$A$26,AL$22:AL$26)) -> 0 | AN13: =SUM(IF($A13=$A$22:$A$26,AN$22:AN$26)) -> 0 | AO13: =SUM(IF($A13=$A$22:$A$26,AO$22:AO$26)) -> 0 | AP13: =SUM(IF($A13=$A$22:$A$26,AP$22:AP$26)) -> 0 | AR13: =SUM(IF($A13=$A$22:$A$26,AR$22:AR$26)) -> 0 | AT13: =SUM(IF($A13=$A$22:$A$26,AT$22:AT$26)) -> 0 | AU13: =SUM(IF($A13=$A$22:$A$26,AU$22:AU$26)) -> 0 | AX13: =SUM(IF($A13=$A$22:$A$26,AX$22:AX$26)) -> 0 | AY13: =SUM(IF($A13=$A$22:$A$26,AY$22:AY$26)) -> 0
A14: PCN6 | B14: North Newham | D14: =SUM(IF($A14=$A$22:$A$26,D$22:D$26)) -> 0 | F14: =SUM(IF($A14=$A$22:$A$26,F$22:F$26)) -> 0 | G14: =SUM(IF($A14=$A$22:$A$26,G$22:G$26)) -> 0 | H14: - | I14: =SUM(IF($A14=$A$22:$A$26,I$22:I$26)) -> 0 | J14: =SUM(IF($A14=$A$22:$A$26,J$22:J$26)) -> 0 | L14: =SUM(IF($A14=$A$22:$A$26,L$22:L$26)) -> 0 | M14: =SUM(IF($A14=$A$22:$A$26,M$22:M$26)) -> 0 | P14: =SUM(IF($A14=$A$22:$A$26,P$22:P$26)) -> 0 | Q14: =SUM(IF($A14=$A$22:$A$26,Q$22:Q$26)) -> 0 | S14: =SUM(IF($A14=$A$22:$A$26,S$22:S$26)) -> 0 | V14: =SUM(IF($A14=$A$22:$A$26,V$22:V$26)) -> 0 | W14: =SUM(IF($A14=$A$22:$A$26,W$22:W$26)) -> 0 | X14: =SUM(IF($A14=$A$22:$A$26,X$22:X$26)) -> 0 | Z14: =SUM(IF($A14=$A$22:$A$26,Z$22:Z$26)) -> 0 | AA14: =SUM(IF($A14=$A$22:$A$26,AA$22:AA$26)) -> 0 | AC14: =SUM(IF($A14=$A$22:$A$26,AC$22:AC$26)) -> 0 | AD14: =SUM(IF($A14=$A$22:$A$26,AD$22:AD$26)) -> 0 | AF14: =SUM(IF($A14=$A$22:$A$26,AF$22:AF$26)) -> 0 | AG14: =SUM(IF($A14=$A$22:$A$26,AG$22:AG$26)) -> 0 | AK14: =SUM(IF($A14=$A$22:$A$26,AK$22:AK$26)) -> 0 | AL14: =SUM(IF($A14=$A$22:$A$26,AL$22:AL$26)) -> 0 | AN14: =SUM(IF($A14=$A$22:$A$26,AN$22:AN$26)) -> 0 | AO14: =SUM(IF($A14=$A$22:$A$26,AO$22:AO$26)) -> 0 | AP14: =SUM(IF($A14=$A$22:$A$26,AP$22:AP$26)) -> 0 | AR14: =SUM(IF($A14=$A$22:$A$26,AR$22:AR$26)) -> 0 | AT14: =SUM(IF($A14=$A$22:$A$26,AT$22:AT$26)) -> 0 | AU14: =SUM(IF($A14=$A$22:$A$26,AU$22:AU$26)) -> 0 | AX14: =SUM(IF($A14=$A$22:$A$26,AX$22:AX$26)) -> 0 | AY14: =SUM(IF($A14=$A$22:$A$26,AY$22:AY$26)) -> 0
A15: PCN7 | B15: Leaside | D15: =SUM(IF($A15=$A$22:$A$26,D$22:D$26)) -> 36226 | F15: =SUM(IF($A15=$A$22:$A$26,F$22:F$26)) -> 467 | G15: =SUM(IF($A15=$A$22:$A$26,G$22:G$26)) -> 401 | H15: 0.8586723769 | I15: =SUM(IF($A15=$A$22:$A$26,I$22:I$26)) -> 395 | J15: =SUM(IF($A15=$A$22:$A$26,J$22:J$26)) -> 342 | K15: 0.8658227848 | L15: =SUM(IF($A15=$A$22:$A$26,L$22:L$26)) -> 405 | M15: =SUM(IF($A15=$A$22:$A$26,M$22:M$26)) -> 317 | N15: 0.7827160494 | P15: =SUM(IF($A15=$A$22:$A$26,P$22:P$26)) -> 430 | Q15: =SUM(IF($A15=$A$22:$A$26,Q$22:Q$26)) -> 399 | R15: 0.9279069767 | S15: =SUM(IF($A15=$A$22:$A$26,S$22:S$26)) -> 318 | T15: 0.7969924812 | V15: =SUM(IF($A15=$A$22:$A$26,V$22:V$26)) -> 1137 | W15: =SUM(IF($A15=$A$22:$A$26,W$22:W$26)) -> 933 | X15: =SUM(IF($A15=$A$22:$A$26,X$22:X$26)) -> 378 | Y15: 0.4051446945 | Z15: =SUM(IF($A15=$A$22:$A$26,Z$22:Z$26)) -> 1015 | AA15: =SUM(IF($A15=$A$22:$A$26,AA$22:AA$26)) -> 840 | AB15: 0.8275862069 | AC15: =SUM(IF($A15=$A$22:$A$26,AC$22:AC$26)) -> 1003 | AD15: =SUM(IF($A15=$A$22:$A$26,AD$22:AD$26)) -> 639 | AE15: 0.6370887338 | AF15: =SUM(IF($A15=$A$22:$A$26,AF$22:AF$26)) -> 990 | AG15: =SUM(IF($A15=$A$22:$A$26,AG$22:AG$26)) -> 701 | AH15: 0.7080808081 | AK15: =SUM(IF($A15=$A$22:$A$26,AK$22:AK$26)) -> 98 | AL15: =SUM(IF($A15=$A$22:$A$26,AL$22:AL$26)) -> 40 | AM15: 0.4081632653 | AN15: =SUM(IF($A15=$A$22:$A$26,AN$22:AN$26)) -> 43 | AO15: =SUM(IF($A15=$A$22:$A$26,AO$22:AO$26)) -> 72 | AP15: =SUM(IF($A15=$A$22:$A$26,AP$22:AP$26)) -> 66 | AR15: =SUM(IF($A15=$A$22:$A$26,AR$22:AR$26)) -> 191 | AT15: =SUM(IF($A15=$A$22:$A$26,AT$22:AT$26)) -> 375 | AU15: =SUM(IF($A15=$A$22:$A$26,AU$22:AU$26)) -> 92 | AV15: 0.2453333333 | AX15: =SUM(IF($A15=$A$22:$A$26,AX$22:AX$26)) -> 94 | AY15: =SUM(IF($A15=$A$22:$A$26,AY$22:AY$26)) -> 24 | AZ15: 0.2553191489
A16: PCN8 | B16: Stratford | D16: =SUM(IF($A16=$A$22:$A$26,D$22:D$26)) -> 4287 | F16: =SUM(IF($A16=$A$22:$A$26,F$22:F$26)) -> 42 | G16: =SUM(IF($A16=$A$22:$A$26,G$22:G$26)) -> 30 | H16: =IFERROR(G16/F16,"-") -> 0.7142857143 | I16: =SUM(IF($A16=$A$22:$A$26,I$22:I$26)) -> 39 | J16: =SUM(IF($A16=$A$22:$A$26,J$22:J$26)) -> 29 | K16: =J16/I16 -> 0.7435897436 | L16: =SUM(IF($A16=$A$22:$A$26,L$22:L$26)) -> 46 | M16: =SUM(IF($A16=$A$22:$A$26,M$22:M$26)) -> 35 | N16: =M16/L16 -> 0.7608695652 | P16: =SUM(IF($A16=$A$22:$A$26,P$22:P$26)) -> 25 | Q16: =SUM(IF($A16=$A$22:$A$26,Q$22:Q$26)) -> 23 | R16: =Q16/P16 -> 0.92 | S16: =SUM(IF($A16=$A$22:$A$26,S$22:S$26)) -> 19 | T16: =S16/Q16 -> 0.8260869565 | V16: =SUM(IF($A16=$A$22:$A$26,V$22:V$26)) -> 328 | W16: =SUM(IF($A16=$A$22:$A$26,W$22:W$26)) -> 263 | X16: =SUM(IF($A16=$A$22:$A$26,X$22:X$26)) -> 76 | Y16: =X16/W16 -> 0.288973384 | Z16: =SUM(IF($A16=$A$22:$A$26,Z$22:Z$26)) -> 285 | AA16: =SUM(IF($A16=$A$22:$A$26,AA$22:AA$26)) -> 199 | AB16: =AA16/Z16 -> 0.698245614 | AC16: =SUM(IF($A16=$A$22:$A$26,AC$22:AC$26)) -> 294 | AD16: =SUM(IF($A16=$A$22:$A$26,AD$22:AD$26)) -> 173 | AE16: =AD16/AC16 -> 0.5884353741 | AF16: =SUM(IF($A16=$A$22:$A$26,AF$22:AF$26)) -> 286 | AG16: =SUM(IF($A16=$A$22:$A$26,AG$22:AG$26)) -> 182 | AH16: =AG16/AF16 -> 0.6363636364 | AK16: =SUM(IF($A16=$A$22:$A$26,AK$22:AK$26)) -> 35 | AL16: =SUM(IF($A16=$A$22:$A$26,AL$22:AL$26)) -> 0 | AM16: =AL16/AK16 -> 0 | AN16: =SUM(IF($A16=$A$22:$A$26,AN$22:AN$26)) -> 1 | AO16: =SUM(IF($A16=$A$22:$A$26,AO$22:AO$26)) -> 19 | AP16: =SUM(IF($A16=$A$22:$A$26,AP$22:AP$26)) -> 32 | AR16: =SUM(IF($A16=$A$22:$A$26,AR$22:AR$26)) -> 30 | AT16: =SUM(IF($A16=$A$22:$A$26,AT$22:AT$26)) -> 111 | AU16: =SUM(IF($A16=$A$22:$A$26,AU$22:AU$26)) -> 22 | AV16: =AU16/AT16 -> 0.1981981982 | AX16: =SUM(IF($A16=$A$22:$A$26,AX$22:AX$26)) -> 11 | AY16: =SUM(IF($A16=$A$22:$A$26,AY$22:AY$26)) -> 10 | AZ16: =AY16/AX16 -> 0.9090909091
A17: PCN9 | B17: North West 2 | D17: =SUM(IF($A17=$A$22:$A$26,D$22:D$26)) -> 0 | F17: =SUM(IF($A17=$A$22:$A$26,F$22:F$26)) -> 0 | G17: =SUM(IF($A17=$A$22:$A$26,G$22:G$26)) -> 0 | H17: - | I17: =SUM(IF($A17=$A$22:$A$26,I$22:I$26)) -> 0 | J17: =SUM(IF($A17=$A$22:$A$26,J$22:J$26)) -> 0 | L17: =SUM(IF($A17=$A$22:$A$26,L$22:L$26)) -> 0 | M17: =SUM(IF($A17=$A$22:$A$26,M$22:M$26)) -> 0 | P17: =SUM(IF($A17=$A$22:$A$26,P$22:P$26)) -> 0 | Q17: =SUM(IF($A17=$A$22:$A$26,Q$22:Q$26)) -> 0 | S17: =SUM(IF($A17=$A$22:$A$26,S$22:S$26)) -> 0 | V17: =SUM(IF($A17=$A$22:$A$26,V$22:V$26)) -> 0 | W17: =SUM(IF($A17=$A$22:$A$26,W$22:W$26)) -> 0 | X17: =SUM(IF($A17=$A$22:$A$26,X$22:X$26)) -> 0 | Z17: =SUM(IF($A17=$A$22:$A$26,Z$22:Z$26)) -> 0 | AA17: =SUM(IF($A17=$A$22:$A$26,AA$22:AA$26)) -> 0 | AC17: =SUM(IF($A17=$A$22:$A$26,AC$22:AC$26)) -> 0 | AD17: =SUM(IF($A17=$A$22:$A$26,AD$22:AD$26)) -> 0 | AF17: =SUM(IF($A17=$A$22:$A$26,AF$22:AF$26)) -> 0 | AG17: =SUM(IF($A17=$A$22:$A$26,AG$22:AG$26)) -> 0 | AK17: =SUM(IF($A17=$A$22:$A$26,AK$22:AK$26)) -> 0 | AL17: =SUM(IF($A17=$A$22:$A$26,AL$22:AL$26)) -> 0 | AN17: =SUM(IF($A17=$A$22:$A$26,AN$22:AN$26)) -> 0 | AO17: =SUM(IF($A17=$A$22:$A$26,AO$22:AO$26)) -> 0 | AP17: =SUM(IF($A17=$A$22:$A$26,AP$22:AP$26)) -> 0 | AR17: =SUM(IF($A17=$A$22:$A$26,AR$22:AR$26)) -> 0 | AT17: =SUM(IF($A17=$A$22:$A$26,AT$22:AT$26)) -> 0 | AU17: =SUM(IF($A17=$A$22:$A$26,AU$22:AU$26)) -> 0 | AX17: =SUM(IF($A17=$A$22:$A$26,AX$22:AX$26)) -> 0 | AY17: =SUM(IF($A17=$A$22:$A$26,AY$22:AY$26)) -> 0
A18: PCN10 | B18: Docklands | D18: =SUM(IF($A18=$A$22:$A$26,D$22:D$26)) -> 18726 | F18: =SUM(IF($A18=$A$22:$A$26,F$22:F$26)) -> 316 | G18: =SUM(IF($A18=$A$22:$A$26,G$22:G$26)) -> 293 | H18: 0.9272151899 | I18: =SUM(IF($A18=$A$22:$A$26,I$22:I$26)) -> 292 | J18: =SUM(IF($A18=$A$22:$A$26,J$22:J$26)) -> 279 | K18: 0.9554794521 | L18: =SUM(IF($A18=$A$22:$A$26,L$22:L$26)) -> 239 | M18: =SUM(IF($A18=$A$22:$A$26,M$22:M$26)) -> 210 | N18: 0.8786610879 | P18: =SUM(IF($A18=$A$22:$A$26,P$22:P$26)) -> 350 | Q18: =SUM(IF($A18=$A$22:$A$26,Q$22:Q$26)) -> 316 | R18: 0.9028571429 | S18: =SUM(IF($A18=$A$22:$A$26,S$22:S$26)) -> 266 | T18: 0.8417721519 | V18: =SUM(IF($A18=$A$22:$A$26,V$22:V$26)) -> 433 | W18: =SUM(IF($A18=$A$22:$A$26,W$22:W$26)) -> 341 | X18: =SUM(IF($A18=$A$22:$A$26,X$22:X$26)) -> 97 | Y18: 0.284457478 | Z18: =SUM(IF($A18=$A$22:$A$26,Z$22:Z$26)) -> 377 | AA18: =SUM(IF($A18=$A$22:$A$26,AA$22:AA$26)) -> 242 | AB18: 0.6419098143 | AC18: =SUM(IF($A18=$A$22:$A$26,AC$22:AC$26)) -> 368 | AD18: =SUM(IF($A18=$A$22:$A$26,AD$22:AD$26)) -> 199 | AE18: 0.5407608696 | AF18: =SUM(IF($A18=$A$22:$A$26,AF$22:AF$26)) -> 367 | AG18: =SUM(IF($A18=$A$22:$A$26,AG$22:AG$26)) -> 224 | AH18: 0.6103542234 | AK18: =SUM(IF($A18=$A$22:$A$26,AK$22:AK$26)) -> 46 | AL18: =SUM(IF($A18=$A$22:$A$26,AL$22:AL$26)) -> 0 | AM18: 0 | AN18: =SUM(IF($A18=$A$22:$A$26,AN$22:AN$26)) -> 2 | AO18: =SUM(IF($A18=$A$22:$A$26,AO$22:AO$26)) -> 22 | AP18: =SUM(IF($A18=$A$22:$A$26,AP$22:AP$26)) -> 6 | AR18: =SUM(IF($A18=$A$22:$A$26,AR$22:AR$26)) -> 56 | AT18: =SUM(IF($A18=$A$22:$A$26,AT$22:AT$26)) -> 202 | AU18: =SUM(IF($A18=$A$22:$A$26,AU$22:AU$26)) -> 41 | AV18: 0.202970297 | AX18: =SUM(IF($A18=$A$22:$A$26,AX$22:AX$26)) -> 13 | AY18: =SUM(IF($A18=$A$22:$A$26,AY$22:AY$26)) -> 11 | AZ18: 0.8461538462
A19: No PCN | B19: No PCN | D19: =SUM(IF($A19=$A$22:$A$26,D$22:D$26)) -> 0 | F19: - | G19: - | H19: - | I19: - | J19: - | K19: - | L19: - | M19: - | N19: - | P19: - | Q19: - | R19: - | S19: - | T19: - | V19: - | W19: - | X19: - | Y19: - | Z19: - | AA19: - | AB19: - | AC19: - | AD19: - | AE19: - | AF19: - | AG19: - | AH19: - | AK19: - | AL19: - | AM19: - | AN19: - | AO19: - | AP19: - | AR19: - | AT19: - | AU19: - | AV19: - | AX19: - | AY19: - | AZ19: -
B20: Total PMS | D20: =SUM(D9:D18) -> 71794 | F20: =SUM(F9:F18) -> 1007 | G20: =SUM(G9:G18) -> 878 | H20: =G20/F20 -> 0.8718967229 | I20: =SUM(I9:I18) -> 843 | J20: =SUM(J9:J18) -> 746 | K20: =J20/I20 -> 0.8849347568 | L20: =SUM(L9:L18) -> 816 | M20: =SUM(M9:M18) -> 663 | N20: =M20/L20 -> 0.8125 | P20: =SUM(P9:P18) -> 996 | Q20: =SUM(Q9:Q18) -> 904 | R20: =Q20/P20 -> 0.9076305221 | S20: =SUM(S9:S18) -> 702 | T20: =S20/Q20 -> 0.7765486726 | V20: =SUM(V9:V18) -> 2618 | W20: =SUM(W9:W18) -> 1963 | X20: =SUM(X9:X18) -> 705 | Y20: =X20/W20 -> 0.3591441671 | Z20: =SUM(Z9:Z18) -> 2222 | AA20: =SUM(AA9:AA18) -> 1710 | AB20: =AA20/Z20 -> 0.7695769577 | AC20: =SUM(AC9:AC18) -> 2161 | AD20: =SUM(AD9:AD18) -> 1322 | AE20: =AD20/AC20 -> 0.6117538177 | AF20: =SUM(AF9:AF18) -> 2182 | AG20: =SUM(AG9:AG18) -> 1511 | AH20: =AG20/AF20 -> 0.6924839597 | AK20: =SUM(AK9:AK16) -> 163 | AL20: =SUM(AL9:AL16) -> 40 | AM20: =AL20/AK20 -> 0.245398773 | AN20: =SUM(AN9:AN16) -> 44 | AO20: =SUM(AO9:AO16) -> 102 | AP20: =SUM(AP9:AP16) -> 107 | AR20: =SUM(AR9:AR16) -> 233 | AT20: =SUM(AT9:AT16) -> 658 | AU20: =SUM(AU9:AU16) -> 147 | AV20: =AU20/AT20 -> 0.2234042553 | AX20: =SUM(AX9:AX16) -> 159 | AY20: =SUM(AY9:AY16) -> 79 | AZ20: =AY20/AX20 -> 0.4968553459
A21: Practices
A22: ='Control Panel'!I30 -> PCN3 | B22: =VLOOKUP(C22,PracticeTABLE1[[Practice ID]:[Practice]],2,FALSE) -> Lucas Avenue Surgery | C22: ='Control Panel'!H30 -> F84642 | D22: =SUMIFS(OFFSET(REL_D,,MATCH(D$6,IND,0)-2),REL_D,$C$3,OrgID,$C22) -> 12555 | F22: =SUMIFS(OFFSET(REL_D,,MATCH(F$6,IND,0)-2),REL_D,$C$3,OrgID,$C22) -> 182 | G22: 154 | H22: =G22/F22 -> 0.8461538462 | I22: =SUMIFS(OFFSET(REL_D,,MATCH(I$6,IND,0)-2),REL_D,$C$3,OrgID,$C22) -> 117 | J22: 96 | K22: =J22/I22 -> 0.8205128205 | L22: =SUMIFS(OFFSET(REL_D,,MATCH(L$6,IND,0)-2),REL_D,$C$3,OrgID,$C22) -> 126 | M22: 101 | N22: =M22/L22 -> 0.8015873016 | P22: =SUMIFS(OFFSET(REL_D,,MATCH(P$6,IND,0)-2),REL_D,$C$3,OrgID,$C22) -> 191 | Q22: 166 | R22: =Q22/P22 -> 0.8691099476 | S22: =SUMIFS(OFFSET(REL_D,,MATCH(S$6,IND,0)-2),REL_D,$C$3,OrgID,$C22) -> 99 | T22: =S22/Q22 -> 0.5963855422 | V22: =SUMIFS(OFFSET(REL_D,,MATCH(V$6,IND,0)-2),REL_D,$C$3,OrgID,$C22) -> 720 | W22: 426 | X22: 154 | Y22: =X22/W22 -> 0.3615023474 | Z22: =SUMIFS(OFFSET(REL_D,,MATCH(Z$6,IND,0)-2),REL_D,$C$3,OrgID,$C22) -> 545 | AA22: 429 | AB22: =AA22/Z22 -> 0.7871559633 | AC22: =SUMIFS(OFFSET(REL_D,,MATCH(AC$6,IND,0)-2),REL_D,$C$3,OrgID,$C22) -> 496 | AD22: 311 | AE22: =AD22/AC22 -> 0.627016129 | AF22: =SUMIFS(OFFSET(REL_D,,MATCH(AF$6,IND,0)-2),REL_D,$C$3,OrgID,$C22) -> 539 | AG22: 404 | AH22: =AG22/AF22 -> 0.7495361781 | AK22: =SUMIFS(OFFSET(REL_D,,MATCH(AK$6,IND,0)-2),REL_D,$C$3,OrgID,$C22) -> 30 | AL22: 0 | AM22: =AL22/AK22 -> 0 | AN22: =SUMIFS(OFFSET(REL_D,,MATCH(AN$6,IND,0)-2),REL_D,$C$3,OrgID,$C22) -> 0 | AO22: 11 | AP22: 9 | AR22: =SUMIFS(OFFSET(REL_D,,MATCH(AR$6,IND,0)-2),REL_D,$C$3,OrgID,$C22) -> 12 | AT22: =SUMIFS(OFFSET(REL_D,,MATCH(AT$6,IND,0)-2),REL_D,$C$3,OrgID,$C22) -> 172 | AU22: 33 | AV22: =AU22/AT22 -> 0.1918604651 | AX22: =SUMIFS(OFFSET(REL_D,,MATCH(AX$6,IND,0)-2),REL_D,$C$3,OrgID,$C22) -> 54 | AY22: 45 | AZ22: =AY22/AX22 -> 0.8333333333
A23: ='Control Panel'!I31 -> PCN7 | B23: =VLOOKUP(C23,PracticeTABLE1[[Practice ID]:[Practice]],2,FALSE) -> Carpenters Practice (AT Medics) | C23: ='Control Panel'!H31 -> F84749 | D23: 18704 | F23: 233 | G23: 195 | H23: =G23/F23 -> 0.8369098712 | I23: 200 | J23: 168 | K23: =J23/I23 -> 0.84 | L23: 230 | M23: 176 | N23: =M23/L23 -> 0.7652173913 | P23: 219 | Q23: 201 | R23: =Q23/P23 -> 0.9178082192 | S23: 130 | T23: =S23/Q23 -> 0.6467661692 | V23: 804 | W23: 663 | X23: 252 | Y23: =X23/W23 -> 0.3800904977 | Z23: 714 | AA23: 584 | AB23: =AA23/Z23 -> 0.8179271709 | AC23: 705 | AD23: 422 | AE23: =AD23/AC23 -> 0.5985815603 | AF23: 703 | AG23: 490 | AH23: =AG23/AF23 -> 0.6970128023 | AK23: 55 | AL23: 2 | AM23: =AL23/AK23 -> 0.03636363636 | AN23: 5 | AO23: 32 | AP23: 25 | AR23: 115 | AT23: 304 | AU23: 71 | AV23: =AU23/AT23 -> 0.2335526316 | AX23: 73 | AY23: 3 | AZ23: 0.04109589041
A24: ='Control Panel'!I32 -> PCN7 | B24: =VLOOKUP(C24,PracticeTABLE1[[Practice ID]:[Practice]],2,FALSE) -> Liberty Bridge Road | C24: ='Control Panel'!H32 -> Y04273 | D24: 17522 | F24: 234 | G24: 206 | H24: 0.8803418803 | I24: 195 | J24: 174 | K24: 0.8923076923 | L24: 175 | M24: 141 | N24: 0.8057142857 | P24: 211 | Q24: 198 | R24: 0.9383886256 | S24: 188 | T24: 0.9494949495 | V24: 333 | W24: 270 | X24: 126 | Y24: 0.4666666667 | Z24: 301 | AA24: 256 | AB24: 0.8504983389 | AC24: 298 | AD24: 217 | AE24: 0.7281879195 | AF24: 287 | AG24: 211 | AH24: 0.7351916376 | AK24: 43 | AL24: 38 | AM24: 0.8837209302 | AN24: 38 | AO24: 40 | AP24: 41 | AR24: 76 | AT24: 71 | AU24: 21 | AV24: 0.2957746479 | AX24: 21 | AY24: 21 | AZ24: 1
A25: ='Control Panel'!I33 -> PCN8 | B25: =VLOOKUP(C25,PracticeTABLE1[[Practice ID]:[Practice]],2,FALSE) -> Newham Transitional Team | C25: ='Control Panel'!H33 -> F84740 | D25: 4287 | F25: 42 | G25: 30 | H25: 0.7142857143 | I25: 39 | J25: 29 | K25: 0.7435897436 | L25: 46 | M25: 35 | N25: 0.7608695652 | P25: 25 | Q25: 23 | R25: 0.92 | S25: 19 | T25: 0.8260869565 | V25: 328 | W25: 263 | X25: 76 | Y25: 0.288973384 | Z25: 285 | AA25: 199 | AB25: 0.698245614 | AC25: 294 | AD25: 173 | AE25: 0.5884353741 | AF25: 286 | AG25: 182 | AH25: 0.6363636364 | AK25: 35 | AL25: 0 | AM25: 0 | AN25: 1 | AO25: 19 | AP25: 32 | AR25: 30 | AT25: 111 | AU25: 22 | AV25: 0.1981981982 | AX25: 11 | AY25: 10 | AZ25: 0.9090909091
A26: ='Control Panel'!I34 -> PCN10 | B26: =VLOOKUP(C26,PracticeTABLE1[[Practice ID]:[Practice]],2,FALSE) -> The Practice - Albert Road | C26: ='Control Panel'!H34 -> Y02928 | D26: 18726 | F26: 316 | G26: 293 | H26: 0.9272151899 | I26: 292 | J26: 279 | K26: 0.9554794521 | L26: 239 | M26: 210 | N26: 0.8786610879 | P26: 350 | Q26: 316 | R26: 0.9028571429 | S26: 266 | T26: 0.8417721519 | V26: 433 | W26: 341 | X26: 97 | Y26: 0.284457478 | Z26: 377 | AA26: 242 | AB26: 0.6419098143 | AC26: 368 | AD26: 199 | AE26: 0.5407608696 | AF26: 367 | AG26: 224 | AH26: 0.6103542234 | AK26: 46 | AL26: 0 | AM26: 0 | AN26: 2 | AO26: 22 | AP26: 6 | AR26: 56 | AT26: 202 | AU26: 41 | AV26: 0.202970297 | AX26: 13 | AY26: 11 | AZ26: 0.8461538462

Sheet Report (APMS) old (hidden)
C2: September 2019
B3: Newham | C3: =VLOOKUP(C2,'Control Panel'!H6:I17,2,FALSE) ->  | D3: Newham Transitional Team | F3: F84740
B4: Outcome Measures - APMS | C4: All Patients | D4: =VLOOKUP(C4,'Control Panel'!$E$2:$F$42,2,FALSE) -> All currently registered patients | E4: =SUMIFS(OFFSET(REL_D,,MATCH($C4,IND,0)-2),REL_D,$C$3,OrgID,$F$3) -> 0
B6: Childhood Immunisations - (Band A ≥91% / Band B ≥80% / Band C ≥70% / Band D <70%) | C6: (01) 12 MONTH COHORT | D6: =VLOOKUP(C6,'Control Panel'!$E$2:$F$42,2,FALSE) -> 12 MONTH COHORT | E6: =SUMIFS(OFFSET(REL_D,,MATCH($C6,IND,0)-2),REL_D,$C$3,OrgID,$F$3) -> 0
C7: (01.01) DTaP/IPV/Hib or DTaP/IPV/Hib/HepB | D7: =VLOOKUP(C7,'Control Panel'!$E$2:$F$42,2,FALSE) -> DTaP/IPV/Hib or DTaP/IPV/Hib/HepB (12m) | E7: =SUMIFS(OFFSET(REL_D,,MATCH($C7,IND,0)-2),REL_D,$C$3,OrgID,$F$3) -> 0
D8: ='Control Panel'!F5 -> DTaP/IPV/Hib or DTaP/IPV/Hib/HepB (12m) % | E8: =E7/E6 -> 
C9: (02) 24 MONTH COHORT | D9: =VLOOKUP(C9,'Control Panel'!$E$2:$F$42,2,FALSE) -> 24 MONTH COHORT | E9: =SUMIFS(OFFSET(REL_D,,MATCH($C9,IND,0)-2),REL_D,$C$3,OrgID,$F$3) -> 0
C10: (02.02) MMR | D10: =VLOOKUP(C10,'Control Panel'!$E$2:$F$42,2,FALSE) -> MMR (24m) | E10: =SUMIFS(OFFSET(REL_D,,MATCH($C10,IND,0)-2),REL_D,$C$3,OrgID,$F$3) -> 0
D11: ='Control Panel'!F9 -> MMR (24m) % | E11: =E10/E9 -> 
C12: (03) 5 YEAR COHORT | D12: =VLOOKUP(C12,'Control Panel'!$E$2:$F$42,2,FALSE) -> 5 YEAR COHORT | E12: =SUMIFS(OFFSET(REL_D,,MATCH($C12,IND,0)-2),REL_D,$C$3,OrgID,$F$3) -> 0
C13: (03.03) DTaP/IPV (Booster) | D13: =VLOOKUP(C13,'Control Panel'!$E$2:$F$42,2,FALSE) -> DTaP/IPV (Booster) (5y) | E13: =SUMIFS(OFFSET(REL_D,,MATCH($C13,IND,0)-2),REL_D,$C$3,OrgID,$F$3) -> 0
D14: ='Control Panel'!F12 -> DTaP/IPV (Booster) (5y) % | E14: =E13/E12 -> 
B16: Infant Feeding - (Band A ≥90% / Band B ≥80% / Band C ≥70% / Band D <70%) | C16: Children aged 6 to 10 weeks during the audit period | D16: =VLOOKUP(C16,'Control Panel'!$E$2:$F$42,2,FALSE) -> Children aged 6 to 10 weeks during the audit period | E16: =SUMIFS(OFFSET(REL_D,,MATCH($C16,IND,0)-2),REL_D,$C$3,OrgID,$F$3) -> 0
C17: Registered before 3 months old | D17: =VLOOKUP(C17,'Control Panel'!$E$2:$F$42,2,FALSE) -> Registered before 3 months old | E17: =SUMIFS(OFFSET(REL_D,,MATCH($C17,IND,0)-2),REL_D,$C$3,OrgID,$F$3) -> 0
D18: ='Control Panel'!F15 -> Registered before 3 months old % | E18: =E17/E16 -> 
C19: Infant feeding recorded | D19: =VLOOKUP(C19,'Control Panel'!$E$2:$F$42,2,FALSE) -> Infant feeding recorded | E19: =SUMIFS(OFFSET(REL_D,,MATCH($C19,IND,0)-2),REL_D,$C$3,OrgID,$F$3) -> 0
D20: ='Control Panel'!F17 -> Infant feeding recorded % | E20: =E19/E17 -> 
B22: Diabetes - (Band A ≥45% / Band B ≥43% / Band C ≥41% / Band D <41%) | C22: Diabetes Register | D22: =VLOOKUP(C22,'Control Panel'!$E$2:$F$42,2,FALSE) -> Diabetes Register | E22: =SUMIFS(OFFSET(REL_D,,MATCH($C22,IND,0)-2),REL_D,$C$3,OrgID,$F$3) -> 0
C23: Type 2 eligible population for on target | D23: Type 2 eligible population for on target | E23: =SUMIFS(OFFSET(REL_D,,MATCH($C23,IND,0)-2),REL_D,$C$3,OrgID,$F$3) -> 0
C24: Diabetes triple target | D24: Diabetes Triple Target | E24: =SUMIFS(OFFSET(REL_D,,MATCH($C24,IND,0)-2),REL_D,$C$3,OrgID,$F$3) -> 0
D25: Diabetes Triple Target % | E25: =E24/E23 -> 
C26: Type 2 eligible population for BP <=140/80 | D26: Type 2 eligible population for BP <=140/80 | E26: =SUMIFS(OFFSET(REL_D,,MATCH($C26,IND,0)-2),REL_D,$C$3,OrgID,$F$3) -> 0
C27: Blood Pressure 140/80 (12 mths) | D27: =VLOOKUP(C27,'Control Panel'!$E$2:$F$42,2,FALSE) -> Blood Pressure 140/80 (12 mths) | E27: =SUMIFS(OFFSET(REL_D,,MATCH($C27,IND,0)-2),REL_D,$C$3,OrgID,$F$3) -> 0
D28: =D27&" %" -> Blood Pressure 140/80 (12 mths) % | E28: =E27/E26 -> 
C29: Type 2 eligible population for HbA1c <=59 | D29: Type 2 eligible population for HbA1c <=59 | E29: =SUMIFS(OFFSET(REL_D,,MATCH($C29,IND,0)-2),REL_D,$C$3,OrgID,$F$3) -> 0
C30: HbA1c 59 or less (12 mths) | D30: =VLOOKUP(C30,'Control Panel'!$E$2:$F$42,2,FALSE) -> HbA1c 59 or less (12 mths) | E30: =SUMIFS(OFFSET(REL_D,,MATCH($C30,IND,0)-2),REL_D,$C$3,OrgID,$F$3) -> 0
D31: =D30&" %" -> HbA1c 59 or less (12 mths) % | E31: =E30/E29 -> 
C32: Type 2 eligible population for Cholesterol <=4.5 | D32: Type 2 eligible population for Cholesterol <=4.5 | E32: =SUMIFS(OFFSET(REL_D,,MATCH($C32,IND,0)-2),REL_D,$C$3,OrgID,$F$3) -> 0
C33: Cholesterol 4.5 or less (12 mths) | D33: =VLOOKUP(C33,'Control Panel'!$E$2:$F$42,2,FALSE) -> Cholesterol 4.5 or less (12 mths) | E33: =SUMIFS(OFFSET(REL_D,,MATCH($C33,IND,0)-2),REL_D,$C$3,OrgID,$F$3) -> 0
D34: =D33&" %" -> Cholesterol 4.5 or less (12 mths) % | E34: =E33/E32 -> 
B36: Epilepsy - (Band A ≥60% / Band B ≥50% / Band C ≥40% / Band D <40%) | C36: Patients aged 18 or over on the epilepsy register | D36: =VLOOKUP(C36,'Control Panel'!$E$2:$F$42,2,FALSE) -> Patients aged 18 or over on the epilepsy register | E36: =SUMIFS(OFFSET(REL_D,,MATCH($C36,IND,0)-2),REL_D,$C$3,OrgID,$F$3) -> 0
C37: Annual Review done | D37: =VLOOKUP(C37,'Control Panel'!$E$2:$F$42,2,FALSE) -> Annual Review done | E37: =SUMIFS(OFFSET(REL_D,,MATCH($C37,IND,0)-2),REL_D,$C$3,OrgID,$F$3) -> 0
D38: =D37&" %" -> Annual Review done % | E38: =E37/E36 -> 
C39: Fit frequency recorded | D39: =VLOOKUP(C39,'Control Panel'!$E$2:$F$42,2,FALSE) -> Fit frequency recorded | E39: =SUMIFS(OFFSET(REL_D,,MATCH($C39,IND,0)-2),REL_D,$C$3,OrgID,$F$3) -> 0
C40: Seizure free >12m | D40: =VLOOKUP(C40,'Control Panel'!$E$2:$F$42,2,FALSE) -> Seizure free >12m | E40: =VLOOKUP(D$3&$D40,Vertical_Data!$E$3:$S$2667,MATCH('Control Panel'!$H$1,Vertical_Data!$E$2:$S$2,0),FALSE) -> 
C41: Last fit recorded | D41: =VLOOKUP(C41,'Control Panel'!$E$2:$F$42,2,FALSE) -> Last fit recorded | E41: =VLOOKUP(D$3&$D41,Vertical_Data!$E$3:$S$2667,MATCH('Control Panel'!$H$1,Vertical_Data!$E$2:$S$2,0),FALSE) -> 
C42: Seizure free >12m or Last fit recorded | D42: Seizure free >12m or Last fit recorded | E42: =SUMIFS(OFFSET(REL_D,,MATCH($C42,IND,0)-2),REL_D,$C$3,OrgID,$F$3) -> 0
C43: Medication Review done | D43: =VLOOKUP(C43,'Control Panel'!$E$2:$F$42,2,FALSE) -> Medication Review done | E43: =SUMIFS(OFFSET(REL_D,,MATCH($C43,IND,0)-2),REL_D,$C$3,OrgID,$F$3) -> 0
B45: Psychology Referrals | C45: Psychology Referrals (IAPT) | D45: =VLOOKUP(C45,'Control Panel'!$E$2:$F$42,2,FALSE) -> Psychology Referrals (IAPT) | E45: =SUMIFS(OFFSET(REL_D,,MATCH($C45,IND,0)-2),REL_D,$C$3,OrgID,$F$3) -> 0
B47: CKD - (Band A ≥35% / Band B ≥34% / Band C ≥33% / Band D <33%) | C47: 08 Patients with CKD | D47: Patients with CKD | E47: =SUMIFS(OFFSET(REL_D,,MATCH($C$47,IND,0)-2),REL_D,$C$3,OrgID,$F$3) -> 0
C48: 0801 BP maintained (130/80mm HG) | D48: BP maintained (130/80mm HG) | E48: =SUMIFS(OFFSET(REL_D,,MATCH($C$48,IND,0)-2),REL_D,$C$3,OrgID,$F$3) -> 0
D49: BP maintained (130/80mm HG) % | E49: =E48/E47 -> 
B51: Frailty Care Review - (Band A ≥90% / Band B ≥85% / Band C ≥75% / Band D <75%) | C51: Frailty >=0.36 | D51: Frailty >=0.36 | E51: =SUMIFS(OFFSET(REL_D,,MATCH($C$51,IND,0)-2),REL_D,$C$3,OrgID,$F$3) -> 0
C52: Face to face review 3mths (including video conference) | D52: Face to face review 3mths (including video conference) | E52: =SUMIFS(OFFSET(REL_D,,MATCH($C$52,IND,0)-2),REL_D,$C$3,OrgID,$F$3) -> 0
D53: Face to face review 3mths (including video conference) % | E53: =E52/E51 -> 

Sheet PMS Graphs
N2: PMS
E4: Childhood Immunisations - (Band A ≥91% / Band B ≥80% / Band C ≥70% / Band D <70%) | S4: Diabetes Triple Target - (Band A ≥45% / Band B ≥43% / Band C ≥41% / Band D <41%) | AG4: CKD BP Maintained - (Band A ≥35% / Band B ≥34% / Band C ≥33% / Band D <33%)
E28: Infant Feeding Recorded - (Band A ≥90% / Band B ≥80% / Band C ≥70% / Band D <70%) | S28: Epilepsy Annual Review - (Band A ≥60% / Band B ≥50% / Band C ≥40% / Band D <40%) | AG28: Frailty Care Review - (Band A ≥90% / Band B ≥85% / Band C ≥75% / Band D <75%)

Sheet GMS Graphs
A3: GMS
A7: Diabetes Triple Target - (Band A ≥45% / Band B ≥43% / Band C ≥41% / Band D <41%) | L7: Frailty Care Review - (Band A ≥90% / Band B ≥85% / Band C ≥75% / Band D <75%) | V7: CKD BP Maintained - (Band A ≥35% / Band B ≥34% / Band C ≥33% / Band D <33%)

Sheet Graph Data (hidden)
B1: =VLOOKUP('Control Panel'!I1,'Control Panel'!H6:I17,2,FALSE) -> 2021-07-01 | I1: (01) 12 MONTH COHORT | J1: =SUMIFS(OFFSET(REL_D,,MATCH($I1,IND,0)-2),REL_D,$B$1,OrgID,$B$4) -> 59
I2: (01.01) DTaP/IPV/Hib or DTaP/IPV/Hib/HepB | J2: 46 | X2: (01) 12 MONTH COHORT | Y2: (01.01) DTaP/IPV/Hib or DTaP/IPV/Hib/HepB | Z2: (02) 24 MONTH COHORT | AA2: (02.02) MMR | AB2: (03) 5 YEAR COHORT | AC2: (03.03) DTaP/IPV (Booster)
B3: Childhood immunisations PMS | D3: (Band A ≥91% / Band B ≥80% / Band C ≥70% / Band D <70%) | I3: (02) 24 MONTH COHORT | J3: 47 | M3: Childhood immunisations PMS | O3: (Band A ≥91% / Band B ≥80% / Band C ≥70% / Band D <70%) | V3: 2020-08-01 | W3: July 2020 | X3: =SUMIFS(OFFSET(REL_D,,MATCH(X$2,IND,0)-2),REL_D,$V3,OrgID,$B$4) -> 51 | Y3: 41 | Z3: 52 | AA3: 46 | AB3: 61 | AC3: 43
B4: =VLOOKUP(B5,'Report (PMS)'!B21:C46,2,FALSE) -> F84657 | I4: (02.02) MMR | J4: 37 | V4: 2020-09-01 | W4: August 2020 | X4: 51 | Y4: 44 | Z4: 49 | AA4: 43 | AB4: 62 | AC4: 43
B5: ='Control Panel'!J37 -> Cumberland Road Medical Practice | I5: (03) 5 YEAR COHORT | J5: 51 | M5: Newham Transitional Team | V5: 2020-10-01 | W5: 2020-09-01 | X5: 47 | Y5: 40 | Z5: 54 | AA5: 47 | AB5: 62 | AC5: 45
C6: 6 in 1 | D6: MMR | E6: Booster | I6: (03.03) DTaP/IPV (Booster) | J6: 39 | N6: 6 in 1 | O6: MMR | P6: Booster | V6: 2020-11-01 | W6: October 2020 | X6: 48 | Y6: 40 | Z6: 55 | AA6: 48 | AB6: 60 | AC6: 43
C7: DTaP/IPV/Hib or DTaP/IPV/Hib/HepB (12m) % | D7: MMR (24m) % | E7: DTaP/IPV (Booster) (5y) % | F7: Band A | G7: Band B | H7: Band C | N7: DTaP/IPV/Hib or DTaP/IPV/Hib/HepB (12m) % | O7: MMR (24m) % | P7: DTaP/IPV (Booster) (5y) % | Q7: Band A | R7: Band B | S7: Band C | V7: 2020-12-01 | W7: November 2020 | X7: 50 | Y7: 42 | Z7: 56 | AA7: 49 | AB7: 60 | AC7: 45
B8: July 2020 | C8: =IFERROR(Y3/X3,"") -> 0.8039215686 | D8: =IFERROR(AA3/Z3,"") -> 0.8846153846 | E8: =IFERROR(AC3/AB3,"") -> 0.7049180328 | F8: 0.91 | G8: 0.8 | H8: 0.7 | M8: July 2018 | N8: =VLOOKUP($M$5&$N$7,Vertical_Data!$E$3:$S$2407,MATCH($M8,Vertical_Data!$E$2:$S$2,0),FALSE) -> 0.875 | O8: =VLOOKUP($M$5&$O$7,Vertical_Data!$E$3:$S$2407,MATCH($M8,Vertical_Data!$E$2:$S$2,0),FALSE) -> 0.9066666667 | P8: =VLOOKUP($M$5&$P$7,Vertical_Data!$E$3:$S$2407,MATCH($M8,Vertical_Data!$E$2:$S$2,0),FALSE) -> 0.5614035088 | Q8: 0.91 | R8: 0.8 | S8: 0.7 | V8: 2021-01-01 | W8: December 2020 | X8: 50 | Y8: 42 | Z8: 61 | AA8: 53 | AB8: 60 | AC8: 44
B9: August 2020 | C9: =IFERROR(Y4/X4,"") -> 0.862745098 | D9: =IFERROR(AA4/Z4,"") -> 0.8775510204 | E9: =IFERROR(AC4/AB4,"") -> 0.6935483871 | F9: 0.91 | G9: 0.8 | H9: 0.7 | M9: August 2018 | N9: =VLOOKUP($M$5&$N$7,Vertical_Data!$E$3:$S$2407,MATCH($M9,Vertical_Data!$E$2:$S$2,0),FALSE) -> 0.9 | O9: =VLOOKUP($M$5&$O$7,Vertical_Data!$E$3:$S$2407,MATCH($M9,Vertical_Data!$E$2:$S$2,0),FALSE) -> 0.8714285714 | P9: =VLOOKUP($M$5&$P$7,Vertical_Data!$E$3:$S$2407,MATCH($M9,Vertical_Data!$E$2:$S$2,0),FALSE) -> 0.5490196078 | Q9: 0.91 | R9: 0.8 | S9: 0.7 | V9: 2021-02-01 | W9: January 2021 | X9: 51 | Y9: 42 | Z9: 58 | AA9: 48 | AB9: 60 | AC9: 45
B10: 2020-09-01 | C10: 0.8510638298 | D10: 0.8703703704 | E10: 0.7258064516 | F10: 0.91 | G10: 0.8 | H10: 0.7 | M10: September 2018 | N10: =VLOOKUP($M$5&$N$7,Vertical_Data!$E$3:$S$2407,MATCH($M10,Vertical_Data!$E$2:$S$2,0),FALSE) -> 0.9206349206 | O10: =VLOOKUP($M$5&$O$7,Vertical_Data!$E$3:$S$2407,MATCH($M10,Vertical_Data!$E$2:$S$2,0),FALSE) -> 0.8484848485 | P10: =VLOOKUP($M$5&$P$7,Vertical_Data!$E$3:$S$2407,MATCH($M10,Vertical_Data!$E$2:$S$2,0),FALSE) -> 0.5576923077 | Q10: 0.91 | R10: 0.8 | S10: 0.7 | V10: 2021-03-01 | W10: February 2021 | X10: 50 | Y10: 41 | Z10: 55 | AA10: 44 | AB10: 65 | AC10: 49
B11: October 2020 | C11: 0.8333333333 | D11: 0.8727272727 | E11: 0.7166666667 | F11: 0.91 | G11: 0.8 | H11: 0.7 | M11: October 2018 | N11: =VLOOKUP($M$5&$N$7,Vertical_Data!$E$3:$S$2407,MATCH($M11,Vertical_Data!$E$2:$S$2,0),FALSE) -> 0.90625 | O11: =VLOOKUP($M$5&$O$7,Vertical_Data!$E$3:$S$2407,MATCH($M11,Vertical_Data!$E$2:$S$2,0),FALSE) -> 0.8947368421 | P11: =VLOOKUP($M$5&$P$7,Vertical_Data!$E$3:$S$2407,MATCH($M11,Vertical_Data!$E$2:$S$2,0),FALSE) -> 0.5882352941 | Q11: 0.91 | R11: 0.8 | S11: 0.7 | V11: 2021-04-01 | W11: March 2021 | X11: 51 | Y11: 40 | Z11: 59 | AA11: 48 | AB11: 64 | AC11: 48
B12: November 2020 | C12: 0.84 | D12: 0.875 | E12: 0.75 | F12: 0.91 | G12: 0.8 | H12: 0.7 | M12: November 2018 | N12: =VLOOKUP($M$5&$N$7,Vertical_Data!$E$3:$S$2407,MATCH($M12,Vertical_Data!$E$2:$S$2,0),FALSE) -> 0.890625 | O12: =VLOOKUP($M$5&$O$7,Vertical_Data!$E$3:$S$2407,MATCH($M12,Vertical_Data!$E$2:$S$2,0),FALSE) -> 0.8983050847 | P12: =VLOOKUP($M$5&$P$7,Vertical_Data!$E$3:$S$2407,MATCH($M12,Vertical_Data!$E$2:$S$2,0),FALSE) -> 0.6304347826 | Q12: 0.91 | R12: 0.8 | S12: 0.7 | V12: 2021-05-01 | W12: April 2021 | X12: 54 | Y12: 42 | Z12: 56 | AA12: 45 | AB12: 57 | AC12: 42
B13: December 2020 | C13: 0.84 | D13: 0.868852459 | E13: 0.7333333333 | F13: 0.91 | G13: 0.8 | H13: 0.7 | M13: December 2018 | N13: =VLOOKUP($M$5&$N$7,Vertical_Data!$E$3:$S$2407,MATCH($M13,Vertical_Data!$E$2:$S$2,0),FALSE) -> 0.88 | O13: =VLOOKUP($M$5&$O$7,Vertical_Data!$E$3:$S$2407,MATCH($M13,Vertical_Data!$E$2:$S$2,0),FALSE) -> 0.8620689655 | P13: =VLOOKUP($M$5&$P$7,Vertical_Data!$E$3:$S$2407,MATCH($M13,Vertical_Data!$E$2:$S$2,0),FALSE) -> 0.62 | Q13: 0.91 | R13: 0.8 | S13: 0.7 | V13: 2021-06-01 | W13: May 2021 | X13: 55 | Y13: 42 | Z13: 53 | AA13: 42 | AB13: 56 | AC13: 41
B14: January 2021 | C14: 0.8235294118 | D14: 0.8275862069 | E14: 0.75 | F14: 0.91 | G14: 0.8 | H14: 0.7 | M14: January 2019 | N14: =VLOOKUP($M$5&$N$7,Vertical_Data!$E$3:$S$2407,MATCH($M14,Vertical_Data!$E$2:$S$2,0),FALSE) -> 0.8815789474 | O14: =VLOOKUP($M$5&$O$7,Vertical_Data!$E$3:$S$2407,MATCH($M14,Vertical_Data!$E$2:$S$2,0),FALSE) -> 0.8727272727 | P14: =VLOOKUP($M$5&$P$7,Vertical_Data!$E$3:$S$2407,MATCH($M14,Vertical_Data!$E$2:$S$2,0),FALSE) -> 0.5614035088 | Q14: 0.91 | R14: 0.8 | S14: 0.7 | V14: 2021-07-01 | W14: June 2021 | X14: 59 | Y14: 46 | Z14: 47 | AA14: 37 | AB14: 51 | AC14: 39
B15: February 2021 | C15: 0.82 | D15: 0.8 | E15: 0.7538461538 | F15: 0.91 | G15: 0.8 | H15: 0.7 | M15: February 2019 | N15: =VLOOKUP($M$5&$N$7,Vertical_Data!$E$3:$S$2407,MATCH($M15,Vertical_Data!$E$2:$S$2,0),FALSE) -> 0.904109589 | O15: =VLOOKUP($M$5&$O$7,Vertical_Data!$E$3:$S$2407,MATCH($M15,Vertical_Data!$E$2:$S$2,0),FALSE) -> 0.8305084746 | P15: =VLOOKUP($M$5&$P$7,Vertical_Data!$E$3:$S$2407,MATCH($M15,Vertical_Data!$E$2:$S$2,0),FALSE) -> 0.625 | Q15: 0.91 | R15: 0.8 | S15: 0.7
B16: March 2021 | C16: 0.7843137255 | D16: 0.813559322 | E16: 0.75 | F16: 0.91 | G16: 0.8 | H16: 0.7 | M16: March 2019 | N16: =VLOOKUP($M$5&$N$7,Vertical_Data!$E$3:$S$2407,MATCH($M16,Vertical_Data!$E$2:$S$2,0),FALSE) -> 0.8815789474 | O16: =VLOOKUP($M$5&$O$7,Vertical_Data!$E$3:$S$2407,MATCH($M16,Vertical_Data!$E$2:$S$2,0),FALSE) -> 0.7627118644 | P16: =VLOOKUP($M$5&$P$7,Vertical_Data!$E$3:$S$2407,MATCH($M16,Vertical_Data!$E$2:$S$2,0),FALSE) -> 0.6666666667 | Q16: 0.91 | R16: 0.8 | S16: 0.7
B17: April 2021 | C17: 0.7777777778 | D17: 0.8035714286 | E17: 0.7368421053 | F17: 0.91 | G17: 0.8 | H17: 0.7 | M17: April 2019 | N17: =VLOOKUP($M$5&$N$7,Vertical_Data!$E$3:$S$2407,MATCH($M17,Vertical_Data!$E$2:$S$2,0),FALSE) -> 0.8831168831 | O17: =VLOOKUP($M$5&$O$7,Vertical_Data!$E$3:$S$2407,MATCH($M17,Vertical_Data!$E$2:$S$2,0),FALSE) -> 0.7118644068 | P17: =VLOOKUP($M$5&$P$7,Vertical_Data!$E$3:$S$2407,MATCH($M17,Vertical_Data!$E$2:$S$2,0),FALSE) -> 0.6666666667 | Q17: 0.91 | R17: 0.8 | S17: 0.7
B18: May 2021 | C18: 0.7636363636 | D18: 0.7924528302 | E18: 0.7321428571 | F18: 0.91 | G18: 0.8 | H18: 0.7
B19: June 2021 | C19: =IFERROR(Y14/X14,"") -> 0.7796610169 | D19: =IFERROR(AA14/Z14,"") -> 0.7872340426 | E19: =IFERROR(AC14/AB14,"") -> 0.7647058824 | F19: 0.91 | G19: 0.8 | H19: 0.7
E21: 0.9 | F21: 0.8 | G21: 0.7 | I21: Registered before 3 months old | J21: =SUMIFS(OFFSET(REL_D,,MATCH($I21,IND,0)-2),REL_D,$B$1,OrgID,$B$4) -> 52 | P21: 0.9 | Q21: 0.8 | R21: 0.7
B22: Infant feeding PMS | D22: (Band A ≥90% / Band B ≥80% / Band C ≥70% / Band D <70%) | I22: Infant feeding recorded | J22: =SUMIFS(OFFSET(REL_D,,MATCH($I22,IND,0)-2),REL_D,$B$1,OrgID,$B$4) -> 17 | M22: Infant feeding PMS | O22: (Band A ≥90% / Band B ≥80% / Band C ≥70% / Band D <70%)
C23: 1 | N23: 1
C24: Infant feeding recorded % | D24: Band A | E24: Band B | F24: Band C | N24: Infant feeding recorded % | O24: Band A | P24: Band B | Q24: Band C
B25: ='Control Panel'!I1 -> June 2021 | C25: =IFERROR(J22/J21,"-") -> 0.3269230769 | D25: 0.9 | E25: 0.8 | F25: 0.7 | M25: ='Control Panel'!I1 -> June 2021 | N25: =VLOOKUP($M$5&$N$24,Vertical_Data!$E$3:$S$2407,MATCH('Control Panel'!I1,Vertical_Data!$E$2:$S$2,0),FALSE) ->  | O25: 0.9 | P25: 0.8 | Q25: 0.7
B27: Total | C27: Band D | D27: Band C | E27: Band B | F27: Band A | G27: Completed | H27: Remaining | M27: Total | N27: Band D | O27: Band C | P27: Band B | Q27: Band A | R27: Completed | S27: Remaining
B28: Targets | C28: 0.7 | D28: 0.1 | E28: 0.1 | F28: 0.1 | G28: - | H28: - | M28: Targets | N28: 0.7 | O28: 0.1 | P28: 0.1 | Q28: 0.1 | R28: - | S28: -
B29: Completed | C29: - | D29: - | E29: - | F29: - | G29: =C25 -> 0.3269230769 | H29: =C23-C25 -> 0.6730769231 | M29: Completed | N29: - | O29: - | P29: - | Q29: - | R29: =N25 ->  | S29: =N23-N25 -> 
B37: Diabetes PMS | D37: (Band A ≥45% / Band B ≥43% / Band C ≥41% / Band D <41%) | I37: Type 2 eligible population for on target | J37: =SUMIFS(OFFSET(REL_D,,MATCH($I37,IND,0)-2),REL_D,$B$1,OrgID,$B$4) -> 179 | M37: Diabetes PMS | O37: (Band A ≥42% / Band B ≥40% / Band C ≥38% / Band D <38%)
C38: 1 | I38: Diabetes triple target | J38: =SUMIFS(OFFSET(REL_D,,MATCH($I38,IND,0)-2),REL_D,$B$1,OrgID,$B$4) -> 60 | N38: 1
C39: Diabetes Triple Target % | D39: Band A | E39: Band B | F39: Band C | N39: Diabetes Triple Target % | O39: Band A | P39: Band B | Q39: Band C
B40: ='Control Panel'!I1 -> June 2021 | C40: =IFERROR(J38/J37,"-") -> 0.3351955307 | D40: 0.45 | E40: 0.43 | F40: 0.41 | M40: ='Control Panel'!I1 -> June 2021 | N40: =VLOOKUP($M$5&$N$39,Vertical_Data!$E$3:$S$2407,MATCH('Control Panel'!I1,Vertical_Data!$E$2:$S$2,0),FALSE) ->  | O40: 0.42 | P40: 0.4 | Q40: 0.38
B42: Total | C42: Band D | D42: Band C | E42: Band B | F42: Band A | G42: Completed | H42: Remaining | M42: Total | N42: Band D | O42: Band C | P42: Band B | Q42: Band A | R42: Completed | S42: Remaining
B43: Targets | C43: 0.41 | D43: 0.02 | E43: 0.02 | F43: 0.55 | G43: - | H43: - | M43: Targets | N43: 0.38 | O43: 0.02 | P43: 0.02 | Q43: 0.58 | R43: - | S43: -
B44: Completed | C44: - | D44: - | E44: - | F44: - | G44: =C40 -> 0.3351955307 | H44: =C38-C40 -> 0.6648044693 | M44: Completed | N44: - | O44: - | P44: - | Q44: - | R44: =N40 ->  | S44: =N38-N40 -> 
E47: =SUM(C43:F43) -> 1 | P47: =SUM(N43:Q43) -> 1
B51: Epilepsy PMS | D51: (Band A ≥60% / Band B ≥50% / Band C ≥40% / Band D <40%) | I51: Patients aged 18 or over on the epilepsy register | J51: =SUMIFS(OFFSET(REL_D,,MATCH($I51,IND,0)-2),REL_D,$B$1,OrgID,$B$4) -> 24 | M51: Epilepsy PMS | O51: (Band A ≥60% / Band B ≥50% / Band C ≥40% / Band D <40%)
C52: 1 | I52: Annual Review done | J52: =SUMIFS(OFFSET(REL_D,,MATCH($I52,IND,0)-2),REL_D,$B$1,OrgID,$B$4) -> 24 | N52: 1
C53: Annual Review done % | D53: Band A | E53: Band B | F53: Band C | N53: Annual Review done % | O53: Band A | P53: Band B | Q53: Band C
B54: ='Control Panel'!I1 -> June 2021 | C54: =IFERROR(J52/J51,"-") -> 1 | D54: 0.6 | E54: 0.5 | F54: 0.4 | M54: ='Control Panel'!I1 -> June 2021 | N54: =VLOOKUP($B$5&$C$53,Vertical_Data!$E$3:$S$2407,MATCH('Control Panel'!I1,Vertical_Data!$E$2:$S$2,0),FALSE) ->  | O54: 0.6 | P54: 0.5 | Q54: 0.4
B56: Total | C56: Band D | D56: Band C | E56: Band B | F56: Band A | G56: Completed | H56: Remaining | M56: Total | N56: Band D | O56: Band C | P56: Band B | Q56: Band A | R56: Completed | S56: Remaining
B57: Targets | C57: 0.4 | D57: 0.1 | E57: 0.1 | F57: 0.4 | G57: - | H57: - | M57: Targets | N57: 0.4 | O57: 0.1 | P57: 0.1 | Q57: 0.4 | R57: - | S57: -
B58: Completed | C58: - | D58: - | E58: - | F58: - | G58: =C54 -> 1 | H58: =C52-C54 -> 0 | M58: Completed | N58: - | O58: - | P58: - | Q58: - | R58: =N54 ->  | S58: =N52-N54 -> 
B64: ='Control Panel'!$P$13 -> Dr Ruiz – St Lukes Medical Centre | C64: =VLOOKUP(B64,'Report (GMS)'!B21:C35,2,FALSE) -> F84666
J65: =VLOOKUP('Control Panel'!$J$1,'Control Panel'!$H$6:$I$17,2,FALSE) -> 2021-07-01
B66: Diabetes GMS | D66: (Band A ≥45% / Band B ≥43% / Band C ≥41% / Band D <41%) | I66: Type 2 eligible population for on target | J66: =SUMIFS(OFFSET(REL_D,,MATCH($I66,IND,0)-2),REL_D,$J$65,OrgID,$C$64) -> 239
C67: 1 | I67: Diabetes triple target | J67: =SUMIFS(OFFSET(REL_D,,MATCH($I67,IND,0)-2),REL_D,$J$65,OrgID,$C$64) -> 38
C68: Diabetes Triple Target % | D68: Band A | E68: Band B | F68: Band C
B69: ='Control Panel'!$I$30 -> PCN3 | C69: =IFERROR(J67/J66,"-") -> 0.1589958159 | D69: 0.45 | E69: 0.43 | F69: 0.41
B71: Total | C71: Band D | D71: Band C | E71: Band B | F71: Band A | G71: Completed | H71: Remaining
B72: Targets | C72: 0.41 | D72: 0.02 | E72: 0.02 | F72: 0.55 | G72: - | H72: -
B73: Completed | C73: - | D73: - | E73: - | F73: - | G73: =C69 -> 0.1589958159 | H73: =IFERROR(C67-C69,"-") -> 0.8410041841
J78: =VLOOKUP('Control Panel'!$J$1,'Control Panel'!$H$6:$I$17,2,FALSE) -> 2021-07-01
B79: CKD GMS | D79: (Band A ≥35% / Band B ≥34% / Band C ≥33% / Band D <33%) | I79: 08 Patients with CKD | J79: =SUMIFS(OFFSET(REL_D,,MATCH($I79,IND,0)-2),REL_D,$J$65,OrgID,$C$64) -> 90
C80: 1 | I80: 0801 BP maintained (130/80mm HG) | J80: =SUMIFS(OFFSET(REL_D,,MATCH($I80,IND,0)-2),REL_D,$J$65,OrgID,$C$64) -> 17
C81: Diabetes Triple Target % | D81: Band A | E81: Band B | F81: Band C
B82: ='Control Panel'!$I$30 -> PCN3 | C82: =IFERROR(J80/J79,"-") -> 0.1888888889 | D82: 0.35 | E82: 0.34 | F82: 0.33
B84: Total | C84: Band D | D84: Band C | E84: Band B | F84: Band A | G84: Completed | H84: Remaining
B85: Targets | C85: 0.33 | D85: 0.01 | E85: 0.01 | F85: 0.65 | G85: - | H85: -
B86: Completed | C86: - | D86: - | E86: - | F86: - | G86: =C82 -> 0.1888888889 | H86: =IFERROR(C80-C82,"-") -> 0.8111111111
J91: =VLOOKUP('Control Panel'!$J$1,'Control Panel'!$H$6:$I$17,2,FALSE) -> 2021-07-01
B92: Frailty GMS | D92: (Band A ≥90% / Band B ≥85% / Band C ≥75% / Band D <75%) | I92: Frailty >=0.36 | J92: =SUMIFS(OFFSET(REL_D,,MATCH($I92,IND,0)-2),REL_D,$J$65,OrgID,$C$64) -> 18
C93: 1 | I93: Face to face review 3mths (including video conference) | J93: =SUMIFS(OFFSET(REL_D,,MATCH($I93,IND,0)-2),REL_D,$J$65,OrgID,$C$64) -> 16
C94: Diabetes Triple Target % | D94: Band A | E94: Band B | F94: Band C
B95: ='Control Panel'!$I$30 -> PCN3 | C95: =IFERROR(J93/J92,"-") -> 0.8888888889 | D95: 0.9 | E95: 0.85 | F95: 0.75
B97: Total | C97: Band D | D97: Band C | E97: Band B | F97: Band A | G97: Completed | H97: Remaining
B98: Targets | C98: 0.75 | D98: 0.1 | E98: 0.05 | F98: 0.1 | G98: - | H98: -
B99: Completed | C99: - | D99: - | E99: - | F99: - | G99: =C95 -> 0.8888888889 | H99: =IFERROR(C93-C95,"-") -> 0.1111111111
B106: CKD PMS | D106: (Band A ≥35% / Band B ≥34% / Band C ≥33% / Band D <33%) | I106: 08 Patients with CKD | J106: =SUMIFS(OFFSET(REL_D,,MATCH($I106,IND,0)-2),REL_D,$B$1,OrgID,$B$4) -> 128
C107: 1 | I107: 0801 BP maintained (130/80mm HG) | J107: =SUMIFS(OFFSET(REL_D,,MATCH($I107,IND,0)-2),REL_D,$B$1,OrgID,$B$4) -> 25
C108: Diabetes Triple Target % | D108: Band A | E108: Band B | F108: Band C
B109: ='Control Panel'!$I$30 -> PCN3 | C109: =IFERROR(J107/J106,"-") -> 0.1953125 | D109: 0.35 | E109: 0.34 | F109: 0.33
B111: Total | C111: Band D | D111: Band C | E111: Band B | F111: Band A | G111: Completed | H111: Remaining
B112: Targets | C112: 0.33 | D112: 0.01 | E112: 0.01 | F112: 0.65 | G112: - | H112: -
B113: Completed | C113: - | D113: - | E113: - | F113: - | G113: =C109 -> 0.1953125 | H113: =IFERROR(C107-C109,"-") -> 0.8046875
B119: Frailty PMS | D119: (Band A ≥90% / Band B ≥85% / Band C ≥75% / Band D <75%) | I119: Frailty >=0.36 | J119: =SUMIFS(OFFSET(REL_D,,MATCH($I119,IND,0)-2),REL_D,$B$1,OrgID,$B$4) -> 23
C120: 1 | I120: Face to face review 3mths (including video conference) | J120: =SUMIFS(OFFSET(REL_D,,MATCH($I120,IND,0)-2),REL_D,$B$1,OrgID,$B$4) -> 21
C121: Diabetes Triple Target % | D121: Band A | E121: Band B | F121: Band C
B122: ='Control Panel'!$I$30 -> PCN3 | C122: =IFERROR(J120/J119,"-") -> 0.9130434783 | D122: 0.9 | E122: 0.85 | F122: 0.75
B124: Total | C124: Band D | D124: Band C | E124: Band B | F124: Band A | G124: Completed | H124: Remaining
B125: Targets | C125: 0.75 | D125: 0.1 | E125: 0.05 | F125: 0.1 | G125: - | H125: -
B126: Completed | C126: - | D126: - | E126: - | F126: - | G126: =C122 -> 0.9130434783 | H126: =IFERROR(C120-C122,"-") -> 0.08695652174

Sheet Control Panel (hidden)
E1: Search Title | F1: Report Title | H1: July 2019 | I1: June 2021 | J1: June 2021
E2: All Patients | F2: All currently registered patients
A3: C1 | B3: Central 1 | E3: (01) 12 MONTH COHORT | F3: 12 MONTH COHORT
A4: C2 | B4: Central 2 | E4: (01.01) DTaP/IPV/Hib or DTaP/IPV/Hib/HepB | F4: DTaP/IPV/Hib or DTaP/IPV/Hib/HepB (12m)
E5: % | F5: DTaP/IPV/Hib or DTaP/IPV/Hib/HepB (12m) % | I5: 2020-07-01
A6: NE1 | B6: North East 1 | E6: (02) 24 MONTH COHORT | F6: 24 MONTH COHORT | H6: July 2020 | I6: 2020-08-01
A7: NE2 | B7: North East 2 | E7: (02.01) DTaP/IPV/Hib or DTaP/IPV/Hib/HepB | F7: DTaP/IPV/Hib or DTaP/IPV/Hib/HepB (24m) | H7: August 2020 | I7: 2020-09-01
A8: NW1 | B8: North West 1 | E8: (02.02) MMR | F8: MMR (24m) | H8: September 2020 | I8: 2020-10-01
F9: MMR (24m) % | H9: October 2020 | I9: 2020-11-01
A10: NW2 | B10: North West 2 | E10: (03) 5 YEAR COHORT | F10: 5 YEAR COHORT | H10: November 2020 | I10: 2020-12-01
A11: S1 | B11: South 1 | E11: (03.03) DTaP/IPV (Booster) | F11: DTaP/IPV (Booster) (5y) | H11: December 2020 | I11: 2021-01-01
F12: DTaP/IPV (Booster) (5y) % | H12: January 2021 | I12: 2021-02-01
A13: S2 | B13: South 2 | E13: Children aged 6 to 10 weeks during the audit period | F13: Children aged 6 to 10 weeks during the audit period | H13: February 2021 | I13: 2021-03-01 | P13: Dr Ruiz – St Lukes Medical Centre
E14: Registered before 3 months old | F14: Registered before 3 months old | H14: March 2021 | I14: 2021-04-01 | M14: GMS | N14: F84666 | O14: =VLOOKUP(N14,$A$74:$B$121,2,FALSE) -> PCN1 | P14: =VLOOKUP(N14,PracticeTABLE1[[Practice ID]:[Practice]],2,FALSE) -> Dr Ruiz – St Lukes Medical Centre
F15: Registered before 3 months old % | H15: April 2021 | I15: 2021-05-01 | M15: GMS | N15: F84673 | O15: PCN1 | P15: =VLOOKUP(N15,PracticeTABLE1[[Practice ID]:[Practice]],2,FALSE) -> Esk Road Medical Practice
E16: Infant feeding recorded | F16: Infant feeding recorded | H16: May 2021 | I16: 2021-06-01 | M16: GMS | N16: F84735 | O16: PCN2 | P16: =VLOOKUP(N16,PracticeTABLE1[[Practice ID]:[Practice]],2,FALSE) -> The Azad Practice
B17: Boleyn Medical Centre | F17: Infant feeding recorded % | H17: June 2021 | I17: 2021-07-01 | M17: GMS | N17: F84641 | O17: PCN4 | P17: =VLOOKUP(N17,PracticeTABLE1[[Practice ID]:[Practice]],2,FALSE) -> Birchdale Road Medical Practice
A18: NE1 | B18: Sangam Surgery (Dr P Chandra) | C18: F84658 | E18: Diabetes Register | F18: Diabetes Register | M18: GMS | N18: F84660 | O18: PCN4 | P18: =VLOOKUP(N18,PracticeTABLE1[[Practice ID]:[Practice]],2,FALSE) -> Dr CM Patel
A19: NE1 | B19: Dr CM Patel | C19: F84660 | E19: Blood Pressure 140/80 (12 mths) | F19: Blood Pressure 140/80 (12 mths) | M19: GMS | N19: F84088 | O19: PCN4 | P19: =VLOOKUP(N19,PracticeTABLE1[[Practice ID]:[Practice]],2,FALSE) -> Plashet Medical Centre
A20: NE1 | B20: Plashet Medical Centre (Dr Kabir Mahmud) | C20: F84088 | E20: HbA1c 59 or less (12 mths) | F20: HbA1c 59 or less (12 mths) | M20: GMS | N20: F84670 | O20: PCN4 | P20: =VLOOKUP(N20,PracticeTABLE1[[Practice ID]:[Practice]],2,FALSE) -> Westbury Road Medical Practice
A21: NE1 | B21: Westbury Road Medical Centre (Dr Saidur Rahman) | C21: F84670 | E21: Cholesterol 4.5 or less (12 mths) | F21: Cholesterol 4.5 or less (12 mths) | M21: GMS | N21: F84741 | O21: PCN5 | P21: =VLOOKUP(N21,PracticeTABLE1[[Practice ID]:[Practice]],2,FALSE) -> Dr Krishnamurthy Surgery
A22: NE1 | B22: Dr Bhadra Surgery | C22: F84729 | E22: Wound Care Given | F22: Wound Care Given | M22: GMS | N22: F84070 | O22: PCN5 | P22: =VLOOKUP(N22,PracticeTABLE1[[Practice ID]:[Practice]],2,FALSE) -> Lathom Medical Centre
A23: NE1 | B23: Birchdale Road Medical Practice (Dr Esmail Mohammed) | C23: F84641 | E23: Removal suture/clip | F23: Removal suture/clip | M23: GMS | N23: F84742 | O23: PCN5 | P23: =VLOOKUP(N23,PracticeTABLE1[[Practice ID]:[Practice]],2,FALSE) -> The Summit Practice
A24: NE2 | B24: E12 Health Centre (Dr B Kohli) | C24: F84121 | E24: Injection Given | F24: Injection Given | M24: GMS | N24: F84672 | O24: PCN6 | P24: =VLOOKUP(N24,PracticeTABLE1[[Practice ID]:[Practice]],2,FALSE) -> E7 Health - First 4 Health Group
A25: NE2 | B25: E12 Medical Practice (Dr Kugapala & Partner) | C25: F84739 | E25: Wound Dressing | F25: Wound Dressing | M25: GMS | N25: F84111 | O25: PCN7 | P25: =VLOOKUP(N25,PracticeTABLE1[[Practice ID]:[Practice]],2,FALSE) -> Abbey Road Medical Practice
A26: NE2 | B26: The Shrewsbury Surgery (Dr Sri-Ganeshan) | C26: F84006 | E26: Change of Dressing | F26: Change of Dressing | M26: GMS | N26: F84077 | O26: PCN8 | P26: =VLOOKUP(N26,PracticeTABLE1[[Practice ID]:[Practice]],2,FALSE) -> Dr Samuel & Dr Khan's Practice
A27: NE2 | B27: Wordsworth Health Centre (Dr Sajilal) | C27: F84074 | E27: Patients aged 18 or over on the epilepsy register | F27: Patients aged 18 or over on the epilepsy register | M27: GMS | N27: F84086 | O27: PCN9 | P27: =VLOOKUP(N27,PracticeTABLE1[[Practice ID]:[Practice]],2,FALSE) -> The Forest Practice
A28: NE2 | B28: Dr Krishnamurthy Surgery | C28: F84741 | E28: Annual Review done | F28: Annual Review done | M28: GMS | N28: F84730 | O28: =VLOOKUP(N28,$A$74:$B$121,2,FALSE) -> No PCN | P28: =VLOOKUP(N28,PracticeTABLE1[[Practice ID]:[Practice]],2,FALSE) -> Dr Knight and Dr Ashar
A29: NE2 | B29: The Summit Practice (Dr Yesufu) | C29: F84742 | E29: Fit frequency recorded | F29: Fit frequency recorded | G29: Contract | H29: Practice Code | I29: Cluster | J29: Practice name
A30: NE2 | B30: Lathom Medical Centre (Dr Reena Patel) | C30: F84070 | E30: Seizure free >12m | F30: Seizure free >12m | G30: APMS | H30: F84642 | I30: =VLOOKUP(H30,$A$74:$B$121,2,FALSE) -> PCN3 | J30: Lucas Avenue Surgery
A31: NW1 | B31: Stratford Village Surgery (Dr Ashwin Shah) | C31: F84009 | E31: Last fit recorded | F31: Last fit recorded | G31: APMS | H31: F84749 | I31: PCN7 | J31: Lantern Health
A32: NW1 | B32: Dr Samuel & Dr Khan's Practice | C32: F84077 | E32: Medication Review done | F32: Medication Review done | G32: APMS | H32: Y04273 | I32: PCN7 | J32: Liberty Bridge Road
A33: NW1 | B33: Dr Knight & Dr Ashar Practice | C33: F84730 | E33: Psychology Referrals (IAPT) | F33: Psychology Referrals (IAPT) | G33: APMS | H33: F84740 | I33: PCN8 | J33: Newham Transitional Team
A34: NW1 | B34: Abbey Road Medical Practice (Dr Yates) | C34: F84111 | G34: APMS | H34: Y02928 | I34: PCN10 | J34: The Practice - Albert Road
A35: NW1 | B35: Stratford Health Centre (Dr Anil Shah) | C35: F84022 | G35: PMS | H35: F84657 | I35: PCN1 | J35: =VLOOKUP(H35,PracticeTABLE1[[Practice ID]:[Practice]],2,FALSE) -> Cumberland Road Medical Practice
A36: NW1 | B36: Leytonstone Medical Practice (Dr Kohli) | C36: F84672 | G36: PMS | H36: F84047 | I36: PCN1 | J36: =VLOOKUP(H36,PracticeTABLE1[[Practice ID]:[Practice]],2,FALSE) -> Custom House Surgery
A37: NW1 | B37: Newham Transitional Team (Dr Duncan Trathen & Dr Kensah) | C37: F84740 | G37: PMS | H37: F84092 | I37: PCN1 | J37: Cumberland Road Medical Practice
A38: NW1 | B38: Liberty Bridge Road | C38: Y04273 | G38: PMS | H38: F84017 | I38: PCN1 | J38: =VLOOKUP(H38,PracticeTABLE1[[Practice ID]:[Practice]],2,FALSE) -> Star Lane Medical Centre
A39: NW1 | B39: Lantern Health (Main Site: Dr Davision) | C39: F84749 | E39: Diabetes Register | F39: Diabetes Register | G39: PMS | H39: F84050 | I39: PCN2 | J39: Boleyn Medical Centre
A40: NW2 | B40: Lord Lister Health Centre (Dr Swedan) | C40: F84706 | E40: Blood Pressure 140/80 (12 mths) | F40: Blood Pressure 140/80 (12 mths) | G40: PMS | H40: F84053 | I40: PCN2 | J40: =VLOOKUP(H40,PracticeTABLE1[[Practice ID]:[Practice]],2,FALSE) -> Greengate Medical Practice
A41: NW2 | B41: Lord Lister Health Centre (Dr Driver) | C41: F84086 | E41: HbA1c 59 or less (12 mths) | F41: HbA1c 59 or less (12 mths) | G41: PMS | H41: F84004 | I41: PCN2 | J41: =VLOOKUP(H41,PracticeTABLE1[[Practice ID]:[Practice]],2,FALSE) -> Market Street Health Group
A42: NW2 | B42: Lord Lister Health Centre (Dr P. Abiola) | C42: F84631 | E42: Cholesterol 4.5 or less (12 mths) | F42: Cholesterol 4.5 or less (12 mths) | G42: PMS | H42: F84669 | I42: PCN2 | J42: =VLOOKUP(H42,PracticeTABLE1[[Practice ID]:[Practice]],2,FALSE) -> Newham Medical Centre
A43: NW2 | B43: Claremont Clinic (Dr Wood) | C43: F84097 | E43: Wound Care Given | F43: Wound Care Given | G43: PMS | H43: F84010 | I43: PCN2 | J43: =VLOOKUP(H43,PracticeTABLE1[[Practice ID]:[Practice]],2,FALSE) -> St Bartholomew Surgery
A44: NW2 | B44: Upton Lane Medical Centre (Dr G. Shanker) | C44: F84014 | E44: Removal suture/clip | F44: Removal suture/clip | G44: PMS | H44: F84124 | I44: PCN2 | J44: =VLOOKUP(H44,PracticeTABLE1[[Practice ID]:[Practice]],2,FALSE) -> The Project Surgery
A45: NW2 | B45: Woodgrange Medical Practice (Dr Y Patel) | C45: F84724 | E45: Injection Given | F45: Injection Given | G45: PMS | H45: F84681 | I45: PCN3 | J45: =VLOOKUP(H45,PracticeTABLE1[[Practice ID]:[Practice]],2,FALSE) -> Balaam Street Practice
A46: C1 | B46: Boleyn Medical Centre (Dr Chalabi & Dr MSK Khan) | C46: F84050 | E46: Wound Dressing | F46: Wound Dressing | G46: PMS | H46: F84052 | I46: PCN3 | J46: =VLOOKUP(H46,PracticeTABLE1[[Practice ID]:[Practice]],2,FALSE) -> Essex Lodge
A47: C1 | B47: The Azad Practice (Dr Azad) | C47: F84735 | E47: Change of Dressing | F47: Change of Dressing | G47: PMS | H47: F84729 | I47: PCN4 | J47: =VLOOKUP(H47,PracticeTABLE1[[Practice ID]:[Practice]],2,FALSE) -> The Manor Park Practice
A48: C1 | B48: Newham Medical Centre (Dr Ahmed) | C48: F84669 | G48: PMS | H48: F84658 | I48: PCN4 | J48: =VLOOKUP(H48,PracticeTABLE1[[Practice ID]:[Practice]],2,FALSE) -> Sangam Surgery
A49: C1 | B49: St Bartholomew Surgery (Barking Road, Dr Patel) | C49: F84010 | E49: (01) 12 MONTH COHORT | G49: PMS | H49: F84739 | I49: PCN5 | J49: =VLOOKUP(H49,PracticeTABLE1[[Practice ID]:[Practice]],2,FALSE) -> E12 Medical Practice
A50: C1 | B50: Market Street (Dr A Orimoloye) | C50: F84004 | E50: (0101) DTaP/IPV/Hib or DTaP/IPV/Hib/HepB | G50: PMS | H50: F84006 | I50: PCN5 | J50: =VLOOKUP(H50,PracticeTABLE1[[Practice ID]:[Practice]],2,FALSE) -> Shrewsbury Road Surgery
A51: C1 | B51: Greengate Medical Practice (Dr Kalhoro) | C51: F84053 | E51: (02) 24 MONTH COHORT | G51: PMS | H51: F84074 | I51: PCN5 | J51: =VLOOKUP(H51,PracticeTABLE1[[Practice ID]:[Practice]],2,FALSE) -> Wordsworth Health Centre
A52: C1 | B52: The Project Surgery (Dr Farzana Hussain) | C52: F84124 | E52: (0201) DTaP/IPV/Hib or DTaP/IPV/Hib/HepB | G52: PMS | H52: F84097 | I52: PCN6 | J52: =VLOOKUP(H52,PracticeTABLE1[[Practice ID]:[Practice]],2,FALSE) -> Claremont Clinic
A53: C2 | B53: Essex Lodge (Dr Higgins) | C53: F84052 | E53: (0202) MMR | G53: PMS | H53: F84724 | I53: PCN6 | J53: =VLOOKUP(H53,PracticeTABLE1[[Practice ID]:[Practice]],2,FALSE) -> Woodgrange Medical Practice
A54: C2 | B54: Balaam Street Practice (Dr Al-Mudallal) | C54: F84681 | E54: (03) 5 YEAR COHORT | G54: PMS | H54: F84121 | I54: PCN8 | J54: =VLOOKUP(H54,PracticeTABLE1[[Practice ID]:[Practice]],2,FALSE) -> First4Health Church Road
A55: C2 | B55: Boleyn Road Practice ( Dr Rafiq) | C55: F84734 | E55: (03.03) DTaP/IPV (Booster) | G55: PMS | H55: F84009 | I55: PCN8 | J55: =VLOOKUP(H55,PracticeTABLE1[[Practice ID]:[Practice]],2,FALSE) -> Stratford Village Surgery
A56: C2 | B56: East End Medical Centre (Dr Basu) | C56: F84677 | G56: PMS | H56: F84677 | I56: PCN9 | J56: =VLOOKUP(H56,PracticeTABLE1[[Practice ID]:[Practice]],2,FALSE) -> East End Medical Centre
A57: C2 | B57: Lucas Avenue (Dr Muneeb Choudhury) | C57: F84642 | G57: PMS | H57: F84022 | I57: PCN9 | J57: =VLOOKUP(H57,PracticeTABLE1[[Practice ID]:[Practice]],2,FALSE) -> Stratford Health Centre
A58: S1 | B58: Custom House Surgery (Dr Alem Tsegaye &Dr Faiez Al-Shawk) | C58: F84047 | G58: PMS | H58: F84014 | I58: PCN9 | J58: =VLOOKUP(H58,PracticeTABLE1[[Practice ID]:[Practice]],2,FALSE) -> Upton Lane Medical Centre
A59: S1 | B59: Dr Ruiz – St Lukes Medical Centre (Dr Ruiz) | C59: F84666 | G59: PMS | H59: F84717 | I59: PCN10 | J59: =VLOOKUP(H59,PracticeTABLE1[[Practice ID]:[Practice]],2,FALSE) -> Royal Docks Medical Centre
A60: S1 | B60: Cumberland Road Medical Practice (Dr Gonsai) | C60: F84657 | G60: PMS | H60: F84093 | I60: PCN10 | J60: =VLOOKUP(H60,PracticeTABLE1[[Practice ID]:[Practice]],2,FALSE) -> Tollgate Health Centre
A61: S1 | B61: Glen Road Medical Centre (Dr Rao) | C61: F84092
A62: S1 | B62: Esk Road Medical Practice (Dr Venugopal) | C62: F84673
A63: S1 | B63: Star Lane Medical Centre (Dr Fang) | C63: F84017 | J63: Boleyn Medical Centre
A64: S2 | B64: Royal Docks Medical Centre (Dr Lawrie) | C64: F84717
A65: S2 | B65: The Practice - Albert Road (Dr Choudhury) | C65: Y02928
A66: S2 | B66: Tollgate Health Centre (Dr Watt) | C66: F84093
A67: Total
E73: OrgID | F73: 4 | G73: =$F$77&ADDRESS(1,F73)&":"&ADDRESS($F$78,F73) -> 'OM Data'!$D$1:$D$1000
A74: F84657 | B74: PCN1 | E74: REL_D | F74: 2 | G74: =$F$77&ADDRESS(1,F74)&":"&ADDRESS($F$78,F74) -> 'OM Data'!$B$1:$B$1000 | J74: Cumberland Road Medical Practice
A75: F84047 | B75: PCN1 | E75: IND | F75: - | G75: =$F77&ADDRESS(F82,1)&":"&ADDRESS(F82,F79) -> 'OM Data'!$A$1:$AG$1 | J75: Custom House Surgery
A76: F84666 | B76: PCN1 | E76: NwID | F76: 2 | G76: =$F$77&ADDRESS(1,F76)&":"&ADDRESS($F$78,F76) -> 'OM Data'!$B$1:$B$1000 | J76: Glen Road Medical Centre
A77: F84673 | B77: PCN1 | E77: Data | F77: =IF(F80="N","BLANK!","'"&F81&"'!") -> 'OM Data'! | J77: Star Lane Medical Centre
A78: F84092 | B78: PCN1 | E78: Rows | F78: 1000 | J78: Boleyn Medical Centre
A79: F84017 | B79: PCN1 | E79: Columns | F79: 33 | J79: Greengate Medical Practice
A80: F84050 | B80: PCN2 | E80: Data (Y/N) | F80: Y | J80: Market Street Health Group
A81: F84053 | B81: PCN2 | E81: Q Work Sheet | F81: OM Data | J81: Newham Medical Centre
A82: F84004 | B82: PCN2 | E82: Header Row | F82: 1 | J82: St Bartholomew Surgery
A83: F84669 | B83: PCN2 | E83: Header Row 2 | F83: 3 | J83: The Project Surgery
A84: F84010 | B84: PCN2 | J84: Balaam Street Practice
A85: F84735 | B85: PCN2 | J85: Essex Lodge
A86: F84124 | B86: PCN2 | J86: The Manor Park Practice
A87: F84681 | B87: PCN3 | J87: Sangam Surgery
A88: F84052 | B88: PCN3 | J88: E12 Medical Practice
A89: F84642 | B89: PCN3 | J89: Shrewsbury Road Surgery
A90: F84641 | B90: PCN4 | J90: Wordsworth Health Centre
A91: F84660 | B91: PCN4 | J91: Claremont Clinic
A92: F84088 | B92: PCN4 | J92: Woodgrange Medical Practice
A93: F84729 | B93: PCN4 | J93: First4Health Church Road
A94: F84670 | B94: PCN4 | J94: Stratford Village Surgery
A95: F84658 | B95: PCN4 | J95: East End Medical Centre
A96: F84741 | B96: PCN5 | J96: Stratford Health Centre
A97: F84739 | B97: PCN5 | J97: Upton Lane Medical Centre
A98: F84070 | B98: PCN5 | J98: Royal Docks Medical Centre
A99: F84006 | B99: PCN5 | J99: Tollgate Health Centre
A100: F84742 | B100: PCN5
A101: F84074 | B101: PCN5
A102: F84097 | B102: PCN6
A103: F84672 | B103: PCN6
A104: F84724 | B104: PCN6
A105: F84111 | B105: PCN7
A106: F84749 | B106: PCN7
A107: Y04273 | B107: PCN7
A108: F84077 | B108: PCN8
A109: F84740 | B109: PCN8
A110: F84121 | B110: PCN8
A111: F84009 | B111: PCN8
A112: F84677 | B112: PCN9
A113: F84022 | B113: PCN9
A114: F84086 | B114: PCN9
A115: F84014 | B115: PCN9
A116: F84706 | B116: PCN9
A117: F84717 | B117: PCN10
A118: F84093 | B118: PCN10
A119: Y02928 | B119: PCN10
A120: F84734 | B120: No PCN
A121: F84730 | B121: No PCN

Sheet Vertical_Data (hidden)
A2: Order | B2: Subgroup | C2: Locality | D2: Report | E2: Report_Ref | F2: April 2018 | G2: May 2018 | H2: June 2018 | I2: July 2018 | J2: August 2018 | K2: September 2018 | L2: October 2018 | M2: November 2018 | N2: December 2018 | O2: January 2019 | P2: February 2019 | Q2: March 2019 | R2: April 2019 | S2: May 2019
A3: 1 | B3: Central 1 PMS | D3: All currently registered patients | E3: =B3&D3 -> Central 1 PMSAll currently registered patients | H3: 55387 | I3: 55392 | J3: 55517 | K3: 55663 | L3: 55788 | M3: 56093 | N3: 56151 | O3: 56308 | P3: 56638 | Q3: 56853 | R3: 57182 | S3: 57306
A4: 1 | B4: Central 1 PMS | D4: 12 MONTH COHORT | E4: =B4&D4 -> Central 1 PMS12 MONTH COHORT | H4: 877 | I4: 860 | J4: 846 | K4: 843 | L4: 840 | M4: 813 | N4: 824 | O4: 832 | P4: 827 | Q4: 838 | R4: 831 | S4: 806
A5: 1 | B5: Central 1 PMS | D5: DTaP/IPV/Hib or DTaP/IPV/Hib/HepB (12m) | E5: Central 1 PMSDTaP/IPV/Hib or DTaP/IPV/Hib/HepB (12m) | H5: 777 | I5: 761 | J5: 753 | K5: 751 | L5: 745 | M5: 717 | N5: 719 | O5: 722 | P5: 719 | Q5: 729 | R5: 717 | S5: 692
A6: 1 | B6: Central 1 PMS | D6: DTaP/IPV/Hib or DTaP/IPV/Hib/HepB (12m) % | E6: Central 1 PMSDTaP/IPV/Hib or DTaP/IPV/Hib/HepB (12m) % | H6: 0.8859749145 | I6: 0.8848837209 | J6: 0.890070922 | K6: 0.8908659549 | L6: 0.8869047619 | M6: 0.8819188192 | N6: 0.8725728155 | O6: 0.8677884615 | P6: 0.869407497 | Q6: 0.869928401 | R6: 0.8628158845 | S6: 0.858560794
A7: 1 | B7: Central 1 PMS | D7: 24 MONTH COHORT | E7: Central 1 PMS24 MONTH COHORT | H7: 802 | I7: 804 | J7: 809 | K7: 787 | L7: 828 | M7: 865 | N7: 844 | O7: 833 | P7: 830 | Q7: 843 | R7: 859 | S7: 843
A8: 1 | B8: Central 1 PMS | D8: MMR (24m) | E8: Central 1 PMSMMR (24m) | H8: 696 | I8: 704 | J8: 702 | K8: 682 | L8: 706 | M8: 737 | N8: 723 | O8: 706 | P8: 700 | Q8: 710 | R8: 716 | S8: 717
A9: 1 | B9: Central 1 PMS | D9: MMR (24m) % | E9: Central 1 PMSMMR (24m) % | H9: 0.8678304239 | I9: 0.8756218905 | J9: 0.8677379481 | K9: 0.8665819568 | L9: 0.8526570048 | M9: 0.8520231214 | N9: 0.8566350711 | O9: 0.8475390156 | P9: 0.843373494 | Q9: 0.8422301305 | R9: 0.8335273574 | S9: 0.8505338078
A10: 1 | B10: Central 1 PMS | D10: 5 YEAR COHORT | E10: Central 1 PMS5 YEAR COHORT | H10: 841 | I10: 829 | J10: 862 | K10: 849 | L10: 887 | M10: 891 | N10: 818 | O10: 836 | P10: 839 | Q10: 815 | R10: 837 | S10: 825
A11: 1 | B11: Central 1 PMS | D11: DTaP/IPV (Booster) (5y) | E11: Central 1 PMSDTaP/IPV (Booster) (5y) | H11: 658 | I11: 635 | J11: 636 | K11: 626 | L11: 630 | M11: 621 | N11: 585 | O11: 581 | P11: 591 | Q11: 575 | R11: 577 | S11: 560
A12: 1 | B12: Central 1 PMS | D12: DTaP/IPV (Booster) (5y) % | E12: Central 1 PMSDTaP/IPV (Booster) (5y) % | H12: 0.7824019025 | I12: 0.7659831122 | J12: 0.7378190255 | K12: 0.7373380448 | L12: 0.710259301 | M12: 0.696969697 | N12: 0.7151589242 | O12: 0.6949760766 | P12: 0.7044100119 | Q12: 0.7055214724 | R12: 0.6893667861 | S12: 0.6787878788
A13: 1 | B13: Central 1 PMS | D13: Children aged 6 to 10 weeks during the audit period | E13: Central 1 PMSChildren aged 6 to 10 weeks during the audit period | H13: 128 | I13: 95 | J13: 167 | K13: 247 | L13: 327 | M13: 402 | N13: 456 | O13: 540 | P13: 604 | Q13: 657 | R13: 734 | S13: 783
A14: 1 | B14: Central 1 PMS | D14: Registered before 3 months old | E14: Central 1 PMSRegistered before 3 months old | H14: 128 | I14: 95 | J14: 166 | K14: 246 | L14: 324 | M14: 392 | N14: 446 | O14: 516 | P14: 576 | Q14: 620 | R14: 693 | S14: 739
A15: 1 | B15: Central 1 PMS | D15: Registered before 3 months old % | E15: Central 1 PMSRegistered before 3 months old % | H15: 1 | I15: 1 | J15: 0.994011976 | K15: 0.995951417 | L15: 0.9908256881 | M15: 0.9751243781 | N15: 0.9780701754 | O15: 0.9555555556 | P15: 0.9536423841 | Q15: 0.9436834094 | R15: 0.9441416894 | S15: 0.9438058748
A16: 1 | B16: Central 1 PMS | D16: Infant feeding recorded | E16: Central 1 PMSInfant feeding recorded | H16: 78 | I16: 44 | J16: 120 | K16: 177 | L16: 242 | M16: 301 | N16: 361 | O16: 415 | P16: 477 | Q16: 527 | R16: 583 | S16: 635
A17: 1 | B17: Central 1 PMS | D17: Infant feeding recorded % | E17: Central 1 PMSInfant feeding recorded % | H17: 0.609375 | I17: 0.4631578947 | J17: 0.7228915663 | K17: 0.7195121951 | L17: 0.7469135802 | M17: 0.7678571429 | N17: 0.8094170404 | O17: 0.8042635659 | P17: 0.828125 | Q17: 0.85 | R17: 0.8412698413 | S17: 0.8592692828
A18: 1 | B18: Central 1 PMS | D18: Diabetes Register | E18: Central 1 PMSDiabetes Register | H18: 3791 | I18: 4159 | J18: 4172 | K18: 4153 | L18: 4173 | M18: 4187 | N18: 4198 | O18: 4211 | P18: 4229 | Q18: 4239 | R18: 4332 | S18: 4354
A19: 1 | B19: Central 1 PMS | D19: Diabetes Triple Target | E19: Central 1 PMSDiabetes Triple Target | H19: 1414 | I19: 1505 | J19: 1530 | K19: 1504 | L19: 1496 | M19: 1508 | N19: 1524 | O19: 1495 | P19: 1516 | Q19: 1553 | R19: 1532 | S19: 1469
A20: 1 | B20: Central 1 PMS | D20: Diabetes Triple Target % | E20: Central 1 PMSDiabetes Triple Target % | H20: 0.3977496484 | I20: 0.3848120685 | J20: 0.3870478118 | K20: 0.3823080834 | L20: 0.37998476 | M20: 0.3811931244 | N20: 0.3840725806 | O20: 0.3750627195 | P20: 0.3776781266 | Q20: 0.3856468835 | R20: 0.3752143032 | S20: 0.355948631
A21: 1 | B21: Central 1 PMS | D21: Blood Pressure 140/80 (12 mths) | E21: Central 1 PMSBlood Pressure 140/80 (12 mths) | H21: 2751 | I21: 2957 | J21: 2953 | K21: 2911 | L21: 2899 | M21: 2916 | N21: 2919 | O21: 2893 | P21: 2925 | Q21: 3035 | R21: 3031 | S21: 2969
A22: 1 | B22: Central 1 PMS | D22: Blood Pressure 140/80 (12 mths) % | E22: Central 1 PMSBlood Pressure 140/80 (12 mths) % | H22: 0.7485714286 | I22: 0.7315685304 | J22: 0.7276983736 | K22: 0.7196538937 | L22: 0.7156257714 | M22: 0.7155828221 | N22: 0.7150906418 | O22: 0.7045786654 | P22: 0.7077183644 | Q22: 0.7341557813 | R22: 0.721838533 | S22: 0.7020572239
A23: 1 | B23: Central 1 PMS | D23: HbA1c 59 or less (12 mths) | E23: Central 1 PMSHbA1c 59 or less (12 mths) | H23: 2500 | I23: 2726 | J23: 2749 | K23: 2717 | L23: 2734 | M23: 2749 | N23: 2778 | O23: 2779 | P23: 2776 | Q23: 2756 | R23: 2802 | S23: 2781
A24: 1 | B24: Central 1 PMS | D24: HbA1c 59 or less (12 mths) % | E24: Central 1 PMSHbA1c 59 or less (12 mths) % | H24: 0.6758583401 | I24: 0.672422299 | J24: 0.6732794514 | K24: 0.6685531496 | L24: 0.6720747296 | M24: 0.67344439 | N24: 0.6782226562 | O24: 0.6764849075 | P24: 0.6739499879 | Q24: 0.6665054414 | R24: 0.6676197284 | S24: 0.6562057574
A25: 1 | B25: Central 1 PMS | D25: Cholesterol 4.5 or less (12 mths) | E25: Central 1 PMSCholesterol 4.5 or less (12 mths) | H25: 2474 | I25: 2650 | J25: 2666 | K25: 2668 | L25: 2678 | M25: 2692 | N25: 2693 | O25: 2690 | P25: 2718 | Q25: 2737 | R25: 2738 | S25: 2697
A26: 1 | B26: Central 1 PMS | D26: Cholesterol 4.5 or less (12 mths) % | E26: Central 1 PMSCholesterol 4.5 or less (12 mths) % | H26: 0.6824827586 | I26: 0.6659964815 | J26: 0.6650037416 | K26: 0.6656686627 | L26: 0.6674975075 | M26: 0.6689860835 | N26: 0.6680724386 | O26: 0.664033572 | P26: 0.6655239961 | Q26: 0.6685393258 | R26: 0.6605548854 | S26: 0.6435218325
A27: 1 | B27: Central 1 PMS | D27: Wound Care Given | E27: Central 1 PMSWound Care Given | H27: 11 | I27: 8 | J27: 23 | K27: 36 | L27: 52 | M27: 76 | N27: 96 | O27: 131 | P27: 169 | Q27: 181 | R27: 212 | S27: 254
A28: 1 | B28: Central 1 PMS | D28: Removal suture/clip | E28: Central 1 PMSRemoval suture/clip | H28: 0 | I28: 0 | J28: 4 | K28: 7 | L28: 13 | M28: 23 | N28: 32 | O28: 37 | P28: 40 | Q28: 54 | R28: 63 | S28: 81
A29: 1 | B29: Central 1 PMS | D29: Injection Given | E29: Central 1 PMSInjection Given | H29: 0 | I29: 0 | J29: 0 | K29: 0 | L29: 0 | M29: 0 | N29: 0 | O29: 471 | P29: 486 | Q29: 499 | R29: 508 | S29: 526
A30: 1 | B30: Central 1 PMS | D30: Wound Dressing | E30: Central 1 PMSWound Dressing | H30: 1 | I30: 0 | J30: 4 | K30: 10 | L30: 18 | M30: 25 | N30: 37 | O30: 57 | P30: 69 | Q30: 89 | R30: 109 | S30: 136
A31: 1 | B31: Central 1 PMS | D31: Change of Dressing | E31: Central 1 PMSChange of Dressing | H31: 0 | I31: 0 | J31: 7 | K31: 14 | L31: 21 | M31: 35 | N31: 44 | P31: 81 | Q31: 105 | R31: 125 | S31: 152
A32: 1 | B32: Central 1 PMS | D32: Patients aged 18 or over on the epilepsy register | E32: Central 1 PMSPatients aged 18 or over on the epilepsy register | H32: 202 | I32: 198 | J32: 197 | K32: 203 | L32: 205 | M32: 204 | N32: 206 | O32: 200 | P32: 199 | Q32: 194 | R32: 194 | S32: 198
A33: 1 | B33: Central 1 PMS | D33: Annual Review done | E33: Central 1 PMSAnnual Review done | H33: 12 | I33: 3 | J33: 10 | K33: 29 | L33: 31 | M33: 36 | N33: 45 | O33: 73 | P33: 75 | Q33: 96 | R33: 98 | S33: 104
A34: 1 | B34: Central 1 PMS | D34: Annual Review done % | E34: Central 1 PMSAnnual Review done % | H34: 0.05940594059 | I34: 0.01515151515 | J34: 0.05076142132 | K34: 0.1428571429 | L34: 0.1512195122 | M34: 0.1764705882 | N34: 0.2184466019 | O34: 0.365 | P34: 0.3768844221 | Q34: 0.4948453608 | R34: 0.5051546392 | S34: 0.5252525253
A35: 1 | B35: Central 1 PMS | D35: Fit frequency recorded | E35: Central 1 PMSFit frequency recorded | H35: 10 | I35: 1 | J35: 6 | K35: 25 | L35: 28 | M35: 31 | N35: 38 | O35: 60 | P35: 63 | Q35: 79 | R35: 79 | S35: 85
A36: 1 | B36: Central 1 PMS | D36: Seizure free >12m | E36: Central 1 PMSSeizure free >12m | H36: 7 | I36: 2 | J36: 3 | K36: 14 | L36: 16 | M36: 19 | N36: 24 | O36: 34 | P36: 36 | Q36: 44 | R36: 45 | S36: 52
A37: 1 | B37: Central 1 PMS | D37: Last fit recorded | E37: Central 1 PMSLast fit recorded | H37: 5 | I37: 3 | J37: 7 | K37: 10 | L37: 11 | M37: 15 | N37: 16 | O37: 24 | P37: 25 | Q37: 37 | R37: 38 | S37: 41
A38: 1 | B38: Central 1 PMS | D38: Medication Review done | E38: Central 1 PMSMedication Review done | H38: 68 | I38: 16 | J38: 27 | K38: 53 | L38: 71 | M38: 86 | N38: 108 | O38: 121 | P38: 124 | Q38: 134 | R38: 139 | S38: 150
A39: 1 | B39: Central 1 PMS | D39: Psychology Referrals (IAPT) | E39: Central 1 PMSPsychology Referrals (IAPT) | H39: 57 | I39: 12 | J39: 31 | K39: 44 | L39: 74 | M39: 101 | N39: 114 | O39: 123 | P39: 132 | Q39: 147 | R39: 154 | S39: 164
A40: 2 | B40: Central 2 PMS | D40: All currently registered patients | E40: Central 2 PMSAll currently registered patients | H40: 23499 | I40: 23750 | J40: 24034 | K40: 24121 | L40: 24285 | M40: 24462 | N40: 24435 | O40: 24517 | P40: 24637 | Q40: 24716 | R40: 24502 | S40: 24566
A41: 2 | B41: Central 2 PMS | D41: 12 MONTH COHORT | E41: Central 2 PMS12 MONTH COHORT | H41: 313 | I41: 309 | J41: 304 | K41: 310 | L41: 331 | M41: 338 | N41: 335 | O41: 324 | P41: 319 | Q41: 322 | R41: 314 | S41: 310
A42: 2 | B42: Central 2 PMS | D42: DTaP/IPV/Hib or DTaP/IPV/Hib/HepB (12m) | E42: Central 2 PMSDTaP/IPV/Hib or DTaP/IPV/Hib/HepB (12m) | H42: 283 | I42: 280 | J42: 270 | K42: 277 | L42: 297 | M42: 301 | N42: 294 | O42: 279 | P42: 272 | Q42: 271 | R42: 264 | S42: 264
A43: 2 | B43: Central 2 PMS | D43: DTaP/IPV/Hib or DTaP/IPV/Hib/HepB (12m) % | E43: Central 2 PMSDTaP/IPV/Hib or DTaP/IPV/Hib/HepB (12m) % | H43: 0.9041533546 | I43: 0.9061488673 | J43: 0.8881578947 | K43: 0.8935483871 | L43: 0.8972809668 | M43: 0.8905325444 | N43: 0.8776119403 | O43: 0.8611111111 | P43: 0.8526645768 | Q43: 0.8416149068 | R43: 0.8407643312 | S43: 0.8516129032
A44: 2 | B44: Central 2 PMS | D44: 24 MONTH COHORT | E44: Central 2 PMS24 MONTH COHORT | H44: 315 | I44: 326 | J44: 331 | K44: 329 | L44: 330 | M44: 329 | N44: 330 | O44: 329 | P44: 333 | Q44: 330 | R44: 329 | S44: 333
A45: 2 | B45: Central 2 PMS | D45: MMR (24m) | E45: Central 2 PMSMMR (24m) | H45: 270 | I45: 273 | J45: 279 | K45: 276 | L45: 271 | M45: 271 | N45: 271 | O45: 267 | P45: 270 | Q45: 268 | R45: 267 | S45: 271
A46: 2 | B46: Central 2 PMS | D46: MMR (24m) % | E46: Central 2 PMSMMR (24m) % | H46: 0.8571428571 | I46: 0.8374233129 | J46: 0.8429003021 | K46: 0.8389057751 | L46: 0.8212121212 | M46: 0.8237082067 | N46: 0.8212121212 | O46: 0.811550152 | P46: 0.8108108108 | Q46: 0.8121212121 | R46: 0.811550152 | S46: 0.8138138138
A47: 2 | B47: Central 2 PMS | D47: 5 YEAR COHORT | E47: Central 2 PMS5 YEAR COHORT | H47: 364 | I47: 359 | J47: 372 | K47: 380 | L47: 373 | M47: 363 | N47: 359 | O47: 353 | P47: 358 | Q47: 354 | R47: 329 | S47: 330
A48: 2 | B48: Central 2 PMS | D48: DTaP/IPV (Booster) (5y) | E48: Central 2 PMSDTaP/IPV (Booster) (5y) | H48: 250 | I48: 249 | J48: 255 | K48: 268 | L48: 264 | M48: 255 | N48: 251 | O48: 242 | P48: 246 | Q48: 244 | R48: 231 | S48: 235
A49: 2 | B49: Central 2 PMS | D49: DTaP/IPV (Booster) (5y) % | E49: Central 2 PMSDTaP/IPV (Booster) (5y) % | H49: 0.6868131868 | I49: 0.6935933148 | J49: 0.685483871 | K49: 0.7052631579 | L49: 0.7077747989 | M49: 0.7024793388 | N49: 0.6991643454 | O49: 0.6855524079 | P49: 0.687150838 | Q49: 0.6892655367 | R49: 0.7021276596 | S49: 0.7121212121
A50: 2 | B50: Central 2 PMS | D50: Children aged 6 to 10 weeks during the audit period | E50: Central 2 PMSChildren aged 6 to 10 weeks during the audit period | H50: 49 | I50: 55 | J50: 82 | K50: 114 | L50: 140 | M50: 171 | N50: 190 | O50: 232 | P50: 260 | Q50: 283 | R50: 305 | S50: 331
A51: 2 | B51: Central 2 PMS | D51: Registered before 3 months old | E51: Central 2 PMSRegistered before 3 months old | H51: 49 | I51: 55 | J51: 82 | K51: 114 | L51: 137 | M51: 169 | N51: 188 | O51: 226 | P51: 249 | Q51: 266 | R51: 284 | S51: 306
A52: 2 | B52: Central 2 PMS | D52: Registered before 3 months old % | E52: Central 2 PMSRegistered before 3 months old % | H52: 1 | I52: 1 | J52: 1 | K52: 1 | L52: 0.9785714286 | M52: 0.9883040936 | N52: 0.9894736842 | O52: 0.974137931 | P52: 0.9576923077 | Q52: 0.9399293286 | R52: 0.931147541 | S52: 0.9244712991
A53: 2 | B53: Central 2 PMS | D53: Infant feeding recorded | E53: Central 2 PMSInfant feeding recorded | H53: 17 | I53: 8 | J53: 42 | K53: 59 | L53: 71 | M53: 87 | N53: 96 | O53: 126 | P53: 146 | Q53: 192 | R53: 202 | S53: 249
A54: 2 | B54: Central 2 PMS | D54: Infant feeding recorded % | E54: Central 2 PMSInfant feeding recorded % | H54: 0.3469387755 | I54: 0.1454545455 | J54: 0.512195122 | K54: 0.5175438596 | L54: 0.5182481752 | M54: 0.5147928994 | N54: 0.5106382979 | O54: 0.5575221239 | P54: 0.5863453815 | Q54: 0.7218045113 | R54: 0.7112676056 | S54: 0.8137254902
A55: 2 | B55: Central 2 PMS | D55: Diabetes Register | E55: Central 2 PMSDiabetes Register | H55: 1365 | I55: 1793 | J55: 1803 | K55: 1806 | L55: 1812 | M55: 1818 | N55: 1828 | O55: 1851 | P55: 1863 | Q55: 1876 | R55: 1888 | S55: 1895
A56: 2 | B56: Central 2 PMS | D56: Diabetes Triple Target | E56: Central 2 PMSDiabetes Triple Target | H56: 342 | I56: 580 | J56: 579 | K56: 573 | L56: 565 | M56: 549 | N56: 547 | O56: 576 | P56: 594 | Q56: 617 | R56: 623 | S56: 610
A57: 2 | B57: Central 2 PMS | D57: Diabetes Triple Target % | E57: Central 2 PMSDiabetes Triple Target % | H57: 0.2682352941 | I57: 0.3440094899 | J57: 0.3415929204 | K57: 0.3354800937 | L57: 0.3298307064 | M57: 0.3180764774 | N57: 0.3152737752 | O57: 0.3283922463 | P57: 0.3354037267 | Q57: 0.3454647256 | R57: 0.3490196078 | S57: 0.337576093
A58: 2 | B58: Central 2 PMS | D58: Blood Pressure 140/80 (12 mths) | E58: Central 2 PMSBlood Pressure 140/80 (12 mths) | H58: 869 | I58: 1334 | J58: 1341 | K58: 1331 | L58: 1300 | M58: 1284 | N58: 1268 | O58: 1293 | P58: 1344 | Q58: 1400 | R58: 1410 | S58: 1378
A59: 2 | B59: Central 2 PMS | D59: Blood Pressure 140/80 (12 mths) % | E59: Central 2 PMSBlood Pressure 140/80 (12 mths) % | H59: 0.6608365019 | I59: 0.7653471027 | J59: 0.7627986348 | K59: 0.75625 | L59: 0.7340485601 | M59: 0.7193277311 | N59: 0.7056204786 | O59: 0.7120044053 | P59: 0.7336244541 | Q59: 0.7588075881 | R59: 0.7642276423 | S59: 0.7416576964
A60: 2 | B60: Central 2 PMS | D60: HbA1c 59 or less (12 mths) | E60: Central 2 PMSHbA1c 59 or less (12 mths) | H60: 711 | I60: 1023 | J60: 1031 | K60: 1029 | L60: 1033 | M60: 1039 | N60: 1032 | O60: 1072 | P60: 1104 | Q60: 1115 | R60: 1125 | S60: 1121
A61: 2 | B61: Central 2 PMS | D61: HbA1c 59 or less (12 mths) % | E61: Central 2 PMSHbA1c 59 or less (12 mths) % | H61: 0.5382286147 | I61: 0.5879310345 | J61: 0.5867956744 | K61: 0.5839954597 | L61: 0.5836158192 | M61: 0.5850225225 | N61: 0.5794497473 | O61: 0.5932484781 | P61: 0.6065934066 | Q61: 0.6079607415 | R61: 0.6094257855 | S61: 0.6020408163
A62: 2 | B62: Central 2 PMS | D62: Cholesterol 4.5 or less (12 mths) | E62: Central 2 PMSCholesterol 4.5 or less (12 mths) | H62: 705 | I62: 1001 | J62: 993 | K62: 983 | L62: 966 | M62: 963 | N62: 988 | O62: 1013 | P62: 1053 | Q62: 1088 | R62: 1082 | S62: 1070
A63: 2 | B63: Central 2 PMS | D63: Cholesterol 4.5 or less (12 mths) % | E63: Central 2 PMSCholesterol 4.5 or less (12 mths) % | H63: 0.5410590944 | I63: 0.5826542491 | J63: 0.5766550523 | K63: 0.567551963 | L63: 0.5558112773 | M63: 0.5506003431 | N63: 0.5604083948 | O63: 0.5671892497 | P63: 0.585 | Q63: 0.6007730536 | R63: 0.5964718853 | S63: 0.5846994536
A64: 2 | B64: Central 2 PMS | D64: Wound Care Given | E64: Central 2 PMSWound Care Given | H64: 15 | I64: 16 | J64: 25 | K64: 37 | L64: 40 | M64: 45 | N64: 55 | O64: 68 | P64: 81 | Q64: 95 | R64: 113 | S64: 134
A65: 2 | B65: Central 2 PMS | D65: Removal suture/clip | E65: Central 2 PMSRemoval suture/clip | H65: 5 | I65: 0 | J65: 0 | K65: 0 | L65: 0 | M65: 2 | N65: 4 | O65: 7 | P65: 9 | Q65: 14 | R65: 20 | S65: 25
A66: 2 | B66: Central 2 PMS | D66: Injection Given | E66: Central 2 PMSInjection Given | H66: 0 | I66: 0 | J66: 0 | K66: 0 | L66: 0 | M66: 0 | N66: 0 | O66: 172 | P66: 189 | Q66: 199 | R66: 208 | S66: 217
A67: 2 | B67: Central 2 PMS | D67: Wound Dressing | E67: Central 2 PMSWound Dressing | H67: 1 | I67: 0 | J67: 0 | K67: 0 | L67: 0 | M67: 1 | N67: 1 | O67: 2 | P67: 7 | Q67: 14 | R67: 26 | S67: 41
A68: 2 | B68: Central 2 PMS | D68: Change of Dressing | E68: =B68&D68 -> Central 2 PMSChange of Dressing | H68: 0 | I68: 1 | J68: 1 | K68: 1 | L68: 1 | M68: 2 | N68: 4 | O68: 5 | P68: 11 | Q68: 18 | R68: 30 | S68: 44
A69: 2 | B69: Central 2 PMS | D69: Patients aged 18 or over on the epilepsy register | E69: Central 2 PMSPatients aged 18 or over on the epilepsy register | H69: 87 | I69: 89 | J69: 86 | K69: 87 | L69: 86 | M69: 83 | N69: 84 | O69: 83 | P69: 82 | Q69: 81 | R69: 82 | S69: 81
A70: 2 | B70: Central 2 PMS | D70: Annual Review done | E70: Central 2 PMSAnnual Review done | H70: 1 | I70: 4 | J70: 4 | K70: 4 | L70: 4 | M70: 6 | N70: 7 | O70: 24 | P70: 24 | Q70: 36 | R70: 37 | S70: 46
A71: 2 | B71: Central 2 PMS | D71: Annual Review done % | E71: Central 2 PMSAnnual Review done % | H71: 0.01149425287 | I71: 0.04494382022 | J71: 0.04651162791 | K71: 0.04597701149 | L71: 0.04651162791 | M71: 0.07228915663 | N71: 0.08333333333 | O71: 0.2891566265 | P71: 0.2926829268 | Q71: 0.4444444444 | R71: 0.4512195122 | S71: 0.5679012346
A72: 2 | B72: Central 2 PMS | D72: Fit frequency recorded | E72: Central 2 PMSFit frequency recorded | H72: 2 | I72: 4 | J72: 6 | K72: 6 | L72: 6 | M72: 8 | N72: 8 | O72: 18 | P72: 18 | Q72: 29 | R72: 31 | S72: 35
A73: 2 | B73: Central 2 PMS | D73: Seizure free >12m | E73: Central 2 PMSSeizure free >12m | H73: 1 | I73: 1 | J73: 2 | K73: 2 | L73: 2 | M73: 3 | N73: 3 | O73: 12 | P73: 12 | Q73: 23 | R73: 24 | S73: 28
A74: 2 | B74: Central 2 PMS | D74: Last fit recorded | E74: Central 2 PMSLast fit recorded | H74: 2 | I74: 0 | J74: 0 | K74: 0 | L74: 0 | M74: 1 | N74: 1 | O74: 7 | P74: 7 | Q74: 19 | R74: 20 | S74: 26
A75: 2 | B75: Central 2 PMS | D75: Medication Review done | E75: Central 2 PMSMedication Review done | H75: 11 | I75: 7 | J75: 12 | K75: 18 | L75: 18 | M75: 23 | N75: 24 | O75: 35 | P75: 35 | Q75: 56 | R75: 61 | S75: 64
A76: 2 | B76: Central 2 PMS | D76: Psychology Referrals (IAPT) | E76: Central 2 PMSPsychology Referrals (IAPT) | H76: 0 | I76: 0 | J76: 0 | K76: 3 | L76: 4 | M76: 4 | N76: 5 | O76: 7 | P76: 7 | Q76: 7 | R76: 8 | S76: 8
A77: 3 | B77: North East 1 PMS | D77: All currently registered patients | E77: North East 1 PMSAll currently registered patients | H77: 15815 | I77: 15827 | J77: 15871 | K77: 15902 | L77: 15946 | M77: 15946 | N77: 16027 | O77: 16009 | P77: 16068 | Q77: 16002 | R77: 16064 | S77: 16053
A78: 3 | B78: North East 1 PMS | D78: 12 MONTH COHORT | E78: North East 1 PMS12 MONTH COHORT | H78: 188 | I78: 192 | J78: 205 | K78: 211 | L78: 214 | M78: 210 | N78: 207 | O78: 200 | P78: 199 | Q78: 199 | R78: 185 | S78: 186
A79: 3 | B79: North East 1 PMS | D79: DTaP/IPV/Hib or DTaP/IPV/Hib/HepB (12m) | E79: North East 1 PMSDTaP/IPV/Hib or DTaP/IPV/Hib/HepB (12m) | H79: 169 | I79: 175 | J79: 185 | K79: 186 | L79: 185 | M79: 183 | N79: 178 | O79: 171 | P79: 170 | Q79: 175 | R79: 164 | S79: 164
A80: 3 | B80: North East 1 PMS | D80: DTaP/IPV/Hib or DTaP/IPV/Hib/HepB (12m) % | E80: North East 1 PMSDTaP/IPV/Hib or DTaP/IPV/Hib/HepB (12m) % | H80: 0.8989361702 | I80: 0.9114583333 | J80: 0.9024390244 | K80: 0.8815165877 | L80: 0.8644859813 | M80: 0.8714285714 | N80: 0.8599033816 | O80: 0.855 | P80: 0.8542713568 | Q80: 0.8793969849 | R80: 0.8864864865 | S80: 0.8817204301
A81: 3 | B81: North East 1 PMS | D81: 24 MONTH COHORT | E81: North East 1 PMS24 MONTH COHORT | H81: 214 | I81: 214 | J81: 205 | K81: 208 | L81: 205 | M81: 199 | N81: 202 | O81: 201 | P81: 200 | Q81: 194 | R81: 196 | S81: 197
A82: 3 | B82: North East 1 PMS | D82: MMR (24m) | E82: North East 1 PMSMMR (24m) | H82: 199 | I82: 197 | J82: 189 | K82: 188 | L82: 185 | M82: 182 | N82: 182 | O82: 177 | P82: 176 | Q82: 167 | R82: 166 | S82: 168
A83: 3 | B83: North East 1 PMS | D83: MMR (24m) % | E83: North East 1 PMSMMR (24m) % | H83: 0.9299065421 | I83: 0.9205607477 | J83: 0.9219512195 | K83: 0.9038461538 | L83: 0.9024390244 | M83: 0.9145728643 | N83: 0.900990099 | O83: 0.8805970149 | P83: 0.88 | Q83: 0.8608247423 | R83: 0.8469387755 | S83: 0.8527918782
A84: 3 | B84: North East 1 PMS | D84: 5 YEAR COHORT | E84: North East 1 PMS5 YEAR COHORT | H84: 270 | I84: 260 | J84: 250 | K84: 242 | L84: 234 | M84: 224 | N84: 235 | O84: 235 | P84: 234 | Q84: 222 | R84: 220 | S84: 214
A85: 3 | B85: North East 1 PMS | D85: DTaP/IPV (Booster) (5y) | E85: North East 1 PMSDTaP/IPV (Booster) (5y) | H85: 238 | I85: 227 | J85: 214 | K85: 201 | L85: 194 | M85: 187 | N85: 192 | O85: 191 | P85: 191 | Q85: 174 | R85: 174 | S85: 169
A86: 3 | B86: North East 1 PMS | D86: DTaP/IPV (Booster) (5y) % | E86: North East 1 PMSDTaP/IPV (Booster) (5y) % | H86: 0.8814814815 | I86: 0.8730769231 | J86: 0.856 | K86: 0.8305785124 | L86: 0.8290598291 | M86: 0.8348214286 | N86: 0.8170212766 | O86: 0.8127659574 | P86: 0.8162393162 | Q86: 0.7837837838 | R86: 0.7909090909 | S86: 0.7897196262
A87: 3 | B87: North East 1 PMS | D87: Children aged 6 to 10 weeks during the audit period | E87: North East 1 PMSChildren aged 6 to 10 weeks during the audit period | H87: 18 | I87: 18 | J87: 36 | K87: 44 | L87: 59 | M87: 73 | N87: 84 | O87: 101 | P87: 118 | Q87: 133 | R87: 149 | S87: 167
A88: 3 | B88: North East 1 PMS | D88: Registered before 3 months old | E88: North East 1 PMSRegistered before 3 months old | H88: 18 | I88: 18 | J88: 36 | K88: 44 | L88: 59 | M88: 73 | N88: 83 | O88: 100 | P88: 116 | Q88: 131 | R88: 147 | S88: 164
A89: 3 | B89: North East 1 PMS | D89: Registered before 3 months old % | E89: North East 1 PMSRegistered before 3 months old % | H89: 1 | I89: 1 | J89: 1 | K89: 1 | L89: 1 | M89: 1 | N89: 0.9880952381 | O89: 0.9900990099 | P89: 0.9830508475 | Q89: 0.984962406 | R89: 0.9865771812 | S89: 0.9820359281
A90: 3 | B90: North East 1 PMS | D90: Infant feeding recorded | E90: North East 1 PMSInfant feeding recorded | H90: 6 | I90: 6 | J90: 16 | K90: 23 | L90: 32 | M90: 41 | N90: 71 | O90: 83 | P90: 94 | Q90: 108 | R90: 123 | S90: 142
A91: 3 | B91: North East 1 PMS | D91: Infant feeding recorded % | E91: North East 1 PMSInfant feeding recorded % | H91: 0.3333333333 | I91: 0.3333333333 | J91: 0.4444444444 | K91: 0.5227272727 | L91: 0.5423728814 | M91: 0.5616438356 | N91: 0.8554216867 | O91: 0.83 | P91: 0.8103448276 | Q91: 0.8244274809 | R91: 0.8367346939 | S91: 0.8658536585
A92: 3 | B92: North East 1 PMS | D92: Diabetes Register | E92: North East 1 PMSDiabetes Register | H92: 1633 | I92: 1638 | J92: 1653 | K92: 1659 | L92: 1666 | M92: 1667 | N92: 1659 | O92: 1658 | P92: 1663 | Q92: 1676 | R92: 1695 | S92: 1698
A93: 3 | B93: North East 1 PMS | D93: Diabetes Triple Target | E93: North East 1 PMSDiabetes Triple Target | H93: 476 | I93: 575 | J93: 579 | K93: 583 | L93: 595 | M93: 597 | N93: 608 | O93: 586 | P93: 589 | Q93: 590 | R93: 570 | S93: 553
A94: 3 | B94: North East 1 PMS | D94: Diabetes Triple Target % | E94: North East 1 PMSDiabetes Triple Target % | H94: 0.3092917479 | I94: 0.3724093264 | J94: 0.3723472669 | K94: 0.3722860792 | L94: 0.3768207726 | M94: 0.3764186633 | N94: 0.3835962145 | O94: 0.3676286073 | P94: 0.3685857322 | Q94: 0.3669154229 | R94: 0.3505535055 | S94: 0.3394720688
A95: 3 | B95: North East 1 PMS | D95: Blood Pressure 140/80 (12 mths) | E95: North East 1 PMSBlood Pressure 140/80 (12 mths) | H95: 1086 | I95: 1218 | J95: 1231 | K95: 1230 | L95: 1251 | M95: 1249 | N95: 1240 | O95: 1251 | P95: 1253 | Q95: 1284 | R95: 1258 | S95: 1229
A96: 3 | B96: North East 1 PMS | D96: Blood Pressure 140/80 (12 mths) % | E96: North East 1 PMSBlood Pressure 140/80 (12 mths) % | H96: 0.6851735016 | I96: 0.7622027534 | J96: 0.7617574257 | K96: 0.758323058 | L96: 0.7660747091 | M96: 0.7629810629 | N96: 0.7612031921 | O96: 0.7665441176 | P96: 0.764957265 | Q96: 0.7781818182 | R96: 0.7541966427 | S96: 0.7363690833
A97: 3 | B97: North East 1 PMS | D97: HbA1c 59 or less (12 mths) | E97: North East 1 PMSHbA1c 59 or less (12 mths) | H97: 910 | I97: 1005 | J97: 1013 | K97: 1015 | L97: 1026 | M97: 1041 | N97: 1044 | O97: 1032 | P97: 1035 | Q97: 1015 | R97: 1018 | S97: 1003
A98: 3 | B98: North East 1 PMS | D98: HbA1c 59 or less (12 mths) % | E98: North East 1 PMSHbA1c 59 or less (12 mths) % | H98: 0.5701754386 | I98: 0.625 | J98: 0.6260815822 | K98: 0.6242312423 | L98: 0.6290619252 | M98: 0.6359193647 | N98: 0.6393141457 | O98: 0.6311926606 | P98: 0.6318681319 | Q98: 0.6177723676 | R98: 0.6136226643 | S98: 0.6038531005
A99: 3 | B99: North East 1 PMS | D99: Cholesterol 4.5 or less (12 mths) | E99: North East 1 PMSCholesterol 4.5 or less (12 mths) | H99: 949 | I99: 1088 | J99: 1095 | K99: 1089 | L99: 1110 | M99: 1111 | N99: 1107 | O99: 1094 | P99: 1090 | Q99: 1100 | R99: 1085 | S99: 1068
A100: 3 | B100: North East 1 PMS | D100: Cholesterol 4.5 or less (12 mths) % | E100: North East 1 PMSCholesterol 4.5 or less (12 mths) % | H100: 0.6033057851 | I100: 0.6925525143 | J100: 0.6934768841 | K100: 0.6866330391 | L100: 0.69375 | M100: 0.6926433915 | N100: 0.691011236 | O100: 0.6816199377 | P100: 0.67617866 | Q100: 0.676090965 | R100: 0.6595744681 | S100: 0.6480582524
A101: 3 | B101: North East 1 PMS | D101: Wound Care Given | E101: North East 1 PMSWound Care Given | H101: 4 | I101: 1 | J101: 3 | K101: 3 | L101: 5 | M101: 13 | N101: 16 | O101: 29 | P101: 39 | Q101: 53 | R101: 73 | S101: 92
A102: 3 | B102: North East 1 PMS | D102: Removal suture/clip | E102: North East 1 PMSRemoval suture/clip | H102: 0 | I102: 0 | J102: 0 | K102: 0 | L102: 0 | M102: 5 | N102: 7 | O102: 12 | P102: 18 | Q102: 28 | R102: 30 | S102: 36
A103: 3 | B103: North East 1 PMS | D103: Injection Given | E103: North East 1 PMSInjection Given | H103: 0 | I103: 0 | J103: 0 | K103: 0 | L103: 0 | M103: 0 | N103: 0 | O103: 107 | P103: 113 | Q103: 124 | R103: 130 | S103: 137
A104: 3 | B104: North East 1 PMS | D104: Wound Dressing | E104: North East 1 PMSWound Dressing | H104: 0 | I104: 0 | J104: 0 | K104: 0 | L104: 0 | M104: 3 | N104: 6 | O104: 16 | P104: 25 | Q104: 37 | R104: 54 | S104: 71
A105: 3 | B105: North East 1 PMS | D105: Change of Dressing | E105: North East 1 PMSChange of Dressing | H105: 0 | I105: 0 | J105: 0 | K105: 0 | L105: 0 | M105: 4 | N105: 6 | O105: 16 | P105: 23 | Q105: 35 | R105: 48 | S105: 66
A106: 3 | B106: North East 1 PMS | D106: Patients aged 18 or over on the epilepsy register | E106: North East 1 PMSPatients aged 18 or over on the epilepsy register | H106: 50 | I106: 52 | J106: 52 | K106: 52 | L106: 54 | M106: 55 | N106: 55 | O106: 55 | P106: 55 | Q106: 55 | R106: 55 | S106: 54
A107: 3 | B107: North East 1 PMS | D107: Annual Review done | E107: North East 1 PMSAnnual Review done | H107: 1 | I107: 0 | J107: 2 | K107: 3 | L107: 4 | M107: 4 | N107: 7 | O107: 18 | P107: 20 | Q107: 23 | R107: 25 | S107: 35
A108: 3 | B108: North East 1 PMS | D108: Annual Review done % | E108: North East 1 PMSAnnual Review done % | H108: 0.02 | I108: 0 | J108: 0.03846153846 | K108: 0.05769230769 | L108: 0.07407407407 | M108: 0.07272727273 | N108: 0.1272727273 | O108: 0.3272727273 | P108: 0.3636363636 | Q108: 0.4181818182 | R108: 0.4545454545 | S108: 0.6481481481
A109: 3 | B109: North East 1 PMS | D109: Fit frequency recorded | E109: North East 1 PMSFit frequency recorded | H109: 3 | I109: 0 | J109: 2 | K109: 4 | L109: 5 | M109: 5 | N109: 8 | O109: 18 | P109: 19 | Q109: 22 | R109: 25 | S109: 32
A110: 3 | B110: North East 1 PMS | D110: Seizure free >12m | E110: North East 1 PMSSeizure free >12m | H110: 2 | I110: 0 | J110: 2 | K110: 2 | L110: 2 | M110: 2 | N110: 4 | O110: 8 | P110: 9 | Q110: 12 | R110: 13 | S110: 15
A111: 3 | B111: North East 1 PMS | D111: Last fit recorded | E111: North East 1 PMSLast fit recorded | H111: 0 | I111: 0 | J111: 1 | K111: 1 | L111: 1 | M111: 1 | N111: 2 | O111: 10 | P111: 11 | Q111: 11 | R111: 12 | S111: 19
A112: 3 | B112: North East 1 PMS | D112: Medication Review done | E112: North East 1 PMSMedication Review done | H112: 15 | I112: 5 | J112: 9 | K112: 11 | L112: 14 | M112: 16 | N112: 24 | O112: 34 | P112: 38 | Q112: 39 | R112: 41 | S112: 45
A113: 3 | B113: North East 1 PMS | D113: Psychology Referrals (IAPT) | E113: North East 1 PMSPsychology Referrals (IAPT) | H113: 4 | I113: 0 | J113: 0 | K113: 3 | L113: 3 | M113: 5 | N113: 7 | O113: 7 | P113: 9 | Q113: 12 | R113: 12 | S113: 14
A114: 4 | B114: North East 2 PMS | D114: All currently registered patients | E114: North East 2 PMSAll currently registered patients | H114: 42938 | I114: 43087 | J114: 43112 | K114: 43146 | L114: 43026 | M114: 43149 | N114: 43094 | O114: 43166 | P114: 43286 | Q114: 43285 | R114: 43433 | S114: 43555
A115: 4 | B115: North East 2 PMS | D115: 12 MONTH COHORT | E115: North East 2 PMS12 MONTH COHORT | H115: 635 | I115: 639 | J115: 650 | K115: 641 | L115: 641 | M115: 649 | N115: 646 | O115: 646 | P115: 659 | Q115: 651 | R115: 667 | S115: 660
A116: 4 | B116: North East 2 PMS | D116: DTaP/IPV/Hib or DTaP/IPV/Hib/HepB (12m) | E116: North East 2 PMSDTaP/IPV/Hib or DTaP/IPV/Hib/HepB (12m) | H116: 577 | I116: 578 | J116: 586 | K116: 578 | L116: 579 | M116: 587 | N116: 582 | O116: 579 | P116: 596 | Q116: 590 | R116: 602 | S116: 594
A117: 4 | B117: North East 2 PMS | D117: DTaP/IPV/Hib or DTaP/IPV/Hib/HepB (12m) % | E117: North East 2 PMSDTaP/IPV/Hib or DTaP/IPV/Hib/HepB (12m) % | H117: 0.9086614173 | I117: 0.9045383412 | J117: 0.9015384615 | K117: 0.9017160686 | L117: 0.903276131 | M117: 0.9044684129 | N117: 0.9009287926 | O117: 0.8962848297 | P117: 0.904400607 | Q117: 0.9062980031 | R117: 0.9025487256 | S117: 0.9
A118: 4 | B118: North East 2 PMS | D118: 24 MONTH COHORT | E118: North East 2 PMS24 MONTH COHORT | H118: 703 | I118: 707 | J118: 686 | K118: 677 | L118: 663 | M118: 658 | N118: 656 | O118: 652 | P118: 626 | Q118: 633 | R118: 611 | S118: 592
A119: 4 | B119: North East 2 PMS | D119: MMR (24m) | E119: North East 2 PMSMMR (24m) | H119: 629 | I119: 626 | J119: 607 | K119: 598 | L119: 587 | M119: 579 | N119: 580 | O119: 572 | P119: 541 | Q119: 547 | R119: 530 | S119: 514
A120: 4 | B120: North East 2 PMS | D120: MMR (24m) % | E120: North East 2 PMSMMR (24m) % | H120: 0.8947368421 | I120: 0.8854314003 | J120: 0.8848396501 | K120: 0.8833087149 | L120: 0.8853695324 | M120: 0.8799392097 | N120: 0.8841463415 | O120: 0.8773006135 | P120: 0.8642172524 | Q120: 0.8641390205 | R120: 0.8674304419 | S120: 0.8682432432
A121: 4 | B121: North East 2 PMS | D121: 5 YEAR COHORT | E121: North East 2 PMS5 YEAR COHORT | H121: 659 | I121: 672 | J121: 674 | K121: 678 | L121: 677 | M121: 689 | N121: 686 | O121: 673 | P121: 669 | Q121: 659 | R121: 662 | S121: 680
A122: 4 | B122: North East 2 PMS | D122: DTaP/IPV (Booster) (5y) | E122: North East 2 PMSDTaP/IPV (Booster) (5y) | H122: 520 | I122: 525 | J122: 524 | K122: 531 | L122: 538 | M122: 543 | N122: 540 | O122: 540 | P122: 543 | Q122: 538 | R122: 536 | S122: 544
A123: 4 | B123: North East 2 PMS | D123: DTaP/IPV (Booster) (5y) % | E123: North East 2 PMSDTaP/IPV (Booster) (5y) % | H123: 0.7890743551 | I123: 0.78125 | J123: 0.7774480712 | K123: 0.7831858407 | L123: 0.7946824225 | M123: 0.7880986938 | N123: 0.7871720117 | O123: 0.8023774146 | P123: 0.8116591928 | Q123: 0.8163884674 | R123: 0.8096676737 | S123: 0.8
A124: 4 | B124: North East 2 PMS | D124: Children aged 6 to 10 weeks during the audit period | E124: North East 2 PMSChildren aged 6 to 10 weeks during the audit period | H124: 97 | I124: 77 | J124: 118 | K124: 180 | L124: 243 | M124: 296 | N124: 332 | O124: 391 | P124: 434 | Q124: 483 | R124: 536 | S124: 594
A125: 4 | B125: North East 2 PMS | D125: Registered before 3 months old | E125: North East 2 PMSRegistered before 3 months old | H125: 97 | I125: 77 | J125: 118 | K125: 179 | L125: 242 | M125: 291 | N125: 326 | O125: 383 | P125: 423 | Q125: 466 | R125: 516 | S125: 564
A126: 4 | B126: North East 2 PMS | D126: Registered before 3 months old % | E126: North East 2 PMSRegistered before 3 months old % | H126: 1 | I126: 1 | J126: 1 | K126: 0.9944444444 | L126: 0.9958847737 | M126: 0.9831081081 | N126: 0.9819277108 | O126: 0.9795396419 | P126: 0.9746543779 | Q126: 0.9648033126 | R126: 0.9626865672 | S126: 0.9494949495
A127: 4 | B127: North East 2 PMS | D127: Infant feeding recorded | E127: North East 2 PMSInfant feeding recorded | H127: 51 | I127: 22 | J127: 61 | K127: 80 | L127: 120 | M127: 166 | N127: 190 | O127: 237 | P127: 272 | Q127: 317 | R127: 348 | S127: 398
A128: 4 | B128: North East 2 PMS | D128: Infant feeding recorded % | E128: North East 2 PMSInfant feeding recorded % | H128: 0.5257731959 | I128: 0.2857142857 | J128: 0.5169491525 | K128: 0.4469273743 | L128: 0.4958677686 | M128: 0.5704467354 | N128: 0.5828220859 | O128: 0.6187989556 | P128: 0.6430260047 | Q128: 0.6802575107 | R128: 0.6744186047 | S128: 0.7056737589
A129: 4 | B129: North East 2 PMS | D129: Diabetes Register | E129: North East 2 PMSDiabetes Register | H129: 3842 | I129: 4015 | J129: 4029 | K129: 4041 | L129: 4043 | M129: 4071 | N129: 4076 | O129: 4068 | P129: 4063 | Q129: 4048 | R129: 4075 | S129: 4101
A130: 4 | B130: North East 2 PMS | D130: Diabetes Triple Target | E130: North East 2 PMSDiabetes Triple Target | H130: 1417 | I130: 1659 | J130: 1669 | K130: 1646 | L130: 1633 | M130: 1641 | N130: 1672 | O130: 1723 | P130: 1726 | Q130: 1788 | R130: 1757 | S130: 1763
A131: 4 | B131: North East 2 PMS | D131: Diabetes Triple Target % | E131: North East 2 PMSDiabetes Triple Target % | H131: 0.3892857143 | I131: 0.4339523934 | J131: 0.4340702211 | K131: 0.4263144263 | L131: 0.4212019603 | M131: 0.4210931486 | N131: 0.4268572887 | O131: 0.4397651863 | P131: 0.4413193557 | Q131: 0.4594039054 | R131: 0.4476433121 | S131: 0.4474619289
A132: 4 | B132: North East 2 PMS | D132: Blood Pressure 140/80 (12 mths) | E132: =B132&D132 -> North East 2 PMSBlood Pressure 140/80 (12 mths) | H132: 2851 | I132: 3093 | J132: 3085 | K132: 3023 | L132: 3006 | M132: 3011 | N132: 3061 | O132: 3134 | P132: 3169 | Q132: 3274 | R132: 3229 | S132: 3242
A133: 4 | B133: North East 2 PMS | D133: Blood Pressure 140/80 (12 mths) % | E133: North East 2 PMSBlood Pressure 140/80 (12 mths) % | H133: 0.7606723586 | I133: 0.7850253807 | J133: 0.7816062833 | K133: 0.7631911134 | L133: 0.7588992679 | M133: 0.7555834379 | N133: 0.7650587353 | O133: 0.7835 | P133: 0.7928446335 | Q133: 0.8219934723 | R133: 0.8036336486 | S133: 0.8026739292
A134: 4 | B134: North East 2 PMS | D134: HbA1c 59 or less (12 mths) | E134: North East 2 PMSHbA1c 59 or less (12 mths) | H134: 2447 | I134: 2648 | J134: 2656 | K134: 2646 | L134: 2673 | M134: 2690 | N134: 2723 | O134: 2743 | P134: 2724 | Q134: 2745 | R134: 2739 | S134: 2722
A135: 4 | B135: North East 2 PMS | D135: HbA1c 59 or less (12 mths) % | E135: North East 2 PMSHbA1c 59 or less (12 mths) % | H135: 0.654103181 | I135: 0.6743060861 | J135: 0.6715549937 | K135: 0.6670027729 | L135: 0.6716080402 | M135: 0.6733416771 | N135: 0.6797304044 | O135: 0.6855786053 | P135: 0.6827067669 | Q135: 0.6909136673 | R135: 0.6845788553 | S135: 0.6782955395
A136: 4 | B136: North East 2 PMS | D136: Cholesterol 4.5 or less (12 mths) | E136: North East 2 PMSCholesterol 4.5 or less (12 mths) | H136: 2500 | I136: 2733 | J136: 2765 | K136: 2760 | L136: 2781 | M136: 2811 | N136: 2824 | O136: 2819 | P136: 2819 | Q136: 2847 | R136: 2808 | S136: 2786
A137: 4 | B137: North East 2 PMS | D137: Cholesterol 4.5 or less (12 mths) % | E137: North East 2 PMSCholesterol 4.5 or less (12 mths) % | H137: 0.6764069264 | I137: 0.7041999485 | J137: 0.7078853047 | K137: 0.7049808429 | L137: 0.7099821292 | M137: 0.7121864707 | N137: 0.7124117053 | O137: 0.7120484971 | P137: 0.7134902556 | Q137: 0.7224054808 | R137: 0.7078396773 | S137: 0.6994727592
A138: 4 | B138: North East 2 PMS | D138: Wound Care Given | E138: North East 2 PMSWound Care Given | H138: 9 | I138: 21 | J138: 37 | K138: 48 | L138: 62 | M138: 72 | N138: 81 | O138: 107 | P138: 123 | Q138: 138 | R138: 172 | S138: 216
A139: 4 | B139: North East 2 PMS | D139: Removal suture/clip | E139: North East 2 PMSRemoval suture/clip | H139: 0 | I139: 0 | J139: 1 | K139: 6 | L139: 8 | M139: 11 | N139: 15 | O139: 27 | P139: 31 | Q139: 35 | R139: 42 | S139: 53
A140: 4 | B140: North East 2 PMS | D140: Injection Given | E140: North East 2 PMSInjection Given | H140: 0 | I140: 0 | J140: 0 | K140: 0 | L140: 0 | M140: 0 | N140: 0 | O140: 401 | P140: 421 | Q140: 434 | R140: 447 | S140: 462
A141: 4 | B141: North East 2 PMS | D141: Wound Dressing | E141: North East 2 PMSWound Dressing | H141: 1 | I141: 0 | J141: 8 | K141: 8 | L141: 9 | M141: 13 | N141: 18 | O141: 24 | P141: 30 | Q141: 39 | R141: 57 | S141: 84
A142: 4 | B142: North East 2 PMS | D142: Change of Dressing | E142: North East 2 PMSChange of Dressing | H142: 2 | I142: 0 | J142: 8 | K142: 11 | L142: 13 | M142: 17 | N142: 21 | O142: 29 | P142: 33 | Q142: 43 | R142: 64 | S142: 95
A143: 4 | B143: North East 2 PMS | D143: Patients aged 18 or over on the epilepsy register | E143: North East 2 PMSPatients aged 18 or over on the epilepsy register | H143: 150 | I143: 149 | J143: 151 | K143: 149 | L143: 151 | M143: 148 | N143: 153 | O143: 154 | P143: 157 | Q143: 159 | R143: 156 | S143: 159
A144: 4 | B144: North East 2 PMS | D144: Annual Review done | E144: North East 2 PMSAnnual Review done | H144: 6 | I144: 4 | J144: 8 | K144: 8 | L144: 12 | M144: 14 | N144: 21 | O144: 29 | P144: 49 | Q144: 51 | R144: 56 | S144: 88
A145: 4 | B145: North East 2 PMS | D145: Annual Review done % | E145: North East 2 PMSAnnual Review done % | H145: 0.04 | I145: 0.02684563758 | J145: 0.05298013245 | K145: 0.05369127517 | L145: 0.07947019868 | M145: 0.09459459459 | N145: 0.137254902 | O145: 0.1883116883 | P145: 0.3121019108 | Q145: 0.320754717 | R145: 0.358974359 | S145: 0.5534591195
A146: 4 | B146: North East 2 PMS | D146: Fit frequency recorded | E146: North East 2 PMSFit frequency recorded | H146: 4 | I146: 3 | J146: 5 | K146: 5 | L146: 8 | M146: 13 | N146: 19 | O146: 27 | P146: 43 | Q146: 43 | R146: 42 | S146: 72
A147: 4 | B147: North East 2 PMS | D147: Seizure free >12m | E147: North East 2 PMSSeizure free >12m | H147: 2 | I147: 2 | J147: 6 | K147: 6 | L147: 8 | M147: 10 | N147: 15 | O147: 22 | P147: 32 | Q147: 36 | R147: 40 | S147: 56
A148: 4 | B148: North East 2 PMS | D148: Last fit recorded | E148: North East 2 PMSLast fit recorded | H148: 9 | I148: 3 | J148: 3 | K148: 2 | L148: 3 | M148: 6 | N148: 9 | O148: 12 | P148: 17 | Q148: 17 | R148: 18 | S148: 32
A149: 4 | B149: North East 2 PMS | D149: Medication Review done | E149: North East 2 PMSMedication Review done | H149: 51 | I149: 15 | J149: 32 | K149: 38 | L149: 45 | M149: 56 | N149: 71 | O149: 93 | P149: 104 | Q149: 113 | R149: 117 | S149: 129
A150: 4 | B150: North East 2 PMS | D150: Psychology Referrals (IAPT) | E150: North East 2 PMSPsychology Referrals (IAPT) | H150: 26 | I150: 6 | J150: 6 | K150: 11 | L150: 14 | M150: 20 | N150: 22 | O150: 24 | P150: 27 | Q150: 34 | R150: 38 | S150: 43
A151: 5 | B151: North West 1 PMS | D151: All currently registered patients | E151: North West 1 PMSAll currently registered patients | H151: 19925 | I151: 17590 | J151: 17694 | K151: 17716 | L151: 17720 | M151: 18131 | N151: 18073 | O151: 18140 | P151: 18062 | Q151: 18044 | R151: 18083 | S151: 17988
A152: 5 | B152: North West 1 PMS | D152: 12 MONTH COHORT | E152: North West 1 PMS12 MONTH COHORT | H152: 235 | I152: 196 | J152: 203 | K152: 202 | L152: 200 | M152: 210 | N152: 219 | O152: 215 | P152: 216 | Q152: 219 | R152: 221 | S152: 217
A153: 5 | B153: North West 1 PMS | D153: DTaP/IPV/Hib or DTaP/IPV/Hib/HepB (12m) | E153: North West 1 PMSDTaP/IPV/Hib or DTaP/IPV/Hib/HepB (12m) | H153: 205 | I153: 169 | J153: 172 | K153: 172 | L153: 169 | M153: 175 | N153: 183 | O153: 184 | P153: 187 | Q153: 191 | R153: 189 | S153: 187
A154: 5 | B154: North West 1 PMS | D154: DTaP/IPV/Hib or DTaP/IPV/Hib/HepB (12m) % | E154: North West 1 PMSDTaP/IPV/Hib or DTaP/IPV/Hib/HepB (12m) % | H154: 0.8723404255 | I154: 0.862244898 | J154: 0.8472906404 | K154: 0.8514851485 | L154: 0.845 | M154: 0.8333333333 | N154: 0.8356164384 | O154: 0.8558139535 | P154: 0.8657407407 | Q154: 0.8721461187 | R154: 0.8552036199 | S154: 0.8617511521
A155: 5 | B155: North West 1 PMS | D155: 24 MONTH COHORT | E155: North West 1 PMS24 MONTH COHORT | H155: 215 | I155: 210 | J155: 205 | K155: 211 | L155: 209 | M155: 203 | N155: 194 | O155: 195 | P155: 191 | Q155: 186 | R155: 186 | S155: 180
A156: 5 | B156: North West 1 PMS | D156: MMR (24m) | E156: North West 1 PMSMMR (24m) | H156: 176 | I156: 169 | J156: 163 | K156: 167 | L156: 167 | M156: 163 | N156: 160 | O156: 163 | P156: 157 | Q156: 152 | R156: 152 | S156: 145
A157: 5 | B157: North West 1 PMS | D157: MMR (24m) % | E157: North West 1 PMSMMR (24m) % | H157: 0.8186046512 | I157: 0.8047619048 | J157: 0.7951219512 | K157: 0.7914691943 | L157: 0.7990430622 | M157: 0.802955665 | N157: 0.824742268 | O157: 0.8358974359 | P157: 0.8219895288 | Q157: 0.8172043011 | R157: 0.8172043011 | S157: 0.8055555556
A158: 5 | B158: North West 1 PMS | D158: 5 YEAR COHORT | E158: North West 1 PMS5 YEAR COHORT | H158: 216 | I158: 197 | J158: 206 | K158: 215 | L158: 207 | M158: 215 | N158: 215 | O158: 208 | P158: 205 | Q158: 209 | R158: 212 | S158: 207
A159: 5 | B159: North West 1 PMS | D159: DTaP/IPV (Booster) (5y) | E159: North West 1 PMSDTaP/IPV (Booster) (5y) | H159: 153 | I159: 133 | J159: 137 | K159: 144 | L159: 139 | M159: 145 | N159: 144 | O159: 141 | P159: 135 | Q159: 139 | R159: 141 | S159: 134
A160: 5 | B160: North West 1 PMS | D160: DTaP/IPV (Booster) (5y) % | E160: North West 1 PMSDTaP/IPV (Booster) (5y) % | H160: 0.7083333333 | I160: 0.6751269036 | J160: 0.6650485437 | K160: 0.6697674419 | L160: 0.6714975845 | M160: 0.6744186047 | N160: 0.6697674419 | O160: 0.6778846154 | P160: 0.6585365854 | Q160: 0.6650717703 | R160: 0.6650943396 | S160: 0.6473429952
A161: 5 | B161: North West 1 PMS | D161: Children aged 6 to 10 weeks during the audit period | E161: North West 1 PMSChildren aged 6 to 10 weeks during the audit period | H161: 24 | I161: 17 | J161: 42 | K161: 58 | L161: 70 | M161: 86 | N161: 94 | O161: 117 | P161: 126 | Q161: 140 | R161: 161 | S161: 182
A162: 5 | B162: North West 1 PMS | D162: Registered before 3 months old | E162: North West 1 PMSRegistered before 3 months old | H162: 24 | I162: 17 | J162: 42 | K162: 58 | L162: 70 | M162: 85 | N162: 93 | O162: 113 | P162: 122 | Q162: 134 | R162: 153 | S162: 172
A163: 5 | B163: North West 1 PMS | D163: Registered before 3 months old % | E163: North West 1 PMSRegistered before 3 months old % | H163: 1 | I163: 1 | J163: 1 | K163: 1 | L163: 1 | M163: 0.988372093 | N163: 0.9893617021 | O163: 0.9658119658 | P163: 0.9682539683 | Q163: 0.9571428571 | R163: 0.950310559 | S163: 0.9450549451
A164: 5 | B164: North West 1 PMS | D164: Infant feeding recorded | E164: North West 1 PMSInfant feeding recorded | H164: 10 | I164: 7 | J164: 10 | K164: 17 | L164: 22 | M164: 27 | N164: 32 | O164: 38 | P164: 39 | Q164: 48 | R164: 53 | S164: 54
A165: 5 | B165: North West 1 PMS | D165: Infant feeding recorded % | E165: North West 1 PMSInfant feeding recorded % | H165: 0.4166666667 | I165: 0.4117647059 | J165: 0.2380952381 | K165: 0.2931034483 | L165: 0.3142857143 | M165: 0.3176470588 | N165: 0.3440860215 | O165: 0.3362831858 | P165: 0.3196721311 | Q165: 0.3582089552 | R165: 0.3464052288 | S165: 0.3139534884
A166: 5 | B166: North West 1 PMS | D166: Diabetes Register | E166: North West 1 PMSDiabetes Register | H166: 1092 | I166: 849 | J166: 851 | K166: 849 | L166: 852 | M166: 879 | N166: 877 | O166: 872 | P166: 871 | Q166: 867 | R166: 869 | S166: 864
A167: 5 | B167: North West 1 PMS | D167: Diabetes Triple Target | E167: North West 1 PMSDiabetes Triple Target | H167: 311 | I167: 250 | J167: 261 | K167: 251 | L167: 268 | M167: 278 | N167: 274 | O167: 277 | P167: 278 | Q167: 278 | R167: 266 | S167: 267
A168: 5 | B168: North West 1 PMS | D168: Diabetes Triple Target % | E168: North West 1 PMSDiabetes Triple Target % | H168: 0.2984644914 | I168: 0.3101736973 | J168: 0.3222222222 | K168: 0.3094944513 | L168: 0.3304562269 | M168: 0.3398533007 | N168: 0.3345543346 | O168: 0.3398773006 | P168: 0.3353437877 | Q168: 0.3381995134 | R168: 0.3174224344 | S168: 0.3193779904
A169: 5 | B169: North West 1 PMS | D169: Blood Pressure 140/80 (12 mths) | E169: North West 1 PMSBlood Pressure 140/80 (12 mths) | H169: 708 | I169: 546 | J169: 550 | K169: 539 | L169: 555 | M169: 573 | N169: 571 | O169: 592 | P169: 595 | Q169: 618 | R169: 593 | S169: 584
A170: 5 | B170: North West 1 PMS | D170: Blood Pressure 140/80 (12 mths) % | E170: North West 1 PMSBlood Pressure 140/80 (12 mths) % | H170: 0.6629213483 | I170: 0.6618181818 | J170: 0.6618531889 | K170: 0.6501809409 | L170: 0.6686746988 | M170: 0.6733254994 | N170: 0.6741440378 | O170: 0.6989374262 | P170: 0.6991774383 | Q170: 0.7313609467 | R170: 0.6935672515 | S170: 0.6878680801
A171: 5 | B171: North West 1 PMS | D171: HbA1c 59 or less (12 mths) | E171: North West 1 PMSHbA1c 59 or less (12 mths) | H171: 621 | I171: 501 | J171: 496 | K171: 496 | L171: 503 | M171: 516 | N171: 514 | O171: 512 | P171: 515 | Q171: 516 | R171: 517 | S171: 501
A172: 5 | B172: North West 1 PMS | D172: HbA1c 59 or less (12 mths) % | E172: North West 1 PMSHbA1c 59 or less (12 mths) % | H172: 0.5814606742 | I172: 0.6036144578 | J172: 0.5947242206 | K172: 0.5933014354 | L172: 0.6016746411 | M172: 0.609929078 | N172: 0.6090047393 | O172: 0.6095238095 | P172: 0.6058823529 | Q172: 0.6113744076 | R172: 0.6060961313 | S172: 0.5901060071
A173: 5 | B173: North West 1 PMS | D173: Cholesterol 4.5 or less (12 mths) | E173: North West 1 PMSCholesterol 4.5 or less (12 mths) | H173: 624 | I173: 479 | J173: 487 | K173: 486 | L173: 498 | M173: 520 | N173: 521 | O173: 512 | P173: 516 | Q173: 516 | R173: 500 | S173: 487
A174: 5 | B174: North West 1 PMS | D174: Cholesterol 4.5 or less (12 mths) % | E174: North West 1 PMSCholesterol 4.5 or less (12 mths) % | H174: 0.5886792453 | I174: 0.5862913097 | J174: 0.5931790499 | K174: 0.5912408759 | L174: 0.6065773447 | M174: 0.6212664277 | N174: 0.6217183771 | O174: 0.6176115802 | P174: 0.6150178784 | Q174: 0.618705036 | R174: 0.5917159763 | S174: 0.5763313609
A175: 5 | B175: North West 1 PMS | D175: Wound Care Given | E175: North West 1 PMSWound Care Given | H175: 2 | I175: 7 | J175: 8 | K175: 12 | L175: 14 | M175: 17 | N175: 19 | O175: 23 | P175: 25 | Q175: 28 | R175: 29 | S175: 38
A176: 5 | B176: North West 1 PMS | D176: Removal suture/clip | E176: North West 1 PMSRemoval suture/clip | H176: 0 | I176: 0 | J176: 0 | K176: 0 | L176: 0 | M176: 0 | N176: 0 | O176: 0 | P176: 0 | Q176: 0 | R176: 0 | S176: 1
A177: 5 | B177: North West 1 PMS | D177: Injection Given | E177: North West 1 PMSInjection Given | H177: 0 | I177: 0 | J177: 0 | K177: 0 | L177: 0 | M177: 0 | N177: 0 | O177: 106 | P177: 108 | Q177: 109 | R177: 111 | S177: 114
A178: 5 | B178: North West 1 PMS | D178: Wound Dressing | E178: North West 1 PMSWound Dressing | H178: 0 | I178: 0 | J178: 0 | K178: 0 | L178: 0 | M178: 0 | N178: 0 | O178: 0 | P178: 1 | Q178: 1 | R178: 1 | S178: 5
A179: 5 | B179: North West 1 PMS | D179: Change of Dressing | E179: North West 1 PMSChange of Dressing | H179: 0 | I179: 0 | J179: 0 | K179: 2 | L179: 2 | M179: 2 | N179: 2 | O179: 2 | P179: 3 | Q179: 3 | R179: 3 | S179: 7
A180: 5 | B180: North West 1 PMS | D180: Patients aged 18 or over on the epilepsy register | E180: North West 1 PMSPatients aged 18 or over on the epilepsy register | H180: 68 | I180: 58 | J180: 59 | K180: 61 | L180: 61 | M180: 60 | N180: 59 | O180: 58 | P180: 58 | Q180: 59 | R180: 61 | S180: 57
A181: 5 | B181: North West 1 PMS | D181: Annual Review done | E181: North West 1 PMSAnnual Review done | H181: 1 | I181: 0 | J181: 3 | K181: 5 | L181: 5 | M181: 5 | N181: 5 | O181: 5 | P181: 6 | Q181: 7 | R181: 7 | S181: 9
A182: 5 | B182: North West 1 PMS | D182: Annual Review done % | E182: North West 1 PMSAnnual Review done % | H182: 0.01470588235 | I182: 0 | J182: 0.05084745763 | K182: 0.08196721311 | L182: 0.08196721311 | M182: 0.08333333333 | N182: 0.08474576271 | O182: 0.08620689655 | P182: 0.1034482759 | Q182: 0.1186440678 | R182: 0.1147540984 | S182: 0.1578947368
A183: 5 | B183: North West 1 PMS | D183: Fit frequency recorded | E183: North West 1 PMSFit frequency recorded | H183: 2 | I183: 0 | J183: 2 | K183: 2 | L183: 2 | M183: 5 | N183: 5 | O183: 6 | P183: 6 | Q183: 7 | R183: 7 | S183: 9
A184: 5 | B184: North West 1 PMS | D184: Seizure free >12m | E184: North West 1 PMSSeizure free >12m | H184: 2 | I184: 0 | J184: 2 | K184: 4 | L184: 5 | M184: 5 | N184: 5 | O184: 6 | P184: 7 | Q184: 11 | R184: 11 | S184: 10
A185: 5 | B185: North West 1 PMS | D185: Last fit recorded | E185: North West 1 PMSLast fit recorded | H185: 0 | I185: 0 | J185: 2 | K185: 1 | L185: 1 | M185: 3 | N185: 3 | O185: 3 | P185: 3 | Q185: 3 | R185: 3 | S185: 5
A186: 5 | B186: North West 1 PMS | D186: Medication Review done | E186: North West 1 PMSMedication Review done | H186: 19 | I186: 3 | J186: 12 | K186: 17 | L186: 23 | M186: 27 | N186: 28 | O186: 29 | P186: 29 | Q186: 33 | R186: 37 | S186: 37
A187: 5 | B187: North West 1 PMS | D187: Psychology Referrals (IAPT) | E187: North West 1 PMSPsychology Referrals (IAPT) | H187: 23 | I187: 5 | J187: 11 | K187: 13 | L187: 25 | M187: 34 | N187: 40 | O187: 47 | P187: 50 | Q187: 54 | R187: 56 | S187: 65
A188: 6 | B188: North West 2 PMS | D188: All currently registered patients | E188: North West 2 PMSAll currently registered patients | H188: 35965 | I188: 36123 | J188: 36284 | K188: 36477 | L188: 36532 | M188: 36680 | N188: 36765 | O188: 36834 | P188: 36980 | Q188: 36922 | R188: 36875 | S188: 36728
A189: 6 | B189: North West 2 PMS | D189: 12 MONTH COHORT | E189: North West 2 PMS12 MONTH COHORT | H189: 574 | I189: 582 | J189: 571 | K189: 567 | L189: 576 | M189: 577 | N189: 578 | O189: 585 | P189: 582 | Q189: 602 | R189: 595 | S189: 573
A190: 6 | B190: North West 2 PMS | D190: DTaP/IPV/Hib or DTaP/IPV/Hib/HepB (12m) | E190: North West 2 PMSDTaP/IPV/Hib or DTaP/IPV/Hib/HepB (12m) | H190: 532 | I190: 545 | J190: 539 | K190: 535 | L190: 544 | M190: 543 | N190: 539 | O190: 545 | P190: 542 | Q190: 557 | R190: 548 | S190: 523
A191: 6 | B191: North West 2 PMS | D191: DTaP/IPV/Hib or DTaP/IPV/Hib/HepB (12m) % | E191: North West 2 PMSDTaP/IPV/Hib or DTaP/IPV/Hib/HepB (12m) % | H191: 0.9268292683 | I191: 0.9364261168 | J191: 0.9439579685 | K191: 0.9435626102 | L191: 0.9444444444 | M191: 0.9410745234 | N191: 0.9325259516 | O191: 0.9316239316 | P191: 0.9312714777 | Q191: 0.9252491694 | R191: 0.9210084034 | S191: 0.9127399651
A192: 6 | B192: North West 2 PMS | D192: 24 MONTH COHORT | E192: North West 2 PMS24 MONTH COHORT | H192: 562 | I192: 566 | J192: 562 | K192: 545 | L192: 540 | M192: 541 | N192: 544 | O192: 532 | P192: 532 | Q192: 544 | R192: 549 | S192: 545
A193: 6 | B193: North West 2 PMS | D193: MMR (24m) | E193: North West 2 PMSMMR (24m) | H193: 489 | I193: 496 | J193: 492 | K193: 477 | L193: 472 | M193: 471 | N193: 474 | O193: 464 | P193: 463 | Q193: 474 | R193: 481 | S193: 479
A194: 6 | B194: North West 2 PMS | D194: MMR (24m) % | E194: North West 2 PMSMMR (24m) % | H194: 0.8701067616 | I194: 0.8763250883 | J194: 0.8754448399 | K194: 0.8752293578 | L194: 0.8740740741 | M194: 0.8706099815 | N194: 0.8713235294 | O194: 0.8721804511 | P194: 0.8703007519 | Q194: 0.8713235294 | R194: 0.8761384335 | S194: 0.8788990826
A195: 6 | B195: North West 2 PMS | D195: 5 YEAR COHORT | E195: North West 2 PMS5 YEAR COHORT | H195: 466 | I195: 474 | J195: 484 | K195: 476 | L195: 469 | M195: 479 | N195: 479 | O195: 498 | P195: 507 | Q195: 502 | R195: 498 | S195: 504
A196: 6 | B196: North West 2 PMS | D196: DTaP/IPV (Booster) (5y) | E196: =B196&D196 -> North West 2 PMSDTaP/IPV (Booster) (5y) | H196: 335 | I196: 344 | J196: 355 | K196: 355 | L196: 352 | M196: 357 | N196: 365 | O196: 385 | P196: 397 | Q196: 401 | R196: 410 | S196: 416
A197: 6 | B197: North West 2 PMS | D197: DTaP/IPV (Booster) (5y) % | E197: North West 2 PMSDTaP/IPV (Booster) (5y) % | H197: 0.7188841202 | I197: 0.7257383966 | J197: 0.7334710744 | K197: 0.7457983193 | L197: 0.750533049 | M197: 0.745302714 | N197: 0.7620041754 | O197: 0.7730923695 | P197: 0.7830374753 | Q197: 0.7988047809 | R197: 0.8232931727 | S197: 0.8253968254
A198: 6 | B198: North West 2 PMS | D198: Children aged 6 to 10 weeks during the audit period | E198: North West 2 PMSChildren aged 6 to 10 weeks during the audit period | H198: 100 | I198: 86 | J198: 146 | K198: 187 | L198: 247 | M198: 295 | N198: 335 | O198: 385 | P198: 426 | Q198: 475 | R198: 510 | S198: 562
A199: 6 | B199: North West 2 PMS | D199: Registered before 3 months old | E199: North West 2 PMSRegistered before 3 months old | H199: 100 | I199: 86 | J199: 146 | K199: 187 | L199: 246 | M199: 292 | N199: 331 | O199: 378 | P199: 417 | Q199: 460 | R199: 491 | S199: 533
A200: 6 | B200: North West 2 PMS | D200: Registered before 3 months old % | E200: North West 2 PMSRegistered before 3 months old % | H200: 1 | I200: 1 | J200: 1 | K200: 1 | L200: 0.995951417 | M200: 0.9898305085 | N200: 0.9880597015 | O200: 0.9818181818 | P200: 0.9788732394 | Q200: 0.9684210526 | R200: 0.962745098 | S200: 0.9483985765
A201: 6 | B201: North West 2 PMS | D201: Infant feeding recorded | E201: North West 2 PMSInfant feeding recorded | H201: 56 | I201: 37 | J201: 85 | K201: 125 | L201: 157 | M201: 214 | N201: 244 | O201: 277 | P201: 310 | Q201: 354 | R201: 375 | S201: 404
... 2531 more rows

Sheet PRACTICE TABLE (hidden)
A1: Practice ID | B1: Practice | C1: Locality ID | D1: Locality | E1: SubLocality ID | F1: SubLocality | G1: Address 1 | H1: Address 2 | I1: Postcode | J1: Grid Reference | K1: X (easting) | L1: Y (northing) | M1: Latitude | N1: Longitude
A2: F84047 | B2: Custom House Surgery | C2: NH | D2: Newham | E2: NH-PCN1 | F2: South One Newham | G2: 16 Freemasons Rd | I2: E16 3NA | J2: TQ 40635 81244 | K2: 540635 | L2: 181244 | M2: 51.512625 | N2: 0.025271616
A3: F84666 | B3: Dr Ruiz – St Lukes Medical Centre | C3: NH | D3: Newham | E3: NH-PCN1 | F3: South One Newham | G3: 2 St Luke's Square | I3: E16 1HT | J3: TQ 39825 81135 | K3: 539825 | L3: 181135 | M3: 51.511847 | N3: 0.013563443
A4: F84657 | B4: Cumberland Road Medical Practice | C4: NH | D4: Newham | E4: NH-PCN1 | F4: South One Newham | G4: 179 Cumberland Rd | I4: E13 8LS | J4: TQ 40666 82033 | K4: 540666 | L4: 182033 | M4: 51.519707 | N4: 0.026032652
A5: F84092 | B5: Glen Road Medical Centre | C5: NH | D5: Newham | E5: NH-PCN1 | F5: South One Newham | G5: 1-9 Glen Rd | I5: E13 8RU | J5: TQ 41109 82327 | K5: 541109 | L5: 182327 | M5: 51.522239 | N5: 0.032530947
A6: F84673 | B6: Esk Road Medical Practice | C6: NH | D6: Newham | E6: NH-PCN1 | F6: South One Newham | G6: 12 Esk Rd | I6: E13 8LJ | J6: TQ 40534 82337 | K6: 540534 | L6: 182337 | M6: 51.522472 | N6: 0.024252544
A7: F84017 | B7: Star Lane Medical Centre | C7: NH | D7: Newham | E7: NH-PCN1 | F7: South One Newham | G7: 121 Star Ln | I7: E16 4QH | J7: TQ 39602 82012 | K7: 539602 | L7: 182012 | M7: 51.519782 | N7: 0.010699055
A8: F84717 | B8: Royal Docks Medical Centre | C8: NH | D8: Newham | E8: NH-PCN10 | F8: Docklands | G8: 21 East Ham Manor Way | I8: E6 5NA | J8: TQ 43258 80969 | K8: 543258 | L8: 180969 | M8: 51.509496 | N8: 0.06293342
A9: F84093 | B9: Tollgate Health Centre | C9: NH | D9: Newham | E9: NH-PCN10 | F9: Docklands | G9: 220 Tollgate Rd | I9: E6 5JS | J9: TQ 42787 81629 | K9: 542787 | L9: 181629 | M9: 51.515546 | N9: 0.056418169
A10: Y02928 | B10: The Practice - Albert Road | C10: NH | D10: Newham | E10: NH-PCN10 | F10: Docklands | G10: 76 Albert Rd | I10: E16 2DY | J10: TQ 42593 80059 | K10: 542593 | L10: 180059 | M10: 51.501487 | N10: 0.052989908
A11: F84050 | B11: Boleyn Medical Centre | C11: NH | D11: Newham | E11: NH-PCN2 | F11: Central 1 | G11: 152 Barking Road | I11: E6 3BD | J11: TQ 41930 83350 | K11: 541930 | L11: 183350 | M11: 51.531226 | N11: 0.044768459
A12: F84735 | B12: The Azad Practice | C12: NH | D12: Newham | E12: NH-PCN2 | F12: Central 1 | G12: 152 Barking Road | I12: E6 3BD | J12: TQ 41930 83350 | K12: 541930 | L12: 183350 | M12: 51.531226 | N12: 0.044768459
A13: F84669 | B13: Newham Medical Centre | C13: NH | D13: Newham | E13: NH-PCN2 | F13: Central 1 | G13: 576 Green St | I13: E13 9DA | J13: TQ 41405 83360 | K13: 541405 | L13: 183360 | M13: 51.531447 | N13: 0.037208861
A14: F84010 | B14: St Bartholomew Surgery | C14: NH | D14: Newham | E14: NH-PCN2 | F14: Central 1 | G14: 292A Barking Road | I14: E6 3BA | J14: TQ 42477 83507 | K14: 542477 | L14: 183507 | M14: 51.532499 | N14: 0.052712424
A15: F84004 | B15: Market Street Health Group | C15: NH | D15: Newham | E15: NH-PCN2 | F15: Central 1 | G15: 52 Market St | I15: E6 2RA | J15: TQ 42814 83350 | K15: 542814 | L15: 183350 | M15: 51.531003 | N15: 0.057504007
A16: F84053 | B16: Greengate Medical Practice | C16: NH | D16: Newham | E16: NH-PCN2 | F16: Central 1 | G16: 497 Barking Road | I16: E13 8PS | J16: TQ 40757 82646 | K16: 540757 | L16: 182646 | M16: 51.525193 | N16: 0.027588027
A17: F84124 | B17: The Project Surgery | C17: NH | D17: Newham | E17: NH-PCN2 | F17: Central 1 | G17: 10 Lettsom Walk | I17: E13 0LN | J17: TQ 40253 83419 | K17: 540253 | L17: 183419 | M17: 51.532264 | N17: 0.020635385
A18: F84734 | B18: Boleyn Road Practice | C18: NH | D18: Newham | E18: NH-PCN3 | F18: Newham Central | G18: 162 Boleyn Road | I18: E7 9QJ | J18: TQ 40960 84175 | K18: 540960 | L18: 184175 | M18: 51.538882 | N18: 0.03112375
A19: F84052 | B19: Essex Lodge | C19: NH | D19: Newham | E19: NH-PCN3 | F19: Newham Central | G19: 94 Greengate St | I19: E13 0AS | J19: TQ 40684 82946 | K19: 540684 | L19: 182946 | M19: 51.527907 | N19: 0.026656164
A20: F84681 | B20: Balaam Street Practice | C20: NH | D20: Newham | E20: NH-PCN3 | F20: Newham Central | G20: 113 Balaam St | I20: E13 8AF | J20: TQ 40488 82808 | K20: 540488 | L20: 182808 | M20: 51.526716 | N20: 0.023777605
A21: F84642 | B21: Lucas Avenue Surgery | C21: NH | D21: Newham | E21: NH-PCN3 | F21: Newham Central | I21: E13 0QP | J21: TQ 40943 83883 | K21: 540943 | L21: 183883 | M21: 51.536262 | N21: 0.030761987
A22: F84658 | B22: Sangam Surgery | C22: NH | D22: Newham | E22: NH-PCN4 | F22: North East 1 | G22: Snowshill Rd | I22: E12 6BE | J22: TQ 42142 85378 | K22: 542142 | L22: 185378 | M22: 51.549395 | N22: 0.04864096
A23: F84660 | B23: Dr CM Patel | C23: NH | D23: Newham | E23: NH-PCN4 | F23: North East 1 | G23: 2 Jephson Rd | I23: E7 8LZ | J23: TQ 41250 84414 | K23: 541250 | L23: 184414 | M23: 51.540957 | N23: 0.03539828
A24: F84088 | B24: Plashet Medical Centre | C24: NH | D24: Newham | E24: NH-PCN4 | F24: North East 1 | G24: 152 Plashet Rd | I24: E13 0QT | J24: TQ 41097 84021 | K24: 541097 | L24: 184021 | M24: 51.537464 | N24: 0.033036159
A25: F84670 | B25: Westbury Road Medical Practice | C25: NH | D25: Newham | E25: NH-PCN4 | F25: North East 1 | G25: 45 Westbury Terrace | I25: E7 8BU | J25: TQ 40876 84941 | K25: 540876 | L25: 184941 | M25: 51.545786 | N25: 0.030219712
A26: F84729 | B26: The Manor Park Practice | C26: NH | D26: Newham | E26: NH-PCN4 | F26: North East 1 | G26: 778 Romford Rd | I26: E12 5JG | J26: TQ 42725 85896 | K26: 542725 | L26: 185896 | M26: 51.553903 | N26: 0.057253424
A27: F84641 | B27: Birchdale Road Medical Practice | C27: NH | D27: Newham | E27: NH-PCN4 | F27: North East 1 | G27: 2 Birchdale Rd | I27: E7 8AR | J27: TQ 41441 85069 | K27: 541441 | L27: 185069 | M27: 51.546795 | N27: 0.038413612
A28: F84739 | B28: E12 Medical Practice | C28: NH | D28: Newham | E28: NH-PCN5 | F28: North East 2 | G28: 243 High Street North | I28: E12 6SJ | J28: TQ 42286 84464 | K28: 542286 | L28: 184464 | M28: 51.541146 | N28: 0.0503471
A29: F84006 | B29: Shrewsbury Road Surgery | C29: NH | D29: Newham | E29: NH-PCN5 | F29: North East 2 | G29: Shrewsbury Annexe' Shrewsbury Road | I29: E7 8QP | J29: TQ 41796 84426 | K29: 541796 | L29: 184426 | M29: 51.540928 | N29: 0.043270927
A30: F84074 | B30: Wordsworth Health Centre | C30: NH | D30: Newham | E30: NH-PCN5 | F30: North East 2 | G30: 19 Wordsworth Avenue | I30: E12 6SU | J30: TQ 42172 84503 | K30: 542172 | L30: 184503 | M30: 51.541525 | N30: 0.04872011
A31: F84741 | B31: Dr Krishnamurthy Surgery | C31: NH | D31: Newham | E31: NH-PCN5 | F31: North East 2 | G31: Eastham Memorial Hospital | I31: E7 8QP | J31: TQ 41796 84426 | K31: 541796 | L31: 184426 | M31: 51.540928 | N31: 0.043270927
A32: F84742 | B32: The Summit Practice | C32: NH | D32: Newham | E32: NH-PCN5 | F32: North East 2 | G32: Old East Ham Memorial Hospital | I32: E7 8PP | J32: TQ 41670 84155 | K32: 541670 | L32: 184155 | M32: 51.538524 | N32: 0.041346302
A33: F84070 | B33: Lathom Medical Centre | C33: NH | D33: Newham | E33: NH-PCN5 | F33: North East 2 | G33: 2A Lathom Rd | I33: E6 2DU | J33: TQ 42458 84130 | K33: 542458 | L33: 184130 | M33: 51.538102 | N33: 0.052690543
A34: F84672 | B34: E7 Health - First 4 Health Group | C34: NH | D34: Newham | E34: NH-PCN6 | F34: North Newham | G34: 157 Leytonstone Rd | I34: E15 1LH | J34: TQ 39102 85361 | K34: 539102 | L34: 185361 | M34: 51.55 | N34: 0.0048192101
A35: F84097 | B35: Claremont Clinic | C35: NH | D35: Newham | E35: NH-PCN6 | F35: North Newham | G35: 459-463 Romford Rd | I35: E7 8AB | J35: TQ 41105 85137 | K35: 541105 | L35: 185137 | M35: 51.54749 | N35: 0.033598485
A36: F84724 | B36: Woodgrange Medical Practice | C36: NH | D36: Newham | E36: NH-PCN6 | F36: North Newham | G36: 40 Woodgrange Rd | I36: E7 0QH | J36: TQ 40516 85243 | K36: 540516 | L36: 185243 | M36: 51.548589 | N36: 0.025152046
A37: F84111 | B37: Abbey Road Medical Practice | C37: NH | D37: Newham | E37: NH-PCN7 | F37: Leaside | G37: 28a Abbey Rd | I37: E15 3LT | J37: TQ 39225 83671 | K37: 539225 | L37: 183671 | M37: 51.534783 | N37: 0.0059240574
A38: Y04273 | B38: Liberty Bridge Road | C38: NH | D38: Newham | E38: NH-PCN7 | F38: Leaside | G38: 40 Liberty Bridge Rd | I38: E20 1AS | J38: TQ 38349 85140 | K38: 538349 | L38: 185140 | M38: 51.548199 | N38: -0.0061207496
A39: F84749 | B39: Carpenters Practice (AT Medics) | C39: NH | D39: Newham | E39: NH-PCN7 | F39: Leaside | G39: 236-252 High St | I39: E15 2JA | J39: TQ 38568 83938 | K39: 538568 | L39: 183938 | M39: 51.537344 | N39: -0.0034372388
A40: F84730 | B40: Dr Knight and Dr Ashar | C40: NH | D40: Newham | E40: NH-PCN9 | F40: North West 2 | G40: 10 Vicarage Ln | I40: E15 4HG | J40: TQ 39553 84332 | K40: 539553 | L40: 184332 | M40: 51.540642 | N40: 0.010911767
A41: F84121 | B41: First4Health Church Road | C41: NH | D41: Newham | E41: NH-PCN8 | F41: Stratford | G41: 30 Church Road | I41: E12 6AQ | J41: TQ 42460 85199 | K41: 542460 | L41: 185199 | M41: 51.547707 | N41: 0.053151713
A42: F84009 | B42: Stratford Village Surgery | C42: NH | D42: Newham | E42: NH-PCN8 | F42: Stratford | G42: 50C Romford Rd | I42: E15 4BZ | J42: TQ 39233 84486 | K42: 539233 | L42: 184486 | M42: 51.542105 | N42: 0.0063613933
A43: F84077 | B43: Dr Samuel & Dr Khan's Practice | C43: NH | D43: Newham | E43: NH-PCN8 | F43: Stratford | G43: 10 Vicarage Ln | I43: E15 4ES | J43: TQ 39491 84416 | K43: 539491 | L43: 184416 | M43: 51.541412 | N43: 0.010051602
A44: F84740 | B44: Newham Transitional Team | C44: NH | D44: Newham | E44: NH-PCN8 | F44: Stratford | G44: 30 Church Rd | I44: E12 6AQ | J44: TQ 42460 85199 | K44: 542460 | L44: 185199 | M44: 51.547707 | N44: 0.053151713
A45: F84677 | B45: East End Medical Centre | C45: NH | D45: Newham | E45: NH-PCN9 | F45: North West 2 | G45: 61 Plashet Rd | I45: E13 0QA | J45: TQ 40567 83994 | K45: 540567 | L45: 183994 | M45: 51.537353 | N45: 0.025388644
A46: F84022 | B46: Stratford Health Centre | C46: NH | D46: Newham | E46: NH-PCN9 | F46: North West 2 | G46: 123 The Grove | I46: E15 1EN | J46: TQ 39112 84766 | K46: 539112 | L46: 184766 | M46: 51.54465 | N46: 0.0047282946
A47: F84086 | B47: The Forest Practice | C47: NH | D47: Newham | E47: NH-PCN9 | F47: North West 2 | G47: 121 Woodgrange Rd | I47: E7 0EP | J47: TQ 40492 85464 | K47: 540492 | L47: 185464 | M47: 51.550581 | N47: 0.024894327
A48: F84014 | B48: Upton Lane Medical Centre | C48: NH | D48: Newham | E48: NH-PCN9 | F48: North West 2 | G48: 75-77 Upton Ln | I48: E7 9PB | J48: TQ 40620 84636 | K48: 540620 | L48: 184636 | M48: 51.543109 | N48: 0.026408576

Sheet OM Data (hidden)
A1: ProjectID | B1: Rel_D | C1: Run_D | D1: Search | E1: All Patients | F1: (01) 12 MONTH COHORT | G1: (01.01) DTaP/IPV/Hib or DTaP/IPV/Hib/HepB | H1: (02) 24 MONTH COHORT | I1: (02.02) MMR | J1: (03) 5 YEAR COHORT | K1: (03.03) DTaP/IPV (Booster) | L1: Children aged 6 to 10 weeks during the audit period | M1: Registered before 3 months old | N1: Infant feeding recorded | O1: Diabetes Register | P1: Diabetes Triple Target | Q1: Blood Pressure 140/80 (12 mths) | R1: HbA1c 59 or less (12 mths) | S1: Cholesterol 4.5 or less (12 mths) | T1: Patients aged 18 or over on the epilepsy register | U1: Annual Review done | V1: Fit frequency recorded | W1: Seizure free >12m or Last fit recorded | X1: Medication Review done | Y1: Psychology Referrals (IAPT) | Z1: Type 2 eligible population for HbA1c <=59 | AA1: Type 2 eligible population for BP <=140/80 | AB1: Type 2 eligible population for Cholesterol <=4.5 | AC1: Type 2 eligible population for on target | AD1: 08 Patients with CKD | AE1: 0801 BP maintained (130/80mm HG) | AF1: Frailty >=0.36 | AG1: Face to face review 3mths (including video conference) | AH1: Practice | AI1: Locality ID | AJ1: SubLocality ID | AK1: SubLocality
A2: NH_OM | B2: 44044 | C2: 44070 | D2: F84672 | E2: 7066 | F2: 73 | G2: 65 | H2: 75 | I2: 60 | J2: 74 | K2: 59 | L2: 7 | M2: 7 | N2: 0 | O2: 477 | P2: 138 | Q2: 317 | R2: 258 | S2: 267 | T2: 21 | U2: 0 | V2: 0 | W2: 15 | X2: 1 | Y2: 2 | Z2: 340 | AA2: 379 | AB2: 351 | AC2: 265 | AD2: 144 | AE2: 30 | AF2: 53 | AG2: 33 | AH2: E7 Health - First 4 Health Group | AI2: NH | AJ2: NH-PCN6 | AK2: North Newham
A3: NH_OM | B3: 44044 | C3: 44070 | D3: F84670 | E3: 4491 | F3: 65 | G3: 58 | H3: 62 | I3: 50 | J3: 64 | K3: 41 | L3: 7 | M3: 7 | N3: 1 | O3: 511 | P3: 147 | Q3: 346 | R3: 263 | S3: 320 | T3: 11 | U3: 0 | V3: 0 | W3: 7 | X3: 0 | Y3: 0 | Z3: 498 | AA3: 503 | AB3: 496 | AC3: 488 | AD3: 134 | AE3: 43 | AF3: 24 | AG3: 24 | AH3: Westbury Road Medical Practice | AI3: NH | AJ3: NH-PCN4 | AK3: North East 1
A4: NH_OM | B4: 44044 | C4: 44070 | D4: F84673 | E4: 1977 | F4: 13 | G4: 11 | H4: 12 | I4: 9 | J4: 20 | K4: 13 | L4: 0 | M4: 0 | N4: 0 | O4: 147 | P4: 39 | Q4: 107 | R4: 74 | S4: 78 | T4: 2 | U4: 0 | V4: 0 | W4: 1 | X4: 0 | Y4: 0 | Z4: 144 | AA4: 142 | AB4: 140 | AC4: 138 | AD4: 34 | AE4: 6 | AF4: 5 | AG4: 5 | AH4: Esk Road Medical Practice | AI4: NH | AJ4: NH-PCN1 | AK4: South One Newham
A5: NH_OM | B5: 44044 | C5: 44070 | D5: F84681 | E5: 5879 | F5: 58 | G5: 53 | H5: 86 | I5: 62 | J5: 62 | K5: 46 | L5: 6 | M5: 6 | N5: 0 | O5: 384 | P5: 79 | Q5: 237 | R5: 189 | S5: 199 | T5: 23 | U5: 0 | V5: 0 | W5: 13 | X5: 2 | Y5: 0 | Z5: 368 | AA5: 369 | AB5: 364 | AC5: 352 | AD5: 72 | AE5: 19 | AF5: 17 | AG5: 17 | AH5: Balaam Street Practice | AI5: NH | AJ5: NH-PCN3 | AK5: Newham Central
A6: NH_OM | B6: 44044 | C6: 44070 | D6: F84677 | E6: 6312 | F6: 78 | G6: 75 | H6: 72 | I6: 59 | J6: 97 | K6: 72 | L6: 23 | M6: 23 | N6: 0 | O6: 683 | P6: 237 | Q6: 538 | R6: 403 | S6: 430 | T6: 16 | U6: 0 | V6: 1 | W6: 15 | X6: 0 | Y6: 3 | Z6: 670 | AA6: 672 | AB6: 662 | AC6: 655 | AD6: 324 | AE6: 84 | AF6: 83 | AG6: 81 | AH6: East End Medical Centre | AI6: NH | AJ6: NH-PCN9 | AK6: North West 2
A7: NH_OM | B7: 44044 | C7: 44070 | D7: F84669 | E7: 10138 | F7: 147 | G7: 127 | H7: 123 | I7: 100 | J7: 137 | K7: 95 | L7: 15 | M7: 15 | N7: 4 | O7: 861 | P7: 274 | Q7: 589 | R7: 488 | S7: 526 | T7: 34 | U7: 1 | V7: 1 | W7: 27 | X7: 2 | Y7: 27 | Z7: 825 | AA7: 836 | AB7: 827 | AC7: 797 | AD7: 217 | AE7: 68 | AF7: 70 | AG7: 65 | AH7: Newham Medical Centre | AI7: NH | AJ7: NH-PCN2 | AK7: Central 1
A8: NH_OM | B8: 44044 | C8: 44070 | D8: F84657 | E8: 4107 | F8: 51 | G8: 41 | H8: 52 | I8: 46 | J8: 61 | K8: 43 | L8: 6 | M8: 6 | N8: 0 | O8: 214 | P8: 79 | Q8: 165 | R8: 121 | S8: 139 | T8: 24 | U8: 0 | V8: 0 | W8: 23 | X8: 0 | Y8: 1 | Z8: 207 | AA8: 208 | AB8: 206 | AC8: 201 | AD8: 140 | AE8: 38 | AF8: 23 | AG8: 21 | AH8: Cumberland Road Medical Practice | AI8: NH | AJ8: NH-PCN1 | AK8: South One Newham
A9: NH_OM | B9: 44044 | C9: 44070 | D9: F84642 | E9: 6763 | F9: 82 | G9: 77 | H9: 90 | I9: 80 | J9: 68 | K9: 61 | L9: 19 | M9: 19 | N9: 4 | O9: 417 | P9: 152 | Q9: 332 | R9: 240 | S9: 269 | T9: 15 | U9: 0 | V9: 0 | W9: 4 | X9: 0 | Y9: 1 | Z9: 387 | AA9: 397 | AB9: 386 | AC9: 363 | AD9: 105 | AE9: 29 | AF9: 37 | AG9: 33 | AH9: Lucas Avenue Surgery | AI9: NH | AJ9: NH-PCN3 | AK9: Newham Central
A10: NH_OM | B10: 44044 | C10: 44070 | D10: F84658 | E10: 11312 | F10: 129 | G10: 122 | H10: 126 | I10: 110 | J10: 154 | K10: 132 | L10: 17 | M10: 17 | N10: 8 | O10: 1229 | P10: 380 | Q10: 914 | R10: 666 | S10: 773 | T10: 49 | U10: 0 | V10: 2 | W10: 47 | X10: 2 | Y10: 5 | Z10: 1166 | AA10: 1194 | AB10: 1168 | AC10: 1127 | AD10: 385 | AE10: 114 | AF10: 125 | AG10: 101 | AH10: Sangam Surgery | AI10: NH | AJ10: NH-PCN4 | AK10: North East 1
A11: NH_OM | B11: 44044 | C11: 44070 | D11: F84666 | E11: 5884 | F11: 77 | G11: 63 | H11: 77 | I11: 63 | J11: 90 | K11: 44 | L11: 11 | M11: 11 | N11: 0 | O11: 274 | P11: 82 | Q11: 185 | R11: 153 | S11: 173 | T11: 13 | U11: 0 | V11: 0 | W11: 7 | X11: 2 | Y11: 1 | Z11: 265 | AA11: 264 | AB11: 263 | AC11: 251 | AD11: 82 | AE11: 25 | AF11: 13 | AG11: 12 | AH11: Dr Ruiz – St Lukes Medical Centre | AI11: NH | AJ11: NH-PCN1 | AK11: South One Newham
A12: NH_OM | B12: 44044 | C12: 44070 | D12: F84660 | E12: 2569 | F12: 24 | G12: 24 | H12: 29 | I12: 29 | J12: 18 | K12: 17 | L12: 10 | M12: 10 | N12: 0 | O12: 165 | P12: 79 | Q12: 125 | R12: 121 | S12: 132 | T12: 8 | U12: 0 | V12: 0 | W12: 8 | X12: 0 | Y12: 5 | Z12: 160 | AA12: 158 | AB12: 158 | AC12: 151 | AD12: 32 | AE12: 15 | AF12: 4 | AG12: 3 | AH12: Dr CM Patel | AI12: NH | AJ12: NH-PCN4 | AK12: North East 1
A13: NH_OM | B13: 44044 | C13: 44070 | D13: F84717 | E13: 10973 | F13: 119 | G13: 115 | H13: 119 | I13: 108 | J13: 123 | K13: 90 | L13: 6 | M13: 6 | N13: 5 | O13: 463 | P13: 109 | Q13: 292 | R13: 259 | S13: 258 | T13: 35 | U13: 0 | V13: 0 | W13: 20 | X13: 4 | Y13: 9 | Z13: 451 | AA13: 443 | AB13: 449 | AC13: 437 | AD13: 275 | AE13: 93 | AF13: 60 | AG13: 59 | AH13: Royal Docks Medical Centre | AI13: NH | AJ13: NH-PCN10 | AK13: Docklands
A14: NH_OM | B14: 44044 | C14: 44070 | D14: F84741 | E14: 2101 | F14: 27 | G14: 24 | H14: 20 | I14: 19 | J14: 18 | K14: 14 | L14: 0 | M14: 0 | N14: 0 | O14: 236 | P14: 73 | Q14: 177 | R14: 163 | S14: 136 | T14: 5 | U14: 0 | V14: 0 | W14: 3 | X14: 0 | Y14: 0 | Z14: 226 | AA14: 225 | AB14: 225 | AC14: 213 | AD14: 95 | AE14: 44 | AF14: 35 | AG14: 26 | AH14: Dr Krishnamurthy Surgery | AI14: NH | AJ14: NH-PCN5 | AK14: North East 2
A15: NH_OM | B15: 44044 | C15: 44070 | D15: F84740 | E15: 4402 | F15: 46 | G15: 35 | H15: 67 | I15: 52 | J15: 52 | K15: 40 | L15: 2 | M15: 2 | N15: 1 | O15: 300 | P15: 100 | Q15: 229 | R15: 185 | S15: 190 | T15: 29 | U15: 0 | V15: 0 | W15: 19 | X15: 2 | Y15: 2 | Z15: 278 | AA15: 282 | AB15: 275 | AC15: 259 | AD15: 104 | AE15: 30 | AF15: 10 | AG15: 10 | AH15: Newham Transitional Team | AI15: NH | AJ15: NH-PCN8 | AK15: Stratford
A16: NH_OM | B16: 44044 | C16: 44070 | D16: F84742 | E16: 2371 | F16: 11 | G16: 11 | H16: 23 | I16: 23 | J16: 14 | K16: 14 | L16: 2 | M16: 2 | N16: 0 | O16: 161 | P16: 49 | Q16: 132 | R16: 90 | S16: 101 | T16: 8 | U16: 0 | V16: 0 | W16: 7 | X16: 0 | Y16: 1 | Z16: 153 | AA16: 157 | AB16: 155 | AC16: 147 | AD16: 48 | AE16: 11 | AF16: 3 | AG16: 3 | AH16: The Summit Practice | AI16: NH | AJ16: NH-PCN5 | AK16: North East 2
A17: NH_OM | B17: 44044 | C17: 44070 | D17: Y02928 | E17: 15279 | F17: 282 | G17: 257 | H17: 273 | I17: 232 | J17: 191 | K17: 165 | L17: 40 | M17: 40 | N17: 8 | O17: 394 | P17: 145 | Q17: 293 | R17: 243 | S17: 268 | T17: 40 | U17: 0 | V17: 0 | W17: 21 | X17: 0 | Y17: 3 | Z17: 361 | AA17: 379 | AB17: 367 | AC17: 347 | AD17: 198 | AE17: 52 | AF17: 15 | AG17: 14 | AH17: The Practice - Albert Road | AI17: NH | AJ17: NH-PCN10 | AK17: Docklands
A18: NH_OM | B18: 44044 | C18: 44070 | D18: F84749 | E18: 16047 | F18: 207 | G18: 191 | H18: 222 | I18: 189 | J18: 216 | K18: 146 | L18: 26 | M18: 26 | N18: 7 | O18: 761 | P18: 278 | Q18: 561 | R18: 474 | S18: 548 | T18: 52 | U18: 0 | V18: 0 | W18: 34 | X18: 1 | Y18: 21 | Z18: 709 | AA18: 718 | AB18: 713 | AC18: 664 | AD18: 314 | AE18: 105 | AF18: 71 | AG18: 27 | AH18: Carpenters Practice (AT Medics) | AI18: NH | AJ18: NH-PCN7 | AK18: Leaside
A19: NH_OM | B19: 44044 | C19: 44070 | D19: F84739 | E19: 4998 | F19: 45 | G19: 43 | H19: 54 | I19: 54 | J19: 56 | K19: 53 | L19: 13 | M19: 13 | N19: 8 | O19: 516 | P19: 307 | Q19: 507 | R19: 380 | S19: 416 | T19: 9 | U19: 0 | V19: 0 | W19: 9 | X19: 2 | Y19: 2 | Z19: 502 | AA19: 513 | AB19: 499 | AC19: 486 | AD19: 67 | AE19: 31 | AF19: 30 | AG19: 30 | AH19: E12 Medical Practice | AI19: NH | AJ19: NH-PCN5 | AK19: North East 2
A20: NH_OM | B20: 44044 | C20: 44070 | D20: F84729 | E20: 4818 | F20: 62 | G20: 55 | H20: 50 | I20: 40 | J20: 57 | K20: 46 | L20: 11 | M20: 11 | N20: 5 | O20: 481 | P20: 134 | Q20: 316 | R20: 263 | S20: 323 | T20: 5 | U20: 0 | V20: 0 | W20: 5 | X20: 0 | Y20: 1 | Z20: 454 | AA20: 459 | AB20: 454 | AC20: 428 | AD20: 120 | AE20: 42 | AF20: 21 | AG20: 20 | AH20: The Manor Park Practice | AI20: NH | AJ20: NH-PCN4 | AK20: North East 1
A21: NH_OM | B21: 44044 | C21: 44070 | D21: F84724 | E21: 15820 | F21: 249 | G21: 233 | H21: 253 | I21: 238 | J21: 200 | K21: 175 | L21: 50 | M21: 50 | N21: 9 | O21: 862 | P21: 312 | Q21: 739 | R21: 496 | S21: 560 | T21: 49 | U21: 0 | V21: 0 | W21: 41 | X21: 9 | Y21: 29 | Z21: 807 | AA21: 839 | AB21: 822 | AC21: 777 | AD21: 289 | AE21: 106 | AF21: 63 | AG21: 50 | AH21: Woodgrange Medical Practice | AI21: NH | AJ21: NH-PCN6 | AK21: North Newham
A22: NH_OM | B22: 44044 | C22: 44070 | D22: F84730 | E22: 10253 | F22: 108 | G22: 94 | H22: 105 | I22: 82 | J22: 124 | K22: 59 | L22: 14 | M22: 14 | N22: 0 | O22: 492 | P22: 83 | Q22: 220 | R22: 219 | S22: 210 | T22: 47 | U22: 0 | V22: 1 | W22: 21 | X22: 3 | Y22: 0 | Z22: 467 | AA22: 461 | AB22: 455 | AC22: 441 | AD22: 146 | AE22: 44 | AF22: 27 | AG22: 26 | AH22: Dr Knight and Dr Ashar | AI22: NH | AJ22: NH-PCN9 | AK22: North West 2
A23: NH_OM | B23: 44044 | C23: 44070 | D23: F84735 | E23: 8781 | F23: 129 | G23: 126 | H23: 135 | I23: 118 | J23: 131 | K23: 124 | L23: 10 | M23: 10 | N23: 2 | O23: 741 | P23: 280 | Q23: 566 | R23: 455 | S23: 478 | T23: 26 | U23: 0 | V23: 0 | W23: 18 | X23: 1 | Y23: 2 | Z23: 723 | AA23: 731 | AB23: 723 | AC23: 716 | AD23: 167 | AE23: 48 | AF23: 17 | AG23: 13 | AH23: The Azad Practice | AI23: NH | AJ23: NH-PCN2 | AK23: Central 1
A24: NH_OM | B24: 44044 | C24: 44070 | D24: F84734 | E24: 5732 | F24: 46 | G24: 42 | H24: 59 | I24: 57 | J24: 77 | K24: 69 | L24: 12 | M24: 12 | N24: 2 | O24: 449 | P24: 131 | Q24: 339 | R24: 206 | S24: 256 | T24: 10 | U24: 0 | V24: 0 | W24: 9 | X24: 0 | Y24: 0 | Z24: 419 | AA24: 433 | AB24: 422 | AC24: 403 | AD24: 126 | AE24: 21 | AF24: 22 | AG24: 20
A25: NH_OM | B25: 44044 | C25: 44070 | D25: F84641 | E25: 3021 | F25: 34 | G25: 33 | H25: 36 | I25: 35 | J25: 39 | K25: 35 | L25: 4 | M25: 4 | N25: 2 | O25: 350 | P25: 131 | Q25: 283 | R25: 203 | S25: 225 | T25: 18 | U25: 0 | V25: 0 | W25: 15 | X25: 1 | Y25: 3 | Z25: 322 | AA25: 326 | AB25: 320 | AC25: 295 | AD25: 127 | AE25: 38 | AF25: 72 | AG25: 66 | AH25: Birchdale Road Medical Practice | AI25: NH | AJ25: NH-PCN4 | AK25: North East 1
A26: NH_OM | B26: 44044 | C26: 44070 | D26: F84022 | E26: 7180 | F26: 49 | G26: 46 | H26: 68 | I26: 58 | J26: 63 | K26: 46 | L26: 9 | M26: 9 | N26: 1 | O26: 336 | P26: 106 | Q26: 249 | R26: 198 | S26: 201 | T26: 21 | U26: 0 | V26: 0 | W26: 16 | X26: 4 | Y26: 28 | Z26: 323 | AA26: 326 | AB26: 323 | AC26: 317 | AD26: 152 | AE26: 45 | AF26: 8 | AG26: 8 | AH26: Stratford Health Centre | AI26: NH | AJ26: NH-PCN9 | AK26: North West 2
A27: NH_OM | B27: 44044 | C27: 44070 | D27: F84017 | E27: 20078 | F27: 274 | G27: 235 | H27: 275 | I27: 219 | J27: 255 | K27: 172 | L27: 33 | M27: 33 | N27: 18 | O27: 1027 | P27: 306 | Q27: 744 | R27: 554 | S27: 576 | T27: 86 | U27: 0 | V27: 0 | W27: 58 | X27: 4 | Y27: 10 | Z27: 921 | AA27: 971 | AB27: 941 | AC27: 856 | AD27: 602 | AE27: 135 | AF27: 157 | AG27: 145 | AH27: Star Lane Medical Centre | AI27: NH | AJ27: NH-PCN1 | AK27: South One Newham
A28: NH_OM | B28: 44044 | C28: 44070 | D28: F84047 | E28: 9342 | F28: 102 | G28: 87 | H28: 94 | I28: 82 | J28: 127 | K28: 99 | L28: 13 | M28: 13 | N28: 4 | O28: 569 | P28: 201 | Q28: 462 | R28: 353 | S28: 325 | T28: 31 | U28: 0 | V28: 0 | W28: 23 | X28: 2 | Y28: 0 | Z28: 538 | AA28: 547 | AB28: 532 | AC28: 512 | AD28: 217 | AE28: 66 | AF28: 53 | AG28: 47 | AH28: Custom House Surgery | AI28: NH | AJ28: NH-PCN1 | AK28: South One Newham
A29: NH_OM | B29: 44044 | C29: 44070 | D29: F84052 | E29: 12655 | F29: 193 | G29: 175 | H29: 182 | I29: 157 | J29: 142 | K29: 119 | L29: 15 | M29: 15 | N29: 2 | O29: 752 | P29: 250 | Q29: 541 | R29: 434 | S29: 454 | T29: 39 | U29: 15 | V29: 15 | W29: 39 | X29: 12 | Y29: 0 | Z29: 722 | AA29: 723 | AB29: 719 | AC29: 691 | AD29: 315 | AE29: 78 | AF29: 74 | AG29: 66 | AH29: Essex Lodge | AI29: NH | AJ29: NH-PCN3 | AK29: Newham Central
A30: NH_OM | B30: 44044 | C30: 44070 | D30: F84050 | E30: 10868 | F30: 170 | G30: 153 | H30: 172 | I30: 143 | J30: 153 | K30: 131 | L30: 15 | M30: 15 | N30: 4 | O30: 822 | P30: 174 | Q30: 475 | R30: 459 | S30: 452 | T30: 33 | U30: 0 | V30: 0 | W30: 23 | X30: 0 | Y30: 0 | Z30: 794 | AA30: 792 | AB30: 789 | AC30: 773 | AD30: 182 | AE30: 63 | AF30: 36 | AG30: 34 | AH30: Boleyn Medical Centre | AI30: NH | AJ30: NH-PCN2 | AK30: Central 1
A31: NH_OM | B31: 44044 | C31: 44070 | D31: F84014 | E31: 7978 | F31: 97 | G31: 90 | H31: 75 | I31: 63 | J31: 106 | K31: 85 | L31: 13 | M31: 13 | N31: 0 | O31: 795 | P31: 247 | Q31: 602 | R31: 466 | S31: 467 | T31: 27 | U31: 0 | V31: 0 | W31: 19 | X31: 0 | Y31: 1 | Z31: 707 | AA31: 743 | AB31: 696 | AC31: 630 | AD31: 351 | AE31: 94 | AF31: 72 | AG31: 63 | AH31: Upton Lane Medical Centre | AI31: NH | AJ31: NH-PCN9 | AK31: North West 2
A32: NH_OM | B32: 44044 | C32: 44070 | D32: F84004 | E32: 13686 | F32: 186 | G32: 160 | H32: 192 | I32: 169 | J32: 184 | K32: 143 | L32: 29 | M32: 29 | N32: 4 | O32: 972 | P32: 347 | Q32: 708 | R32: 625 | S32: 612 | T32: 59 | U32: 1 | V32: 0 | W32: 49 | X32: 7 | Y32: 12 | Z32: 857 | AA32: 883 | AB32: 866 | AC32: 778 | AD32: 441 | AE32: 161 | AF32: 177 | AG32: 144 | AH32: Market Street Health Group | AI32: NH | AJ32: NH-PCN2 | AK32: Central 1
A33: NH_OM | B33: 44044 | C33: 44070 | D33: Y04273 | E33: 16997 | F33: 211 | G33: 190 | H33: 211 | I33: 185 | J33: 172 | K33: 128 | L33: 21 | M33: 21 | N33: 7 | O33: 304 | P33: 70 | Q33: 204 | R33: 166 | S33: 145 | T33: 40 | U33: 1 | V33: 2 | W33: 31 | X33: 5 | Y33: 3 | Z33: 270 | AA33: 276 | AB33: 260 | AC33: 245 | AD33: 55 | AE33: 18 | AF33: 14 | AG33: 13 | AH33: Liberty Bridge Road | AI33: NH | AJ33: NH-PCN7 | AK33: Leaside
A34: NH_OM | B34: 44044 | C34: 44070 | D34: F84006 | E34: 14269 | F34: 236 | G34: 223 | H34: 208 | I34: 184 | J34: 189 | K34: 156 | L34: 37 | M34: 37 | N34: 6 | O34: 1458 | P34: 583 | Q34: 1192 | R34: 910 | S34: 1036 | T34: 47 | U34: 1 | V34: 0 | W34: 42 | X34: 5 | Y34: 16 | Z34: 1345 | AA34: 1396 | AB34: 1358 | AC34: 1274 | AD34: 401 | AE34: 123 | AF34: 139 | AG34: 135 | AH34: Shrewsbury Road Surgery | AI34: NH | AJ34: NH-PCN5 | AK34: North East 2
A35: NH_OM | B35: 44044 | C35: 44070 | D35: F84010 | E35: 10487 | F35: 145 | G35: 133 | H35: 129 | I35: 106 | J35: 152 | K35: 127 | L35: 13 | M35: 13 | N35: 2 | O35: 724 | P35: 260 | Q35: 521 | R35: 467 | S35: 521 | T35: 24 | U35: 0 | V35: 0 | W35: 22 | X35: 2 | Y35: 18 | Z35: 686 | AA35: 689 | AB35: 684 | AC35: 646 | AD35: 339 | AE35: 85 | AF35: 63 | AG35: 60 | AH35: St Bartholomew Surgery | AI35: NH | AJ35: NH-PCN2 | AK35: Central 1
A36: NH_OM | B36: 44044 | C36: 44070 | D36: F84009 | E36: 10495 | F36: 108 | G36: 91 | H36: 137 | I36: 119 | J36: 95 | K36: 79 | L36: 10 | M36: 10 | N36: 0 | O36: 476 | P36: 159 | Q36: 340 | R36: 277 | S36: 308 | T36: 37 | U36: 0 | V36: 0 | W36: 33 | X36: 3 | Y36: 7 | Z36: 433 | AA36: 447 | AB36: 441 | AC36: 401 | AD36: 191 | AE36: 59 | AF36: 51 | AG36: 25 | AH36: Stratford Village Surgery | AI36: NH | AJ36: NH-PCN8 | AK36: Stratford
A37: NH_OM | B37: 44044 | C37: 44070 | D37: F84053 | E37: 7989 | F37: 83 | G37: 73 | H37: 87 | I37: 65 | J37: 90 | K37: 62 | L37: 15 | M37: 15 | N37: 3 | O37: 622 | P37: 94 | Q37: 263 | R37: 300 | S37: 293 | T37: 30 | U37: 6 | V37: 5 | W37: 25 | X37: 10 | Y37: 0 | Z37: 547 | AA37: 533 | AB37: 550 | AC37: 487 | AD37: 260 | AE37: 56 | AF37: 77 | AG37: 63 | AH37: Greengate Medical Practice | AI37: NH | AJ37: NH-PCN2 | AK37: Central 1
A38: NH_OM | B38: 44044 | C38: 44070 | D38: F84097 | E38: 11016 | F38: 187 | G38: 174 | H38: 184 | I38: 162 | J38: 160 | K38: 122 | L38: 21 | M38: 21 | N38: 8 | O38: 799 | P38: 291 | Q38: 591 | R38: 478 | S38: 545 | T38: 38 | U38: 1 | V38: 3 | W38: 36 | X38: 5 | Y38: 32 | Z38: 773 | AA38: 777 | AB38: 770 | AC38: 756 | AD38: 334 | AE38: 117 | AF38: 103 | AG38: 66 | AH38: Claremont Clinic | AI38: NH | AJ38: NH-PCN6 | AK38: North Newham
A39: NH_OM | B39: 44044 | C39: 44070 | D39: F84093 | E39: 17941 | F39: 224 | G39: 192 | H39: 259 | I39: 228 | J39: 222 | K39: 184 | L39: 30 | M39: 30 | N39: 7 | O39: 829 | P39: 226 | Q39: 586 | R39: 501 | S39: 441 | T39: 55 | U39: 4 | V39: 4 | W39: 49 | X39: 2 | Y39: 5 | Z39: 765 | AA39: 787 | AB39: 769 | AC39: 724 | AD39: 422 | AE39: 129 | AF39: 72 | AG39: 49 | AH39: Tollgate Health Centre | AI39: NH | AJ39: NH-PCN10 | AK39: Docklands
A40: NH_OM | B40: 44044 | C40: 44070 | D40: F84111 | E40: 9886 | F40: 115 | G40: 104 | H40: 117 | I40: 109 | J40: 104 | K40: 84 | L40: 13 | M40: 13 | N40: 6 | O40: 622 | P40: 203 | Q40: 536 | R40: 370 | S40: 368 | T40: 39 | U40: 0 | V40: 0 | W40: 26 | X40: 3 | Y40: 0 | Z40: 604 | AA40: 609 | AB40: 596 | AC40: 579 | AD40: 314 | AE40: 91 | AF40: 43 | AG40: 41 | AH40: Abbey Road Medical Practice | AI40: NH | AJ40: NH-PCN7 | AK40: Leaside
A41: NH_OM | B41: 44044 | C41: 44070 | D41: F84124 | E41: 4938 | F41: 67 | G41: 62 | H41: 58 | I41: 51 | J41: 55 | K41: 48 | L41: 14 | M41: 14 | N41: 1 | O41: 260 | P41: 90 | Q41: 187 | R41: 153 | S41: 177 | T41: 21 | U41: 0 | V41: 0 | W41: 16 | X41: 2 | Y41: 1 | Z41: 235 | AA41: 240 | AB41: 239 | AC41: 217 | AD41: 105 | AE41: 26 | AF41: 17 | AG41: 15 | AH41: The Project Surgery | AI41: NH | AJ41: NH-PCN2 | AK41: Central 1
A42: NH_OM | B42: 44044 | C42: 44070 | D42: F84121 | E42: 13693 | F42: 228 | G42: 208 | H42: 231 | I42: 217 | J42: 223 | K42: 193 | L42: 37 | M42: 37 | N42: 8 | O42: 1138 | P42: 422 | Q42: 889 | R42: 673 | S42: 793 | T42: 48 | U42: 0 | V42: 0 | W42: 41 | X42: 2 | Y42: 13 | Z42: 1026 | AA42: 1062 | AB42: 1039 | AC42: 943 | AD42: 381 | AE42: 154 | AF42: 135 | AG42: 105 | AH42: First4Health Church Road | AI42: NH | AJ42: NH-PCN8 | AK42: Stratford
A43: NH_OM | B43: 44044 | C43: 44070 | D43: F84092 | E43: 8401 | F43: 120 | G43: 111 | H43: 130 | I43: 111 | J43: 114 | K43: 84 | L43: 11 | M43: 11 | N43: 3 | O43: 502 | P43: 152 | Q43: 369 | R43: 292 | S43: 302 | T43: 24 | U43: 1 | V43: 0 | W43: 19 | X43: 1 | Y43: 24 | Z43: 468 | AA43: 476 | AB43: 469 | AC43: 448 | AD43: 208 | AE43: 44 | AF43: 28 | AG43: 22 | AH43: Glen Road Medical Centre | AI43: NH | AJ43: NH-PCN1 | AK43: South One Newham
A44: NH_OM | B44: 44044 | C44: 44070 | D44: F84074 | E44: 11061 | F44: 127 | G44: 114 | H44: 124 | I44: 118 | J44: 103 | K44: 90 | L44: 12 | M44: 12 | N44: 0 | O44: 975 | P44: 285 | Q44: 623 | R44: 559 | S44: 620 | T44: 43 | U44: 0 | V44: 1 | W44: 34 | X44: 3 | Y44: 1 | Z44: 941 | AA44: 941 | AB44: 930 | AC44: 902 | AD44: 400 | AE44: 122 | AF44: 88 | AG44: 81 | AH44: Wordsworth Health Centre | AI44: NH | AJ44: NH-PCN5 | AK44: North East 2
A45: NH_OM | B45: 44044 | C45: 44070 | D45: F84070 | E45: 7007 | F45: 100 | G45: 87 | H45: 116 | I45: 100 | J45: 91 | K45: 73 | L45: 24 | M45: 24 | N45: 9 | O45: 586 | P45: 229 | Q45: 445 | R45: 371 | S45: 399 | T45: 17 | U45: 0 | V45: 0 | W45: 16 | X45: 3 | Y45: 8 | Z45: 550 | AA45: 554 | AB45: 546 | AC45: 512 | AD45: 254 | AE45: 95 | AF45: 61 | AG45: 60 | AH45: Lathom Medical Centre | AI45: NH | AJ45: NH-PCN5 | AK45: North East 2
A46: NH_OM | B46: 44044 | C46: 44070 | D46: F84077 | E46: 9486 | F46: 126 | G46: 109 | H46: 132 | I46: 116 | J46: 125 | K46: 102 | L46: 16 | M46: 16 | N46: 3 | O46: 476 | P46: 145 | Q46: 349 | R46: 283 | S46: 264 | T46: 30 | U46: 0 | V46: 0 | W46: 20 | X46: 1 | Y46: 2 | Z46: 461 | AA46: 464 | AB46: 456 | AC46: 443 | AD46: 261 | AE46: 71 | AF46: 23 | AG46: 20 | AH46: Dr Samuel & Dr Khan's Practice | AI46: NH | AJ46: NH-PCN8 | AK46: Stratford
A47: NH_OM | B47: 44044 | C47: 44070 | D47: F84088 | E47: 4942 | F47: 55 | G47: 45 | H47: 62 | I47: 51 | J47: 53 | K47: 34 | L47: 11 | M47: 11 | N47: 3 | O47: 384 | P47: 102 | Q47: 295 | R47: 206 | S47: 205 | T47: 17 | U47: 0 | V47: 0 | W47: 8 | X47: 0 | Y47: 0 | Z47: 373 | AA47: 376 | AB47: 362 | AC47: 358 | AD47: 116 | AE47: 36 | AF47: 19 | AG47: 18 | AH47: Plashet Medical Centre | AI47: NH | AJ47: NH-PCN4 | AK47: North East 1
A48: NH_OM | B48: 44044 | C48: 44070 | D48: F84086 | E48: 7064 | F48: 79 | G48: 72 | H48: 87 | I48: 81 | J48: 77 | K48: 67 | L48: 13 | M48: 13 | N48: 4 | O48: 465 | P48: 169 | Q48: 315 | R48: 331 | S48: 314 | T48: 28 | U48: 0 | V48: 0 | W48: 18 | X48: 2 | Y48: 33 | Z48: 435 | AA48: 425 | AB48: 434 | AC48: 388 | AD48: 280 | AE48: 86 | AF48: 39 | AG48: 35 | AH48: The Forest Practice | AI48: NH | AJ48: NH-PCN9 | AK48: North West 2
A49: NH_OM | B49: 44075 | C49: 44076 | D49: F84681 | E49: 5887 | F49: 57 | G49: 52 | H49: 83 | I49: 63 | J49: 64 | K49: 51 | L49: 13 | M49: 13 | N49: 0 | O49: 384 | P49: 81 | Q49: 241 | R49: 189 | S49: 203 | T49: 22 | U49: 0 | V49: 0 | W49: 12 | X49: 3 | Y49: 0 | Z49: 369 | AA49: 367 | AB49: 363 | AC49: 351 | AD49: 71 | AE49: 20 | AF49: 17 | AG49: 16 | AH49: Balaam Street Practice | AI49: NH | AJ49: NH-PCN3 | AK49: Newham Central
A50: NH_OM | B50: 44075 | C50: 44076 | D50: F84677 | E50: 6326 | F50: 78 | G50: 74 | H50: 75 | I50: 61 | J50: 93 | K50: 68 | L50: 34 | M50: 34 | N50: 15 | O50: 685 | P50: 227 | Q50: 541 | R50: 386 | S50: 417 | T50: 17 | U50: 0 | V50: 1 | W50: 15 | X50: 0 | Y50: 4 | Z50: 670 | AA50: 676 | AB50: 665 | AC50: 658 | AD50: 323 | AE50: 91 | AF50: 82 | AG50: 77 | AH50: East End Medical Centre | AI50: NH | AJ50: NH-PCN9 | AK50: North West 2
A51: NH_OM | B51: 44075 | C51: 44076 | D51: F84673 | E51: 1983 | F51: 14 | G51: 12 | H51: 12 | I51: 9 | J51: 21 | K51: 13 | L51: 0 | M51: 0 | N51: 0 | O51: 147 | P51: 39 | Q51: 106 | R51: 74 | S51: 78 | T51: 2 | U51: 0 | V51: 0 | W51: 1 | X51: 0 | Y51: 0 | Z51: 144 | AA51: 142 | AB51: 141 | AC51: 139 | AD51: 34 | AE51: 6 | AF51: 5 | AG51: 5 | AH51: Esk Road Medical Practice | AI51: NH | AJ51: NH-PCN1 | AK51: South One Newham
A52: NH_OM | B52: 44075 | C52: 44076 | D52: F84658 | E52: 11304 | F52: 127 | G52: 119 | H52: 120 | I52: 107 | J52: 156 | K52: 131 | L52: 32 | M52: 32 | N52: 17 | O52: 1231 | P52: 362 | Q52: 893 | R52: 644 | S52: 761 | T52: 49 | U52: 0 | V52: 2 | W52: 47 | X52: 5 | Y52: 12 | Z52: 1167 | AA52: 1193 | AB52: 1174 | AC52: 1135 | AD52: 385 | AE52: 114 | AF52: 126 | AG52: 91 | AH52: Sangam Surgery | AI52: NH | AJ52: NH-PCN4 | AK52: North East 1
A53: NH_OM | B53: 44075 | C53: 44076 | D53: F84724 | E53: 15749 | F53: 244 | G53: 227 | H53: 259 | I53: 243 | J53: 198 | K53: 172 | L53: 74 | M53: 74 | N53: 28 | O53: 865 | P53: 313 | Q53: 730 | R53: 485 | S53: 562 | T53: 48 | U53: 1 | V53: 1 | W53: 40 | X53: 13 | Y53: 53 | Z53: 808 | AA53: 841 | AB53: 830 | AC53: 783 | AD53: 286 | AE53: 98 | AF53: 62 | AG53: 50 | AH53: Woodgrange Medical Practice | AI53: NH | AJ53: NH-PCN6 | AK53: North Newham
A54: NH_OM | B54: 44075 | C54: 44076 | D54: F84717 | E54: 10956 | F54: 126 | G54: 122 | H54: 110 | I54: 100 | J54: 130 | K54: 97 | L54: 13 | M54: 13 | N54: 10 | O54: 464 | P54: 107 | Q54: 284 | R54: 259 | S54: 253 | T54: 35 | U54: 0 | V54: 0 | W54: 20 | X54: 8 | Y54: 16 | Z54: 455 | AA54: 447 | AB54: 453 | AC54: 441 | AD54: 273 | AE54: 86 | AF54: 60 | AG54: 59 | AH54: Royal Docks Medical Centre | AI54: NH | AJ54: NH-PCN10 | AK54: Docklands
A55: NH_OM | B55: 44075 | C55: 44076 | D55: F84666 | E55: 5928 | F55: 77 | G55: 65 | H55: 78 | I55: 62 | J55: 83 | K55: 40 | L55: 15 | M55: 15 | N55: 0 | O55: 275 | P55: 83 | Q55: 182 | R55: 151 | S55: 175 | T55: 13 | U55: 0 | V55: 0 | W55: 7 | X55: 2 | Y55: 2 | Z55: 266 | AA55: 265 | AB55: 263 | AC55: 251 | AD55: 83 | AE55: 22 | AF55: 13 | AG55: 13 | AH55: Dr Ruiz – St Lukes Medical Centre | AI55: NH | AJ55: NH-PCN1 | AK55: South One Newham
A56: NH_OM | B56: 44075 | C56: 44076 | D56: F84660 | E56: 2582 | F56: 23 | G56: 23 | H56: 32 | I56: 32 | J56: 19 | K56: 18 | L56: 14 | M56: 14 | N56: 4 | O56: 165 | P56: 73 | Q56: 120 | R56: 121 | S56: 130 | T56: 8 | U56: 0 | V56: 1 | W56: 8 | X56: 2 | Y56: 8 | Z56: 162 | AA56: 157 | AB56: 160 | AC56: 152 | AD56: 32 | AE56: 14 | AF56: 5 | AG56: 2 | AH56: Dr CM Patel | AI56: NH | AJ56: NH-PCN4 | AK56: North East 1
A57: NH_OM | B57: 44075 | C57: 44076 | D57: F84657 | E57: 4103 | F57: 51 | G57: 44 | H57: 49 | I57: 43 | J57: 62 | K57: 43 | L57: 11 | M57: 11 | N57: 2 | O57: 215 | P57: 72 | Q57: 151 | R57: 116 | S57: 136 | T57: 24 | U57: 0 | V57: 1 | W57: 23 | X57: 3 | Y57: 1 | Z57: 208 | AA57: 208 | AB57: 209 | AC57: 203 | AD57: 138 | AE57: 38 | AF57: 22 | AG57: 20 | AH57: Cumberland Road Medical Practice | AI57: NH | AJ57: NH-PCN1 | AK57: South One Newham
A58: NH_OM | B58: 44075 | C58: 44076 | D58: F84672 | E58: 7053 | F58: 80 | G58: 70 | H58: 70 | I58: 59 | J58: 71 | K58: 57 | L58: 17 | M58: 17 | N58: 4 | O58: 477 | P58: 133 | Q58: 308 | R58: 258 | S58: 273 | T58: 21 | U58: 0 | V58: 0 | W58: 15 | X58: 2 | Y58: 3 | Z58: 338 | AA58: 374 | AB58: 353 | AC58: 262 | AD58: 142 | AE58: 32 | AF58: 54 | AG58: 36 | AH58: E7 Health - First 4 Health Group | AI58: NH | AJ58: NH-PCN6 | AK58: North Newham
A59: NH_OM | B59: 44075 | C59: 44076 | D59: F84670 | E59: 4499 | F59: 65 | G59: 58 | H59: 64 | I59: 51 | J59: 69 | K59: 44 | L59: 15 | M59: 15 | N59: 4 | O59: 514 | P59: 145 | Q59: 333 | R59: 264 | S59: 320 | T59: 11 | U59: 0 | V59: 0 | W59: 7 | X59: 0 | Y59: 0 | Z59: 500 | AA59: 506 | AB59: 498 | AC59: 489 | AD59: 134 | AE59: 40 | AF59: 24 | AG59: 21 | AH59: Westbury Road Medical Practice | AI59: NH | AJ59: NH-PCN4 | AK59: North East 1
A60: NH_OM | B60: 44075 | C60: 44076 | D60: F84669 | E60: 10165 | F60: 155 | G60: 132 | H60: 127 | I60: 106 | J60: 141 | K60: 99 | L60: 18 | M60: 18 | N60: 7 | O60: 869 | P60: 274 | Q60: 589 | R60: 488 | S60: 533 | T60: 33 | U60: 1 | V60: 1 | W60: 26 | X60: 3 | Y60: 45 | Z60: 831 | AA60: 845 | AB60: 840 | AC60: 808 | AD60: 217 | AE60: 68 | AF60: 71 | AG60: 64 | AH60: Newham Medical Centre | AI60: NH | AJ60: NH-PCN2 | AK60: Central 1
A61: NH_OM | B61: 44075 | C61: 44076 | D61: F84749 | E61: 16132 | F61: 215 | G61: 194 | H61: 210 | I61: 185 | J61: 209 | K61: 143 | L61: 47 | M61: 47 | N61: 23 | O61: 760 | P61: 274 | Q61: 572 | R61: 453 | S61: 523 | T61: 51 | U61: 0 | V61: 0 | W61: 34 | X61: 2 | Y61: 37 | Z61: 707 | AA61: 723 | AB61: 714 | AC61: 668 | AD61: 320 | AE61: 103 | AF61: 72 | AG61: 29 | AH61: Carpenters Practice (AT Medics) | AI61: NH | AJ61: NH-PCN7 | AK61: Leaside
A62: NH_OM | B62: 44075 | C62: 44076 | D62: F84742 | E62: 2371 | F62: 11 | G62: 11 | H62: 23 | I62: 23 | J62: 14 | K62: 14 | L62: 3 | M62: 3 | N62: 0 | O62: 161 | P62: 48 | Q62: 130 | R62: 86 | S62: 98 | T62: 9 | U62: 0 | V62: 0 | W62: 8 | X62: 1 | Y62: 2 | Z62: 152 | AA62: 157 | AB62: 154 | AC62: 146 | AD62: 48 | AE62: 11 | AF62: 3 | AG62: 3 | AH62: The Summit Practice | AI62: NH | AJ62: NH-PCN5 | AK62: North East 2
A63: NH_OM | B63: 44075 | C63: 44076 | D63: F84741 | E63: 2097 | F63: 32 | G63: 29 | H63: 18 | I63: 17 | J63: 22 | K63: 18 | L63: 0 | M63: 0 | N63: 0 | O63: 236 | P63: 72 | Q63: 181 | R63: 166 | S63: 123 | T63: 6 | U63: 0 | V63: 0 | W63: 4 | X63: 1 | Y63: 0 | Z63: 229 | AA63: 226 | AB63: 229 | AC63: 218 | AD63: 96 | AE63: 39 | AF63: 35 | AG63: 27 | AH63: Dr Krishnamurthy Surgery | AI63: NH | AJ63: NH-PCN5 | AK63: North East 2
A64: NH_OM | B64: 44075 | C64: 44076 | D64: F84070 | E64: 7024 | F64: 102 | G64: 89 | H64: 114 | I64: 97 | J64: 98 | K64: 77 | L64: 31 | M64: 31 | N64: 16 | O64: 590 | P64: 232 | Q64: 456 | R64: 369 | S64: 400 | T64: 18 | U64: 0 | V64: 0 | W64: 16 | X64: 5 | Y64: 11 | Z64: 551 | AA64: 558 | AB64: 547 | AC64: 510 | AD64: 255 | AE64: 91 | AF64: 64 | AG64: 64 | AH64: Lathom Medical Centre | AI64: NH | AJ64: NH-PCN5 | AK64: North East 2
A65: NH_OM | B65: 44075 | C65: 44076 | D65: Y04273 | E65: 17010 | F65: 211 | G65: 191 | H65: 209 | I65: 183 | J65: 176 | K65: 134 | L65: 38 | M65: 38 | N65: 16 | O65: 305 | P65: 77 | Q65: 221 | R65: 170 | S65: 150 | T65: 40 | U65: 1 | V65: 2 | W65: 31 | X65: 7 | Y65: 7 | Z65: 275 | AA65: 282 | AB65: 267 | AC65: 254 | AD65: 55 | AE65: 19 | AF65: 16 | AG65: 16 | AH65: Liberty Bridge Road | AI65: NH | AJ65: NH-PCN7 | AK65: Leaside
A66: NH_OM | B66: 44075 | C66: 44076 | D66: Y02928 | E66: 15401 | F66: 281 | G66: 256 | H66: 271 | I66: 233 | J66: 194 | K66: 173 | L66: 57 | M66: 57 | N66: 33 | O66: 395 | P66: 132 | Q66: 285 | R66: 232 | S66: 257 | T66: 41 | U66: 0 | V66: 0 | W66: 20 | X66: 1 | Y66: 7 | Z66: 362 | AA66: 380 | AB66: 370 | AC66: 346 | AD66: 197 | AE66: 49 | AF66: 15 | AG66: 13 | AH66: The Practice - Albert Road | AI66: NH | AJ66: NH-PCN10 | AK66: Docklands
A67: NH_OM | B67: 44075 | C67: 44076 | D67: F84734 | E67: 5738 | F67: 47 | G67: 42 | H67: 55 | I67: 54 | J67: 71 | K67: 63 | L67: 22 | M67: 22 | N67: 5 | O67: 457 | P67: 115 | Q67: 327 | R67: 191 | S67: 235 | T67: 10 | U67: 0 | V67: 0 | W67: 9 | X67: 0 | Y67: 3 | Z67: 424 | AA67: 434 | AB67: 420 | AC67: 404 | AD67: 125 | AE67: 22 | AF67: 22 | AG67: 19
A68: NH_OM | B68: 44075 | C68: 44076 | D68: F84730 | E68: 10318 | F68: 105 | G68: 94 | H68: 105 | I68: 80 | J68: 122 | K68: 54 | L68: 24 | M68: 24 | N68: 0 | O68: 497 | P68: 78 | Q68: 215 | R68: 219 | S68: 213 | T68: 45 | U68: 0 | V68: 1 | W68: 19 | X68: 8 | Y68: 0 | Z68: 471 | AA68: 462 | AB68: 459 | AC68: 441 | AD68: 146 | AE68: 43 | AF68: 28 | AG68: 26 | AH68: Dr Knight and Dr Ashar | AI68: NH | AJ68: NH-PCN9 | AK68: North West 2
A69: NH_OM | B69: 44075 | C69: 44076 | D69: F84729 | E69: 4830 | F69: 68 | G69: 59 | H69: 42 | I69: 34 | J69: 58 | K69: 48 | L69: 20 | M69: 20 | N69: 11 | O69: 483 | P69: 157 | Q69: 342 | R69: 269 | S69: 321 | T69: 4 | U69: 0 | V69: 0 | W69: 4 | X69: 1 | Y69: 1 | Z69: 454 | AA69: 462 | AB69: 456 | AC69: 429 | AD69: 121 | AE69: 42 | AF69: 22 | AG69: 19 | AH69: The Manor Park Practice | AI69: NH | AJ69: NH-PCN4 | AK69: North East 1
A70: NH_OM | B70: 44075 | C70: 44076 | D70: F84740 | E70: 4378 | F70: 47 | G70: 37 | H70: 62 | I70: 47 | J70: 53 | K70: 40 | L70: 7 | M70: 7 | N70: 4 | O70: 300 | P70: 98 | Q70: 223 | R70: 181 | S70: 191 | T70: 30 | U70: 0 | V70: 0 | W70: 19 | X70: 6 | Y70: 4 | Z70: 278 | AA70: 284 | AB70: 276 | AC70: 261 | AD70: 107 | AE70: 31 | AF70: 11 | AG70: 11 | AH70: Newham Transitional Team | AI70: NH | AJ70: NH-PCN8 | AK70: Stratford
A71: NH_OM | B71: 44075 | C71: 44076 | D71: F84739 | E71: 5036 | F71: 48 | G71: 46 | H71: 51 | I71: 50 | J71: 56 | K71: 53 | L71: 21 | M71: 21 | N71: 8 | O71: 519 | P71: 309 | Q71: 506 | R71: 381 | S71: 416 | T71: 9 | U71: 0 | V71: 0 | W71: 9 | X71: 2 | Y71: 2 | Z71: 502 | AA71: 516 | AB71: 501 | AC71: 487 | AD71: 67 | AE71: 32 | AF71: 30 | AG71: 30 | AH71: E12 Medical Practice | AI71: NH | AJ71: NH-PCN5 | AK71: North East 2
A72: NH_OM | B72: 44075 | C72: 44076 | D72: F84735 | E72: 8774 | F72: 128 | G72: 124 | H72: 136 | I72: 119 | J72: 138 | K72: 132 | L72: 21 | M72: 21 | N72: 13 | O72: 742 | P72: 241 | Q72: 520 | R72: 430 | S72: 455 | T72: 27 | U72: 0 | V72: 0 | W72: 19 | X72: 3 | Y72: 3 | Z72: 723 | AA72: 731 | AB72: 723 | AC72: 715 | AD72: 167 | AE72: 42 | AF72: 17 | AG72: 13 | AH72: The Azad Practice | AI72: NH | AJ72: NH-PCN2 | AK72: Central 1
A73: NH_OM | B73: 44075 | C73: 44076 | D73: F84047 | E73: 9310 | F73: 98 | G73: 84 | H73: 94 | I73: 84 | J73: 130 | K73: 103 | L73: 18 | M73: 18 | N73: 4 | O73: 569 | P73: 192 | Q73: 449 | R73: 333 | S73: 312 | T73: 32 | U73: 0 | V73: 0 | W73: 24 | X73: 2 | Y73: 0 | Z73: 534 | AA73: 541 | AB73: 529 | AC73: 507 | AD73: 216 | AE73: 63 | AF73: 55 | AG73: 47 | AH73: Custom House Surgery | AI73: NH | AJ73: NH-PCN1 | AK73: South One Newham
A74: NH_OM | B74: 44075 | C74: 44076 | D74: F84022 | E74: 7184 | F74: 48 | G74: 45 | H74: 62 | I74: 51 | J74: 59 | K74: 42 | L74: 12 | M74: 12 | N74: 6 | O74: 334 | P74: 108 | Q74: 244 | R74: 196 | S74: 200 | T74: 22 | U74: 0 | V74: 0 | W74: 16 | X74: 4 | Y74: 43 | Z74: 323 | AA74: 325 | AB74: 321 | AC74: 316 | AD74: 151 | AE74: 45 | AF74: 8 | AG74: 8 | AH74: Stratford Health Centre | AI74: NH | AJ74: NH-PCN9 | AK74: North West 2
A75: NH_OM | B75: 44075 | C75: 44076 | D75: F84050 | E75: 10833 | F75: 168 | G75: 151 | H75: 166 | I75: 138 | J75: 169 | K75: 141 | L75: 23 | M75: 23 | N75: 11 | O75: 823 | P75: 184 | Q75: 474 | R75: 467 | S75: 451 | T75: 33 | U75: 0 | V75: 0 | W75: 23 | X75: 2 | Y75: 0 | Z75: 799 | AA75: 794 | AB75: 789 | AC75: 777 | AD75: 183 | AE75: 63 | AF75: 36 | AG75: 32 | AH75: Boleyn Medical Centre | AI75: NH | AJ75: NH-PCN2 | AK75: Central 1
A76: NH_OM | B76: 44075 | C76: 44076 | D76: F84053 | E76: 7998 | F76: 82 | G76: 70 | H76: 83 | I76: 61 | J76: 90 | K76: 63 | L76: 24 | M76: 24 | N76: 12 | O76: 622 | P76: 92 | Q76: 261 | R76: 297 | S76: 290 | T76: 31 | U76: 6 | V76: 5 | W76: 26 | X76: 11 | Y76: 0 | Z76: 547 | AA76: 534 | AB76: 551 | AC76: 486 | AD76: 259 | AE76: 56 | AF76: 74 | AG76: 59 | AH76: Greengate Medical Practice | AI76: NH | AJ76: NH-PCN2 | AK76: Central 1
A77: NH_OM | B77: 44075 | C77: 44076 | D77: F84052 | E77: 12723 | F77: 186 | G77: 166 | H77: 192 | I77: 170 | J77: 129 | K77: 112 | L77: 32 | M77: 32 | N77: 8 | O77: 760 | P77: 240 | Q77: 532 | R77: 426 | S77: 450 | T77: 39 | U77: 15 | V77: 18 | W77: 39 | X77: 14 | Y77: 0 | Z77: 733 | AA77: 727 | AB77: 727 | AC77: 700 | AD77: 316 | AE77: 75 | AF77: 74 | AG77: 57 | AH77: Essex Lodge | AI77: NH | AJ77: NH-PCN3 | AK77: Newham Central
A78: NH_OM | B78: 44075 | C78: 44076 | D78: F84017 | E78: 20149 | F78: 272 | G78: 231 | H78: 275 | I78: 217 | J78: 262 | K78: 177 | L78: 51 | M78: 51 | N78: 33 | O78: 1028 | P78: 301 | Q78: 716 | R78: 547 | S78: 577 | T78: 88 | U78: 0 | V78: 0 | W78: 59 | X78: 10 | Y78: 21 | Z78: 915 | AA78: 963 | AB78: 940 | AC78: 854 | AD78: 600 | AE78: 135 | AF78: 157 | AG78: 127 | AH78: Star Lane Medical Centre | AI78: NH | AJ78: NH-PCN1 | AK78: South One Newham
A79: NH_OM | B79: 44075 | C79: 44076 | D79: F84006 | E79: 14341 | F79: 239 | G79: 225 | H79: 211 | I79: 189 | J79: 199 | K79: 163 | L79: 54 | M79: 54 | N79: 16 | O79: 1467 | P79: 564 | Q79: 1178 | R79: 900 | S79: 1026 | T79: 49 | U79: 3 | V79: 0 | W79: 43 | X79: 14 | Y79: 37 | Z79: 1353 | AA79: 1402 | AB79: 1363 | AC79: 1282 | AD79: 403 | AE79: 128 | AF79: 140 | AG79: 133 | AH79: Shrewsbury Road Surgery | AI79: NH | AJ79: NH-PCN5 | AK79: North East 2
A80: NH_OM | B80: 44075 | C80: 44076 | D80: F84004 | E80: 13727 | F80: 180 | G80: 154 | H80: 200 | I80: 173 | J80: 185 | K80: 142 | L80: 38 | M80: 38 | N80: 16 | O80: 971 | P80: 313 | Q80: 710 | R80: 625 | S80: 579 | T80: 58 | U80: 1 | V80: 0 | W80: 48 | X80: 7 | Y80: 19 | Z80: 856 | AA80: 885 | AB80: 860 | AC80: 770 | AD80: 437 | AE80: 159 | AF80: 176 | AG80: 138 | AH80: Market Street Health Group | AI80: NH | AJ80: NH-PCN2 | AK80: Central 1
A81: NH_OM | B81: 44075 | C81: 44076 | D81: F84009 | E81: 10466 | F81: 106 | G81: 90 | H81: 138 | I81: 123 | J81: 100 | K81: 84 | L81: 16 | M81: 15 | N81: 3 | O81: 478 | P81: 153 | Q81: 338 | R81: 273 | S81: 307 | T81: 38 | U81: 0 | V81: 0 | W81: 34 | X81: 5 | Y81: 11 | Z81: 432 | AA81: 447 | AB81: 437 | AC81: 399 | AD81: 194 | AE81: 57 | AF81: 51 | AG81: 14 | AH81: Stratford Village Surgery | AI81: NH | AJ81: NH-PCN8 | AK81: Stratford
A82: NH_OM | B82: 44075 | C82: 44076 | D82: F84014 | E82: 8014 | F82: 94 | G82: 86 | H82: 82 | I82: 68 | J82: 115 | K82: 95 | L82: 22 | M82: 22 | N82: 0 | O82: 796 | P82: 262 | Q82: 633 | R82: 472 | S82: 475 | T82: 28 | U82: 0 | V82: 0 | W82: 20 | X82: 2 | Y82: 1 | Z82: 710 | AA82: 755 | AB82: 696 | AC82: 636 | AD82: 351 | AE82: 93 | AF82: 73 | AG82: 63 | AH82: Upton Lane Medical Centre | AI82: NH | AJ82: NH-PCN9 | AK82: North West 2
A83: NH_OM | B83: 44075 | C83: 44076 | D83: F84010 | E83: 10555 | F83: 136 | G83: 125 | H83: 147 | I83: 119 | J83: 146 | K83: 121 | L83: 24 | M83: 24 | N83: 8 | O83: 727 | P83: 272 | Q83: 526 | R83: 472 | S83: 531 | T83: 24 | U83: 0 | V83: 0 | W83: 22 | X83: 3 | Y83: 26 | Z83: 691 | AA83: 697 | AB83: 694 | AC83: 657 | AD83: 340 | AE83: 88 | AF83: 63 | AG83: 59 | AH83: St Bartholomew Surgery | AI83: NH | AJ83: NH-PCN2 | AK83: Central 1
A84: NH_OM | B84: 44075 | C84: 44076 | D84: F84074 | E84: 11074 | F84: 123 | G84: 109 | H84: 132 | I84: 126 | J84: 101 | K84: 89 | L84: 21 | M84: 21 | N84: 8 | O84: 975 | P84: 281 | Q84: 618 | R84: 550 | S84: 611 | T84: 43 | U84: 0 | V84: 1 | W84: 34 | X84: 5 | Y84: 2 | Z84: 939 | AA84: 942 | AB84: 934 | AC84: 905 | AD84: 397 | AE84: 122 | AF84: 87 | AG84: 71 | AH84: Wordsworth Health Centre | AI84: NH | AJ84: NH-PCN5 | AK84: North East 2
A85: NH_OM | B85: 44075 | C85: 44076 | D85: F84121 | E85: 13649 | F85: 230 | G85: 209 | H85: 230 | I85: 213 | J85: 222 | K85: 192 | L85: 47 | M85: 47 | N85: 22 | O85: 1139 | P85: 417 | Q85: 875 | R85: 664 | S85: 778 | T85: 47 | U85: 0 | V85: 0 | W85: 40 | X85: 4 | Y85: 20 | Z85: 1028 | AA85: 1060 | AB85: 1037 | AC85: 946 | AD85: 376 | AE85: 146 | AF85: 135 | AG85: 89 | AH85: First4Health Church Road | AI85: NH | AJ85: NH-PCN8 | AK85: Stratford
A86: NH_OM | B86: 44075 | C86: 44076 | D86: F84111 | E86: 9927 | F86: 116 | G86: 101 | H86: 118 | I86: 109 | J86: 104 | K86: 85 | L86: 23 | M86: 22 | N86: 13 | O86: 623 | P86: 198 | Q86: 529 | R86: 367 | S86: 372 | T86: 38 | U86: 0 | V86: 0 | W86: 26 | X86: 8 | Y86: 4 | Z86: 607 | AA86: 611 | AB86: 601 | AC86: 584 | AD86: 312 | AE86: 90 | AF86: 43 | AG86: 36 | AH86: Abbey Road Medical Practice | AI86: NH | AJ86: NH-PCN7 | AK86: Leaside
A87: NH_OM | B87: 44075 | C87: 44076 | D87: F84124 | E87: 4971 | F87: 65 | G87: 58 | H87: 56 | I87: 52 | J87: 56 | K87: 48 | L87: 26 | M87: 26 | N87: 8 | O87: 263 | P87: 88 | Q87: 178 | R87: 154 | S87: 177 | T87: 22 | U87: 0 | V87: 0 | W87: 16 | X87: 3 | Y87: 1 | Z87: 238 | AA87: 241 | AB87: 241 | AC87: 219 | AD87: 106 | AE87: 25 | AF87: 16 | AG87: 14 | AH87: The Project Surgery | AI87: NH | AJ87: NH-PCN2 | AK87: Central 1
A88: NH_OM | B88: 44075 | C88: 44076 | D88: F84642 | E88: 6847 | F88: 82 | G88: 77 | H88: 90 | I88: 78 | J88: 71 | K88: 59 | L88: 26 | M88: 26 | N88: 13 | O88: 424 | P88: 154 | Q88: 356 | R88: 244 | S88: 269 | T88: 17 | U88: 0 | V88: 0 | W88: 6 | X88: 0 | Y88: 1 | Z88: 395 | AA88: 410 | AB88: 390 | AC88: 372 | AD88: 104 | AE88: 27 | AF88: 37 | AG88: 32 | AH88: Lucas Avenue Surgery | AI88: NH | AJ88: NH-PCN3 | AK88: Newham Central
A89: NH_OM | B89: 44075 | C89: 44076 | D89: F84641 | E89: 3017 | F89: 35 | G89: 34 | H89: 30 | I89: 30 | J89: 35 | K89: 32 | L89: 4 | M89: 4 | N89: 2 | O89: 350 | P89: 129 | Q89: 273 | R89: 200 | S89: 226 | T89: 19 | U89: 0 | V89: 0 | W89: 15 | X89: 3 | Y89: 5 | Z89: 319 | AA89: 322 | AB89: 323 | AC89: 291 | AD89: 130 | AE89: 38 | AF89: 75 | AG89: 62 | AH89: Birchdale Road Medical Practice | AI89: NH | AJ89: NH-PCN4 | AK89: North East 1
A90: NH_OM | B90: 44075 | C90: 44076 | D90: F84097 | E90: 11057 | F90: 187 | G90: 173 | H90: 183 | I90: 160 | J90: 166 | K90: 128 | L90: 35 | M90: 35 | N90: 23 | O90: 803 | P90: 291 | Q90: 600 | R90: 486 | S90: 550 | T90: 37 | U90: 3 | V90: 5 | W90: 35 | X90: 7 | Y90: 62 | Z90: 777 | AA90: 779 | AB90: 777 | AC90: 758 | AD90: 333 | AE90: 114 | AF90: 102 | AG90: 46 | AH90: Claremont Clinic | AI90: NH | AJ90: NH-PCN6 | AK90: North Newham
A91: NH_OM | B91: 44075 | C91: 44076 | D91: F84086 | E91: 7090 | F91: 81 | G91: 74 | H91: 89 | I91: 83 | J91: 85 | K91: 73 | L91: 19 | M91: 19 | N91: 7 | O91: 469 | P91: 164 | Q91: 325 | R91: 328 | S91: 305 | T91: 28 | U91: 0 | V91: 0 | W91: 18 | X91: 2 | Y91: 55 | Z91: 436 | AA91: 431 | AB91: 435 | AC91: 389 | AD91: 280 | AE91: 84 | AF91: 39 | AG91: 36 | AH91: The Forest Practice | AI91: NH | AJ91: NH-PCN9 | AK91: North West 2
A92: NH_OM | B92: 44075 | C92: 44076 | D92: F84077 | E92: 9540 | F92: 127 | G92: 109 | H92: 129 | I92: 114 | J92: 124 | K92: 101 | L92: 28 | M92: 28 | N92: 13 | O92: 481 | P92: 124 | Q92: 322 | R92: 271 | S92: 251 | T92: 30 | U92: 0 | V92: 0 | W92: 20 | X92: 3 | Y92: 5 | Z92: 464 | AA92: 467 | AB92: 459 | AC92: 446 | AD92: 262 | AE92: 71 | AF92: 23 | AG92: 15 | AH92: Dr Samuel & Dr Khan's Practice | AI92: NH | AJ92: NH-PCN8 | AK92: Stratford
A93: NH_OM | B93: 44075 | C93: 44076 | D93: F84088 | E93: 4964 | F93: 57 | G93: 47 | H93: 69 | I93: 55 | J93: 52 | K93: 35 | L93: 16 | M93: 16 | N93: 7 | O93: 385 | P93: 106 | Q93: 297 | R93: 197 | S93: 204 | T93: 17 | U93: 0 | V93: 0 | W93: 8 | X93: 0 | Y93: 0 | Z93: 372 | AA93: 376 | AB93: 365 | AC93: 362 | AD93: 117 | AE93: 36 | AF93: 19 | AG93: 17 | AH93: Plashet Medical Centre | AI93: NH | AJ93: NH-PCN4 | AK93: North East 1
A94: NH_OM | B94: 44075 | C94: 44076 | D94: F84093 | E94: 17936 | F94: 214 | G94: 190 | H94: 270 | I94: 236 | J94: 211 | K94: 178 | L94: 54 | M94: 54 | N94: 17 | O94: 832 | P94: 219 | Q94: 577 | R94: 489 | S94: 440 | T94: 55 | U94: 6 | V94: 6 | W94: 49 | X94: 4 | Y94: 9 | Z94: 772 | AA94: 789 | AB94: 773 | AC94: 726 | AD94: 423 | AE94: 136 | AF94: 76 | AG94: 37 | AH94: Tollgate Health Centre | AI94: NH | AJ94: NH-PCN10 | AK94: Docklands
A95: NH_OM | B95: 44075 | C95: 44076 | D95: F84092 | E95: 8432 | F95: 119 | G95: 109 | H95: 134 | I95: 112 | J95: 120 | K95: 85 | L95: 16 | M95: 16 | N95: 10 | O95: 505 | P95: 150 | Q95: 370 | R95: 294 | S95: 304 | T95: 24 | U95: 1 | V95: 0 | W95: 19 | X95: 3 | Y95: 35 | Z95: 471 | AA95: 479 | AB95: 474 | AC95: 454 | AD95: 206 | AE95: 45 | AF95: 27 | AG95: 20 | AH95: Glen Road Medical Centre | AI95: NH | AJ95: NH-PCN1 | AK95: South One Newham
A96: NH_OM | B96: 44105 | C96: 44110 | D96: F84088 | E96: 4967 | F96: 58 | G96: 47 | H96: 66 | I96: 51 | J96: 51 | K96: 35 | L96: 22 | M96: 22 | N96: 15 | O96: 393 | P96: 100 | Q96: 297 | R96: 190 | S96: 201 | T96: 17 | U96: 0 | V96: 0 | W96: 8 | X96: 0 | Y96: 0 | Z96: 373 | AA96: 383 | AB96: 370 | AC96: 364 | AD96: 117 | AE96: 36 | AF96: 19 | AG96: 18 | AH96: Plashet Medical Centre | AI96: NH | AJ96: NH-PCN4 | AK96: North East 1
A97: NH_OM | B97: 44105 | C97: 44110 | D97: F84092 | E97: 8414 | F97: 110 | G97: 101 | H97: 141 | I97: 118 | J97: 115 | K97: 83 | L97: 32 | M97: 32 | N97: 15 | O97: 507 | P97: 153 | Q97: 375 | R97: 296 | S97: 304 | T97: 23 | U97: 1 | V97: 0 | W97: 18 | X97: 5 | Y97: 37 | Z97: 470 | AA97: 481 | AB97: 471 | AC97: 448 | AD97: 200 | AE97: 40 | AF97: 26 | AG97: 21 | AH97: Glen Road Medical Centre | AI97: NH | AJ97: NH-PCN1 | AK97: South One Newham
A98: NH_OM | B98: 44105 | C98: 44110 | D98: F84086 | E98: 7029 | F98: 82 | G98: 76 | H98: 87 | I98: 82 | J98: 85 | K98: 71 | L98: 28 | M98: 28 | N98: 15 | O98: 469 | P98: 156 | Q98: 324 | R98: 325 | S98: 299 | T98: 28 | U98: 0 | V98: 0 | W98: 18 | X98: 2 | Y98: 68 | Z98: 438 | AA98: 431 | AB98: 433 | AC98: 388 | AD98: 280 | AE98: 83 | AF98: 39 | AG98: 38 | AH98: The Forest Practice | AI98: NH | AJ98: NH-PCN9 | AK98: North West 2
A99: NH_OM | B99: 44105 | C99: 44110 | D99: F84074 | E99: 11007 | F99: 122 | G99: 109 | H99: 136 | I99: 129 | J99: 103 | K99: 90 | L99: 30 | M99: 30 | N99: 12 | O99: 971 | P99: 272 | Q99: 592 | R99: 544 | S99: 599 | T99: 42 | U99: 0 | V99: 1 | W99: 33 | X99: 7 | Y99: 4 | Z99: 931 | AA99: 937 | AB99: 930 | AC99: 902 | AD99: 395 | AE99: 126 | AF99: 90 | AG99: 77 | AH99: Wordsworth Health Centre | AI99: NH | AJ99: NH-PCN5 | AK99: North East 2
A100: NH_OM | B100: 44105 | C100: 44110 | D100: F84077 | E100: 9495 | F100: 129 | G100: 111 | H100: 121 | I100: 109 | J100: 123 | K100: 99 | L100: 42 | M100: 42 | N100: 22 | O100: 480 | P100: 108 | Q100: 310 | R100: 254 | S100: 232 | T100: 29 | U100: 0 | V100: 0 | W100: 20 | X100: 4 | Y100: 7 | Z100: 462 | AA100: 463 | AB100: 457 | AC100: 443 | AD100: 262 | AE100: 64 | AF100: 23 | AG100: 12 | AH100: Dr Samuel & Dr Khan's Practice | AI100: NH | AJ100: NH-PCN8 | AK100: Stratford
A101: NH_OM | B101: 44105 | C101: 44110 | D101: F84093 | E101: 17906 | F101: 205 | G101: 177 | H101: 272 | I101: 242 | J101: 212 | K101: 178 | L101: 71 | M101: 71 | N101: 43 | O101: 837 | P101: 215 | Q101: 565 | R101: 480 | S101: 444 | T101: 57 | U101: 11 | V101: 13 | W101: 51 | X101: 10 | Y101: 16 | Z101: 772 | AA101: 787 | AB101: 776 | AC101: 724 | AD101: 420 | AE101: 129 | AF101: 80 | AG101: 34 | AH101: Tollgate Health Centre | AI101: NH | AJ101: NH-PCN10 | AK101: Docklands
A102: NH_OM | B102: 44105 | C102: 44110 | D102: F84124 | E102: 4966 | F102: 57 | G102: 49 | H102: 61 | I102: 56 | J102: 55 | K102: 47 | L102: 33 | M102: 33 | N102: 15 | O102: 266 | P102: 90 | Q102: 182 | R102: 157 | S102: 177 | T102: 23 | U102: 0 | V102: 0 | W102: 17 | X102: 3 | Y102: 5 | Z102: 242 | AA102: 245 | AB102: 242 | AC102: 223 | AD102: 107 | AE102: 27 | AF102: 17 | AG102: 15 | AH102: The Project Surgery | AI102: NH | AJ102: NH-PCN2 | AK102: Central 1
A103: NH_OM | B103: 44105 | C103: 44110 | D103: F84641 | E103: 3008 | F103: 33 | G103: 32 | H103: 28 | I103: 28 | J103: 32 | K103: 31 | L103: 4 | M103: 4 | N103: 3 | O103: 350 | P103: 122 | Q103: 279 | R103: 193 | S103: 223 | T103: 20 | U103: 1 | V103: 1 | W103: 15 | X103: 5 | Y103: 6 | Z103: 315 | AA103: 322 | AB103: 321 | AC103: 287 | AD103: 131 | AE103: 43 | AF103: 76 | AG103: 58 | AH103: Birchdale Road Medical Practice | AI103: NH | AJ103: NH-PCN4 | AK103: North East 1
A104: NH_OM | B104: 44105 | C104: 44110 | D104: F84121 | E104: 13643 | F104: 226 | G104: 201 | H104: 228 | I104: 208 | J104: 230 | K104: 199 | L104: 69 | M104: 69 | N104: 39 | O104: 1145 | P104: 397 | Q104: 877 | R104: 649 | S104: 776 | T104: 46 | U104: 0 | V104: 0 | W104: 39 | X104: 5 | Y104: 25 | Z104: 1028 | AA104: 1069 | AB104: 1043 | AC104: 947 | AD104: 375 | AE104: 141 | AF104: 135 | AG104: 92 | AH104: First4Health Church Road | AI104: NH | AJ104: NH-PCN8 | AK104: Stratford
A105: NH_OM | B105: 44105 | C105: 44110 | D105: F84097 | E105: 11106 | F105: 179 | G105: 163 | H105: 192 | I105: 167 | J105: 174 | K105: 134 | L105: 50 | M105: 49 | N105: 37 | O105: 807 | P105: 277 | Q105: 590 | R105: 474 | S105: 541 | T105: 38 | U105: 4 | V105: 6 | W105: 36 | X105: 10 | Y105: 80 | Z105: 778 | AA105: 781 | AB105: 778 | AC105: 758 | AD105: 336 | AE105: 117 | AF105: 101 | AG105: 44 | AH105: Claremont Clinic | AI105: NH | AJ105: NH-PCN6 | AK105: North Newham
A106: NH_OM | B106: 44105 | C106: 44110 | D106: F84111 | E106: 9934 | F106: 123 | G106: 108 | H106: 106 | I106: 97 | J106: 110 | K106: 89 | L106: 36 | M106: 35 | N106: 24 | O106: 627 | P106: 186 | Q106: 523 | R106: 364 | S106: 371 | T106: 38 | U106: 1 | V106: 1 | W106: 25 | X106: 12 | Y106: 5 | Z106: 610 | AA106: 617 | AB106: 603 | AC106: 587 | AD106: 310 | AE106: 85 | AF106: 43 | AG106: 35 | AH106: Abbey Road Medical Practice | AI106: NH | AJ106: NH-PCN7 | AK106: Leaside
A107: NH_OM | B107: 44105 | C107: 44110 | D107: F84070 | E107: 7023 | F107: 99 | G107: 85 | H107: 116 | I107: 99 | J107: 97 | K107: 78 | L107: 42 | M107: 42 | N107: 30 | O107: 592 | P107: 233 | Q107: 462 | R107: 366 | S107: 403 | T107: 18 | U107: 0 | V107: 0 | W107: 16 | X107: 5 | Y107: 17 | Z107: 546 | AA107: 559 | AB107: 546 | AC107: 507 | AD107: 257 | AE107: 91 | AF107: 64 | AG107: 62 | AH107: Lathom Medical Centre | AI107: NH | AJ107: NH-PCN5 | AK107: North East 2
A108: NH_OM | B108: 44105 | C108: 44110 | D108: F84010 | E108: 10562 | F108: 137 | G108: 126 | H108: 143 | I108: 118 | J108: 137 | K108: 113 | L108: 34 | M108: 34 | N108: 17 | O108: 737 | P108: 281 | Q108: 536 | R108: 474 | S108: 542 | T108: 24 | U108: 1 | V108: 2 | W108: 21 | X108: 6 | Y108: 50 | Z108: 699 | AA108: 701 | AB108: 701 | AC108: 659 | AD108: 339 | AE108: 86 | AF108: 62 | AG108: 58 | AH108: St Bartholomew Surgery | AI108: NH | AJ108: NH-PCN2 | AK108: Central 1
A109: NH_OM | B109: 44105 | C109: 44110 | D109: F84014 | E109: 7999 | F109: 97 | G109: 86 | H109: 84 | I109: 69 | J109: 105 | K109: 87 | L109: 34 | M109: 33 | N109: 0 | O109: 794 | P109: 245 | Q109: 631 | R109: 463 | S109: 468 | T109: 29 | U109: 1 | V109: 0 | W109: 20 | X109: 4 | Y109: 1 | Z109: 708 | AA109: 748 | AB109: 701 | AC109: 633 | AD109: 351 | AE109: 94 | AF109: 74 | AG109: 67 | AH109: Upton Lane Medical Centre | AI109: NH | AJ109: NH-PCN9 | AK109: North West 2
A110: NH_OM | B110: 44105 | C110: 44110 | D110: F84009 | E110: 10322 | F110: 106 | G110: 90 | H110: 134 | I110: 120 | J110: 99 | K110: 86 | L110: 27 | M110: 26 | N110: 8 | O110: 480 | P110: 153 | Q110: 341 | R110: 269 | S110: 310 | T110: 37 | U110: 0 | V110: 1 | W110: 34 | X110: 7 | Y110: 19 | Z110: 435 | AA110: 448 | AB110: 440 | AC110: 402 | AD110: 193 | AE110: 58 | AF110: 51 | AG110: 17 | AH110: Stratford Village Surgery | AI110: NH | AJ110: NH-PCN8 | AK110: Stratford
A111: NH_OM | B111: 44105 | C111: 44110 | D111: F84004 | E111: 13698 | F111: 175 | G111: 147 | H111: 199 | I111: 171 | J111: 192 | K111: 152 | L111: 60 | M111: 59 | N111: 23 | O111: 978 | P111: 300 | Q111: 689 | R111: 624 | S111: 584 | T111: 59 | U111: 1 | V111: 0 | W111: 49 | X111: 11 | Y111: 31 | Z111: 864 | AA111: 885 | AB111: 876 | AC111: 781 | AD111: 440 | AE111: 156 | AF111: 179 | AG111: 139 | AH111: Market Street Health Group | AI111: NH | AJ111: NH-PCN2 | AK111: Central 1
A112: NH_OM | B112: 44105 | C112: 44110 | D112: F84006 | E112: 14328 | F112: 229 | G112: 214 | H112: 217 | I112: 195 | J112: 208 | K112: 164 | L112: 73 | M112: 72 | N112: 17 | O112: 1479 | P112: 580 | Q112: 1183 | R112: 926 | S112: 1045 | T112: 50 | U112: 5 | V112: 0 | W112: 43 | X112: 18 | Y112: 57 | Z112: 1365 | AA112: 1407 | AB112: 1373 | AC112: 1286 | AD112: 435 | AE112: 140 | AF112: 144 | AG112: 140 | AH112: Shrewsbury Road Surgery | AI112: NH | AJ112: NH-PCN5 | AK112: North East 2
A113: NH_OM | B113: 44105 | C113: 44110 | D113: F84017 | E113: 20051 | F113: 272 | G113: 228 | H113: 278 | I113: 221 | J113: 255 | K113: 176 | L113: 69 | M113: 67 | N113: 54 | O113: 1033 | P113: 281 | Q113: 692 | R113: 544 | S113: 564 | T113: 89 | U113: 0 | V113: 0 | W113: 60 | X113: 17 | Y113: 34 | Z113: 922 | AA113: 954 | AB113: 938 | AC113: 846 | AD113: 598 | AE113: 129 | AF113: 157 | AG113: 130 | AH113: Star Lane Medical Centre | AI113: NH | AJ113: NH-PCN1 | AK113: South One Newham
